Workbook

Sheet Data_S11
E1: SuperSynCom R1 sample overview | S1: SuperSynCom R2 sample overview | AC1: Overview Sequencing Data
E2: Sample # | F2: Description | G2: Genotype | H2: Growth cond. | I2: Inoc | J2: Compartment | K2: Time point (wpi) | L2: Biorep | M2: Sequenced? | S2: Sample number | T2: Description | U2: Genotype | V2: Inoc | W2: Compartment | X2: Time point (wpi) | Y2: Nutrient condition | Z2: Biorep | AA2: Sequenced? | AC2: Sample | AD2: Total reads | AE2: Plant reads | AF2: SynCom reads | AG2: Unmapped reads | AH2: Plant reads | AI2: SynCom reads | AJ2: Unmapped reads
E3: 1 | F3: Input_NA_SSC_t0_B1 | G3: Input | H3: NA | I3: SSC | J3: NA | K3: 0 | L3: 1 | M3: No | S3: 1 | T3: Input_dil_SSC_t0_B1 | U3: Input_dil | V3: SSC | W3: NA | X3: 0 | Y3: NA | Z3: 1 | AA3: No | AC3: At_AtSC_ES_high_B1 | AD3: 2582181 | AE3: 1949159 | AF3: 458152 | AG3: =AD3-AE3-AF3 -> 174870 | AH3: =AE3/AD3 -> 75.48% | AI3: =AF3/AD3 -> 17.74% | AJ3: =AG3/AD3 -> 6.77%
E4: 2 | F4: Input_NA_SSC_t0_B2 | G4: Input | H4: NA | I4: SSC | J4: NA | K4: 0 | L4: 2 | M4: No | S4: 2 | T4: Input_dil_SSC_t0_B2 | U4: Input_dil | V4: SSC | W4: NA | X4: 0 | Y4: NA | Z4: 2 | AA4: No | AC4: At_AtSC_ES_high_B2 | AD4: 3849387 | AE4: 3141787 | AF4: 622217 | AG4: =AD4-AE4-AF4 -> 85383 | AH4: =AE4/AD4 -> 81.62% | AI4: =AF4/AD4 -> 16.16% | AJ4: =AG4/AD4 -> 2.22%
E5: 3 | F5: Input_NA_SSC_t0_B3 | G5: Input | H5: NA | I5: SSC | J5: NA | K5: 0 | L5: 3 | M5: No | S5: 3 | T5: Input_dil_SSC_t0_B3 | U5: Input_dil | V5: SSC | W5: NA | X5: 0 | Y5: NA | Z5: 3 | AA5: No | AC5: At_AtSC_ES_high_B3 | AD5: 2374613 | AE5: 1733899 | AF5: 452167 | AG5: 188547 | AH5: 73.02% | AI5: 19.04% | AJ5: 7.94%
E6: 4 | F6: Input_NA_SSC_t0_B4 | G6: Input | H6: NA | I6: SSC | J6: NA | K6: 0 | L6: 4 | M6: No | S6: 4 | T6: Input_dil_SSC_t0_B4 | U6: Input_dil | V6: SSC | W6: NA | X6: 0 | Y6: NA | Z6: 4 | AA6: No | AC6: At_AtSC_ES_high_B4 | AD6: 2949759 | AE6: 2217272 | AF6: 604613 | AG6: 127874 | AH6: 75.17% | AI6: 20.50% | AJ6: 4.34%
E7: 5 | F7: Input_NA_LjSC_t0_B1 | G7: Input | H7: NA | I7: LjSC | J7: NA | K7: 0 | L7: 1 | M7: Yes | S7: 5 | T7: Input_dil_LjSC_t0_B1 | U7: Input_dil | V7: LjSC | W7: NA | X7: 0 | Y7: NA | Z7: 1 | AA7: No | AC7: At_AtSC_ES_HL_orig_B1 | AD7: 3629406 | AE7: 2976736 | AF7: 574387 | AG7: 78283 | AH7: 82.02% | AI7: 15.83% | AJ7: 2.16%
E8: 6 | F8: Input_NA_LjSC_t0_B2 | G8: Input | H8: NA | I8: LjSC | J8: NA | K8: 0 | L8: 2 | M8: Yes | S8: 6 | T8: Input_dil_LjSC_t0_B2 | U8: Input_dil | V8: LjSC | W8: NA | X8: 0 | Y8: NA | Z8: 2 | AA8: No | AC8: At_AtSC_ES_HL_orig_B2 | AD8: 2860057 | AE8: 2281051 | AF8: 502535 | AG8: 76471 | AH8: 79.76% | AI8: 17.57% | AJ8: 2.67%
E9: 7 | F9: Input_NA_LjSC_t0_B3 | G9: Input | H9: NA | I9: LjSC | J9: NA | K9: 0 | L9: 3 | M9: No | S9: 7 | T9: Input_dil_LjSC_t0_B3 | U9: Input_dil | V9: LjSC | W9: NA | X9: 0 | Y9: NA | Z9: 3 | AA9: No | AC9: At_AtSC_ES_HL_orig_B3 | AD9: 4032262 | AE9: 3144192 | AF9: 775743 | AG9: 112327 | AH9: 77.98% | AI9: 19.24% | AJ9: 2.79%
E10: 8 | F10: Input_NA_LjSC_t0_B4 | G10: Input | H10: NA | I10: LjSC | J10: NA | K10: 0 | L10: 4 | M10: No | S10: 8 | T10: Input_dil_LjSC_t0_B4 | U10: Input_dil | V10: LjSC | W10: NA | X10: 0 | Y10: NA | Z10: 4 | AA10: No | AC10: At_AtSC_ES_HL_orig_B4 | AD10: 2660511 | AE10: 1849783 | AF10: 674557 | AG10: 136171 | AH10: 69.53% | AI10: 25.35% | AJ10: 5.12%
E11: 9 | F11: Input_NA_AtSC_t0_B1 | G11: Input | H11: NA | I11: AtSC | J11: NA | K11: 0 | L11: 1 | M11: Yes | S11: 9 | T11: Input_dil_AtSC_t0_B1 | U11: Input_dil | V11: AtSC | W11: NA | X11: 0 | Y11: NA | Z11: 1 | AA11: No | AC11: At_AtSC_ES_low_B1 | AD11: 1942180 | AE11: 1626679 | AF11: 247453 | AG11: 68048 | AH11: 83.76% | AI11: 12.74% | AJ11: 3.50%
E12: 10 | F12: Input_NA_AtSC_t0_B2 | G12: Input | H12: NA | I12: AtSC | J12: NA | K12: 0 | L12: 2 | M12: No | S12: 10 | T12: Input_dil_AtSC_t0_B2 | U12: Input_dil | V12: AtSC | W12: NA | X12: 0 | Y12: NA | Z12: 2 | AA12: No | AC12: At_AtSC_ES_low_B2 | AD12: 2361472 | AE12: 1912259 | AF12: 366916 | AG12: 82297 | AH12: 80.98% | AI12: 15.54% | AJ12: 3.48%
E13: 11 | F13: Input_NA_AtSC_t0_B3 | G13: Input | H13: NA | I13: AtSC | J13: NA | K13: 0 | L13: 3 | M13: No | S13: 11 | T13: Input_dil_AtSC_t0_B3 | U13: Input_dil | V13: AtSC | W13: NA | X13: 0 | Y13: NA | Z13: 3 | AA13: No | AC13: At_AtSC_ES_low_B3 | AD13: 243774 | AE13: 191164 | AF13: 42413 | AG13: 10197 | AH13: 78.42% | AI13: 17.40% | AJ13: 4.18%
E14: 12 | F14: Input_NA_AtSC_t0_B4 | G14: Input | H14: NA | I14: AtSC | J14: NA | K14: 0 | L14: 4 | M14: No | S14: 12 | T14: Input_dil_AtSC_t0_B4 | U14: Input_dil | V14: AtSC | W14: NA | X14: 0 | Y14: NA | Z14: 4 | AA14: No | AC14: At_AtSC_ES_low_B4 | AD14: 935657 | AE14: 798749 | AF14: 121153 | AG14: 15755 | AH14: 85.37% | AI14: 12.95% | AJ14: 1.68%
E15: 13 | F15: Input_NA_HvSC_t0_B1 | G15: Input | H15: NA | I15: HvSC | J15: NA | K15: 0 | L15: 1 | M15: Yes | S15: 13 | T15: Input_dil_HvSC_t0_B1 | U15: Input_dil | V15: HvSC | W15: NA | X15: 0 | Y15: NA | Z15: 1 | AA15: No | AC15: At_AtSC_RZ_high_B1 | AD15: 46050 | AE15: 905 | AF15: 28570 | AG15: 16575 | AH15: 1.97% | AI15: 62.04% | AJ15: 35.99%
E16: 14 | F16: Input_NA_HvSC_t0_B2 | G16: Input | H16: NA | I16: HvSC | J16: NA | K16: 0 | L16: 2 | M16: No | S16: 14 | T16: Input_dil_HvSC_t0_B2 | U16: Input_dil | V16: HvSC | W16: NA | X16: 0 | Y16: NA | Z16: 2 | AA16: No | AC16: At_AtSC_RZ_high_B2 | AD16: 64268 | AE16: 6014 | AF16: 40488 | AG16: 17766 | AH16: 9.36% | AI16: 63.00% | AJ16: 27.64%
E17: 15 | F17: Input_NA_HvSC_t0_B3 | G17: Input | H17: NA | I17: HvSC | J17: NA | K17: 0 | L17: 3 | M17: No | S17: 15 | T17: Input_dil_HvSC_t0_B3 | U17: Input_dil | V17: HvSC | W17: NA | X17: 0 | Y17: NA | Z17: 3 | AA17: No | AC17: At_AtSC_RZ_high_B3 | AD17: 49265 | AE17: 1786 | AF17: 29026 | AG17: 18453 | AH17: 3.63% | AI17: 58.92% | AJ17: 37.46%
E18: 16 | F18: Input_NA_HvSC_t0_B4 | G18: Input | H18: NA | I18: HvSC | J18: NA | K18: 0 | L18: 4 | M18: No | S18: 16 | T18: Input_dil_HvSC_t0_B4 | U18: Input_dil | V18: HvSC | W18: NA | X18: 0 | Y18: NA | Z18: 4 | AA18: No | AC18: At_AtSC_RZ_high_B4 | AD18: 165158 | AE18: 4905 | AF18: 97199 | AG18: 63054 | AH18: 2.97% | AI18: 58.85% | AJ18: 38.18%
E19: 17 | F19: NP_GC1_SSC_t3_B1 | G19: NP | H19: GC1 | I19: SSC | J19: NA | K19: 3 | L19: 1 | M19: No | S19: 17 | T19: Input_undil_SSC_t0_B1 | U19: Input_undil | V19: SSC | W19: NA | X19: 0 | Y19: NA | Z19: 1 | AA19: Yes | AC19: At_AtSC_RZ_HL_orig_B1 | AD19: 195323 | AE19: 1537 | AF19: 133749 | AG19: 60037 | AH19: 0.79% | AI19: 68.48% | AJ19: 30.74%
E20: 18 | F20: NP_GC1_SSC_t3_B2 | G20: NP | H20: GC1 | I20: SSC | J20: NA | K20: 3 | L20: 2 | M20: No | S20: 18 | T20: Input_undil_SSC_t0_B2 | U20: Input_undil | V20: SSC | W20: NA | X20: 0 | Y20: NA | Z20: 2 | AA20: Yes | AC20: At_AtSC_RZ_HL_orig_B2 | AD20: 203605 | AE20: 11188 | AF20: 131218 | AG20: 61199 | AH20: 5.49% | AI20: 64.45% | AJ20: 30.06%
E21: 19 | F21: NP_GC1_SSC_t3_B3 | G21: NP | H21: GC1 | I21: SSC | J21: NA | K21: 3 | L21: 3 | M21: No | S21: 19 | T21: Input_undil_SSC_t0_B3 | U21: Input_undil | V21: SSC | W21: NA | X21: 0 | Y21: NA | Z21: 3 | AA21: Yes | AC21: At_AtSC_RZ_HL_orig_B3 | AD21: 138547 | AE21: 1614 | AF21: 89463 | AG21: 47470 | AH21: 1.16% | AI21: 64.57% | AJ21: 34.26%
E22: 20 | F22: NP_GC1_SSC_t3_B4 | G22: NP | H22: GC1 | I22: SSC | J22: NA | K22: 3 | L22: 4 | M22: No | S22: 20 | T22: Input_undil_SSC_t0_B4 | U22: Input_undil | V22: SSC | W22: NA | X22: 0 | Y22: NA | Z22: 4 | AA22: Yes | AC22: At_AtSC_RZ_HL_orig_B4 | AD22: 8620 | AE22: 431 | AF22: 5760 | AG22: 2429 | AH22: 5.00% | AI22: 66.82% | AJ22: 28.18%
E23: 21 | F23: NP_GC2_SSC_t3_B1 | G23: NP | H23: GC2 | I23: SSC | J23: NA | K23: 3 | L23: 1 | M23: No | S23: 21 | T23: Input_undil_LjSC_t0_B1 | U23: Input_undil | V23: LjSC | W23: NA | X23: 0 | Y23: NA | Z23: 1 | AA23: Yes | AC23: At_AtSC_RZ_low_B1 | AD23: 146761 | AE23: 1103 | AF23: 87161 | AG23: 58497 | AH23: 0.75% | AI23: 59.39% | AJ23: 39.86%
E24: 22 | F24: NP_GC2_SSC_t3_B2 | G24: NP | H24: GC2 | I24: SSC | J24: NA | K24: 3 | L24: 2 | M24: No | S24: 22 | T24: Input_undil_LjSC_t0_B2 | U24: Input_undil | V24: LjSC | W24: NA | X24: 0 | Y24: NA | Z24: 2 | AA24: Yes | AC24: At_AtSC_RZ_low_B2 | AD24: 112400 | AE24: 311 | AF24: 77771 | AG24: 34318 | AH24: 0.28% | AI24: 69.19% | AJ24: 30.53%
E25: 23 | F25: NP_GC2_SSC_t3_B3 | G25: NP | H25: GC2 | I25: SSC | J25: NA | K25: 3 | L25: 3 | M25: No | S25: 23 | T25: Input_undil_LjSC_t0_B3 | U25: Input_undil | V25: LjSC | W25: NA | X25: 0 | Y25: NA | Z25: 3 | AA25: Yes | AC25: At_AtSC_RZ_low_B3 | AD25: 151754 | AE25: 919 | AF25: 103334 | AG25: 47501 | AH25: 0.61% | AI25: 68.09% | AJ25: 31.30%
E26: 24 | F26: NP_GC2_SSC_t3_B4 | G26: NP | H26: GC2 | I26: SSC | J26: NA | K26: 3 | L26: 4 | M26: No | S26: 24 | T26: Input_undil_LjSC_t0_B4 | U26: Input_undil | V26: LjSC | W26: NA | X26: 0 | Y26: NA | Z26: 4 | AA26: Yes | AC26: At_AtSC_RZ_low_B4 | AD26: 282339 | AE26: 6297 | AF26: 190770 | AG26: 85272 | AH26: 2.23% | AI26: 67.57% | AJ26: 30.20%
E27: 25 | F27: NP_GC3_SSC_t3_B1 | G27: NP | H27: GC3 | I27: SSC | J27: NA | K27: 3 | L27: 1 | M27: No | S27: 25 | T27: Input_undil_AtSC_t0_B1 | U27: Input_undil | V27: AtSC | W27: NA | X27: 0 | Y27: NA | Z27: 1 | AA27: Yes | AC27: At_HvSC_ES_high_B1 | AD27: 1286135 | AE27: 543409 | AF27: 627304 | AG27: 115422 | AH27: 42.25% | AI27: 48.77% | AJ27: 8.97%
E28: 26 | F28: NP_GC3_SSC_t3_B2 | G28: NP | H28: GC3 | I28: SSC | J28: NA | K28: 3 | L28: 2 | M28: No | S28: 26 | T28: Input_undil_AtSC_t0_B2 | U28: Input_undil | V28: AtSC | W28: NA | X28: 0 | Y28: NA | Z28: 2 | AA28: Yes | AC28: At_HvSC_ES_high_B2 | AD28: 1816884 | AE28: 765312 | AF28: 911346 | AG28: 140226 | AH28: 42.12% | AI28: 50.16% | AJ28: 7.72%
E29: 27 | F29: NP_GC3_SSC_t3_B3 | G29: NP | H29: GC3 | I29: SSC | J29: NA | K29: 3 | L29: 3 | M29: No | S29: 27 | T29: Input_undil_AtSC_t0_B3 | U29: Input_undil | V29: AtSC | W29: NA | X29: 0 | Y29: NA | Z29: 3 | AA29: Yes | AC29: At_HvSC_ES_high_B3 | AD29: 2379739 | AE29: 834250 | AF29: 1386733 | AG29: 158756 | AH29: 35.06% | AI29: 58.27% | AJ29: 6.67%
E30: 28 | F30: NP_GC3_SSC_t3_B4 | G30: NP | H30: GC3 | I30: SSC | J30: NA | K30: 3 | L30: 4 | M30: No | S30: 28 | T30: Input_undil_AtSC_t0_B4 | U30: Input_undil | V30: AtSC | W30: NA | X30: 0 | Y30: NA | Z30: 4 | AA30: Yes | AC30: At_HvSC_ES_high_B4 | AD30: 173048 | AE30: 61025 | AF30: 101572 | AG30: 10451 | AH30: 35.26% | AI30: 58.70% | AJ30: 6.04%
E31: 29 | F31: Lj_GC1_SSC_RZ_t3_B1 | G31: Lj | H31: GC1 | I31: SSC | J31: RZ | K31: 3 | L31: 1 | M31: Yes | S31: 29 | T31: Input_undil_HvSC_t0_B1 | U31: Input_undil | V31: HvSC | W31: NA | X31: 0 | Y31: NA | Z31: 1 | AA31: Yes | AC31: At_HvSC_ES_HL_orig_B1 | AD31: 2947804 | AE31: 1369074 | AF31: 1340505 | AG31: 238225 | AH31: 46.44% | AI31: 45.47% | AJ31: 8.08%
E32: 30 | F32: Lj_GC1_SSC_RZ_t3_B2 | G32: Lj | H32: GC1 | I32: SSC | J32: RZ | K32: 3 | L32: 2 | M32: No | S32: 30 | T32: Input_undil_HvSC_t0_B2 | U32: Input_undil | V32: HvSC | W32: NA | X32: 0 | Y32: NA | Z32: 2 | AA32: Yes | AC32: At_HvSC_ES_HL_orig_B2 | AD32: 2967483 | AE32: 1170665 | AF32: 1610647 | AG32: 186171 | AH32: 39.45% | AI32: 54.28% | AJ32: 6.27%
E33: 31 | F33: Lj_GC1_SSC_RZ_t3_B3 | G33: Lj | H33: GC1 | I33: SSC | J33: RZ | K33: 3 | L33: 3 | M33: Yes | S33: 31 | T33: Input_undil_HvSC_t0_B3 | U33: Input_undil | V33: HvSC | W33: NA | X33: 0 | Y33: NA | Z33: 3 | AA33: Yes | AC33: At_HvSC_ES_HL_orig_B3 | AD33: 2430126 | AE33: 757529 | AF33: 1509752 | AG33: 162845 | AH33: 31.17% | AI33: 62.13% | AJ33: 6.70%
E34: 32 | F34: Lj_GC1_SSC_RZ_t3_B4 | G34: Lj | H34: GC1 | I34: SSC | J34: RZ | K34: 3 | L34: 4 | M34: No | S34: 32 | T34: Input_undil_HvSC_t0_B4 | U34: Input_undil | V34: HvSC | W34: NA | X34: 0 | Y34: NA | Z34: 4 | AA34: Yes | AC34: At_HvSC_ES_HL_orig_B4 | AD34: 3101015 | AE34: 1051383 | AF34: 1785083 | AG34: 264549 | AH34: 33.90% | AI34: 57.56% | AJ34: 8.53%
E35: 33 | F35: Lj_GC2_SSC_RZ_t3_B1 | G35: Lj | H35: GC2 | I35: SSC | J35: RZ | K35: 3 | L35: 1 | M35: No | S35: 33 | T35: NP_SSC_t3_high_B1 | U35: NP | V35: SSC | W35: NA | X35: 3 | Y35: High | Z35: 1 | AA35: Yes | AC35: At_HvSC_ES_low_B1 | AD35: 99375 | AE35: 70744 | AF35: 24736 | AG35: 3895 | AH35: 71.19% | AI35: 24.89% | AJ35: 3.92%
E36: 34 | F36: Lj_GC2_SSC_RZ_t3_B2 | G36: Lj | H36: GC2 | I36: SSC | J36: RZ | K36: 3 | L36: 2 | M36: No | S36: 34 | T36: NP_SSC_t3_high_B2 | U36: NP | V36: SSC | W36: NA | X36: 3 | Y36: High | Z36: 2 | AA36: Yes | AC36: At_HvSC_ES_low_B2 | AD36: 841745 | AE36: 614015 | AF36: 204935 | AG36: 22795 | AH36: 72.95% | AI36: 24.35% | AJ36: 2.71%
E37: 35 | F37: Lj_GC2_SSC_RZ_t3_B3 | G37: Lj | H37: GC2 | I37: SSC | J37: RZ | K37: 3 | L37: 3 | M37: No | S37: 35 | T37: NP_SSC_t3_high_B3 | U37: NP | V37: SSC | W37: NA | X37: 3 | Y37: High | Z37: 3 | AA37: Yes | AC37: At_HvSC_ES_low_B3 | AD37: 2221852 | AE37: 1382833 | AF37: 753368 | AG37: 85651 | AH37: 62.24% | AI37: 33.91% | AJ37: 3.85%
E38: 36 | F38: Lj_GC2_SSC_RZ_t3_B4 | G38: Lj | H38: GC2 | I38: SSC | J38: RZ | K38: 3 | L38: 4 | M38: No | S38: 36 | T38: NP_SSC_t3_high_B4 | U38: NP | V38: SSC | W38: NA | X38: 3 | Y38: High | Z38: 4 | AA38: Yes | AC38: At_HvSC_ES_low_B4 | AD38: 1058433 | AE38: 638564 | AF38: 376719 | AG38: 43150 | AH38: 60.33% | AI38: 35.59% | AJ38: 4.08%
E39: 37 | F39: Lj_GC3_SSC_RZ_t3_B1 | G39: Lj | H39: GC3 | I39: SSC | J39: RZ | K39: 3 | L39: 1 | M39: No | S39: 37 | T39: Lj_SSC_RZ_t3_high_B1 | U39: Lj | V39: SSC | W39: RZ | X39: 3 | Y39: High | Z39: 1 | AA39: Yes | AC39: At_HvSC_RZ_high_B1 | AD39: 134389 | AE39: 1530 | AF39: 93522 | AG39: 39337 | AH39: 1.14% | AI39: 69.59% | AJ39: 29.27%
E40: 38 | F40: Lj_GC3_SSC_RZ_t3_B2 | G40: Lj | H40: GC3 | I40: SSC | J40: RZ | K40: 3 | L40: 2 | M40: No | S40: 38 | T40: Lj_SSC_RZ_t3_high_B2 | U40: Lj | V40: SSC | W40: RZ | X40: 3 | Y40: High | Z40: 2 | AA40: Yes | AC40: At_HvSC_RZ_high_B2 | AD40: 192618 | AE40: 7915 | AF40: 129158 | AG40: 55545 | AH40: 4.11% | AI40: 67.05% | AJ40: 28.84%
E41: 39 | F41: Lj_GC3_SSC_RZ_t3_B3 | G41: Lj | H41: GC3 | I41: SSC | J41: RZ | K41: 3 | L41: 3 | M41: No | S41: 39 | T41: Lj_SSC_RZ_t3_high_B3 | U41: Lj | V41: SSC | W41: RZ | X41: 3 | Y41: High | Z41: 3 | AA41: Yes | AC41: At_HvSC_RZ_high_B3 | AD41: 199774 | AE41: 1952 | AF41: 136660 | AG41: 61162 | AH41: 0.98% | AI41: 68.41% | AJ41: 30.62%
E42: 40 | F42: Lj_GC3_SSC_RZ_t3_B4 | G42: Lj | H42: GC3 | I42: SSC | J42: RZ | K42: 3 | L42: 4 | M42: No | S42: 40 | T42: Lj_SSC_RZ_t3_high_B4 | U42: Lj | V42: SSC | W42: RZ | X42: 3 | Y42: High | Z42: 4 | AA42: Yes | AC42: At_HvSC_RZ_high_B4 | AD42: 135308 | AE42: 3879 | AF42: 89541 | AG42: 41888 | AH42: 2.87% | AI42: 66.18% | AJ42: 30.96%
E43: 41 | F43: Lj_GC1_SSC_ES_t3_B1 | G43: Lj | H43: GC1 | I43: SSC | J43: ES | K43: 3 | L43: 1 | M43: Yes | S43: 41 | T43: Lj_SSC_ES_t3_high_B1 | U43: Lj | V43: SSC | W43: ES | X43: 3 | Y43: High | Z43: 1 | AA43: Yes | AC43: At_HvSC_RZ_HL_orig_B1 | AD43: 131618 | AE43: 4186 | AF43: 87072 | AG43: 40360 | AH43: 3.18% | AI43: 66.16% | AJ43: 30.66%
E44: 42 | F44: Lj_GC1_SSC_ES_t3_B2 | G44: Lj | H44: GC1 | I44: SSC | J44: ES | K44: 3 | L44: 2 | M44: Yes | S44: 42 | T44: Lj_SSC_ES_t3_high_B2 | U44: Lj | V44: SSC | W44: ES | X44: 3 | Y44: High | Z44: 2 | AA44: Yes | AC44: At_HvSC_RZ_HL_orig_B2 | AD44: 95527 | AE44: 1530 | AF44: 64215 | AG44: 29782 | AH44: 1.60% | AI44: 67.22% | AJ44: 31.18%
E45: 43 | F45: Lj_GC1_SSC_ES_t3_B3 | G45: Lj | H45: GC1 | I45: SSC | J45: ES | K45: 3 | L45: 3 | M45: Yes | S45: 43 | T45: Lj_SSC_ES_t3_high_B3 | U45: Lj | V45: SSC | W45: ES | X45: 3 | Y45: High | Z45: 3 | AA45: Yes | AC45: At_HvSC_RZ_HL_orig_B3 | AD45: 63096 | AE45: 231 | AF45: 44235 | AG45: 18630 | AH45: 0.37% | AI45: 70.11% | AJ45: 29.53%
E46: 44 | F46: Lj_GC1_SSC_ES_t3_B4 | G46: Lj | H46: GC1 | I46: SSC | J46: ES | K46: 3 | L46: 4 | M46: Yes | S46: 44 | T46: Lj_SSC_ES_t3_high_B4 | U46: Lj | V46: SSC | W46: ES | X46: 3 | Y46: High | Z46: 4 | AA46: Yes | AC46: At_HvSC_RZ_HL_orig_B4 | AD46: 289808 | AE46: 504 | AF46: 199927 | AG46: 89377 | AH46: 0.17% | AI46: 68.99% | AJ46: 30.84%
E47: 45 | F47: Lj_GC2_SSC_ES_t3_B1 | G47: Lj | H47: GC2 | I47: SSC | J47: ES | K47: 3 | L47: 1 | M47: Yes | S47: 45 | T47: Lj_SSC_NOD_t3_high_B1 | U47: Lj | V47: SSC | W47: NOD | X47: 3 | Y47: High | Z47: 1 | AA47: Yes | AC47: At_HvSC_RZ_low_B1 | AD47: 80960 | AE47: 2014 | AF47: 53380 | AG47: 25566 | AH47: 2.49% | AI47: 65.93% | AJ47: 31.58%
E48: 46 | F48: Lj_GC2_SSC_ES_t3_B2 | G48: Lj | H48: GC2 | I48: SSC | J48: ES | K48: 3 | L48: 2 | M48: Yes | S48: 46 | T48: Lj_SSC_NOD_t3_high_B2 | U48: Lj | V48: SSC | W48: NOD | X48: 3 | Y48: High | Z48: 2 | AA48: Yes | AC48: At_HvSC_RZ_low_B2 | AD48: 77047 | AE48: 3228 | AF48: 52160 | AG48: 21659 | AH48: 4.19% | AI48: 67.70% | AJ48: 28.11%
E49: 47 | F49: Lj_GC2_SSC_ES_t3_B3 | G49: Lj | H49: GC2 | I49: SSC | J49: ES | K49: 3 | L49: 3 | M49: Yes | S49: 47 | T49: Lj_SSC_NOD_t3_high_B3 | U49: Lj | V49: SSC | W49: NOD | X49: 3 | Y49: High | Z49: 3 | AA49: Yes | AC49: At_HvSC_RZ_low_B3 | AD49: 45450 | AE49: 598 | AF49: 30541 | AG49: 14311 | AH49: 1.32% | AI49: 67.20% | AJ49: 31.49%
E50: 48 | F50: Lj_GC2_SSC_ES_t3_B4 | G50: Lj | H50: GC2 | I50: SSC | J50: ES | K50: 3 | L50: 4 | M50: Yes | S50: 48 | T50: Lj_SSC_NOD_t3_high_B4 | U50: Lj | V50: SSC | W50: NOD | X50: 3 | Y50: High | Z50: 4 | AA50: Yes | AC50: At_HvSC_RZ_low_B4 | AD50: 66340 | AE50: 4193 | AF50: 36250 | AG50: 25897 | AH50: 6.32% | AI50: 54.64% | AJ50: 39.04%
E51: 49 | F51: Lj_GC3_SSC_ES_t3_B1 | G51: Lj | H51: GC3 | I51: SSC | J51: ES | K51: 3 | L51: 1 | M51: Yes | S51: 49 | T51: At_SSC_RZ_t3_high_B1 | U51: At | V51: SSC | W51: RZ | X51: 3 | Y51: High | Z51: 1 | AA51: Yes | AC51: At_LjSC_ES_high_B1 | AD51: 2823117 | AE51: 2254978 | AF51: 570738 | AG51: =AD51-AE51-AF51 -> -2599 | AH51: 79.88% | AI51: 20.22% | AJ51: -0.09%
E52: 50 | F52: Lj_GC3_SSC_ES_t3_B2 | G52: Lj | H52: GC3 | I52: SSC | J52: ES | K52: 3 | L52: 2 | M52: Yes | S52: 50 | T52: At_SSC_RZ_t3_high_B2 | U52: At | V52: SSC | W52: RZ | X52: 3 | Y52: High | Z52: 2 | AA52: Yes | AC52: At_LjSC_ES_high_B2 | AD52: 4807473 | AE52: 3538688 | AF52: 1166982 | AG52: 101803 | AH52: 73.61% | AI52: 24.27% | AJ52: 2.12%
E53: 51 | F53: Lj_GC3_SSC_ES_t3_B3 | G53: Lj | H53: GC3 | I53: SSC | J53: ES | K53: 3 | L53: 3 | M53: Yes | S53: 51 | T53: At_SSC_RZ_t3_high_B3 | U53: At | V53: SSC | W53: RZ | X53: 3 | Y53: High | Z53: 3 | AA53: Yes | AC53: At_LjSC_ES_high_B3 | AD53: 2058114 | AE53: 1574866 | AF53: 463053 | AG53: 20195 | AH53: 76.52% | AI53: 22.50% | AJ53: 0.98%
E54: 52 | F54: Lj_GC3_SSC_ES_t3_B4 | G54: Lj | H54: GC3 | I54: SSC | J54: ES | K54: 3 | L54: 4 | M54: Yes | S54: 52 | T54: At_SSC_RZ_t3_high_B4 | U54: At | V54: SSC | W54: RZ | X54: 3 | Y54: High | Z54: 4 | AA54: Yes | AC54: At_LjSC_ES_high_B4 | AD54: 3604535 | AE54: 2798357 | AF54: 789287 | AG54: 16891 | AH54: 77.63% | AI54: 21.90% | AJ54: 0.47%
E55: 53 | F55: Lj_GC1_SSC_NOD_t3_B1 | G55: Lj | H55: GC1 | I55: SSC | J55: NOD | K55: 3 | L55: 1 | M55: No | S55: 53 | T55: At_SSC_ES_t3_high_B1 | U55: At | V55: SSC | W55: ES | X55: 3 | Y55: High | Z55: 1 | AA55: Yes | AC55: At_LjSC_ES_HL_orig_B1 | AD55: 2981096 | AE55: 2448406 | AF55: 534733 | AG55: -2043 | AH55: 82.13% | AI55: 17.94% | AJ55: -0.07%
E56: 54 | F56: Lj_GC1_SSC_NOD_t3_B2 | G56: Lj | H56: GC1 | I56: SSC | J56: NOD | K56: 3 | L56: 2 | M56: No | S56: 54 | T56: At_SSC_ES_t3_high_B2 | U56: At | V56: SSC | W56: ES | X56: 3 | Y56: High | Z56: 2 | AA56: Yes | AC56: At_LjSC_ES_HL_orig_B2 | AD56: 3976342 | AE56: 3136588 | AF56: 833491 | AG56: 6263 | AH56: 78.88% | AI56: 20.96% | AJ56: 0.16%
E57: 55 | F57: Lj_GC1_SSC_NOD_t3_B3 | G57: Lj | H57: GC1 | I57: SSC | J57: NOD | K57: 3 | L57: 3 | M57: No | S57: 55 | T57: At_SSC_ES_t3_high_B3 | U57: At | V57: SSC | W57: ES | X57: 3 | Y57: High | Z57: 3 | AA57: Yes | AC57: At_LjSC_ES_HL_orig_B3 | AD57: 2015634 | AE57: 1645930 | AF57: 366051 | AG57: 3653 | AH57: 81.66% | AI57: 18.16% | AJ57: 0.18%
E58: 56 | F58: Lj_GC1_SSC_NOD_t3_B4 | G58: Lj | H58: GC1 | I58: SSC | J58: NOD | K58: 3 | L58: 4 | M58: No | S58: 56 | T58: At_SSC_ES_t3_high_B4 | U58: At | V58: SSC | W58: ES | X58: 3 | Y58: High | Z58: 4 | AA58: Yes | AC58: At_LjSC_ES_HL_orig_B4 | AD58: 1970052 | AE58: 1663083 | AF58: 313512 | AG58: -6543 | AH58: 84.42% | AI58: 15.91% | AJ58: -0.33%
E59: 57 | F59: Lj_GC2_SSC_NOD_t3_B1 | G59: Lj | H59: GC2 | I59: SSC | J59: NOD | K59: 3 | L59: 1 | M59: No | S59: 57 | T59: Hv_SSC_RZ_t3_high_B1 | U59: Hv | V59: SSC | W59: RZ | X59: 3 | Y59: High | Z59: 1 | AA59: Yes | AC59: At_LjSC_ES_low_B1 | AD59: 2724412 | AE59: 2351490 | AF59: 345585 | AG59: 27337 | AH59: 86.31% | AI59: 12.68% | AJ59: 1.00%
E60: 58 | F60: Lj_GC2_SSC_NOD_t3_B2 | G60: Lj | H60: GC2 | I60: SSC | J60: NOD | K60: 3 | L60: 2 | M60: No | S60: 58 | T60: Hv_SSC_RZ_t3_high_B2 | U60: Hv | V60: SSC | W60: RZ | X60: 3 | Y60: High | Z60: 2 | AA60: Yes | AC60: At_LjSC_ES_low_B2 | AD60: 2157248 | AE60: 1873278 | AF60: 276204 | AG60: 7766 | AH60: 86.84% | AI60: 12.80% | AJ60: 0.36%
E61: 59 | F61: Lj_GC2_SSC_NOD_t3_B3 | G61: Lj | H61: GC2 | I61: SSC | J61: NOD | K61: 3 | L61: 3 | M61: No | S61: 59 | T61: Hv_SSC_RZ_t3_high_B3 | U61: Hv | V61: SSC | W61: RZ | X61: 3 | Y61: High | Z61: 3 | AA61: Yes | AC61: At_LjSC_ES_low_B3 | AD61: 1267988 | AE61: 1089910 | AF61: 179146 | AG61: -1068 | AH61: 85.96% | AI61: 14.13% | AJ61: -0.08%
E62: 60 | F62: Lj_GC2_SSC_NOD_t3_B4 | G62: Lj | H62: GC2 | I62: SSC | J62: NOD | K62: 3 | L62: 4 | M62: No | S62: 60 | T62: Hv_SSC_RZ_t3_high_B4 | U62: Hv | V62: SSC | W62: RZ | X62: 3 | Y62: High | Z62: 4 | AA62: Yes | AC62: At_LjSC_ES_low_B4 | AD62: 2496760 | AE62: 2213562 | AF62: 294851 | AG62: -11653 | AH62: 88.66% | AI62: 11.81% | AJ62: -0.47%
E63: 61 | F63: Lj_GC3_SSC_NOD_t3_B1 | G63: Lj | H63: GC3 | I63: SSC | J63: NOD | K63: 3 | L63: 1 | M63: No | S63: 61 | T63: Hv_SSC_ES_t3_high_B1 | U63: Hv | V63: SSC | W63: ES | X63: 3 | Y63: High | Z63: 1 | AA63: Yes | AC63: At_LjSC_RZ_high_B1 | AD63: 3974293 | AE63: 41819 | AF63: 3476435 | AG63: 456039 | AH63: 1.05% | AI63: 87.47% | AJ63: 11.47%
E64: 62 | F64: Lj_GC3_SSC_NOD_t3_B2 | G64: Lj | H64: GC3 | I64: SSC | J64: NOD | K64: 3 | L64: 2 | M64: No | S64: 62 | T64: Hv_SSC_ES_t3_high_B2 | U64: Hv | V64: SSC | W64: ES | X64: 3 | Y64: High | Z64: 2 | AA64: Yes | AC64: At_LjSC_RZ_high_B2 | AD64: 2234263 | AE64: 69531 | AF64: 1887864 | AG64: 276868 | AH64: 3.11% | AI64: 84.50% | AJ64: 12.39%
E65: 63 | F65: Lj_GC3_SSC_NOD_t3_B3 | G65: Lj | H65: GC3 | I65: SSC | J65: NOD | K65: 3 | L65: 3 | M65: No | S65: 63 | T65: Hv_SSC_ES_t3_high_B3 | U65: Hv | V65: SSC | W65: ES | X65: 3 | Y65: High | Z65: 3 | AA65: Yes | AC65: At_LjSC_RZ_high_B3 | AD65: 25498 | AE65: 1151 | AF65: 16146 | AG65: 8201 | AH65: 4.51% | AI65: 63.32% | AJ65: 32.16%
E66: 64 | F66: Lj_GC3_SSC_NOD_t3_B4 | G66: Lj | H66: GC3 | I66: SSC | J66: NOD | K66: 3 | L66: 4 | M66: No | S66: 64 | T66: Hv_SSC_ES_t3_high_B4 | U66: Hv | V66: SSC | W66: ES | X66: 3 | Y66: High | Z66: 4 | AA66: Yes | AC66: At_LjSC_RZ_high_B4 | AD66: 271883 | AE66: 7412 | AF66: 218123 | AG66: 46348 | AH66: 2.73% | AI66: 80.23% | AJ66: 17.05%
E67: 65 | F67: At_GC1_SSC_RZ_t3_B1 | G67: At | H67: GC1 | I67: SSC | J67: RZ | K67: 3 | L67: 1 | M67: No | S67: 65 | T67: NP_SSC_t3_low_B1 | U67: NP | V67: SSC | W67: NA | X67: 3 | Y67: Low | Z67: 1 | AA67: Yes | AC67: At_LjSC_RZ_HL_orig_B1 | AD67: 167519 | AE67: 1665 | AF67: 99879 | AG67: 65975 | AH67: 0.99% | AI67: 59.62% | AJ67: 39.38%
E68: 66 | F68: At_GC1_SSC_RZ_t3_B2 | G68: At | H68: GC1 | I68: SSC | J68: RZ | K68: 3 | L68: 2 | M68: No | S68: 66 | T68: NP_SSC_t3_low_B2 | U68: NP | V68: SSC | W68: NA | X68: 3 | Y68: Low | Z68: 2 | AA68: Yes | AC68: At_LjSC_RZ_HL_orig_B2 | AD68: 159737 | AE68: 1877 | AF68: 114160 | AG68: =AD68-AE68-AF68 -> 43700 | AH68: =AE68/AD68 -> 1.18% | AI68: =AF68/AD68 -> 71.47% | AJ68: =AG68/AD68 -> 27.36%
E69: 67 | F69: At_GC1_SSC_RZ_t3_B3 | G69: At | H69: GC1 | I69: SSC | J69: RZ | K69: 3 | L69: 3 | M69: Yes | S69: 67 | T69: NP_SSC_t3_low_B3 | U69: NP | V69: SSC | W69: NA | X69: 3 | Y69: Low | Z69: 3 | AA69: Yes | AC69: At_LjSC_RZ_HL_orig_B3 | AD69: 95544 | AE69: 1221 | AF69: 66813 | AG69: 27510 | AH69: 1.28% | AI69: 69.93% | AJ69: 28.79%
E70: 68 | F70: At_GC1_SSC_RZ_t3_B4 | G70: At | H70: GC1 | I70: SSC | J70: RZ | K70: 3 | L70: 4 | M70: Yes | S70: 68 | T70: NP_SSC_t3_low_B4 | U70: NP | V70: SSC | W70: NA | X70: 3 | Y70: Low | Z70: 4 | AA70: Yes | AC70: At_LjSC_RZ_HL_orig_B4 | AD70: 219708 | AE70: 2155 | AF70: 161886 | AG70: 55667 | AH70: 0.98% | AI70: 73.68% | AJ70: 25.34%
E71: 69 | F71: At_GC2_SSC_RZ_t3_B1 | G71: At | H71: GC2 | I71: SSC | J71: RZ | K71: 3 | L71: 1 | M71: No | S71: 69 | T71: Lj_SSC_RZ_t3_low_B1 | U71: Lj | V71: SSC | W71: RZ | X71: 3 | Y71: Low | Z71: 1 | AA71: Yes | AC71: At_LjSC_RZ_low_B1 | AD71: 114485 | AE71: 3152 | AF71: 78396 | AG71: 32937 | AH71: 2.75% | AI71: 68.48% | AJ71: 28.77%
E72: 70 | F72: At_GC2_SSC_RZ_t3_B2 | G72: At | H72: GC2 | I72: SSC | J72: RZ | K72: 3 | L72: 2 | M72: No | S72: 70 | T72: Lj_SSC_RZ_t3_low_B2 | U72: Lj | V72: SSC | W72: RZ | X72: 3 | Y72: Low | Z72: 2 | AA72: Yes | AC72: At_LjSC_RZ_low_B2 | AD72: 46579 | AE72: 3462 | AF72: 27837 | AG72: 15280 | AH72: 7.43% | AI72: 59.76% | AJ72: 32.80%
E73: 71 | F73: At_GC2_SSC_RZ_t3_B3 | G73: At | H73: GC2 | I73: SSC | J73: RZ | K73: 3 | L73: 3 | M73: No | S73: 71 | T73: Lj_SSC_RZ_t3_low_B3 | U73: Lj | V73: SSC | W73: RZ | X73: 3 | Y73: Low | Z73: 3 | AA73: Yes | AC73: At_LjSC_RZ_low_B3 | AD73: 95694 | AE73: 3036 | AF73: 71691 | AG73: 20967 | AH73: 3.17% | AI73: 74.92% | AJ73: 21.91%
E74: 72 | F74: At_GC2_SSC_RZ_t3_B4 | G74: At | H74: GC2 | I74: SSC | J74: RZ | K74: 3 | L74: 4 | M74: No | S74: 72 | T74: Lj_SSC_RZ_t3_low_B4 | U74: Lj | V74: SSC | W74: RZ | X74: 3 | Y74: Low | Z74: 4 | AA74: Yes | AC74: At_LjSC_RZ_low_B4 | AD74: 119542 | AE74: 7075 | AF74: 76571 | AG74: 35896 | AH74: 5.92% | AI74: 64.05% | AJ74: 30.03%
E75: 73 | F75: At_GC3_SSC_RZ_t3_B1 | G75: At | H75: GC3 | I75: SSC | J75: RZ | K75: 3 | L75: 1 | M75: No | S75: 73 | T75: Lj_SSC_ES_t3_low_B1 | U75: Lj | V75: SSC | W75: ES | X75: 3 | Y75: Low | Z75: 1 | AA75: Yes | AC75: At_NS_ES_high_B1 | AD75: 2992187 | AE75: 2453655 | AF75: 288981 | AG75: 249551 | AH75: 82.00% | AI75: 9.66% | AJ75: 8.34%
E76: 74 | F76: At_GC3_SSC_RZ_t3_B2 | G76: At | H76: GC3 | I76: SSC | J76: RZ | K76: 3 | L76: 2 | M76: No | S76: 74 | T76: Lj_SSC_ES_t3_low_B2 | U76: Lj | V76: SSC | W76: ES | X76: 3 | Y76: Low | Z76: 2 | AA76: Yes | AC76: At_NS_ES_high_B2 | AD76: 5549144 | AE76: 3996052 | AF76: 634096 | AG76: 918996 | AH76: 72.01% | AI76: 11.43% | AJ76: 16.56%
E77: 75 | F77: At_GC3_SSC_RZ_t3_B3 | G77: At | H77: GC3 | I77: SSC | J77: RZ | K77: 3 | L77: 3 | M77: No | S77: 75 | T77: Lj_SSC_ES_t3_low_B3 | U77: Lj | V77: SSC | W77: ES | X77: 3 | Y77: Low | Z77: 3 | AA77: Yes | AC77: At_NS_ES_high_B3 | AD77: 4426076 | AE77: 3506936 | AF77: 415335 | AG77: 503805 | AH77: 79.23% | AI77: 9.38% | AJ77: 11.38%
E78: 76 | F78: At_GC3_SSC_RZ_t3_B4 | G78: At | H78: GC3 | I78: SSC | J78: RZ | K78: 3 | L78: 4 | M78: No | S78: 76 | T78: Lj_SSC_ES_t3_low_B4 | U78: Lj | V78: SSC | W78: ES | X78: 3 | Y78: Low | Z78: 4 | AA78: Yes | AC78: At_NS_ES_high_B4 | AD78: 3130991 | AE78: 2501148 | AF78: 235879 | AG78: 393964 | AH78: 79.88% | AI78: 7.53% | AJ78: 12.58%
E79: 77 | F79: At_GC1_SSC_ES_t3_B1 | G79: At | H79: GC1 | I79: SSC | J79: ES | K79: 3 | L79: 1 | M79: Yes | S79: 77 | T79: Lj_SSC_NOD_t3_low_B1 | U79: Lj | V79: SSC | W79: NOD | X79: 3 | Y79: Low | Z79: 1 | AA79: Yes | AC79: At_NS_ES_HL_orig_B1 | AD79: 2686499 | AE79: 2051822 | AF79: 241761 | AG79: 392916 | AH79: 76.38% | AI79: 9.00% | AJ79: 14.63%
E80: 78 | F80: At_GC1_SSC_ES_t3_B2 | G80: At | H80: GC1 | I80: SSC | J80: ES | K80: 3 | L80: 2 | M80: Yes | S80: 78 | T80: Lj_SSC_NOD_t3_low_B2 | U80: Lj | V80: SSC | W80: NOD | X80: 3 | Y80: Low | Z80: 2 | AA80: Yes | AC80: At_NS_ES_HL_orig_B2 | AD80: 4337116 | AE80: 3479195 | AF80: 391082 | AG80: 466839 | AH80: 80.22% | AI80: 9.02% | AJ80: 10.76%
E81: 79 | F81: At_GC1_SSC_ES_t3_B3 | G81: At | H81: GC1 | I81: SSC | J81: ES | K81: 3 | L81: 3 | M81: Yes | S81: 79 | T81: Lj_SSC_NOD_t3_low_B3 | U81: Lj | V81: SSC | W81: NOD | X81: 3 | Y81: Low | Z81: 3 | AA81: Yes | AC81: At_NS_ES_HL_orig_B3 | AD81: 4500109 | AE81: 3651637 | AF81: 368388 | AG81: 480084 | AH81: 81.15% | AI81: 8.19% | AJ81: 10.67%
E82: 80 | F82: At_GC1_SSC_ES_t3_B4 | G82: At | H82: GC1 | I82: SSC | J82: ES | K82: 3 | L82: 4 | M82: Yes | S82: 80 | T82: Lj_SSC_NOD_t3_low_B4 | U82: Lj | V82: SSC | W82: NOD | X82: 3 | Y82: Low | Z82: 4 | AA82: Yes | AC82: At_NS_ES_HL_orig_B4 | AD82: 3247344 | AE82: 2583028 | AF82: 310254 | AG82: 354062 | AH82: 79.54% | AI82: 9.55% | AJ82: 10.90%
E83: 81 | F83: At_GC2_SSC_ES_t3_B1 | G83: At | H83: GC2 | I83: SSC | J83: ES | K83: 3 | L83: 1 | M83: Yes | S83: 81 | T83: At_SSC_RZ_t3_low_B1 | U83: At | V83: SSC | W83: RZ | X83: 3 | Y83: Low | Z83: 1 | AA83: Yes | AC83: At_NS_ES_low_B1 | AD83: 3366972 | AE83: 2911284 | AF83: 215349 | AG83: 240339 | AH83: 86.47% | AI83: 6.40% | AJ83: 7.14%
E84: 82 | F84: At_GC2_SSC_ES_t3_B2 | G84: At | H84: GC2 | I84: SSC | J84: ES | K84: 3 | L84: 2 | M84: Yes | S84: 82 | T84: At_SSC_RZ_t3_low_B2 | U84: At | V84: SSC | W84: RZ | X84: 3 | Y84: Low | Z84: 2 | AA84: Yes | AC84: At_NS_ES_low_B2 | AD84: 2661908 | AE84: 2255436 | AF84: 202441 | AG84: 204031 | AH84: 84.73% | AI84: 7.61% | AJ84: 7.66%
E85: 83 | F85: At_GC2_SSC_ES_t3_B3 | G85: At | H85: GC2 | I85: SSC | J85: ES | K85: 3 | L85: 3 | M85: Yes | S85: 83 | T85: At_SSC_RZ_t3_low_B3 | U85: At | V85: SSC | W85: RZ | X85: 3 | Y85: Low | Z85: 3 | AA85: Yes | AC85: At_NS_ES_low_B3 | AD85: 4040618 | AE85: 3579226 | AF85: 255803 | AG85: 205589 | AH85: 88.58% | AI85: 6.33% | AJ85: 5.09%
E86: 84 | F86: At_GC2_SSC_ES_t3_B4 | G86: At | H86: GC2 | I86: SSC | J86: ES | K86: 3 | L86: 4 | M86: Yes | S86: 84 | T86: At_SSC_RZ_t3_low_B4 | U86: At | V86: SSC | W86: RZ | X86: 3 | Y86: Low | Z86: 4 | AA86: Yes | AC86: At_NS_ES_low_B4 | AD86: 4110132 | AE86: 3472065 | AF86: 319649 | AG86: 318418 | AH86: 84.48% | AI86: 7.78% | AJ86: 7.75%
E87: 85 | F87: At_GC3_SSC_ES_t3_B1 | G87: At | H87: GC3 | I87: SSC | J87: ES | K87: 3 | L87: 1 | M87: No | S87: 85 | T87: At_SSC_ES_t3_low_B1 | U87: At | V87: SSC | W87: ES | X87: 3 | Y87: Low | Z87: 1 | AA87: Yes | AC87: At_NS_RZ_high_B1 | AD87: 93482 | AE87: 1172 | AF87: 56753 | AG87: 35557 | AH87: 1.25% | AI87: 60.71% | AJ87: 38.04%
E88: 86 | F88: At_GC3_SSC_ES_t3_B2 | G88: At | H88: GC3 | I88: SSC | J88: ES | K88: 3 | L88: 2 | M88: No | S88: 86 | T88: At_SSC_ES_t3_low_B2 | U88: At | V88: SSC | W88: ES | X88: 3 | Y88: Low | Z88: 2 | AA88: Yes | AC88: At_NS_RZ_high_B2 | AD88: 127242 | AE88: 1504 | AF88: 81373 | AG88: 44365 | AH88: 1.18% | AI88: 63.95% | AJ88: 34.87%
E89: 87 | F89: At_GC3_SSC_ES_t3_B3 | G89: At | H89: GC3 | I89: SSC | J89: ES | K89: 3 | L89: 3 | M89: No | S89: 87 | T89: At_SSC_ES_t3_low_B3 | U89: At | V89: SSC | W89: ES | X89: 3 | Y89: Low | Z89: 3 | AA89: Yes | AC89: At_NS_RZ_high_B3 | AD89: 32795 | AE89: 553 | AF89: 20911 | AG89: 11331 | AH89: 1.69% | AI89: 63.76% | AJ89: 34.55%
E90: 88 | F90: At_GC3_SSC_ES_t3_B4 | G90: At | H90: GC3 | I90: SSC | J90: ES | K90: 3 | L90: 4 | M90: No | S90: 88 | T90: At_SSC_ES_t3_low_B4 | U90: At | V90: SSC | W90: ES | X90: 3 | Y90: Low | Z90: 4 | AA90: Yes | AC90: At_NS_RZ_high_B4 | AD90: 97700 | AE90: 965 | AF90: 67715 | AG90: 29020 | AH90: 0.99% | AI90: 69.31% | AJ90: 29.70%
E91: 89 | F91: Hv_GC1_SSC_RZ_t3_B1 | G91: Hv | H91: GC1 | I91: SSC | J91: RZ | K91: 3 | L91: 1 | M91: Yes | S91: 89 | T91: Hv_SSC_RZ_t3_low_B1 | U91: Hv | V91: SSC | W91: RZ | X91: 3 | Y91: Low | Z91: 1 | AA91: Yes | AC91: At_NS_RZ_HL_orig_B1 | AD91: 139193 | AE91: 393 | AF91: 91319 | AG91: 47481 | AH91: 0.28% | AI91: 65.61% | AJ91: 34.11%
E92: 90 | F92: Hv_GC1_SSC_RZ_t3_B2 | G92: Hv | H92: GC1 | I92: SSC | J92: RZ | K92: 3 | L92: 2 | M92: No | S92: 90 | T92: Hv_SSC_RZ_t3_low_B2 | U92: Hv | V92: SSC | W92: RZ | X92: 3 | Y92: Low | Z92: 2 | AA92: Yes | AC92: At_NS_RZ_HL_orig_B2 | AD92: 121748 | AE92: 435 | AF92: 84313 | AG92: 37000 | AH92: 0.36% | AI92: 69.25% | AJ92: 30.39%
E93: 91 | F93: Hv_GC1_SSC_RZ_t3_B3 | G93: Hv | H93: GC1 | I93: SSC | J93: RZ | K93: 3 | L93: 3 | M93: No | S93: 91 | T93: Hv_SSC_RZ_t3_low_B3 | U93: Hv | V93: SSC | W93: RZ | X93: 3 | Y93: Low | Z93: 3 | AA93: Yes | AC93: At_NS_RZ_HL_orig_B3 | AD93: 47068 | AE93: 255 | AF93: 32965 | AG93: 13848 | AH93: 0.54% | AI93: 70.04% | AJ93: 29.42%
E94: 92 | F94: Hv_GC1_SSC_RZ_t3_B4 | G94: Hv | H94: GC1 | I94: SSC | J94: RZ | K94: 3 | L94: 4 | M94: No | S94: 92 | T94: Hv_SSC_RZ_t3_low_B4 | U94: Hv | V94: SSC | W94: RZ | X94: 3 | Y94: Low | Z94: 4 | AA94: Yes | AC94: At_NS_RZ_HL_orig_B4 | AD94: 4176 | AE94: 145 | AF94: 2991 | AG94: 1040 | AH94: 3.47% | AI94: 71.62% | AJ94: 24.90%
E95: 93 | F95: Hv_GC2_SSC_RZ_t3_B1 | G95: Hv | H95: GC2 | I95: SSC | J95: RZ | K95: 3 | L95: 1 | M95: No | S95: 93 | T95: Hv_SSC_ES_t3_low_B1 | U95: Hv | V95: SSC | W95: ES | X95: 3 | Y95: Low | Z95: 1 | AA95: Yes | AC95: At_NS_RZ_low_B1 | AD95: 41966 | AE95: 1251 | AF95: 27275 | AG95: 13440 | AH95: 2.98% | AI95: 64.99% | AJ95: 32.03%
E96: 94 | F96: Hv_GC2_SSC_RZ_t3_B2 | G96: Hv | H96: GC2 | I96: SSC | J96: RZ | K96: 3 | L96: 2 | M96: No | S96: 94 | T96: Hv_SSC_ES_t3_low_B2 | U96: Hv | V96: SSC | W96: ES | X96: 3 | Y96: Low | Z96: 2 | AA96: Yes | AC96: At_NS_RZ_low_B2 | AD96: 11710 | AE96: 55 | AF96: 7731 | AG96: 3924 | AH96: 0.47% | AI96: 66.02% | AJ96: 33.51%
E97: 95 | F97: Hv_GC2_SSC_RZ_t3_B3 | G97: Hv | H97: GC2 | I97: SSC | J97: RZ | K97: 3 | L97: 3 | M97: No | S97: 95 | T97: Hv_SSC_ES_t3_low_B3 | U97: Hv | V97: SSC | W97: ES | X97: 3 | Y97: Low | Z97: 3 | AA97: Yes | AC97: At_NS_RZ_low_B3 | AD97: 276623 | AE97: 1971 | AF97: 175897 | AG97: 98755 | AH97: 0.71% | AI97: 63.59% | AJ97: 35.70%
E98: 96 | F98: Hv_GC2_SSC_RZ_t3_B4 | G98: Hv | H98: GC2 | I98: SSC | J98: RZ | K98: 3 | L98: 4 | M98: No | S98: 96 | T98: Hv_SSC_ES_t3_low_B4 | U98: Hv | V98: SSC | W98: ES | X98: 3 | Y98: Low | Z98: 4 | AA98: Yes | AC98: At_NS_RZ_low_B4 | AD98: 185621 | AE98: 1439 | AF98: 117832 | AG98: 66350 | AH98: 0.78% | AI98: 63.48% | AJ98: 35.74%
E99: 97 | F99: Hv_GC3_SSC_RZ_t3_B1 | G99: Hv | H99: GC3 | I99: SSC | J99: RZ | K99: 3 | L99: 1 | M99: Yes | S99: 97 | T99: NP_LjSC_t3_high_B1 | U99: NP | V99: LjSC | W99: NA | X99: 3 | Y99: High | Z99: 1 | AA99: Yes | AC99: At_SSC_ES_high_B1 | AD99: 2471095 | AE99: 1577795 | AF99: 794501 | AG99: 98799 | AH99: 63.85% | AI99: 32.15% | AJ99: 4.00%
E100: 98 | F100: Hv_GC3_SSC_RZ_t3_B2 | G100: Hv | H100: GC3 | I100: SSC | J100: RZ | K100: 3 | L100: 2 | M100: No | S100: 98 | T100: NP_LjSC_t3_high_B2 | U100: NP | V100: LjSC | W100: NA | X100: 3 | Y100: High | Z100: 2 | AA100: Yes | AC100: At_SSC_ES_high_B2 | AD100: 1215192 | AE100: 893176 | AF100: 306425 | AG100: 15591 | AH100: 73.50% | AI100: 25.22% | AJ100: 1.28%
E101: 99 | F101: Hv_GC3_SSC_RZ_t3_B3 | G101: Hv | H101: GC3 | I101: SSC | J101: RZ | K101: 3 | L101: 3 | M101: No | S101: 99 | T101: NP_LjSC_t3_high_B3 | U101: NP | V101: LjSC | W101: NA | X101: 3 | Y101: High | Z101: 3 | AA101: Yes | AC101: At_SSC_ES_high_B3 | AD101: 1671164 | AE101: 1117320 | AF101: 515917 | AG101: 37927 | AH101: 66.86% | AI101: 30.87% | AJ101: 2.27%
E102: 100 | F102: Hv_GC3_SSC_RZ_t3_B4 | G102: Hv | H102: GC3 | I102: SSC | J102: RZ | K102: 3 | L102: 4 | M102: No | S102: 100 | T102: NP_LjSC_t3_high_B4 | U102: NP | V102: LjSC | W102: NA | X102: 3 | Y102: High | Z102: 4 | AA102: Yes | AC102: At_SSC_ES_high_B4 | AD102: 1596330 | AE102: 1036875 | AF102: 512694 | AG102: 46761 | AH102: 64.95% | AI102: 32.12% | AJ102: 2.93%
E103: 101 | F103: Hv_GC1_SSC_ES_t3_B1 | G103: Hv | H103: GC1 | I103: SSC | J103: ES | K103: 3 | L103: 1 | M103: Yes | S103: 101 | T103: Lj_LjSC_RZ_t3_high_B1 | U103: Lj | V103: LjSC | W103: RZ | X103: 3 | Y103: High | Z103: 1 | AA103: Yes | AC103: At_SSC_ES_HL_orig_B1 | AD103: 2756297 | AE103: 1949054 | AF103: 776991 | AG103: 30252 | AH103: 70.71% | AI103: 28.19% | AJ103: 1.10%
E104: 102 | F104: Hv_GC1_SSC_ES_t3_B2 | G104: Hv | H104: GC1 | I104: SSC | J104: ES | K104: 3 | L104: 2 | M104: Yes | S104: 102 | T104: Lj_LjSC_RZ_t3_high_B2 | U104: Lj | V104: LjSC | W104: RZ | X104: 3 | Y104: High | Z104: 2 | AA104: Yes | AC104: At_SSC_ES_HL_orig_B2 | AD104: 948651 | AE104: 678630 | AF104: 262818 | AG104: 7203 | AH104: 71.54% | AI104: 27.70% | AJ104: 0.76%
E105: 103 | F105: Hv_GC1_SSC_ES_t3_B3 | G105: Hv | H105: GC1 | I105: SSC | J105: ES | K105: 3 | L105: 3 | M105: Yes | S105: 103 | T105: Lj_LjSC_RZ_t3_high_B3 | U105: Lj | V105: LjSC | W105: RZ | X105: 3 | Y105: High | Z105: 3 | AA105: Yes | AC105: At_SSC_ES_HL_orig_B3 | AD105: 175892 | AE105: 128140 | AF105: 45502 | AG105: 2250 | AH105: 72.85% | AI105: 25.87% | AJ105: 1.28%
E106: 104 | F106: Hv_GC1_SSC_ES_t3_B4 | G106: Hv | H106: GC1 | I106: SSC | J106: ES | K106: 3 | L106: 4 | M106: Yes | S106: 104 | T106: Lj_LjSC_RZ_t3_high_B4 | U106: Lj | V106: LjSC | W106: RZ | X106: 3 | Y106: High | Z106: 4 | AA106: Yes | AC106: At_SSC_ES_HL_orig_B4 | AD106: 3206176 | AE106: 2134971 | AF106: 1004590 | AG106: 66615 | AH106: 66.59% | AI106: 31.33% | AJ106: 2.08%
E107: 105 | F107: Hv_GC2_SSC_ES_t3_B1 | G107: Hv | H107: GC2 | I107: SSC | J107: ES | K107: 3 | L107: 1 | M107: Yes | S107: 105 | T107: Lj_LjSC_ES_t3_high_B1 | U107: Lj | V107: LjSC | W107: ES | X107: 3 | Y107: High | Z107: 1 | AA107: Yes | AC107: At_SSC_ES_low_B1 | AD107: 1120968 | AE107: 973327 | AF107: 147873 | AG107: -232 | AH107: 86.83% | AI107: 13.19% | AJ107: -0.02%
E108: 106 | F108: Hv_GC2_SSC_ES_t3_B2 | G108: Hv | H108: GC2 | I108: SSC | J108: ES | K108: 3 | L108: 2 | M108: Yes | S108: 106 | T108: Lj_LjSC_ES_t3_high_B2 | U108: Lj | V108: LjSC | W108: ES | X108: 3 | Y108: High | Z108: 2 | AA108: Yes | AC108: At_SSC_ES_low_B2 | AD108: 1776073 | AE108: 1513367 | AF108: 283558 | AG108: -20852 | AH108: 85.21% | AI108: 15.97% | AJ108: -1.17%
E109: 107 | F109: Hv_GC2_SSC_ES_t3_B3 | G109: Hv | H109: GC2 | I109: SSC | J109: ES | K109: 3 | L109: 3 | M109: Yes | S109: 107 | T109: Lj_LjSC_ES_t3_high_B3 | U109: Lj | V109: LjSC | W109: ES | X109: 3 | Y109: High | Z109: 3 | AA109: Yes | AC109: At_SSC_ES_low_B3 | AD109: 1409044 | AE109: 1151576 | AF109: 241642 | AG109: 15826 | AH109: 81.73% | AI109: 17.15% | AJ109: 1.12%
E110: 108 | F110: Hv_GC2_SSC_ES_t3_B4 | G110: Hv | H110: GC2 | I110: SSC | J110: ES | K110: 3 | L110: 4 | M110: Yes | S110: 108 | T110: Lj_LjSC_ES_t3_high_B4 | U110: Lj | V110: LjSC | W110: ES | X110: 3 | Y110: High | Z110: 4 | AA110: Yes | AC110: At_SSC_ES_low_B4 | AD110: 2599477 | AE110: 2150775 | AF110: 430652 | AG110: 18050 | AH110: 82.74% | AI110: 16.57% | AJ110: 0.69%
E111: 109 | F111: Hv_GC3_SSC_ES_t3_B1 | G111: Hv | H111: GC3 | I111: SSC | J111: ES | K111: 3 | L111: 1 | M111: Yes | S111: 109 | T111: Lj_LjSC_NOD_t3_high_B1 | U111: Lj | V111: LjSC | W111: NOD | X111: 3 | Y111: High | Z111: 1 | AA111: Yes | AC111: At_SSC_RZ_high_B1 | AD111: 68887 | AE111: 1803 | AF111: 43231 | AG111: 23853 | AH111: 2.62% | AI111: 62.76% | AJ111: 34.63%
E112: 110 | F112: Hv_GC3_SSC_ES_t3_B2 | G112: Hv | H112: GC3 | I112: SSC | J112: ES | K112: 3 | L112: 2 | M112: Yes | S112: 110 | T112: Lj_LjSC_NOD_t3_high_B2 | U112: Lj | V112: LjSC | W112: NOD | X112: 3 | Y112: High | Z112: 2 | AA112: Yes | AC112: At_SSC_RZ_high_B2 | AD112: 60224 | AE112: 1500 | AF112: 38016 | AG112: 20708 | AH112: 2.49% | AI112: 63.12% | AJ112: 34.38%
E113: 111 | F113: Hv_GC3_SSC_ES_t3_B3 | G113: Hv | H113: GC3 | I113: SSC | J113: ES | K113: 3 | L113: 3 | M113: Yes | S113: 111 | T113: Lj_LjSC_NOD_t3_high_B3 | U113: Lj | V113: LjSC | W113: NOD | X113: 3 | Y113: High | Z113: 3 | AA113: Yes | AC113: At_SSC_RZ_high_B3 | AD113: 22597 | AE113: 131 | AF113: 15155 | AG113: 7311 | AH113: 0.58% | AI113: 67.07% | AJ113: 32.35%
E114: 112 | F114: Hv_GC3_SSC_ES_t3_B4 | G114: Hv | H114: GC3 | I114: SSC | J114: ES | K114: 3 | L114: 4 | M114: Yes | S114: 112 | T114: Lj_LjSC_NOD_t3_high_B4 | U114: Lj | V114: LjSC | W114: NOD | X114: 3 | Y114: High | Z114: 4 | AA114: Yes | AC114: At_SSC_RZ_high_B4 | AD114: 2575 | AE114: 55 | AF114: 1743 | AG114: 777 | AH114: 2.14% | AI114: 67.69% | AJ114: 30.17%
E115: 113 | F115: NP_GC1_LjSC_t3_B1 | G115: NP | H115: GC1 | I115: LjSC | J115: NA | K115: 3 | L115: 1 | M115: No | S115: 113 | T115: At_LjSC_RZ_t3_high_B1 | U115: At | V115: LjSC | W115: RZ | X115: 3 | Y115: High | Z115: 1 | AA115: Yes | AC115: At_SSC_RZ_HL_orig_B1 | AD115: 199321 | AE115: 1782 | AF115: 132836 | AG115: 64703 | AH115: 0.89% | AI115: 66.64% | AJ115: 32.46%
E116: 114 | F116: NP_GC1_LjSC_t3_B2 | G116: NP | H116: GC1 | I116: LjSC | J116: NA | K116: 3 | L116: 2 | M116: No | S116: 114 | T116: At_LjSC_RZ_t3_high_B2 | U116: At | V116: LjSC | W116: RZ | X116: 3 | Y116: High | Z116: 2 | AA116: Yes | AC116: At_SSC_RZ_HL_orig_B2 | AD116: 217995 | AE116: 471 | AF116: 142384 | AG116: 75140 | AH116: 0.22% | AI116: 65.32% | AJ116: 34.47%
E117: 115 | F117: NP_GC1_LjSC_t3_B3 | G117: NP | H117: GC1 | I117: LjSC | J117: NA | K117: 3 | L117: 3 | M117: No | S117: 115 | T117: At_LjSC_RZ_t3_high_B3 | U117: At | V117: LjSC | W117: RZ | X117: 3 | Y117: High | Z117: 3 | AA117: Yes | AC117: At_SSC_RZ_HL_orig_B3 | AD117: 159441 | AE117: 511 | AF117: 97818 | AG117: 61112 | AH117: 0.32% | AI117: 61.35% | AJ117: 38.33%
E118: 116 | F118: NP_GC1_LjSC_t3_B4 | G118: NP | H118: GC1 | I118: LjSC | J118: NA | K118: 3 | L118: 4 | M118: No | S118: 116 | T118: At_LjSC_RZ_t3_high_B4 | U118: At | V118: LjSC | W118: RZ | X118: 3 | Y118: High | Z118: 4 | AA118: Yes | AC118: At_SSC_RZ_HL_orig_B4 | AD118: 163025 | AE118: 191 | AF118: 106517 | AG118: 56317 | AH118: 0.12% | AI118: 65.34% | AJ118: 34.55%
E119: 117 | F119: NP_GC2_AtSC_t3_B1 | G119: NP | H119: GC2 | I119: AtSC | J119: NA | K119: 3 | L119: 1 | M119: No | S119: 117 | T119: At_LjSC_ES_t3_high_B1 | U119: At | V119: LjSC | W119: ES | X119: 3 | Y119: High | Z119: 1 | AA119: Yes | AC119: At_SSC_RZ_low_B1 | AD119: 1021 | AE119: 28 | AF119: 592 | AG119: 401 | AH119: 2.74% | AI119: 57.98% | AJ119: 39.28%
E120: 118 | F120: NP_GC2_AtSC_t3_B2 | G120: NP | H120: GC2 | I120: AtSC | J120: NA | K120: 3 | L120: 2 | M120: No | S120: 118 | T120: At_LjSC_ES_t3_high_B2 | U120: At | V120: LjSC | W120: ES | X120: 3 | Y120: High | Z120: 2 | AA120: Yes | AC120: At_SSC_RZ_low_B2 | AD120: 22336 | AE120: 736 | AF120: 13227 | AG120: 8373 | AH120: 3.30% | AI120: 59.22% | AJ120: 37.49%
E121: 119 | F121: NP_GC2_AtSC_t3_B3 | G121: NP | H121: GC2 | I121: AtSC | J121: NA | K121: 3 | L121: 3 | M121: No | S121: 119 | T121: At_LjSC_ES_t3_high_B3 | U121: At | V121: LjSC | W121: ES | X121: 3 | Y121: High | Z121: 3 | AA121: Yes | AC121: At_SSC_RZ_low_B3 | AD121: 25714 | AE121: 1577 | AF121: 15925 | AG121: 8212 | AH121: 6.13% | AI121: 61.93% | AJ121: 31.94%
E122: 120 | F122: NP_GC2_AtSC_t3_B4 | G122: NP | H122: GC2 | I122: AtSC | J122: NA | K122: 3 | L122: 4 | M122: No | S122: 120 | T122: At_LjSC_ES_t3_high_B4 | U122: At | V122: LjSC | W122: ES | X122: 3 | Y122: High | Z122: 4 | AA122: Yes | AC122: At_SSC_RZ_low_B4 | AD122: 92287 | AE122: 7954 | AF122: 62222 | AG122: 22111 | AH122: 8.62% | AI122: 67.42% | AJ122: 23.96%
E123: 121 | F123: NP_GC3_HvSC_t3_B1 | G123: NP | H123: GC3 | I123: HvSC | J123: NA | K123: 3 | L123: 1 | M123: No | S123: 121 | T123: Hv_LjSC_RZ_t3_high_B1 | U123: Hv | V123: LjSC | W123: RZ | X123: 3 | Y123: High | Z123: 1 | AA123: Yes | AC123: Hv_AtSC_ES_high_B1 | AD123: 3050481 | AE123: 2821413 | AF123: 144833 | AG123: 84235 | AH123: 92.49% | AI123: 4.75% | AJ123: 2.76%
E124: 122 | F124: NP_GC3_HvSC_t3_B2 | G124: NP | H124: GC3 | I124: HvSC | J124: NA | K124: 3 | L124: 2 | M124: No | S124: 122 | T124: Hv_LjSC_RZ_t3_high_B2 | U124: Hv | V124: LjSC | W124: RZ | X124: 3 | Y124: High | Z124: 2 | AA124: Yes | AC124: Hv_AtSC_ES_high_B2 | AD124: 2529067 | AE124: 2369855 | AF124: 96394 | AG124: 62818 | AH124: 93.70% | AI124: 3.81% | AJ124: 2.48%
E125: 123 | F125: NP_GC3_HvSC_t3_B3 | G125: NP | H125: GC3 | I125: HvSC | J125: NA | K125: 3 | L125: 3 | M125: No | S125: 123 | T125: Hv_LjSC_RZ_t3_high_B3 | U125: Hv | V125: LjSC | W125: RZ | X125: 3 | Y125: High | Z125: 3 | AA125: Yes | AC125: Hv_AtSC_ES_high_B3 | AD125: 3725668 | AE125: 3495621 | AF125: 141905 | AG125: 88142 | AH125: 93.83% | AI125: 3.81% | AJ125: 2.37%
E126: 124 | F126: NP_GC3_HvSC_t3_B4 | G126: NP | H126: GC3 | I126: HvSC | J126: NA | K126: 3 | L126: 4 | M126: No | S126: 124 | T126: Hv_LjSC_RZ_t3_high_B4 | U126: Hv | V126: LjSC | W126: RZ | X126: 3 | Y126: High | Z126: 4 | AA126: Yes | AC126: Hv_AtSC_ES_high_B4 | AD126: 2185608 | AE126: 2043516 | AF126: 86999 | AG126: 55093 | AH126: 93.50% | AI126: 3.98% | AJ126: 2.52%
E127: 125 | F127: Lj_GC1_RZ_t3_B1 | G127: Lj | H127: GC1 | I127: NS | J127: RZ | K127: 3 | L127: 1 | M127: No | S127: 125 | T127: Hv_LjSC_ES_t3_high_B1 | U127: Hv | V127: LjSC | W127: ES | X127: 3 | Y127: High | Z127: 1 | AA127: Yes | AC127: Hv_AtSC_ES_low_B1 | AD127: 2897919 | AE127: 2712411 | AF127: 112047 | AG127: 73461 | AH127: 93.60% | AI127: 3.87% | AJ127: 2.53%
E128: 126 | F128: Lj_GC1_RZ_t3_B2 | G128: Lj | H128: GC1 | I128: NS | J128: RZ | K128: 3 | L128: 2 | M128: No | S128: 126 | T128: Hv_LjSC_ES_t3_high_B2 | U128: Hv | V128: LjSC | W128: ES | X128: 3 | Y128: High | Z128: 2 | AA128: Yes | AC128: Hv_AtSC_ES_low_B2 | AD128: 3301432 | AE128: 3069954 | AF128: 136798 | AG128: 94680 | AH128: 92.99% | AI128: 4.14% | AJ128: 2.87%
E129: 127 | F129: Lj_GC1_LjSC_RZ_t3_B1 | G129: Lj | H129: GC1 | I129: LjSC | J129: RZ | K129: 3 | L129: 1 | M129: No | S129: 127 | T129: Hv_LjSC_ES_t3_high_B3 | U129: Hv | V129: LjSC | W129: ES | X129: 3 | Y129: High | Z129: 3 | AA129: Yes | AC129: Hv_AtSC_ES_low_B3 | AD129: 2183297 | AE129: 2038475 | AF129: 81086 | AG129: 63736 | AH129: 93.37% | AI129: 3.71% | AJ129: 2.92%
E130: 128 | F130: Lj_GC1_LjSC_RZ_t3_B2 | G130: Lj | H130: GC1 | I130: LjSC | J130: RZ | K130: 3 | L130: 2 | M130: No | S130: 128 | T130: Hv_LjSC_ES_t3_high_B4 | U130: Hv | V130: LjSC | W130: ES | X130: 3 | Y130: High | Z130: 4 | AA130: Yes | AC130: Hv_AtSC_ES_low_B4 | AD130: 2196156 | AE130: 2045470 | AF130: 85086 | AG130: 65600 | AH130: 93.14% | AI130: 3.87% | AJ130: 2.99%
E131: 129 | F131: Lj_GC1_LjSC_RZ_t3_B3 | G131: Lj | H131: GC1 | I131: LjSC | J131: RZ | K131: 3 | L131: 3 | M131: No | S131: 129 | T131: NP_LjSC_t3_low_B1 | U131: NP | V131: LjSC | W131: NA | X131: 3 | Y131: Low | Z131: 1 | AA131: Yes | AC131: Hv_AtSC_RZ_high_B1 | AD131: 4288093 | AE131: 610187 | AF131: 2606201 | AG131: 1071705 | AH131: 14.23% | AI131: 60.78% | AJ131: 24.99%
E132: 130 | F132: Lj_GC1_LjSC_RZ_t3_B4 | G132: Lj | H132: GC1 | I132: LjSC | J132: RZ | K132: 3 | L132: 4 | M132: No | S132: 130 | T132: NP_LjSC_t3_low_B2 | U132: NP | V132: LjSC | W132: NA | X132: 3 | Y132: Low | Z132: 2 | AA132: Yes | AC132: Hv_AtSC_RZ_high_B2 | AD132: 394202 | AE132: 50686 | AF132: 238335 | AG132: =AD132-AE132-AF132 -> 105181 | AH132: =AE132/AD132 -> 12.86% | AI132: =AF132/AD132 -> 60.46% | AJ132: =AG132/AD132 -> 26.68%
E133: 131 | F133: Lj_GC1_AtSC_RZ_t3_B1 | G133: Lj | H133: GC1 | I133: AtSC | J133: RZ | K133: 3 | L133: 1 | M133: No | S133: 131 | T133: NP_LjSC_t3_low_B3 | U133: NP | V133: LjSC | W133: NA | X133: 3 | Y133: Low | Z133: 3 | AA133: Yes | AC133: Hv_AtSC_RZ_high_B3 | AD133: 3206776 | AE133: 531318 | AF133: 1849608 | AG133: 825850 | AH133: 16.57% | AI133: 57.68% | AJ133: 25.75%
E134: 132 | F134: Lj_GC1_AtSC_RZ_t3_B2 | G134: Lj | H134: GC1 | I134: AtSC | J134: RZ | K134: 3 | L134: 2 | M134: No | S134: 132 | T134: NP_LjSC_t3_low_B4 | U134: NP | V134: LjSC | W134: NA | X134: 3 | Y134: Low | Z134: 4 | AA134: Yes | AC134: Hv_AtSC_RZ_high_B4 | AD134: 4006496 | AE134: 381045 | AF134: 2431636 | AG134: 1193815 | AH134: 9.51% | AI134: 60.69% | AJ134: 29.80%
E135: 133 | F135: Lj_GC1_AtSC_RZ_t3_B3 | G135: Lj | H135: GC1 | I135: AtSC | J135: RZ | K135: 3 | L135: 3 | M135: No | S135: 133 | T135: Lj_LjSC_RZ_t3_low_B1 | U135: Lj | V135: LjSC | W135: RZ | X135: 3 | Y135: Low | Z135: 1 | AA135: Yes | AC135: Hv_AtSC_RZ_low_B1 | AD135: 336107 | AE135: 34465 | AF135: 205558 | AG135: 96084 | AH135: 10.25% | AI135: 61.16% | AJ135: 28.59%
E136: 134 | F136: Lj_GC1_AtSC_RZ_t3_B4 | G136: Lj | H136: GC1 | I136: AtSC | J136: RZ | K136: 3 | L136: 4 | M136: No | S136: 134 | T136: Lj_LjSC_RZ_t3_low_B2 | U136: Lj | V136: LjSC | W136: RZ | X136: 3 | Y136: Low | Z136: 2 | AA136: Yes | AC136: Hv_AtSC_RZ_low_B2 | AD136: 193540 | AE136: 14081 | AF136: 128499 | AG136: 50960 | AH136: 7.28% | AI136: 66.39% | AJ136: 26.33%
E137: 135 | F137: Lj_GC1_HvSC_RZ_t3_B1 | G137: Lj | H137: GC1 | I137: HvSC | J137: RZ | K137: 3 | L137: 1 | M137: No | S137: 135 | T137: Lj_LjSC_RZ_t3_low_B3 | U137: Lj | V137: LjSC | W137: RZ | X137: 3 | Y137: Low | Z137: 3 | AA137: Yes | AC137: Hv_AtSC_RZ_low_B3 | AD137: 34111 | AE137: 5358 | AF137: 21187 | AG137: 7566 | AH137: 15.71% | AI137: 62.11% | AJ137: 22.18%
E138: 136 | F138: Lj_GC1_HvSC_RZ_t3_B2 | G138: Lj | H138: GC1 | I138: HvSC | J138: RZ | K138: 3 | L138: 2 | M138: No | S138: 136 | T138: Lj_LjSC_RZ_t3_low_B4 | U138: Lj | V138: LjSC | W138: RZ | X138: 3 | Y138: Low | Z138: 4 | AA138: Yes | AC138: Hv_AtSC_RZ_low_B4 | AD138: 175994 | AE138: 6548 | AF138: 116634 | AG138: 52812 | AH138: 3.72% | AI138: 66.27% | AJ138: 30.01%
E139: 137 | F139: Lj_GC1_HvSC_RZ_t3_B3 | G139: Lj | H139: GC1 | I139: HvSC | J139: RZ | K139: 3 | L139: 3 | M139: No | S139: 137 | T139: Lj_LjSC_ES_t3_low_B1 | U139: Lj | V139: LjSC | W139: ES | X139: 3 | Y139: Low | Z139: 1 | AA139: Yes | AC139: Hv_HvSC_ES_high_B1 | AD139: 7132136 | AE139: 6349286 | AF139: 551603 | AG139: 231247 | AH139: 89.02% | AI139: 7.73% | AJ139: 3.24%
E140: 138 | F140: Lj_GC1_HvSC_RZ_t3_B4 | G140: Lj | H140: GC1 | I140: HvSC | J140: RZ | K140: 3 | L140: 4 | M140: No | S140: 138 | T140: Lj_LjSC_ES_t3_low_B2 | U140: Lj | V140: LjSC | W140: ES | X140: 3 | Y140: Low | Z140: 2 | AA140: Yes | AC140: Hv_HvSC_ES_high_B2 | AD140: 5209193 | AE140: 4679955 | AF140: 373662 | AG140: 155576 | AH140: 89.84% | AI140: 7.17% | AJ140: 2.99%
E141: 139 | F141: Lj_GC1_ES_t3_B1 | G141: Lj | H141: GC1 | I141: NS | J141: ES | K141: 3 | L141: 1 | M141: No | S141: 139 | T141: Lj_LjSC_ES_t3_low_B3 | U141: Lj | V141: LjSC | W141: ES | X141: 3 | Y141: Low | Z141: 3 | AA141: Yes | AC141: Hv_HvSC_ES_high_B3 | AD141: 4774015 | AE141: 4279281 | AF141: 364559 | AG141: 130175 | AH141: 89.64% | AI141: 7.64% | AJ141: 2.73%
E142: 140 | F142: Lj_GC1_ES_t3_B2 | G142: Lj | H142: GC1 | I142: NS | J142: ES | K142: 3 | L142: 2 | M142: No | S142: 140 | T142: Lj_LjSC_ES_t3_low_B4 | U142: Lj | V142: LjSC | W142: ES | X142: 3 | Y142: Low | Z142: 4 | AA142: Yes | AC142: Hv_HvSC_ES_high_B4 | AD142: 8110059 | AE142: 7091404 | AF142: 757253 | AG142: 261402 | AH142: 87.44% | AI142: 9.34% | AJ142: 3.22%
E143: 141 | F143: Lj_GC1_LjSC_ES_t3_B1 | G143: Lj | H143: GC1 | I143: LjSC | J143: ES | K143: 3 | L143: 1 | M143: Yes | S143: 141 | T143: Lj_LjSC_NOD_t3_low_B1 | U143: Lj | V143: LjSC | W143: NOD | X143: 3 | Y143: Low | Z143: 1 | AA143: Yes | AC143: Hv_HvSC_ES_low_B1 | AD143: 8938000 | AE143: 8183245 | AF143: 551604 | AG143: 203151 | AH143: 91.56% | AI143: 6.17% | AJ143: 2.27%
E144: 142 | F144: Lj_GC1_LjSC_ES_t3_B2 | G144: Lj | H144: GC1 | I144: LjSC | J144: ES | K144: 3 | L144: 2 | M144: Yes | S144: 142 | T144: Lj_LjSC_NOD_t3_low_B2 | U144: Lj | V144: LjSC | W144: NOD | X144: 3 | Y144: Low | Z144: 2 | AA144: Yes | AC144: Hv_HvSC_ES_low_B2 | AD144: 10337461 | AE144: 9631977 | AF144: 490991 | AG144: 214493 | AH144: 93.18% | AI144: 4.75% | AJ144: 2.07%
E145: 143 | F145: Lj_GC1_LjSC_ES_t3_B3 | G145: Lj | H145: GC1 | I145: LjSC | J145: ES | K145: 3 | L145: 3 | M145: Yes | S145: 143 | T145: Lj_LjSC_NOD_t3_low_B3 | U145: Lj | V145: LjSC | W145: NOD | X145: 3 | Y145: Low | Z145: 3 | AA145: Yes | AC145: Hv_HvSC_ES_low_B3 | AD145: 11471592 | AE145: 10654767 | AF145: 538556 | AG145: 278269 | AH145: 92.88% | AI145: 4.69% | AJ145: 2.43%
E146: 144 | F146: Lj_GC1_LjSC_ES_t3_B4 | G146: Lj | H146: GC1 | I146: LjSC | J146: ES | K146: 3 | L146: 4 | M146: Yes | S146: 144 | T146: Lj_LjSC_NOD_t3_low_B4 | U146: Lj | V146: LjSC | W146: NOD | X146: 3 | Y146: Low | Z146: 4 | AA146: Yes | AC146: Hv_HvSC_ES_low_B4 | AD146: 6404735 | AE146: 5949131 | AF146: 321489 | AG146: 134115 | AH146: 92.89% | AI146: 5.02% | AJ146: 2.09%
E147: 145 | F147: Lj_GC1_AtSC_ES_t3_B1 | G147: Lj | H147: GC1 | I147: AtSC | J147: ES | K147: 3 | L147: 1 | M147: Yes | S147: 145 | T147: At_LjSC_RZ_t3_low_B1 | U147: At | V147: LjSC | W147: RZ | X147: 3 | Y147: Low | Z147: 1 | AA147: Yes | AC147: Hv_HvSC_RZ_high_B1 | AD147: 3869345 | AE147: 357736 | AF147: 2889170 | AG147: 622439 | AH147: 9.25% | AI147: 74.67% | AJ147: 16.09%
E148: 146 | F148: Lj_GC1_AtSC_ES_t3_B2 | G148: Lj | H148: GC1 | I148: AtSC | J148: ES | K148: 3 | L148: 2 | M148: Yes | S148: 146 | T148: At_LjSC_RZ_t3_low_B2 | U148: At | V148: LjSC | W148: RZ | X148: 3 | Y148: Low | Z148: 2 | AA148: Yes | AC148: Hv_HvSC_RZ_high_B2 | AD148: 2762499 | AE148: 366242 | AF148: 2001569 | AG148: 394688 | AH148: 13.26% | AI148: 72.46% | AJ148: 14.29%
E149: 147 | F149: Lj_GC1_AtSC_ES_t3_B3 | G149: Lj | H149: GC1 | I149: AtSC | J149: ES | K149: 3 | L149: 3 | M149: Yes | S149: 147 | T149: At_LjSC_RZ_t3_low_B3 | U149: At | V149: LjSC | W149: RZ | X149: 3 | Y149: Low | Z149: 3 | AA149: Yes | AC149: Hv_HvSC_RZ_high_B3 | AD149: 2480247 | AE149: 251588 | AF149: 1891981 | AG149: 336678 | AH149: 10.14% | AI149: 76.28% | AJ149: 13.57%
E150: 148 | F150: Lj_GC1_AtSC_ES_t3_B4 | G150: Lj | H150: GC1 | I150: AtSC | J150: ES | K150: 3 | L150: 4 | M150: Yes | S150: 148 | T150: At_LjSC_RZ_t3_low_B4 | U150: At | V150: LjSC | W150: RZ | X150: 3 | Y150: Low | Z150: 4 | AA150: Yes | AC150: Hv_HvSC_RZ_high_B4 | AD150: 1984197 | AE150: 280317 | AF150: 1461603 | AG150: 242277 | AH150: 14.13% | AI150: 73.66% | AJ150: 12.21%
E151: 149 | F151: Lj_GC1_HvSC_ES_t3_B1 | G151: Lj | H151: GC1 | I151: HvSC | J151: ES | K151: 3 | L151: 1 | M151: Yes | S151: 149 | T151: At_LjSC_ES_t3_low_B1 | U151: At | V151: LjSC | W151: ES | X151: 3 | Y151: Low | Z151: 1 | AA151: Yes | AC151: Hv_HvSC_RZ_low_B1 | AD151: 129198 | AE151: 31054 | AF151: 71616 | AG151: 26528 | AH151: 24.04% | AI151: 55.43% | AJ151: 20.53%
E152: 150 | F152: Lj_GC1_HvSC_ES_t3_B2 | G152: Lj | H152: GC1 | I152: HvSC | J152: ES | K152: 3 | L152: 2 | M152: Yes | S152: 150 | T152: At_LjSC_ES_t3_low_B2 | U152: At | V152: LjSC | W152: ES | X152: 3 | Y152: Low | Z152: 2 | AA152: Yes | AC152: Hv_HvSC_RZ_low_B2 | AD152: 2082420 | AE152: 367142 | AF152: 1347783 | AG152: 367495 | AH152: 17.63% | AI152: 64.72% | AJ152: 17.65%
E153: 151 | F153: Lj_GC1_HvSC_ES_t3_B3 | G153: Lj | H153: GC1 | I153: HvSC | J153: ES | K153: 3 | L153: 3 | M153: Yes | S153: 151 | T153: At_LjSC_ES_t3_low_B3 | U153: At | V153: LjSC | W153: ES | X153: 3 | Y153: Low | Z153: 3 | AA153: Yes | AC153: Hv_HvSC_RZ_low_B3 | AD153: 62211 | AE153: 14321 | AF153: 33000 | AG153: 14890 | AH153: 23.02% | AI153: 53.05% | AJ153: 23.93%
E154: 152 | F154: Lj_GC1_HvSC_ES_t3_B4 | G154: Lj | H154: GC1 | I154: HvSC | J154: ES | K154: 3 | L154: 4 | M154: Yes | S154: 152 | T154: At_LjSC_ES_t3_low_B4 | U154: At | V154: LjSC | W154: ES | X154: 3 | Y154: Low | Z154: 4 | AA154: Yes | AC154: Hv_HvSC_RZ_low_B4 | AD154: 54178 | AE154: 10430 | AF154: 30475 | AG154: 13273 | AH154: 19.25% | AI154: 56.25% | AJ154: 24.50%
E155: 153 | F155: Lj_GC1_LjSC_NOD_t3_B1 | G155: Lj | H155: GC1 | I155: LjSC | J155: NOD | K155: 3 | L155: 1 | M155: No | S155: 153 | T155: Hv_LjSC_RZ_t3_low_B1 | U155: Hv | V155: LjSC | W155: RZ | X155: 3 | Y155: Low | Z155: 1 | AA155: Yes | AC155: Hv_LjSC_ES_high_B1 | AD155: 2797057 | AE155: 2604355 | AF155: 131153 | AG155: 61549 | AH155: 93.11% | AI155: 4.69% | AJ155: 2.20%
E156: 154 | F156: Lj_GC1_LjSC_NOD_t3_B2 | G156: Lj | H156: GC1 | I156: LjSC | J156: NOD | K156: 3 | L156: 2 | M156: No | S156: 154 | T156: Hv_LjSC_RZ_t3_low_B2 | U156: Hv | V156: LjSC | W156: RZ | X156: 3 | Y156: Low | Z156: 2 | AA156: Yes | AC156: Hv_LjSC_ES_high_B2 | AD156: 4465116 | AE156: 4171528 | AF156: 200538 | AG156: 93050 | AH156: 93.42% | AI156: 4.49% | AJ156: 2.08%
E157: 155 | F157: Lj_GC1_LjSC_NOD_t3_B3 | G157: Lj | H157: GC1 | I157: LjSC | J157: NOD | K157: 3 | L157: 3 | M157: No | S157: 155 | T157: Hv_LjSC_RZ_t3_low_B3 | U157: Hv | V157: LjSC | W157: RZ | X157: 3 | Y157: Low | Z157: 3 | AA157: Yes | AC157: Hv_LjSC_ES_high_B3 | AD157: 3737330 | AE157: 3461743 | AF157: 199283 | AG157: 76304 | AH157: 92.63% | AI157: 5.33% | AJ157: 2.04%
E158: 156 | F158: Lj_GC1_LjSC_NOD_t3_B4 | G158: Lj | H158: GC1 | I158: LjSC | J158: NOD | K158: 3 | L158: 4 | M158: No | S158: 156 | T158: Hv_LjSC_RZ_t3_low_B4 | U158: Hv | V158: LjSC | W158: RZ | X158: 3 | Y158: Low | Z158: 4 | AA158: Yes | AC158: Hv_LjSC_ES_high_B4 | AD158: 2768550 | AE158: 2561530 | AF158: 155729 | AG158: 51291 | AH158: 92.52% | AI158: 5.62% | AJ158: 1.85%
E159: 157 | F159: Lj_GC1_AtSC_NOD_t3_B1 | G159: Lj | H159: GC1 | I159: AtSC | J159: NOD | K159: 3 | L159: 1 | M159: No | S159: 157 | T159: Hv_LjSC_ES_t3_low_B1 | U159: Hv | V159: LjSC | W159: ES | X159: 3 | Y159: Low | Z159: 1 | AA159: Yes | AC159: Hv_LjSC_ES_low_B1 | AD159: 2046711 | AE159: 1937757 | AF159: 72617 | AG159: 36337 | AH159: 94.68% | AI159: 3.55% | AJ159: 1.78%
E160: 158 | F160: Lj_GC1_AtSC_NOD_t3_B2 | G160: Lj | H160: GC1 | I160: AtSC | J160: NOD | K160: 3 | L160: 2 | M160: No | S160: 158 | T160: Hv_LjSC_ES_t3_low_B2 | U160: Hv | V160: LjSC | W160: ES | X160: 3 | Y160: Low | Z160: 2 | AA160: Yes | AC160: Hv_LjSC_ES_low_B2 | AD160: 3602715 | AE160: 3420925 | AF160: 118968 | AG160: 62822 | AH160: 94.95% | AI160: 3.30% | AJ160: 1.74%
E161: 159 | F161: Lj_GC1_AtSC_NOD_t3_B3 | G161: Lj | H161: GC1 | I161: AtSC | J161: NOD | K161: 3 | L161: 3 | M161: No | S161: 159 | T161: Hv_LjSC_ES_t3_low_B3 | U161: Hv | V161: LjSC | W161: ES | X161: 3 | Y161: Low | Z161: 3 | AA161: Yes | AC161: Hv_LjSC_ES_low_B3 | AD161: 1943638 | AE161: 1848432 | AF161: 60255 | AG161: 34951 | AH161: 95.10% | AI161: 3.10% | AJ161: 1.80%
E162: 160 | F162: Lj_GC1_AtSC_NOD_t3_B4 | G162: Lj | H162: GC1 | I162: AtSC | J162: NOD | K162: 3 | L162: 4 | M162: No | S162: 160 | T162: Hv_LjSC_ES_t3_low_B4 | U162: Hv | V162: LjSC | W162: ES | X162: 3 | Y162: Low | Z162: 4 | AA162: Yes | AC162: Hv_LjSC_ES_low_B4 | AD162: 1751983 | AE162: 1671640 | AF162: 53809 | AG162: 26534 | AH162: 95.41% | AI162: 3.07% | AJ162: 1.51%
E163: 161 | F163: Lj_GC1_HvSC_NOD_t3_B1 | G163: Lj | H163: GC1 | I163: HvSC | J163: NOD | K163: 3 | L163: 1 | M163: No | S163: 161 | T163: NP_AtSC_t3_high_B1 | U163: NP | V163: AtSC | W163: NA | X163: 3 | Y163: High | Z163: 1 | AA163: Yes | AC163: Hv_LjSC_RZ_high_B1 | AD163: 4558785 | AE163: 759083 | AF163: 3533868 | AG163: 265834 | AH163: 16.65% | AI163: 77.52% | AJ163: 5.83%
E164: 162 | F164: Lj_GC1_HvSC_NOD_t3_B2 | G164: Lj | H164: GC1 | I164: HvSC | J164: NOD | K164: 3 | L164: 2 | M164: No | S164: 162 | T164: NP_AtSC_t3_high_B2 | U164: NP | V164: AtSC | W164: NA | X164: 3 | Y164: High | Z164: 2 | AA164: Yes | AC164: Hv_LjSC_RZ_high_B2 | AD164: 4469030 | AE164: 549758 | AF164: 3583784 | AG164: 335488 | AH164: 12.30% | AI164: 80.19% | AJ164: 7.51%
E165: 163 | F165: Lj_GC1_HvSC_NOD_t3_B3 | G165: Lj | H165: GC1 | I165: HvSC | J165: NOD | K165: 3 | L165: 3 | M165: No | S165: 163 | T165: NP_AtSC_t3_high_B3 | U165: NP | V165: AtSC | W165: NA | X165: 3 | Y165: High | Z165: 3 | AA165: Yes | AC165: Hv_LjSC_RZ_high_B3 | AD165: 3249466 | AE165: 399200 | AF165: 2643854 | AG165: 206412 | AH165: 12.29% | AI165: 81.36% | AJ165: 6.35%
E166: 164 | F166: Lj_GC1_HvSC_NOD_t3_B4 | G166: Lj | H166: GC1 | I166: HvSC | J166: NOD | K166: 3 | L166: 4 | M166: No | S166: 164 | T166: NP_AtSC_t3_high_B4 | U166: NP | V166: AtSC | W166: NA | X166: 3 | Y166: High | Z166: 4 | AA166: Yes | AC166: Hv_LjSC_RZ_high_B4 | AD166: 480241 | AE166: 47021 | AF166: 402140 | AG166: 31080 | AH166: 9.79% | AI166: 83.74% | AJ166: 6.47%
E167: 165 | F167: At_GC2_LjSC_RZ_t3_B1 | G167: At | H167: GC2 | I167: LjSC | J167: RZ | K167: 3 | L167: 1 | M167: No | S167: 165 | T167: Lj_AtSC_RZ_t3_high_B1 | U167: Lj | V167: AtSC | W167: RZ | X167: 3 | Y167: High | Z167: 1 | AA167: Yes | AC167: Hv_LjSC_RZ_low_B1 | AD167: 100092 | AE167: 10528 | AF167: 82051 | AG167: 7513 | AH167: 10.52% | AI167: 81.98% | AJ167: 7.51%
E168: 166 | F168: At_GC2_LjSC_RZ_t3_B2 | G168: At | H168: GC2 | I168: LjSC | J168: RZ | K168: 3 | L168: 2 | M168: No | S168: 166 | T168: Lj_AtSC_RZ_t3_high_B2 | U168: Lj | V168: AtSC | W168: RZ | X168: 3 | Y168: High | Z168: 2 | AA168: Yes | AC168: Hv_LjSC_RZ_low_B2 | AD168: 84152 | AE168: 8372 | AF168: 58245 | AG168: 17535 | AH168: 9.95% | AI168: 69.21% | AJ168: 20.84%
E169: 167 | F169: At_GC2_LjSC_RZ_t3_B3 | G169: At | H169: GC2 | I169: LjSC | J169: RZ | K169: 3 | L169: 3 | M169: No | S169: 167 | T169: Lj_AtSC_RZ_t3_high_B3 | U169: Lj | V169: AtSC | W169: RZ | X169: 3 | Y169: High | Z169: 3 | AA169: Yes | AC169: Hv_LjSC_RZ_low_B3 | AD169: 119050 | AE169: 22830 | AF169: 74304 | AG169: 21916 | AH169: 19.18% | AI169: 62.41% | AJ169: 18.41%
E170: 168 | F170: At_GC2_LjSC_RZ_t3_B4 | G170: At | H170: GC2 | I170: LjSC | J170: RZ | K170: 3 | L170: 4 | M170: No | S170: 168 | T170: Lj_AtSC_RZ_t3_high_B4 | U170: Lj | V170: AtSC | W170: RZ | X170: 3 | Y170: High | Z170: 4 | AA170: Yes | AC170: Hv_LjSC_RZ_low_B4 | AD170: 139537 | AE170: 31806 | AF170: 80637 | AG170: 27094 | AH170: 22.79% | AI170: 57.79% | AJ170: 19.42%
E171: 169 | F171: At_GC2_AtSC_RZ_t3_B1 | G171: At | H171: GC2 | I171: AtSC | J171: RZ | K171: 3 | L171: 1 | M171: No | S171: 169 | T171: Lj_AtSC_ES_t3_high_B1 | U171: Lj | V171: AtSC | W171: ES | X171: 3 | Y171: High | Z171: 1 | AA171: Yes | AC171: Hv_NS_ES_high_B1 | AD171: 2667066 | AE171: 2470970 | AF171: 92415 | AG171: 103681 | AH171: 92.65% | AI171: 3.47% | AJ171: 3.89%
E172: 170 | F172: At_GC2_AtSC_RZ_t3_B2 | G172: At | H172: GC2 | I172: AtSC | J172: RZ | K172: 3 | L172: 2 | M172: No | S172: 170 | T172: Lj_AtSC_ES_t3_high_B2 | U172: Lj | V172: AtSC | W172: ES | X172: 3 | Y172: High | Z172: 2 | AA172: Yes | AC172: Hv_NS_ES_high_B2 | AD172: 9725 | AE172: 3414 | AF172: 3591 | AG172: 2720 | AH172: 35.11% | AI172: 36.93% | AJ172: 27.97%
E173: 171 | F173: At_GC2_AtSC_RZ_t3_B3 | G173: At | H173: GC2 | I173: AtSC | J173: RZ | K173: 3 | L173: 3 | M173: No | S173: 171 | T173: Lj_AtSC_ES_t3_high_B3 | U173: Lj | V173: AtSC | W173: ES | X173: 3 | Y173: High | Z173: 3 | AA173: Yes | AC173: Hv_NS_ES_high_B3 | AD173: 3873946 | AE173: 3595126 | AF173: 137087 | AG173: 141733 | AH173: 92.80% | AI173: 3.54% | AJ173: 3.66%
E174: 172 | F174: At_GC2_AtSC_RZ_t3_B4 | G174: At | H174: GC2 | I174: AtSC | J174: RZ | K174: 3 | L174: 4 | M174: No | S174: 172 | T174: Lj_AtSC_ES_t3_high_B4 | U174: Lj | V174: AtSC | W174: ES | X174: 3 | Y174: High | Z174: 4 | AA174: Yes | AC174: Hv_NS_ES_high_B4 | AD174: 3657780 | AE174: 3171358 | AF174: 214912 | AG174: 271510 | AH174: 86.70% | AI174: 5.88% | AJ174: 7.42%
E175: 173 | F175: At_GC2_AtSC_RZ_t3_B5 | G175: At | H175: GC3 | I175: AtSC | J175: RZ | K175: 3 | L175: 5 | M175: No | S175: 173 | T175: At_AtSC_RZ_t3_high_B1 | U175: At | V175: AtSC | W175: RZ | X175: 3 | Y175: High | Z175: 1 | AA175: Yes | AC175: Hv_NS_ES_low_B1 | AD175: 3846553 | AE175: 3617156 | AF175: 97498 | AG175: 131899 | AH175: 94.04% | AI175: 2.53% | AJ175: 3.43%
E176: 174 | F176: At_GC2_HvSC_RZ_t3_B1 | G176: At | H176: GC2 | I176: HvSC | J176: RZ | K176: 3 | L176: 1 | M176: No | S176: 174 | T176: At_AtSC_RZ_t3_high_B2 | U176: At | V176: AtSC | W176: RZ | X176: 3 | Y176: High | Z176: 2 | AA176: Yes | AC176: Hv_NS_ES_low_B2 | AD176: 5205261 | AE176: 4923079 | AF176: 128898 | AG176: 153284 | AH176: 94.58% | AI176: 2.48% | AJ176: 2.94%
E177: 175 | F177: At_GC2_HvSC_RZ_t3_B2 | G177: At | H177: GC2 | I177: HvSC | J177: RZ | K177: 3 | L177: 2 | M177: No | S177: 175 | T177: At_AtSC_RZ_t3_high_B3 | U177: At | V177: AtSC | W177: RZ | X177: 3 | Y177: High | Z177: 3 | AA177: Yes | AC177: Hv_NS_ES_low_B3 | AD177: 255242 | AE177: 241658 | AF177: 6035 | AG177: 7549 | AH177: 94.68% | AI177: 2.36% | AJ177: 2.96%
E178: 176 | F178: At_GC2_HvSC_RZ_t3_B3 | G178: At | H178: GC2 | I178: HvSC | J178: RZ | K178: 3 | L178: 3 | M178: No | S178: 176 | T178: At_AtSC_RZ_t3_high_B4 | U178: At | V178: AtSC | W178: RZ | X178: 3 | Y178: High | Z178: 4 | AA178: Yes | AC178: Hv_NS_ES_low_B4 | AD178: 4494275 | AE178: 4274502 | AF178: 105361 | AG178: 114412 | AH178: 95.11% | AI178: 2.34% | AJ178: 2.55%
E179: 177 | F179: At_GC2_HvSC_RZ_t3_B4 | G179: At | H179: GC2 | I179: HvSC | J179: RZ | K179: 3 | L179: 4 | M179: No | S179: 177 | T179: At_AtSC_ES_t3_high_B1 | U179: At | V179: AtSC | W179: ES | X179: 3 | Y179: High | Z179: 1 | AA179: Yes | AC179: Hv_NS_RZ_high_B1 | AD179: 2348579 | AE179: 385079 | AF179: 570199 | AG179: 1393301 | AH179: 16.40% | AI179: 24.28% | AJ179: 59.33%
E180: 178 | F180: At_GC2_HvSC_RZ_t3_B5 | G180: At | H180: GC3 | I180: HvSC | J180: RZ | K180: 3 | L180: 5 | M180: No | S180: 178 | T180: At_AtSC_ES_t3_high_B2 | U180: At | V180: AtSC | W180: ES | X180: 3 | Y180: High | Z180: 2 | AA180: Yes | AC180: Hv_NS_RZ_high_B2 | AD180: 346254 | AE180: 55222 | AF180: 82380 | AG180: 208652 | AH180: 15.95% | AI180: 23.79% | AJ180: 60.26%
E181: 179 | F181: At_GC2_LjSC_ES_t3_B1 | G181: At | H181: GC2 | I181: LjSC | J181: ES | K181: 3 | L181: 1 | M181: Yes | S181: 179 | T181: At_AtSC_ES_t3_high_B3 | U181: At | V181: AtSC | W181: ES | X181: 3 | Y181: High | Z181: 3 | AA181: Yes | AC181: Hv_NS_RZ_high_B3 | AD181: 5198123 | AE181: 867553 | AF181: 1279253 | AG181: 3051317 | AH181: 16.69% | AI181: 24.61% | AJ181: 58.70%
E182: 180 | F182: At_GC2_LjSC_ES_t3_B2 | G182: At | H182: GC2 | I182: LjSC | J182: ES | K182: 3 | L182: 2 | M182: Yes | S182: 180 | T182: At_AtSC_ES_t3_high_B4 | U182: At | V182: AtSC | W182: ES | X182: 3 | Y182: High | Z182: 4 | AA182: Yes | AC182: Hv_NS_RZ_high_B4 | AD182: 3552340 | AE182: 606381 | AF182: 883863 | AG182: 2062096 | AH182: 17.07% | AI182: 24.88% | AJ182: 58.05%
E183: 181 | F183: At_GC2_LjSC_ES_t3_B3 | G183: At | H183: GC2 | I183: LjSC | J183: ES | K183: 3 | L183: 3 | M183: No | S183: 181 | T183: Hv_AtSC_RZ_t3_high_B1 | U183: Hv | V183: AtSC | W183: RZ | X183: 3 | Y183: High | Z183: 1 | AA183: Yes | AC183: Hv_NS_RZ_low_B1 | AD183: 1261860 | AE183: 261502 | AF183: 292699 | AG183: 707659 | AH183: 20.72% | AI183: 23.20% | AJ183: 56.08%
E184: 182 | F184: At_GC2_LjSC_ES_t3_B4 | G184: At | H184: GC2 | I184: LjSC | J184: ES | K184: 3 | L184: 4 | M184: Yes | S184: 182 | T184: Hv_AtSC_RZ_t3_high_B2 | U184: Hv | V184: AtSC | W184: RZ | X184: 3 | Y184: High | Z184: 2 | AA184: Yes | AC184: Hv_NS_RZ_low_B2 | AD184: 225774 | AE184: 11339 | AF184: 140179 | AG184: 74256 | AH184: 5.02% | AI184: 62.09% | AJ184: 32.89%
E185: 183 | F185: At_GC2_AtSC_ES_t3_B1 | G185: At | H185: GC2 | I185: AtSC | J185: ES | K185: 3 | L185: 1 | M185: Yes | S185: 183 | T185: Hv_AtSC_RZ_t3_high_B3 | U185: Hv | V185: AtSC | W185: RZ | X185: 3 | Y185: High | Z185: 3 | AA185: Yes | AC185: Hv_NS_RZ_low_B3 | AD185: 346258 | AE185: 29421 | AF185: 193187 | AG185: 123650 | AH185: 8.50% | AI185: 55.79% | AJ185: 35.71%
E186: 184 | F186: At_GC2_AtSC_ES_t3_B2 | G186: At | H186: GC2 | I186: AtSC | J186: ES | K186: 3 | L186: 2 | M186: Yes | S186: 184 | T186: Hv_AtSC_RZ_t3_high_B4 | U186: Hv | V186: AtSC | W186: RZ | X186: 3 | Y186: High | Z186: 4 | AA186: Yes | AC186: Hv_NS_RZ_low_B4 | AD186: 277542 | AE186: 16499 | AF186: 154523 | AG186: 106520 | AH186: 5.94% | AI186: 55.68% | AJ186: 38.38%
E187: 185 | F187: At_GC2_AtSC_ES_t3_B3 | G187: At | H187: GC2 | I187: AtSC | J187: ES | K187: 3 | L187: 3 | M187: Yes | S187: 185 | T187: Hv_AtSC_ES_t3_high_B1 | U187: Hv | V187: AtSC | W187: ES | X187: 3 | Y187: High | Z187: 1 | AA187: Yes | AC187: Hv_SSC_ES_high_B1 | AD187: 1508198 | AE187: 1391129 | AF187: 81911 | AG187: 35158 | AH187: 92.24% | AI187: 5.43% | AJ187: 2.33%
E188: 186 | F188: At_GC2_AtSC_ES_t3_B4 | G188: At | H188: GC2 | I188: AtSC | J188: ES | K188: 3 | L188: 4 | M188: Yes | S188: 186 | T188: Hv_AtSC_ES_t3_high_B2 | U188: Hv | V188: AtSC | W188: ES | X188: 3 | Y188: High | Z188: 2 | AA188: Yes | AC188: Hv_SSC_ES_high_B2 | AD188: 1626561 | AE188: 1507333 | AF188: 88244 | AG188: 30984 | AH188: 92.67% | AI188: 5.43% | AJ188: 1.90%
E189: 187 | F189: At_GC2_AtSC_ES_t3_B5 | G189: At | H189: GC3 | I189: AtSC | J189: ES | K189: 3 | L189: 5 | M189: Yes | S189: 187 | T189: Hv_AtSC_ES_t3_high_B3 | U189: Hv | V189: AtSC | W189: ES | X189: 3 | Y189: High | Z189: 3 | AA189: Yes | AC189: Hv_SSC_ES_high_B3 | AD189: 2128201 | AE189: 1979413 | AF189: 108435 | AG189: 40353 | AH189: 93.01% | AI189: 5.10% | AJ189: 1.90%
E190: 188 | F190: At_GC2_HvSC_ES_t3_B1 | G190: At | H190: GC2 | I190: HvSC | J190: ES | K190: 3 | L190: 1 | M190: Yes | S190: 188 | T190: Hv_AtSC_ES_t3_high_B4 | U190: Hv | V190: AtSC | W190: ES | X190: 3 | Y190: High | Z190: 4 | AA190: Yes | AC190: Hv_SSC_ES_high_B4 | AD190: 1828731 | AE190: 1703310 | AF190: 91725 | AG190: 33696 | AH190: 93.14% | AI190: 5.02% | AJ190: 1.84%
E191: 189 | F191: At_GC2_HvSC_ES_t3_B2 | G191: At | H191: GC2 | I191: HvSC | J191: ES | K191: 3 | L191: 2 | M191: Yes | S191: 189 | T191: NP_AtSC_t3_low_B1 | U191: NP | V191: AtSC | W191: NA | X191: 3 | Y191: Low | Z191: 1 | AA191: Yes | AC191: Hv_SSC_ES_low_B1 | AD191: 8324450 | AE191: 7817422 | AF191: 363848 | AG191: 143180 | AH191: 93.91% | AI191: 4.37% | AJ191: 1.72%
E192: 190 | F192: At_GC2_HvSC_ES_t3_B3 | G192: At | H192: GC2 | I192: HvSC | J192: ES | K192: 3 | L192: 3 | M192: No | S192: 190 | T192: NP_AtSC_t3_low_B2 | U192: NP | V192: AtSC | W192: NA | X192: 3 | Y192: Low | Z192: 2 | AA192: Yes | AC192: Hv_SSC_ES_low_B2 | AD192: 2023431 | AE192: 1869321 | AF192: 114889 | AG192: 39221 | AH192: 92.38% | AI192: 5.68% | AJ192: 1.94%
E193: 191 | F193: At_GC2_HvSC_ES_t3_B4 | G193: At | H193: GC2 | I193: HvSC | J193: ES | K193: 3 | L193: 4 | M193: Yes | S193: 191 | T193: NP_AtSC_t3_low_B3 | U193: NP | V193: AtSC | W193: NA | X193: 3 | Y193: Low | Z193: 3 | AA193: Yes | AC193: Hv_SSC_ES_low_B3 | AD193: 561322 | AE193: 521288 | AF193: 28032 | AG193: 12002 | AH193: 92.87% | AI193: 4.99% | AJ193: 2.14%
E194: 192 | F194: At_GC2_HvSC_ES_t3_B5 | G194: At | H194: GC3 | I194: HvSC | J194: ES | K194: 3 | L194: 5 | M194: Yes | S194: 192 | T194: NP_AtSC_t3_low_B4 | U194: NP | V194: AtSC | W194: NA | X194: 3 | Y194: Low | Z194: 4 | AA194: Yes | AC194: Hv_SSC_ES_low_B4 | AD194: 9743670 | AE194: 8861633 | AF194: 689925 | AG194: 192112 | AH194: 90.95% | AI194: 7.08% | AJ194: 1.97%
E195: 193 | F195: Hv_GC3_RZ_t3_B1 | G195: Hv | H195: GC3 | I195: NS | J195: RZ | K195: 3 | L195: 1 | M195: No | S195: 193 | T195: Lj_AtSC_RZ_t3_low_B1 | U195: Lj | V195: AtSC | W195: RZ | X195: 3 | Y195: Low | Z195: 1 | AA195: Yes | AC195: Hv_SSC_RZ_high_B1 | AD195: 1318282 | AE195: 249514 | AF195: 905209 | AG195: 163559 | AH195: 18.93% | AI195: 68.67% | AJ195: 12.41%
E196: 194 | F196: Hv_GC3_RZ_t3_B2 | G196: Hv | H196: GC3 | I196: NS | J196: RZ | K196: 3 | L196: 2 | M196: No | S196: 194 | T196: Lj_AtSC_RZ_t3_low_B2 | U196: Lj | V196: AtSC | W196: RZ | X196: 3 | Y196: Low | Z196: 2 | AA196: Yes | AC196: Hv_SSC_RZ_high_B2 | AD196: 2108128 | AE196: 425607 | AF196: 1363766 | AG196: =AD196-AE196-AF196 -> 318755 | AH196: =AE196/AD196 -> 20.19% | AI196: =AF196/AD196 -> 64.69% | AJ196: =AG196/AD196 -> 15.12%
E197: 195 | F197: Hv_GC3_LjSC_RZ_t3_B1 | G197: Hv | H197: GC3 | I197: LjSC | J197: RZ | K197: 3 | L197: 1 | M197: No | S197: 195 | T197: Lj_AtSC_RZ_t3_low_B3 | U197: Lj | V197: AtSC | W197: RZ | X197: 3 | Y197: Low | Z197: 3 | AA197: Yes | AC197: Hv_SSC_RZ_high_B3 | AD197: 1615696 | AE197: 287361 | AF197: 1160033 | AG197: 168302 | AH197: 17.79% | AI197: 71.80% | AJ197: 10.42%
E198: 196 | F198: Hv_GC3_LjSC_RZ_t3_B2 | G198: Hv | H198: GC3 | I198: LjSC | J198: RZ | K198: 3 | L198: 2 | M198: No | S198: 196 | T198: Lj_AtSC_RZ_t3_low_B4 | U198: Lj | V198: AtSC | W198: RZ | X198: 3 | Y198: Low | Z198: 4 | AA198: Yes | AC198: Hv_SSC_RZ_high_B4 | AD198: 2417783 | AE198: 321625 | AF198: 1863426 | AG198: 232732 | AH198: 13.30% | AI198: 77.07% | AJ198: 9.63%
E199: 197 | F199: Hv_GC3_LjSC_RZ_t3_B3 | G199: Hv | H199: GC3 | I199: LjSC | J199: RZ | K199: 3 | L199: 3 | M199: No | S199: 197 | T199: Lj_AtSC_ES_t3_low_B1 | U199: Lj | V199: AtSC | W199: ES | X199: 3 | Y199: Low | Z199: 1 | AA199: Yes | AC199: Hv_SSC_RZ_low_B1 | AD199: 271729 | AE199: 41429 | AF199: 176213 | AG199: 54087 | AH199: 15.25% | AI199: 64.85% | AJ199: 19.90%
E200: 198 | F200: Hv_GC3_LjSC_RZ_t3_B4 | G200: Hv | H200: GC3 | I200: LjSC | J200: RZ | K200: 3 | L200: 4 | M200: No | S200: 198 | T200: Lj_AtSC_ES_t3_low_B2 | U200: Lj | V200: AtSC | W200: ES | X200: 3 | Y200: Low | Z200: 2 | AA200: Yes | AC200: Hv_SSC_RZ_low_B2 | AD200: 6551996 | AE200: 1595168 | AF200: 4510281 | AG200: 446547 | AH200: 24.35% | AI200: 68.84% | AJ200: 6.82%
... 246 more rows

Sheet Data_S12
A1: Nutrient media
A3: Reasoner’s 2A medium (Bai et al., 2015)
A4: - Casein acid hydrolysate 0.5 g/L
A5: - Yeast extract 0.5 g/L
A6: - Proteose peptone 0.5 g/L
A7: - Dextrose 0.5 g/L
A8: - Starch 0.5 g/L
A9: - K2PO4 0.3 g/L
A10: - MgSO4 0.024 g/L
A11: - Sodium pyruvate 0.3 g/L
A12: - (Agar) 15 g/L
A13: pH = 7.2
A15: Yeast extract medium (Bai et al., 2015)
A16: - Yeast extract 0.5 g/L
A17: - Mannitol 5 g/L
A18: - K2HPO4 0.5 g/L
A19: - MgSO4 x 7 H2O 0.2 g/L
A20: - NaCl 0.1 g/L
A21: - (Agar) 15 g/L
A22: pH = 7.0
A24: King’s B medium (King, Ward & Raney, 1954)
A25: - Proteose peptone 20 g/L
A26: - Glycerol 10 g/L
A27: - MgSO4 x 7 H2O 1.5 g/L
A28: - KH2PO4 1.2 g/L
A29: - (Agar) 15 g/L
A30: pH = 7.0
A32: Potato dextrose agar (Difco BD Diagnostics,
A33: Franklin Lakes, NJ, USA))
A34: - Potato starch 4 g/L
A35: - Dextrose 20 g/L
A36: - (Agar) 15 g/L
A37: pH = 5.6
A39: Minimal medium + 2mM coumarin (Bai et al.,
A40: 2015)
A41: - NH4Cl 1.62 g/L
A42: - MgSO4 x 7 H2O 0.2 g/L
A43: - K2HPO4 2.4 g/L
A44: - NaH2­PO4 x 2 H2O 1.1 g/L
A45: - Coumarin 292 mg/L
A46: - Na2EDTA x 2 H2O 15 mg/L
A47: - FeSO4 x 7 H2O 3.0 mg/L
A48: - ZnSO4 x 7 H2O 4.5 mg/L
A49: - CoCl2 x 6 H2O 3.0 mg/L
A50: - MnCl2 0.64 mg/L
A51: - H3BO3 1.0 mg/L
A52: - Na2MoO4 x 2 H2O 0.4 mg/L
A53: - CuSO4 x 5 H2O 0.3 mg/L
A54: - CaCl2 x 2 H2O 3.0 mg/L
A55: - (Agar) 15 g/L
A56: pH = 7.1
A58: Tryptic soy agar (Difco)
A59: - Digested casein 17 g/L
A60: - Digested soybean 3 g/L
A61: - Dextrose 2.5 g/L
A62: - NaCl 5 g/L
A63: - K2PO4 2.5 g/L
A64: - (Agar) 15g/L
A65: pH = 7.3
A67: Murashige & Skoog medium (Duchefa, Haarlem,
A68: The Netherlands) (Murashige and Skoog, 1962)
A69: - MES salts 0.5 g/L
A70: - Sucrose 5 g/L
A71: - MS medium 4.4 g/L
A72: - (Agar) 12 g/L
A73: pH = 5.7
A75: Original Hoagland medium - High nutrient solution
A77: Ca(NO3)2 472.3 mg/L
A78: KNO3 505.55 mg/L
A79: MgSO4.7H2O 492.96 mg/L
A80: KH2PO4 340.22 mg/L
A81: Fe-EDTA 18.35 mg/L
A82: NaCl 0.58 mg/L
A83: H3BO3 1,55 mg/L
A84: MnSO4+H2O 0,8451 mg/L
A85: CuSO4+5H2O 62,4225 µg/L
A86: ZnSO4+7H2O 143,78 µg/L
A87: Na2MoO4+2H2O 48.39 µg/L
A88: pH = 5.5
A90: Long Ashton medium - Low nutrient solution
A92: MgSO4+7H2O 184,85 mg/L
A93: K2SO4 174,26 mg/L
A94: CaCl2+2H2O 294,02 mg/L
A95: Na2HPO4+2H2O 178 mg/L
A96: NaNO3 85 mg/L
A97: Fe-EDTA 9,18 mg/L
A98: H3BO3 1,55 mg/L
A99: MnSO4+H2O 0,8451 mg/L
A100: CuSO4+5H2O 62,4225 µg/L
A101: ZnSO4+7H2O 143,78 µg/L
A102: Na2MoO4+2H2O 48.39 µg/L
A104: pH = 6.2
A106: Modified Long Ashton medium - High nutrient solution
A108: Ca(NO3)2 472.3 mg/L
A109: KNO3 505.55 mg/L
A110: MgSO4.7H2O 492.96 mg/L
A111: KH2PO4 340.22 mg/L
A112: Fe-EDTA 18.35 mg/L
A113: NaCl 0.58 mg/L
A114: H3BO3 1,55 mg/L
A115: MnSO4+H2O 0,8451 mg/L
A116: CuSO4+5H2O 62,4225 µg/L
A117: ZnSO4+7H2O 143,78 µg/L
A118: Na2MoO4+2H2O 48.39 µg/L
A120: pH = 6.2

Sheet Data_S13
A1: Shoot weights | U1: Lotus nodule counts
A2: Sample | B2: Shoot weight | U2: Sample | V2: replicate | W2: Pink | X2: White | Y2: Total
A3: Lj_SSC_S_High_1 | B3: 0.0635 | C3: 0.0448 | D3: 0.0517 | E3: 0.0411 | F3: 0.0452 | G3: 0.0619 | H3: 0.1138 | I3: 0.0744 | J3: 0.0472 | U3: Lj_SSC_NOD_High | V3: 1 | W3: 0 | X3: 4 | Y3: 4
A4: Lj_SSC_S_High_2 | B4: 0.0759 | C4: 0.0745 | D4: 0.1107 | E4: 0.1153 | F4: 0.0592 | G4: 0.0654 | H4: 0.0463 | I4: 0.0866 | J4: 0.0685 | U4: Lj_SSC_NOD_High | V4: 1 | W4: 2 | X4: 0 | Y4: 2
A5: Lj_SSC_S_High_3 | B5: 0.0701 | C5: 0.0626 | D5: 0.0591 | E5: 0.0758 | F5: 0.0582 | G5: 0.0444 | H5: 0.0458 | I5: 0.0948 | J5: 0.0383 | U5: Lj_SSC_NOD_High | V5: 1 | W5: 1 | X5: 8 | Y5: 9
A6: Lj_SSC_S_High_4 | B6: 0.085 | C6: 0.0751 | D6: 0.08 | E6: 0.0417 | F6: 0.105 | G6: 0.0479 | H6: 0.0707 | I6: 0.0437 | J6: 0.0613 | U6: Lj_SSC_NOD_High | V6: 1 | W6: 0 | X6: 5 | Y6: 5
A7: At_SSC_S_High_1 | B7: 0.0043 | C7: 0.0064 | D7: 0.0103 | E7: 0.0113 | F7: 0.011 | G7: 0.0026 | H7: 0.0177 | U7: Lj_SSC_NOD_High | V7: 1 | W7: 0 | X7: 5 | Y7: 5
A8: At_SSC_S_High_2 | B8: 0.0135 | C8: 0.0137 | D8: 0.0057 | E8: 0.0114 | F8: 0.0155 | G8: 0.0129 | H8: 0.0143 | I8: 0.0137 | J8: 0.017 | K8: 0.0115 | U8: Lj_SSC_NOD_High | V8: 1 | W8: 6 | X8: 3 | Y8: 9
A9: At_SSC_S_High_3 | B9: 0.0108 | C9: 0.0105 | D9: 0.0158 | E9: 0.0111 | F9: 0.0076 | G9: 0.0085 | H9: 0.0085 | I9: 0.012 | J9: 0.0042 | U9: Lj_SSC_NOD_High | V9: 1 | W9: 4 | X9: 0 | Y9: 4
A10: At_SSC_S_High_4 | B10: 0.0111 | C10: 0.0129 | D10: 0.0095 | E10: 0.0079 | F10: 0.0084 | G10: 0.0069 | H10: 0.0073 | I10: 0.0073 | U10: Lj_SSC_NOD_High | V10: 1 | W10: 1 | X10: 0 | Y10: 1
A11: Hv_SSC_S_High_1 | B11: 6.342 | U11: Lj_SSC_NOD_High | V11: 2 | W11: 2 | X11: 1 | Y11: 3
A12: Hv_SSC_S_High_2 | B12: 4.1332 | U12: Lj_SSC_NOD_High | V12: 2 | W12: 1 | X12: 1 | Y12: 2
A13: Hv_SSC_S_High_3 | B13: 4.2825 | C13: 4.5544 | U13: Lj_SSC_NOD_High | V13: 2 | W13: 0 | X13: 2 | Y13: 2
A14: Hv_SSC_S_High_4 | B14: 3.4802 | C14: 4.7792 | U14: Lj_SSC_NOD_High | V14: 2 | W14: 4 | X14: 4 | Y14: 8
A15: Lj_SSC_S_Low_1 | B15: 0.0296 | C15: 0.0081 | D15: 0.0463 | E15: 0.0381 | F15: 0.0251 | G15: 0.0319 | H15: 0.0307 | I15: 0.0411 | J15: 0.0408 | U15: Lj_SSC_NOD_High | V15: 2 | W15: 0 | X15: 5 | Y15: 5
A16: Lj_SSC_S_Low_2 | B16: 0.0283 | C16: 0.0273 | D16: 0.0264 | E16: 0.0327 | F16: 0.0304 | G16: 0.0275 | H16: 0.0347 | I16: 0.0187 | J16: 0.0312 | U16: Lj_SSC_NOD_High | V16: 2 | W16: 5 | X16: 1 | Y16: 6
A17: Lj_SSC_S_Low_3 | B17: 0.036 | C17: 0.0354 | D17: 0.0319 | E17: 0.0374 | F17: 0.0299 | G17: 0.0271 | H17: 0.0365 | I17: 0.0297 | J17: 0.0114 | U17: Lj_SSC_NOD_High | V17: 2 | W17: 5 | X17: 5 | Y17: 10
A18: Lj_SSC_S_Low_4 | B18: 0.0332 | C18: 0.0349 | D18: 0.023 | E18: 0.0468 | F18: 0.0297 | G18: 0.0318 | H18: 0.0421 | I18: 0.0304 | J18: 0.0181 | U18: Lj_SSC_NOD_High | V18: 2 | W18: 0 | X18: 2 | Y18: 2
A19: At_SSC_S_Low_1 | B19: 0.0153 | C19: 0.011 | D19: 0.0113 | E19: 0.0149 | F19: 0.04 | G19: 0.0095 | H19: 0.0131 | I19: 0.0126 | J19: 0.0096 | K19: 0.0123 | U19: Lj_SSC_NOD_High | V19: 3 | W19: 1 | X19: 3 | Y19: 4
A20: At_SSC_S_Low_2 | B20: 0.0112 | C20: 0.0134 | D20: 0.0105 | E20: 0.0165 | F20: 0.0093 | G20: 0.0083 | H20: 0.0122 | I20: 0.016 | J20: 0.0197 | K20: 0.0162 | U20: Lj_SSC_NOD_High | V20: 3 | W20: 3 | X20: 3 | Y20: 6
A21: At_SSC_S_Low_3 | B21: 0.0135 | C21: 0.0144 | D21: 0.0156 | E21: 0.0138 | F21: 0.0112 | G21: 0.0157 | H21: 0.0132 | I21: 0.0051 | J21: 0.0122 | K21: 0.0105 | U21: Lj_SSC_NOD_High | V21: 3 | W21: 2 | X21: 2 | Y21: 4
A22: At_SSC_S_Low_4 | B22: 0.0108 | C22: 0.0107 | D22: 0.0134 | E22: 0.0062 | F22: 0.0094 | G22: 0.0093 | H22: 0.0095 | I22: 0.0154 | J22: 0.0105 | K22: 0.0157 | U22: Lj_SSC_NOD_High | V22: 3 | W22: 3 | X22: 1 | Y22: 4
A23: Hv_SSC_S_Low_1 | B23: 0.7336 | U23: Lj_SSC_NOD_High | V23: 3 | W23: 0 | X23: 2 | Y23: 2
A24: Hv_SSC_S_Low_2 | B24: 0.8027 | U24: Lj_SSC_NOD_High | V24: 3 | W24: 0 | X24: 3 | Y24: 3
A25: Hv_SSC_S_Low_3 | B25: 0.9368 | C25: 0.8198 | U25: Lj_SSC_NOD_High | V25: 3 | W25: 3 | X25: 5 | Y25: 8
A26: Hv_SSC_S_Low_4 | B26: 0.8994 | C26: 1.0667 | U26: Lj_SSC_NOD_High | V26: 3 | W26: 0 | X26: 1 | Y26: 1
A27: Lj_LjSC_S_High_1 | B27: 0.0912 | C27: 0.0831 | D27: 0.0317 | E27: 0.0269 | F27: 0.0453 | G27: 0.0365 | H27: 0.0566 | I27: 0.05 | U27: Lj_SSC_NOD_High | V27: 4 | W27: 4 | X27: 1 | Y27: 5
A28: Lj_LjSC_S_High_2 | B28: 0.0473 | C28: 0.0594 | D28: 0.0513 | E28: 0.0547 | F28: 0.0564 | G28: 0.0967 | H28: 0.0792 | I28: 0.0421 | J28: 0.0614 | U28: Lj_SSC_NOD_High | V28: 4 | W28: 3 | X28: 3 | Y28: 6
A29: Lj_LjSC_S_High_3 | B29: 0.0211 | C29: 0.0679 | D29: 0.0512 | E29: 0.0558 | F29: 0.0371 | G29: 0.0687 | H29: 0.0877 | I29: 0.0529 | J29: 0.0583 | U29: Lj_SSC_NOD_High | V29: 4 | W29: 1 | X29: 6 | Y29: 7
A30: Lj_LjSC_S_High_4 | B30: 0.0364 | C30: 0.0552 | D30: 0.0306 | E30: 0.0419 | F30: 0.064 | G30: 0.0427 | H30: 0.0535 | I30: 0.0538 | J30: 0.0512 | U30: Lj_SSC_NOD_High | V30: 4 | W30: 7 | X30: 3 | Y30: 10
A31: At_LjSC_S_High_1 | B31: 0.0045 | C31: 0.0085 | D31: 0.0081 | E31: 0.0119 | F31: 0.0062 | G31: 0.0081 | H31: 0.0157 | I31: 0.0085 | J31: 0.0138 | U31: Lj_SSC_NOD_High | V31: 4 | W31: 8 | X31: 2 | Y31: 10
A32: At_LjSC_S_High_2 | B32: 0.0074 | C32: 0.0121 | D32: 0.0152 | E32: 0.0115 | F32: 0.0128 | G32: 0.0157 | H32: 0.0134 | I32: 0.0059 | J32: 0.0049 | U32: Lj_SSC_NOD_High | V32: 4 | W32: 0 | X32: 2 | Y32: 2
A33: At_LjSC_S_High_3 | B33: 0.0082 | C33: 0.0087 | D33: 0.0056 | E33: 0.0139 | F33: 0.0061 | G33: 0.0108 | H33: 0.0099 | I33: 0.0091 | J33: 0.0125 | U33: Lj_SSC_NOD_High | V33: 4 | W33: 4 | X33: 3 | Y33: 7
A34: At_LjSC_S_High_4 | B34: 0.0053 | C34: 0.0133 | D34: 0.0134 | E34: 0.0102 | F34: 0.0078 | G34: 0.0138 | H34: 0.0191 | I34: 0.0129 | U34: Lj_SSC_NOD_High | V34: 4 | W34: 2 | X34: 0 | Y34: 2
A35: Hv_LjSC_S_High_1 | B35: 3.4701 | U35: Lj_SSC_NOD_High | V35: 4 | W35: 0 | X35: 1 | Y35: 1
A36: Hv_LjSC_S_High_2 | B36: 3.2055 | U36: Lj_SSC_NOD_Low | V36: 1 | W36: 6 | X36: 1 | Y36: 7
A37: Hv_LjSC_S_High_3 | B37: 5.0834 | C37: 4.6728 | U37: Lj_SSC_NOD_Low | V37: 1 | W37: 10 | X37: 3 | Y37: 13
A38: Hv_LjSC_S_High_4 | B38: 3.1196 | C38: 4.9222 | U38: Lj_SSC_NOD_Low | V38: 1 | W38: 7 | X38: 7 | Y38: 14
A39: Lj_LjSC_S_Low_1 | B39: 0.0587 | C39: 0.0333 | D39: 0.034 | E39: 0.0241 | F39: 0.0258 | G39: 0.0421 | H39: 0.0381 | I39: 0.0162 | J39: 0.0347 | U39: Lj_SSC_NOD_Low | V39: 1 | W39: 8 | X39: 0 | Y39: 8
A40: Lj_LjSC_S_Low_2 | B40: 0.0383 | C40: 0.0201 | D40: 0.0185 | E40: 0.0142 | F40: 0.0191 | G40: 0.0259 | H40: 0.0196 | I40: 0.0207 | U40: Lj_SSC_NOD_Low | V40: 1 | W40: 6 | X40: 0 | Y40: 6
A41: Lj_LjSC_S_Low_3 | B41: 0.0248 | C41: 0.0331 | D41: 0.0126 | E41: 0.0168 | F41: 0.0173 | G41: 0.0275 | H41: 0.0329 | I41: 0.0245 | J41: 0.0231 | U41: Lj_SSC_NOD_Low | V41: 1 | W41: 6 | X41: 1 | Y41: 7
A42: Lj_LjSC_S_Low_4 | B42: 0.0282 | C42: 0.0321 | D42: 0.0353 | E42: 0.0269 | F42: 0.0359 | G42: 0.0538 | H42: 0.0281 | I42: 0.0577 | U42: Lj_SSC_NOD_Low | V42: 1 | W42: 4 | X42: 3 | Y42: 7
A43: At_LjSC_S_Low_1 | B43: 0.0154 | C43: 0.0152 | D43: 0.0124 | E43: 0.0113 | F43: 0.0188 | G43: 0.0079 | H43: 0.0112 | I43: 0.0096 | J43: 0.0101 | K43: 0.0185 | U43: Lj_SSC_NOD_Low | V43: 1 | W43: 5 | X43: 0 | Y43: 5
A44: At_LjSC_S_Low_2 | B44: 0.0081 | C44: 0.0099 | D44: 0.0185 | E44: 0.0076 | F44: 0.0062 | G44: 0.0041 | H44: 0.0128 | I44: 0.0077 | J44: 0.0081 | K44: 0.0041 | U44: Lj_SSC_NOD_Low | V44: 1 | W44: 4 | X44: 0 | Y44: 4
A45: At_LjSC_S_Low_3 | B45: 0.0081 | C45: 0.0089 | D45: 0.0103 | E45: 0.0048 | F45: 0.0192 | G45: 0.0063 | H45: 0.0071 | I45: 0.0059 | J45: 0.0074 | K45: 0.0062 | U45: Lj_SSC_NOD_Low | V45: 2 | W45: 4 | X45: 0 | Y45: 4
A46: At_LjSC_S_Low_4 | B46: 0.0106 | C46: 0.0186 | D46: 0.0078 | E46: 0.0098 | F46: 0.0062 | G46: 0.0084 | H46: 0.0064 | I46: 0.0093 | J46: 0.0058 | K46: 0.0099 | U46: Lj_SSC_NOD_Low | V46: 2 | W46: 1 | X46: 4 | Y46: 5
A47: Hv_LjSC_S_Low_1 | B47: 0.9428 | U47: Lj_SSC_NOD_Low | V47: 2 | W47: 4 | X47: 0 | Y47: 4
A48: Hv_LjSC_S_Low_2 | B48: 0.8173 | U48: Lj_SSC_NOD_Low | V48: 2 | W48: 4 | X48: 0 | Y48: 4
A49: Hv_LjSC_S_Low_3 | B49: 0.7076 | C49: 1.3548 | U49: Lj_SSC_NOD_Low | V49: 2 | W49: 7 | X49: 0 | Y49: 7
A50: Hv_LjSC_S_Low_4 | B50: 0.7874 | C50: 1.0331 | U50: Lj_SSC_NOD_Low | V50: 2 | W50: 6 | X50: 0 | Y50: 6
A51: Lj_AtSC_S_High_1 | B51: 0.0451 | C51: 0.0727 | D51: 0.0351 | E51: 0.1571 | F51: 0.1155 | G51: 0.1095 | H51: 0.1238 | I51: 0.0549 | J51: 0.0489 | U51: Lj_SSC_NOD_Low | V51: 2 | W51: 5 | X51: 1 | Y51: 6
A52: Lj_AtSC_S_High_2 | B52: 0.0634 | C52: 0.0712 | D52: 0.0437 | E52: 0.0987 | F52: 0.043 | G52: 0.0381 | H52: 0.0567 | I52: 0.1058 | J52: 0.0679 | U52: Lj_SSC_NOD_Low | V52: 2 | W52: 3 | X52: 0 | Y52: 3
A53: Lj_AtSC_S_High_3 | B53: 0.0552 | C53: 0.0685 | D53: 0.0477 | E53: 0.0363 | F53: 0.1432 | G53: 0.1014 | H53: 0.0427 | I53: 0.0678 | J53: 0.0816 | U53: Lj_SSC_NOD_Low | V53: 2 | W53: 4 | X53: 1 | Y53: 5
A54: Lj_AtSC_S_High_4 | B54: 0.1254 | C54: 0.0935 | D54: 0.0927 | E54: 0.1246 | F54: 0.1008 | G54: 0.0797 | H54: 0.0701 | I54: 0.089 | J54: 0.1128 | U54: Lj_SSC_NOD_Low | V54: 3 | W54: 10 | X54: 0 | Y54: 10
A55: At_AtSC_S_High_1 | B55: 0.0123 | C55: 0.0078 | D55: 0.0153 | E55: 0.0125 | F55: 0.0124 | G55: 0.0116 | H55: 0.0113 | I55: 0.0195 | J55: 0.0197 | K55: 0.0209 | U55: Lj_SSC_NOD_Low | V55: 3 | W55: 5 | X55: 1 | Y55: 6
A56: At_AtSC_S_High_2 | B56: 0.0171 | C56: 0.0075 | D56: 0.0083 | E56: 0.0064 | F56: 0.0062 | G56: 0.0134 | H56: 0.0169 | I56: 0.0231 | J56: 0.0113 | K56: 0.0157 | U56: Lj_SSC_NOD_Low | V56: 3 | W56: 4 | X56: 0 | Y56: 4
A57: At_AtSC_S_High_3 | B57: 0.0222 | C57: 0.0052 | D57: 0.0149 | E57: 0.0134 | F57: 0.0088 | G57: 0.004 | H57: 0.0124 | I57: 0.0118 | J57: 0.0207 | U57: Lj_SSC_NOD_Low | V57: 3 | W57: 0 | X57: 0 | Y57: 0
A58: At_AtSC_S_High_4 | B58: 0.0267 | C58: 0.0069 | D58: 0.0054 | E58: 0.0049 | F58: 0.0095 | G58: 0.0079 | H58: 0.0093 | I58: 0.0118 | J58: 0.0142 | K58: 0.0231 | U58: Lj_SSC_NOD_Low | V58: 3 | W58: 9 | X58: 2 | Y58: 11
A59: Hv_AtSC_S_High_1 | B59: 4.0383 | U59: Lj_SSC_NOD_Low | V59: 3 | W59: 5 | X59: 1 | Y59: 6
A60: Hv_AtSC_S_High_2 | B60: 3.995 | U60: Lj_SSC_NOD_Low | V60: 3 | W60: 4 | X60: 0 | Y60: 4
A61: Hv_AtSC_S_High_3 | B61: 3.8714 | C61: 3.8132 | U61: Lj_SSC_NOD_Low | V61: 4 | W61: 2 | X61: 1 | Y61: 3
A62: Hv_AtSC_S_High_4 | B62: 3.3505 | C62: 3.9113 | U62: Lj_SSC_NOD_Low | V62: 4 | W62: 9 | X62: 1 | Y62: 10
A63: Lj_AtSC_S_Low_1 | B63: 0.0423 | C63: 0.0432 | D63: 0.0372 | E63: 0.0255 | F63: 0.0455 | G63: 0.035 | H63: 0.0242 | I63: 0.0482 | J63: 0.0187 | U63: Lj_SSC_NOD_Low | V63: 4 | W63: 5 | X63: 1 | Y63: 6
A64: Lj_AtSC_S_Low_2 | B64: 0.0392 | C64: 0.0293 | D64: 0.0517 | E64: 0.0571 | F64: 0.0451 | G64: 0.0382 | H64: 0.0262 | I64: 0.0319 | J64: 0.0466 | U64: Lj_SSC_NOD_Low | V64: 4 | W64: 3 | X64: 1 | Y64: 4
A65: Lj_AtSC_S_Low_3 | B65: 0.0531 | C65: 0.0182 | D65: 0.0486 | E65: 0.0379 | F65: 0.0287 | G65: 0.0503 | H65: 0.0304 | I65: 0.0349 | J65: 0.0454 | U65: Lj_SSC_NOD_Low | V65: 4 | W65: 8 | X65: 0 | Y65: 8
A66: Lj_AtSC_S_Low_4 | B66: 0.0385 | C66: 0.0461 | D66: 0.0554 | E66: 0.0556 | F66: 0.036 | G66: 0.0439 | H66: 0.0284 | I66: 0.0336 | J66: 0.0275 | U66: Lj_SSC_NOD_Low | V66: 4 | W66: 5 | X66: 1 | Y66: 6
A67: At_AtSC_S_Low_1 | B67: 0.0127 | C67: 0.0092 | D67: 0.0142 | E67: 0.0127 | F67: 0.0115 | G67: 0.0145 | H67: 0.0131 | I67: 0.0183 | J67: 0.0125 | K67: 0.0113 | U67: Lj_SSC_NOD_Low | V67: 4 | W67: 4 | X67: 1 | Y67: 5
A68: At_AtSC_S_Low_2 | B68: 0.0137 | C68: 0.0108 | D68: 0.0104 | E68: 0.0083 | F68: 0.0109 | G68: 0.0105 | H68: 0.0093 | I68: 0.0151 | J68: 0.0091 | K68: 0.0116 | U68: Lj_SSC_NOD_Low | V68: 4 | W68: 5 | X68: 0 | Y68: 5
A69: At_AtSC_S_Low_3 | B69: 0.0157 | C69: 0.0182 | D69: 0.0088 | E69: 0.0162 | F69: 0.0123 | G69: 0.0217 | H69: 0.0133 | I69: 0.0097 | J69: 0.0126 | K69: 0.0188 | U69: Lj_SSC_NOD_Low | V69: 4 | W69: 3 | X69: 2 | Y69: 5
A70: At_AtSC_S_Low_4 | B70: 0.0236 | C70: 0.0093 | D70: 0.0122 | E70: 0.0103 | F70: 0.0162 | G70: 0.0269 | H70: 0.0121 | I70: 0.0148 | J70: 0.0196 | K70: 0.0137 | U70: Lj_LjSC_NOD_High | V70: 1 | W70: 4 | X70: 6 | Y70: 10
A71: Hv_AtSC_S_Low_1 | B71: 0.7403 | U71: Lj_LjSC_NOD_High | V71: 1 | W71: 0 | X71: 0 | Y71: 0
A72: Hv_AtSC_S_Low_2 | B72: 0.7971 | U72: Lj_LjSC_NOD_High | V72: 1 | W72: 1 | X72: 0 | Y72: 1
A73: Hv_AtSC_S_Low_3 | B73: 0.8429 | C73: 0.9564 | U73: Lj_LjSC_NOD_High | V73: 1 | W73: 0 | X73: 2 | Y73: 2
A74: Hv_AtSC_S_Low_4 | B74: 0.9353 | C74: 0.911 | U74: Lj_LjSC_NOD_High | V74: 1 | W74: 3 | X74: 6 | Y74: 9
A75: Lj_HvSC_S_High_1 | B75: 0.0632 | C75: 0.0614 | D75: 0.0754 | E75: 0.0545 | F75: 0.0799 | G75: 0.0587 | H75: 0.0757 | I75: 0.0346 | J75: 0.0675 | K75: 0.0717 | U75: Lj_LjSC_NOD_High | V75: 1 | W75: 0 | X75: 2 | Y75: 2
A76: Lj_HvSC_S_High_2 | B76: 0.0971 | C76: 0.0742 | D76: 0.0575 | E76: 0.076 | F76: 0.0765 | G76: 0.0822 | H76: 0.0578 | I76: 0.0434 | J76: 0.0798 | U76: Lj_LjSC_NOD_High | V76: 1 | W76: 0 | X76: 2 | Y76: 2
A77: Lj_HvSC_S_High_3 | B77: 0.0585 | C77: 0.0947 | D77: 0.0348 | E77: 0.0508 | F77: 0.0815 | G77: 0.1052 | H77: 0.0168 | I77: 0.0797 | J77: 0.0861 | U77: Lj_LjSC_NOD_High | V77: 1 | W77: 2 | X77: 2 | Y77: 4
A78: Lj_HvSC_S_High_4 | B78: 0.1007 | C78: 0.1004 | D78: 0.0642 | E78: 0.1008 | F78: 0.0566 | G78: 0.0819 | H78: 0.0936 | I78: 0.0699 | J78: 0.041 | U78: Lj_LjSC_NOD_High | V78: 2 | W78: 5 | X78: 1 | Y78: 6
A79: At_HvSC_S_High_1 | B79: 0.0064 | C79: 0.0093 | D79: 0.0072 | E79: 0.0079 | F79: 0.0133 | G79: 0.00122 | H79: 0.0192 | I79: 0.0182 | U79: Lj_LjSC_NOD_High | V79: 2 | W79: 4 | X79: 4 | Y79: 8
A80: At_HvSC_S_High_2 | B80: 0.0077 | C80: 0.0059 | D80: 0.0098 | E80: 0.0077 | F80: 0.0088 | G80: 0.0154 | H80: 0.0097 | I80: 0.0075 | J80: 0.0109 | K80: 0.0102 | U80: Lj_LjSC_NOD_High | V80: 2 | W80: 3 | X80: 5 | Y80: 8
A81: At_HvSC_S_High_3 | B81: 0.0067 | C81: 0.0072 | D81: 0.0077 | E81: 0.0127 | F81: 0.0146 | G81: 0.0163 | H81: 0.0097 | I81: 0.0162 | J81: 0.012 | K81: 0.0083 | U81: Lj_LjSC_NOD_High | V81: 2 | W81: 2 | X81: 5 | Y81: 7
A82: At_HvSC_S_High_4 | B82: 0.0102 | C82: 0.0093 | D82: 0.0171 | E82: 0.0132 | F82: 0.0157 | G82: 0.0169 | H82: 0.0125 | I82: 0.0107 | J82: 0.0096 | K82: 0.0249 | U82: Lj_LjSC_NOD_High | V82: 2 | W82: 5 | X82: 0 | Y82: 5
A83: Hv_HvSC_S_High_1 | B83: 3.6185 | U83: Lj_LjSC_NOD_High | V83: 2 | W83: 1 | X83: 3 | Y83: 4
A84: Hv_HvSC_S_High_2 | B84: 4.0424 | U84: Lj_LjSC_NOD_High | V84: 2 | W84: 5 | X84: 2 | Y84: 7
A85: Hv_HvSC_S_High_3 | B85: 4.2275 | C85: 3.8955 | U85: Lj_LjSC_NOD_High | V85: 2 | W85: 8 | X85: 9 | Y85: 17
A86: Hv_HvSC_S_High_4 | B86: 4.4954 | C86: 3.3148 | U86: Lj_LjSC_NOD_High | V86: 2 | W86: 2 | X86: 0 | Y86: 2
A87: Lj_HvSC_S_Low_1 | B87: 0.0398 | C87: 0.0375 | D87: 0.0441 | E87: 0.0338 | F87: 0.0245 | G87: 0.0358 | H87: 0.0257 | I87: 0.0398 | J87: 0.0445 | U87: Lj_LjSC_NOD_High | V87: 3 | W87: 0 | X87: 3 | Y87: 3
A88: Lj_HvSC_S_Low_2 | B88: 0.0303 | C88: 0.0247 | D88: 0.0125 | E88: 0.0229 | F88: 0.0218 | G88: 0.0255 | H88: 0.0189 | I88: 0.0182 | J88: 0.0257 | U88: Lj_LjSC_NOD_High | V88: 3 | W88: 0 | X88: 3 | Y88: 3
A89: Lj_HvSC_S_Low_3 | B89: 0.0255 | C89: 0.0215 | D89: 0.0263 | E89: 0.0206 | F89: 0.0202 | G89: 0.0294 | H89: 0.0337 | I89: 0.0207 | J89: 0.0268 | U89: Lj_LjSC_NOD_High | V89: 3 | W89: 0 | X89: 2 | Y89: 2
A90: Lj_HvSC_S_Low_4 | B90: 0.0309 | C90: 0.02 | D90: 0.0284 | E90: 0.0305 | F90: 0.0247 | G90: 0.0331 | H90: 0.031 | I90: 0.0247 | J90: 0.0285 | U90: Lj_LjSC_NOD_High | V90: 3 | W90: 1 | X90: 8 | Y90: 9
A91: At_HvSC_S_Low_1 | B91: 0.0185 | C91: 0.0128 | D91: 0.011 | E91: 0.0135 | F91: 0.0058 | G91: 0.0108 | H91: 0.0123 | I91: 0.0058 | J91: 0.0092 | K91: 0.0163 | U91: Lj_LjSC_NOD_High | V91: 3 | W91: 2 | X91: 5 | Y91: 7
A92: At_HvSC_S_Low_2 | B92: 0.0082 | C92: 0.0067 | D92: 0.0171 | E92: 0.012 | F92: 0.0174 | G92: 0.0126 | H92: 0.014 | I92: 0.0174 | J92: 0.0183 | K92: 0.0108 | U92: Lj_LjSC_NOD_High | V92: 3 | W92: 0 | X92: 3 | Y92: 3
A93: At_HvSC_S_Low_3 | B93: 0.0155 | C93: 0.0276 | D93: 0.0105 | E93: 0.0119 | F93: 0.0117 | G93: 0.009 | H93: 0.0124 | I93: 0.0264 | J93: 0.0276 | K93: 0.0134 | U93: Lj_LjSC_NOD_High | V93: 4 | W93: 3 | X93: 1 | Y93: 4
A94: At_HvSC_S_Low_4 | B94: 0.0063 | C94: 0.0067 | D94: 0.0131 | E94: 0.0094 | F94: 0.0124 | G94: 0.0085 | H94: 0.0231 | I94: 0.0096 | J94: 0.0094 | K94: 0.0134 | U94: Lj_LjSC_NOD_High | V94: 4 | W94: 4 | X94: 6 | Y94: 10
A95: Hv_HvSC_S_Low_1 | B95: 0.9772 | U95: Lj_LjSC_NOD_High | V95: 4 | W95: 3 | X95: 4 | Y95: 7
A96: Hv_HvSC_S_Low_2 | B96: 0.7685 | U96: Lj_LjSC_NOD_High | V96: 4 | W96: 1 | X96: 4 | Y96: 5
A97: Hv_HvSC_S_Low_3 | B97: 0.7023 | C97: 0.6925 | U97: Lj_LjSC_NOD_High | V97: 4 | W97: 1 | X97: 4 | Y97: 5
A98: Hv_HvSC_S_Low_4 | B98: 0.7484 | C98: 0.9737 | U98: Lj_LjSC_NOD_High | V98: 4 | W98: 0 | X98: 1 | Y98: 1
A99: Lj_NS_S_High_1 | B99: 0.1373 | C99: 0.0432 | D99: 0.1009 | E99: 0.0714 | F99: 0.0492 | G99: 0.0803 | H99: 0.0526 | I99: 0.0986 | J99: 0.0785 | U99: Lj_LjSC_NOD_High | V99: 4 | W99: 4 | X99: 4 | Y99: 8
A100: Lj_NS_S_High_2 | B100: 0.0625 | C100: 0.057 | D100: 0.0291 | E100: 0.0347 | F100: 0.0337 | G100: 0.0382 | H100: 0.0734 | I100: 0.0546 | J100: 0.06 | U100: Lj_LjSC_NOD_Low | V100: 1 | W100: 1 | X100: 0 | Y100: 1
A101: Lj_NS_S_High_3 | B101: 0.0732 | C101: 0.0881 | D101: 0.1045 | E101: 0.0776 | F101: 0.1109 | G101: 0.0514 | H101: 0.0486 | I101: 0.047 | U101: Lj_LjSC_NOD_Low | V101: 1 | W101: 3 | X101: 0 | Y101: 3
A102: Lj_NS_S_High_4 | B102: 0.112 | C102: 0.0894 | D102: 0.1085 | E102: 0.0903 | F102: 0.0793 | G102: 0.0597 | H102: 0.0691 | I102: 0.0657 | J102: 0.0677 | U102: Lj_LjSC_NOD_Low | V102: 1 | W102: 1 | X102: 3 | Y102: 4
A103: At_NS_S_High_1 | B103: 0.0121 | C103: 0.0134 | D103: 0.0056 | E103: 0.0081 | F103: 0.0107 | G103: 0.0105 | H103: 0.0149 | I103: 0.0172 | J103: 0.0071 | U103: Lj_LjSC_NOD_Low | V103: 1 | W103: 5 | X103: 1 | Y103: 6
A104: At_NS_S_High_2 | B104: 0.0047 | C104: 0.0129 | D104: 0.009 | E104: 0.0102 | F104: 0.0127 | G104: 0.0149 | H104: 0.0061 | I104: 0.0141 | U104: Lj_LjSC_NOD_Low | V104: 1 | W104: 4 | X104: 0 | Y104: 4
A105: At_NS_S_High_3 | B105: 0.0118 | C105: 0.0104 | D105: 0.0073 | E105: 0.0129 | F105: 0.0112 | G105: 0.0081 | H105: 0.0086 | I105: 0.0115 | J105: 0.0169 | K105: 0.0179 | U105: Lj_LjSC_NOD_Low | V105: 1 | W105: 3 | X105: 0 | Y105: 3
A106: At_NS_S_High_4 | B106: 0.0122 | C106: 0.0141 | D106: 0.0187 | E106: 0.0137 | F106: 0.0139 | G106: 0.0208 | H106: 0.0114 | I106: 0.0138 | J106: 0.014 | U106: Lj_LjSC_NOD_Low | V106: 1 | W106: 6 | X106: 0 | Y106: 6
A107: Hv_NS_S_High_1 | B107: 3.626 | U107: Lj_LjSC_NOD_Low | V107: 1 | W107: 1 | X107: 0 | Y107: 1
A108: Hv_NS_S_High_2 | B108: 3.4726 | U108: Lj_LjSC_NOD_Low | V108: 1 | W108: 6 | X108: 1 | Y108: 7
A109: Hv_NS_S_High_3 | B109: 4.4536 | C109: 4.2802 | U109: Lj_LjSC_NOD_Low | V109: 2 | W109: 5 | X109: 1 | Y109: 6
A110: Hv_NS_S_High_4 | B110: 4.2811 | C110: 3.7595 | U110: Lj_LjSC_NOD_Low | V110: 2 | W110: 7 | X110: 0 | Y110: 7
A111: Lj_NS_S_Low_1 | B111: 0.0289 | C111: 0.0327 | D111: 0.0354 | E111: 0.035 | F111: 0.0398 | G111: 0.0253 | H111: 0.0241 | I111: 0.0323 | J111: 0.0419 | K111: 0.0196 | U111: Lj_LjSC_NOD_Low | V111: 2 | W111: 4 | X111: 1 | Y111: 5
A112: Lj_NS_S_Low_2 | B112: 0.0331 | C112: 0.0305 | D112: 0.0302 | E112: 0.0412 | F112: 0.0217 | G112: 0.0335 | H112: 0.0265 | I112: 0.0192 | J112: 0.0327 | U112: Lj_LjSC_NOD_Low | V112: 2 | W112: 7 | X112: 0 | Y112: 7
A113: Lj_NS_S_Low_3 | B113: 0.0375 | C113: 0.0454 | D113: 0.0242 | E113: 0.0266 | F113: 0.0351 | G113: 0.0285 | H113: 0.0381 | I113: 0.0324 | J113: 0.0308 | U113: Lj_LjSC_NOD_Low | V113: 2 | W113: 5 | X113: 2 | Y113: 7
A114: Lj_NS_S_Low_4 | B114: 0.0398 | C114: 0.0368 | D114: 0.0375 | E114: 0.0241 | F114: 0.0361 | G114: 0.0423 | H114: 0.0223 | I114: 0.0365 | J114: 0.0362 | U114: Lj_LjSC_NOD_Low | V114: 2 | W114: 6 | X114: 1 | Y114: 7
A115: At_NS_S_Low_1 | B115: 0.0113 | C115: 0.0105 | D115: 0.0148 | E115: 0.0131 | F115: 0.0068 | G115: 0.0407 | H115: 0.0178 | I115: 0.0236 | J115: 0.0467 | U115: Lj_LjSC_NOD_Low | V115: 2 | W115: 6 | X115: 3 | Y115: 9
A116: At_NS_S_Low_2 | B116: 0.0213 | C116: 0.0221 | D116: 0.0155 | E116: 0.0123 | F116: 0.0139 | G116: 0.0149 | H116: 0.0107 | I116: 0.0154 | J116: 0.0126 | K116: 0.0163 | L116: 0.0244 | U116: Lj_LjSC_NOD_Low | V116: 2 | W116: 0 | X116: 3 | Y116: 3
A117: At_NS_S_Low_3 | B117: 0.0092 | C117: 0.0112 | D117: 0.0147 | E117: 0.0147 | F117: 0.0072 | G117: 0.0081 | H117: 0.0068 | I117: 0.0127 | J117: 0.0109 | K117: 0.0064 | U117: Lj_LjSC_NOD_Low | V117: 2 | W117: 1 | X117: 3 | Y117: 4
A118: At_NS_S_Low_4 | B118: 0.0129 | C118: 0.0124 | D118: 0.012 | E118: 0.0218 | F118: 0.0118 | G118: 0.0132 | H118: 0.0113 | I118: 0.0169 | J118: 0.0208 | U118: Lj_LjSC_NOD_Low | V118: 2 | W118: 0 | X118: 3 | Y118: 3
A119: Hv_NS_S_Low_1 | B119: 0.9501 | U119: Lj_LjSC_NOD_Low | V119: 3 | W119: 6 | X119: 0 | Y119: 6
A120: Hv_NS_S_Low_2 | B120: 1.0925 | U120: Lj_LjSC_NOD_Low | V120: 3 | W120: 5 | X120: 2 | Y120: 7
A121: Hv_NS_S_Low_3 | B121: 0.699 | C121: 0.9104 | U121: Lj_LjSC_NOD_Low | V121: 3 | W121: 5 | X121: 0 | Y121: 5
A122: Hv_NS_S_Low_4 | B122: 0.612 | C122: 0.9441 | U122: Lj_LjSC_NOD_Low | V122: 3 | W122: 11 | X122: 0 | Y122: 11
A123: At_SSC_S_HLO_1 | B123: 0.0109 | C123: 0.0232 | D123: 0.0222 | E123: 0.0199 | F123: 0.0339 | G123: 0.0182 | H123: 0.0163 | I123: 0.0078 | U123: Lj_LjSC_NOD_Low | V123: 3 | W123: 7 | X123: 2 | Y123: 9
A124: At_SSC_S_HLO_2 | B124: 0.0145 | C124: 0.0314 | D124: 0.0112 | E124: 0.0233 | F124: 0.0178 | U124: Lj_LjSC_NOD_Low | V124: 3 | W124: 6 | X124: 0 | Y124: 6
A125: At_SSC_S_HLO_3 | B125: 0.0064 | C125: 0.0164 | D125: 0.0137 | E125: 0.0028 | F125: 0.0113 | G125: 0.0121 | H125: 0.0127 | I125: 0.0063 | J125: 0.0128 | U125: Lj_LjSC_NOD_Low | V125: 3 | W125: 10 | X125: 2 | Y125: 12
A126: At_SSC_S_HLO_4 | B126: 0.0106 | C126: 0.0206 | D126: 0.0169 | E126: 0.0137 | F126: 0.011 | G126: 0.006 | H126: 0.0113 | I126: 0.0114 | U126: Lj_LjSC_NOD_Low | V126: 3 | W126: 3 | X126: 1 | Y126: 4
A127: At_LjSC_S_HLO_1 | B127: 0.0185 | C127: 0.0069 | D127: 0.0098 | E127: 0.0063 | F127: 0.0093 | G127: 0.0105 | H127: 0.0236 | I127: 0.0247 | J127: 0.0173 | U127: Lj_LjSC_NOD_Low | V127: 4 | W127: 3 | X127: 1 | Y127: 4
A128: At_LjSC_S_HLO_2 | B128: 0.0064 | C128: 0.0289 | D128: 0.0117 | E128: 0.0132 | F128: 0.0168 | G128: 0.0091 | H128: 0.0133 | I128: 0.0176 | J128: 0.0115 | K128: 0.0195 | U128: Lj_LjSC_NOD_Low | V128: 4 | W128: 4 | X128: 0 | Y128: 4
A129: At_LjSC_S_HLO_3 | B129: 0.0146 | C129: 0.019 | D129: 0.0173 | E129: 0.0143 | F129: 0.0128 | G129: 0.0082 | H129: 0.0133 | I129: 0.0142 | J129: 0.0119 | U129: Lj_LjSC_NOD_Low | V129: 4 | W129: 6 | X129: 0 | Y129: 6
A130: At_LjSC_S_HLO_4 | B130: 0.0093 | C130: 0.0185 | D130: 0.0212 | E130: 0.0088 | F130: 0.0262 | G130: 0.0108 | H130: 0.0106 | I130: 0.0067 | J130: 0.018 | K130: 0.0191 | U130: Lj_LjSC_NOD_Low | V130: 4 | W130: 0 | X130: 3 | Y130: 3
A131: At_AtSC_S_HLO_1 | B131: 0.0149 | C131: 0.0208 | D131: 0.0133 | E131: 0.0148 | F131: 0.0157 | G131: 0.0171 | H131: 0.0116 | I131: 0.0144 | J131: 0.0204 | K131: 0.0147 | U131: Lj_LjSC_NOD_Low | V131: 4 | W131: 0 | X131: 0 | Y131: 0
A132: At_AtSC_S_HLO_2 | B132: 0.0156 | C132: 0.0085 | D132: 0.0111 | E132: 0.0161 | F132: 0.0146 | G132: 0.0162 | H132: 0.0286 | I132: 0.0226 | J132: 0.0167 | U132: Lj_LjSC_NOD_Low | V132: 4 | W132: 5 | X132: 0 | Y132: 5
A133: At_AtSC_S_HLO_3 | B133: 0.035 | C133: 0.0294 | D133: 0.0281 | E133: 0.0212 | F133: 0.0414 | G133: 0.0286 | H133: 0.0268 | I133: 0.0447 | J133: 0.0526 | K133: 0.0217 | U133: Lj_LjSC_NOD_Low | V133: 4 | W133: 3 | X133: 0 | Y133: 3
A134: At_AtSC_S_HLO_4 | B134: 0.0211 | C134: 0.0109 | D134: 0.0151 | E134: 0.0268 | F134: 0.0348 | G134: 0.0101 | H134: 0.0329 | I134: 0.0371 | J134: 0.0303 | K134: 0.0298 | U134: Lj_HvSC_NOD_High | V134: 1 | W134: 3 | X134: 2 | Y134: 5
A135: At_HvSC_S_HLO_1 | B135: 0.0141 | C135: 0.0125 | D135: 0.0126 | E135: 0.0082 | F135: 0.0159 | G135: 0.0129 | H135: 0.0068 | I135: 0.0124 | J135: 0.0101 | K135: 0.0067 | U135: Lj_HvSC_NOD_High | V135: 1 | W135: 5 | X135: 0 | Y135: 5
A136: At_HvSC_S_HLO_2 | B136: 0.0201 | C136: 0.0137 | D136: 0.0095 | E136: 0.0138 | F136: 0.0152 | G136: 0.0144 | H136: 0.0128 | I136: 0.0055 | J136: 0.0043 | K136: 0.0045 | U136: Lj_HvSC_NOD_High | V136: 1 | W136: 1 | X136: 2 | Y136: 3
A137: At_HvSC_S_HLO_3 | B137: 0.0133 | C137: 0.0219 | D137: 0.0085 | E137: 0.0059 | F137: 0.0109 | G137: 0.0231 | H137: 0.0041 | I137: 0.0103 | J137: 0.0183 | K137: 0.013 | U137: Lj_HvSC_NOD_High | V137: 1 | W137: 5 | X137: 1 | Y137: 6
A138: At_HvSC_S_HLO_4 | B138: 0.0109 | C138: 0.0093 | D138: 0.0062 | E138: 0.0084 | F138: 0.0063 | G138: 0.0126 | H138: 0.0121 | I138: 0.0084 | J138: 0.0034 | U138: Lj_HvSC_NOD_High | V138: 1 | W138: 0 | X138: 2 | Y138: 2
A139: At_NS_S_HLO_1 | B139: 0.0108 | C139: 0.0141 | D139: 0.0137 | E139: 0.0168 | F139: 0.0062 | G139: 0.0096 | H139: 0.0295 | I139: 0.0145 | J139: 0.0208 | K139: 0.0238 | U139: Lj_HvSC_NOD_High | V139: 1 | W139: 7 | X139: 0 | Y139: 7
A140: At_NS_S_HLO_2 | B140: 0.0079 | C140: 0.0063 | D140: 0.0077 | E140: 0.0115 | F140: 0.0155 | G140: 0.0165 | H140: 0.0258 | I140: 0.0199 | J140: 0.0148 | K140: 0.0357 | U140: Lj_HvSC_NOD_High | V140: 1 | W140: 7 | X140: 0 | Y140: 7
A141: At_NS_S_HLO_3 | B141: 0.0219 | C141: 0.0223 | D141: 0.0423 | E141: 0.0096 | F141: 0.0295 | G141: 0.0376 | H141: 0.0154 | I141: 0.0213 | J141: 0.0158 | K141: 0.024 | U141: Lj_HvSC_NOD_High | V141: 1 | W141: 5 | X141: 1 | Y141: 6
A142: At_NS_S_HLO_4 | B142: 0.0212 | C142: 0.0162 | D142: 0.0381 | E142: 0.0343 | F142: 0.0134 | G142: 0.0126 | H142: 0.0267 | I142: 0.0241 | J142: 0.0232 | K142: 0.0297 | U142: Lj_HvSC_NOD_High | V142: 1 | W142: 6 | X142: 2 | Y142: 8
A143: R1_At_AtSC_S_3 | B143: 0.0218 | C143: 0.0272 | D143: 0.0277 | E143: 0.0285 | F143: 0.0402 | G143: 0.0254 | H143: 0.013 | I143: 0.0167 | J143: 0.0027 | K143: 0.0288 | L143: 0.0081 | U143: Lj_HvSC_NOD_High | V143: 1 | W143: 7 | X143: 0 | Y143: 7
A144: R1_At_AtSC_S_4 | B144: 0.0138 | C144: 0.0169 | D144: 0.044 | E144: 0.0398 | F144: 0.0271 | G144: 0.0201 | H144: 0.0215 | I144: 0.0075 | J144: 0.0207 | U144: Lj_HvSC_NOD_High | V144: 2 | W144: 3 | X144: 1 | Y144: 4
A145: R1_At_AtSC_S_5 | B145: 0.0154 | C145: 0.0117 | D145: 0.0044 | E145: 0.0061 | F145: 0.0064 | G145: 0.0054 | H145: 0.0047 | I145: 0.0098 | J145: 0.0107 | K145: 0.0144 | L145: 0.0078 | M145: 0.0055 | N145: 0.0095 | O145: 0.0078 | P145: 0.0026 | Q145: 0.0063 | U145: Lj_HvSC_NOD_High | V145: 2 | W145: 3 | X145: 0 | Y145: 3
A146: R1_At_HvSC_S_1 | B146: 0.0748 | C146: 0.1301 | D146: 0.0075 | E146: 0.0391 | F146: 0.0336 | G146: 0.0463 | H146: 0.0624 | I146: 0.0307 | U146: Lj_HvSC_NOD_High | V146: 2 | W146: 4 | X146: 1 | Y146: 5
A147: R1_At_HvSC_S_2 | B147: 0.0998 | C147: 0.0531 | D147: 0.0593 | E147: 0.0495 | F147: 0.0627 | G147: 0.033 | H147: 0.0431 | U147: Lj_HvSC_NOD_High | V147: 2 | W147: 0 | X147: 0 | Y147: 0
A148: R1_At_HvSC_S_3 | B148: 0.0659 | C148: 0.0611 | D148: 0.0671 | U148: Lj_HvSC_NOD_High | V148: 2 | W148: 5 | X148: 0 | Y148: 5
A149: R1_At_HvSC_S_4 | B149: 0.0443 | C149: 0.1121 | D149: 0.0732 | E149: 0.0656 | F149: 0.0314 | G149: 0.0384 | U149: Lj_HvSC_NOD_High | V149: 2 | W149: 4 | X149: 2 | Y149: 6
A150: R1_At_HvSC_S_5 | B150: 0.0321 | C150: 0.0231 | D150: 0.0198 | E150: 0.0484 | F150: 0.0258 | G150: 0.0503 | H150: 0.0447 | I150: 0.0328 | J150: 0.0363 | K150: 0.0369 | L150: 0.0527 | M150: 0.0469 | N150: 0.0436 | O150: 0.0409 | P150: 0.049 | Q150: 0.014 | R150: 0.0152 | S150: 0.0277 | U150: Lj_HvSC_NOD_High | V150: 2 | W150: 1 | X150: 0 | Y150: 1
A151: R1_Hv_1 | B151: 0.4416 | U151: Lj_HvSC_NOD_High | V151: 2 | W151: 2 | X151: 0 | Y151: 2
A152: R1_Hv_2 | B152: 0.5071 | C152: 0.6207 | D152: 0.979 | U152: Lj_HvSC_NOD_High | V152: 3 | W152: 7 | X152: 2 | Y152: 9
A153: R1_Hv_LjSC_S_1 | B153: 0.6692 | U153: Lj_HvSC_NOD_High | V153: 3 | W153: 4 | X153: 2 | Y153: 6
A154: R1_Hv_LjSC_S_2 | B154: 0.5258 | U154: Lj_HvSC_NOD_High | V154: 3 | W154: 3 | X154: 2 | Y154: 5
A155: R1_Hv_LjSC_S_3 | B155: 0.5052 | U155: Lj_HvSC_NOD_High | V155: 3 | W155: 9 | X155: 1 | Y155: 10
A156: R1_Hv_LjSC_S_4 | B156: 0.7456 | C156: 0.6135 | D156: 0.4067 | U156: Lj_HvSC_NOD_High | V156: 3 | W156: 2 | X156: 0 | Y156: 2
A157: R1_Hv_AtSC_S_1 | B157: 0.4376 | U157: Lj_HvSC_NOD_High | V157: 3 | W157: 1 | X157: 0 | Y157: 1
A158: R1_Hv_AtSC_S_2 | B158: 0.4289 | U158: Lj_HvSC_NOD_High | V158: 4 | W158: 9 | X158: 2 | Y158: 11
A159: R1_Hv_AtSC_S_3 | B159: 0.7252 | U159: Lj_HvSC_NOD_High | V159: 4 | W159: 11 | X159: 2 | Y159: 13
A160: R1_Hv_AtSC_S_4 | B160: 0.6105 | C160: 0.5963 | D160: 0.6435 | U160: Lj_HvSC_NOD_High | V160: 4 | W160: 5 | X160: 5 | Y160: 10
A161: R1_Hv_HvSC_S_1 | B161: 0.6274 | U161: Lj_HvSC_NOD_High | V161: 4 | W161: 10 | X161: 2 | Y161: 12
A162: R1_Hv_HvSC_S_2 | B162: 0.5339 | U162: Lj_HvSC_NOD_High | V162: 4 | W162: 1 | X162: 2 | Y162: 3
A163: R1_Hv_HvSC_S_3 | B163: 0.601 | C163: 0.608 | D163: 0.6543 | U163: Lj_HvSC_NOD_High | V163: 4 | W163: 0 | X163: 8 | Y163: 8
A164: R1_Hv_HvSC_S_4 | B164: 0.5475 | U164: Lj_HvSC_NOD_High | V164: 4 | W164: 6 | X164: 2 | Y164: 8
A165: R1_Lj_1 | B165: 0.0412 | C165: 0.0271 | D165: 0.0243 | E165: 0.0499 | F165: 0.03 | G165: 0.0235 | H165: 0.0197 | U165: Lj_HvSC_NOD_High | V165: 4 | W165: 3 | X165: 2 | Y165: 5
A166: R1_Lj_2 | B166: 0.0379 | C166: 0.0361 | D166: 0.0467 | E166: 0.0261 | F166: 0.0328 | G166: 0.0144 | H166: 0.0277 | I166: 0.0191 | J166: 0.0169 | U166: Lj_HvSC_NOD_High | V166: 4 | W166: 2 | X166: 2 | Y166: 4
A167: R1_Lj_LjSC_S_1 | B167: 0.0574 | C167: 0.0357 | D167: 0.0531 | E167: 0.0238 | F167: 0.0181 | G167: 0.0291 | U167: Lj_HvSC_NOD_Low | V167: 1 | W167: 3 | X167: 3 | Y167: 6
A168: R1_Lj_LjSC_S_2 | B168: 0.0558 | C168: 0.0379 | D168: 0.0448 | E168: 0.0433 | F168: 0.0343 | G168: 0.0452 | U168: Lj_HvSC_NOD_Low | V168: 1 | W168: 5 | X168: 1 | Y168: 6
A169: R1_Lj_LjSC_S_3 | B169: 0.0571 | C169: 0.0505 | D169: 0.0346 | E169: 0.0546 | F169: 0.0552 | G169: 0.0376 | H169: 0.0363 | I169: 0.0357 | J169: 0.0339 | U169: Lj_HvSC_NOD_Low | V169: 1 | W169: 3 | X169: 2 | Y169: 5
A170: R1_Lj_LjSC_S_4 | B170: 0.0455 | C170: 0.0478 | D170: 0.058 | E170: 0.043 | F170: 0.0332 | G170: 0.0454 | H170: 0.0478 | I170: 0.0306 | U170: Lj_HvSC_NOD_Low | V170: 1 | W170: 6 | X170: 3 | Y170: 9
A171: R1_Lj_AtSC_S_1 | B171: 0.0283 | C171: 0.0431 | D171: 0.0486 | E171: 0.0219 | F171: 0.0249 | U171: Lj_HvSC_NOD_Low | V171: 1 | W171: 4 | X171: 1 | Y171: 5
A172: R1_Lj_AtSC_S_2 | B172: 0.0336 | C172: 0.0208 | D172: 0.0392 | E172: 0.0261 | F172: 0.0339 | G172: 0.0302 | H172: 0.0228 | U172: Lj_HvSC_NOD_Low | V172: 1 | W172: 6 | X172: 2 | Y172: 8
A173: R1_Lj_AtSC_S_3 | B173: 0.0214 | C173: 0.0268 | D173: 0.0325 | E173: 0.0489 | F173: 0.033 | G173: 0.0451 | H173: 0.0332 | U173: Lj_HvSC_NOD_Low | V173: 1 | W173: 3 | X173: 1 | Y173: 4
A174: R1_Lj_AtSC_S_4 | B174: 0.0449 | C174: 0.039 | D174: 0.0367 | E174: 0.0455 | F174: 0.0389 | G174: 0.0326 | H174: 0.0242 | I174: 0.0419 | U174: Lj_HvSC_NOD_Low | V174: 1 | W174: 4 | X174: 2 | Y174: 6
A175: R1_Lj_HvSC_S_1 | B175: 0.0245 | C175: 0.0301 | D175: 0.0583 | E175: 0.0352 | F175: 0.0289 | G175: 0.0833 | U175: Lj_HvSC_NOD_Low | V175: 1 | W175: 5 | X175: 1 | Y175: 6
A176: R1_Lj_HvSC_S_2 | B176: 0.045 | C176: 0.0494 | D176: 0.0126 | E176: 0.0166 | F176: 0.0581 | G176: 0.0425 | U176: Lj_HvSC_NOD_Low | V176: 2 | W176: 5 | X176: 1 | Y176: 6
A177: R1_Lj_HvSC_S_3 | B177: 0.0577 | C177: 0.0312 | D177: 0.0332 | E177: 0.0316 | F177: 0.0384 | G177: 0.0391 | H177: 0.0427 | I177: 0.0313 | U177: Lj_HvSC_NOD_Low | V177: 2 | W177: 5 | X177: 3 | Y177: 8
A178: R1_Lj_HvSC_S_4 | B178: 0.0518 | C178: 0.0684 | D178: 0.0367 | E178: 0.0368 | F178: 0.0319 | G178: 0.0502 | H178: 0.0669 | U178: Lj_HvSC_NOD_Low | V178: 2 | W178: 3 | X178: 3 | Y178: 6
A179: R1_At_LjSC_S_1 | B179: 0.0232 | C179: 0.0444 | D179: 0.0203 | E179: 0.0163 | F179: 0.014 | G179: 0.0229 | H179: 0.0199 | I179: 0.0101 | J179: 0.0087 | K179: 0.0398 | U179: Lj_HvSC_NOD_Low | V179: 2 | W179: 6 | X179: 2 | Y179: 8
A180: R1_At_LjSC_S_2 | B180: 0.0654 | C180: 0.0513 | D180: 0.0187 | E180: 0.1088 | F180: 0.0081 | G180: 0.0203 | H180: 0.0092 | I180: 0.0248 | J180: 0.0305 | K180: 0.0374 | L180: 0.0261 | U180: Lj_HvSC_NOD_Low | V180: 2 | W180: 2 | X180: 1 | Y180: 3
A181: R1_At_LjSC_S_3 | B181: 0.085 | C181: 0.0541 | U181: Lj_HvSC_NOD_Low | V181: 2 | W181: 4 | X181: 1 | Y181: 5
A182: R1_At_LjSC_S_4 | B182: 0.0277 | C182: 0.0416 | D182: 0.0192 | E182: 0.014 | F182: 0.0212 | G182: 0.1324 | H182: 0.0455 | I182: 0.016 | J182: 0.0132 | U182: Lj_HvSC_NOD_Low | V182: 2 | W182: 8 | X182: 0 | Y182: 8
A183: R1_At_AtSC_S_1 | B183: 0.036 | C183: 0.0425 | D183: 0.0384 | E183: 0.0141 | F183: 0.0115 | G183: 0.0227 | H183: 0.02 | I183: 0.0627 | J183: 0.014 | K183: 0.0102 | L183: 0.0145 | M183: 0.021 | N183: 0.068 | U183: Lj_HvSC_NOD_Low | V183: 2 | W183: 3 | X183: 1 | Y183: 4
A184: R1_At_AtSC_S_2 | B184: 0.0427 | C184: 0.0274 | D184: 0.018 | E184: 0.0145 | F184: 0.0038 | G184: 0.0075 | H184: 0.0059 | I184: 0.0048 | U184: Lj_HvSC_NOD_Low | V184: 2 | W184: 2 | X184: 1 | Y184: 3
A185: R1_Lj_SSC_S_1 | B185: 0.033 | C185: 0.0411 | D185: 0.0427 | E185: 0.0299 | F185: 0.0303 | G185: 0.0321 | H185: 0.0274 | I185: 0.0294 | J185: 0.0397 | K185: 0.0358 | U185: Lj_HvSC_NOD_Low | V185: 3 | W185: 4 | X185: 1 | Y185: 5
A186: R1_Lj_SSC_S_2 | B186: 0.0417 | C186: 0.0201 | D186: 0.0387 | E186: 0.0475 | F186: 0.0534 | G186: 0.0366 | H186: 0.03 | I186: 0.029 | J186: 0.03 | K186: 0.0396 | U186: Lj_HvSC_NOD_Low | V186: 3 | W186: 6 | X186: 0 | Y186: 6
A187: R1_Lj_SSC_S_3 | B187: 0.0246 | C187: 0.031 | D187: 0.0323 | E187: 0.0344 | F187: 0.0395 | G187: 0.0334 | H187: 0.0398 | I187: 0.0258 | J187: 0.0314 | K187: 0.0231 | U187: Lj_HvSC_NOD_Low | V187: 3 | W187: 3 | X187: 1 | Y187: 4
A188: R1_Lj_SSC_S_4 | B188: 0.0541 | C188: 0.0397 | D188: 0.0493 | E188: 0.0249 | F188: 0.0508 | G188: 0.0406 | H188: 0.0338 | I188: 0.0368 | U188: Lj_HvSC_NOD_Low | V188: 3 | W188: 6 | X188: 1 | Y188: 7
A189: R1_Lj_SSC_S_1 | B189: 0.0351 | C189: 0.0221 | D189: 0.0432 | E189: 0.0294 | F189: 0.0367 | G189: 0.0502 | H189: 0.0307 | U189: Lj_HvSC_NOD_Low | V189: 3 | W189: 5 | X189: 0 | Y189: 5
A190: R1_Lj_SSC_S_2 | B190: 0.0295 | C190: 0.02 | D190: 0.0262 | E190: 0.0265 | F190: 0.032 | G190: 0.0456 | H190: 0.0299 | I190: 0.0328 | J190: 0.04 | U190: Lj_HvSC_NOD_Low | V190: 3 | W190: 2 | X190: 0 | Y190: 2
A191: R1_Lj_SSC_S_3 | B191: 0.0303 | C191: 0.0363 | D191: 0.0202 | E191: 0.0317 | F191: 0.0236 | G191: 0.0182 | H191: 0.0216 | I191: 0.0331 | J191: 0.0185 | U191: Lj_HvSC_NOD_Low | V191: 3 | W191: 5 | X191: 1 | Y191: 6
A192: R1_Lj_SSC_S_4 | B192: 0.025 | C192: 0.0213 | D192: 0.0326 | E192: 0.0264 | F192: 0.0318 | G192: 0.0378 | H192: 0.0367 | I192: 0.0272 | J192: 0.0332 | K192: 0.0254 | U192: Lj_HvSC_NOD_Low | V192: 3 | W192: 5 | X192: 1 | Y192: 6
A193: R1_Lj_SSC_S_1 | B193: 0.0305 | C193: 0.0225 | D193: 0.0237 | E193: 0.0363 | F193: 0.0352 | G193: 0.0341 | H193: 0.0299 | I193: 0.0307 | U193: Lj_HvSC_NOD_Low | V193: 3 | W193: 2 | X193: 0 | Y193: 2
A194: R1_Lj_SSC_S_2 | B194: 0.0284 | C194: 0.0317 | D194: 0.0265 | E194: 0.038 | F194: 0.0378 | G194: 0.0234 | H194: 0.0349 | I194: 0.0347 | J194: 0.0371 | K194: 0.0204 | U194: Lj_HvSC_NOD_Low | V194: 4 | W194: 1 | X194: 8 | Y194: 9
A195: R1_Lj_SSC_S_3 | B195: 0.0252 | C195: 0.0273 | D195: 0.0365 | E195: 0.0323 | F195: 0.0267 | G195: 0.0333 | H195: 0.0279 | I195: 0.0224 | J195: 0.0298 | U195: Lj_HvSC_NOD_Low | V195: 4 | W195: 7 | X195: 0 | Y195: 7
A196: R1_Lj_SSC_S_4 | B196: 0.0251 | C196: 0.0305 | D196: 0.0251 | E196: 0.0365 | F196: 0.0234 | G196: 0.0302 | H196: 0.0308 | I196: 0.036 | J196: 0.0353 | K196: 0.0303 | L196: 0.0338 | M196: 0.0259 | U196: Lj_HvSC_NOD_Low | V196: 4 | W196: 2 | X196: 1 | Y196: 3
A197: R1_At_SSC_S_1 | B197: 0.0247 | C197: 0.0405 | D197: 0.0065 | E197: 0.0164 | F197: 0.0114 | G197: 0.0212 | H197: 0.0088 | I197: 0.0181 | U197: Lj_HvSC_NOD_Low | V197: 4 | W197: 0 | X197: 6 | Y197: 6
A198: R1_At_SSC_S_2 | B198: 0.0239 | C198: 0.0228 | D198: 0.0361 | E198: 0.0371 | F198: 0.019 | G198: 0.0089 | H198: 0.025 | I198: 0.0218 | J198: 0.0261 | K198: 0.01 | L198: 0.0365 | U198: Lj_HvSC_NOD_Low | V198: 4 | W198: 9 | X198: 0 | Y198: 9
A199: R1_At_SSC_S_3 | B199: 0.0261 | C199: 0.0256 | D199: 0.0213 | E199: 0.0212 | F199: 0.052 | G199: 0.0511 | H199: 0.0377 | I199: 0.0361 | J199: 0.0267 | K199: 0.0268 | L199: 0.0403 | M199: 0.0188 | N199: 0.028 | U199: Lj_HvSC_NOD_Low | V199: 4 | W199: 6 | X199: 2 | Y199: 8
A200: R1_At_SSC_S_4 | B200: 0.009 | C200: 0.0303 | D200: 0.0352 | E200: 0.014 | F200: 0.0148 | G200: 0.0468 | H200: 0.0145 | I200: 0.0266 | J200: 0.016 | K200: 0.0477 | L200: 0.0088 | M200: 0.019 | U200: Lj_HvSC_NOD_Low | V200: 4 | W200: 1 | X200: 5 | Y200: 6
... 165 more rows

Sheet Data_S14
A1: Metadata SSC
A2: sample_id | B2: Experiment | C2: Condition | D2: Inoculum | E2: Compartment | F2: Nutrient_condition | G2: Biorep | H2: Growth_condition
A3: At_AtSC_ES_high_B1 | B3: R2 | C3: At | D3: AtSC | E3: ES | F3: high | G3: B1 | H3: GC2
A4: At_AtSC_ES_high_B2 | B4: R2 | C4: At | D4: AtSC | E4: ES | F4: high | G4: B2 | H4: GC2
A5: At_AtSC_ES_high_B3 | B5: R2 | C5: At | D5: AtSC | E5: ES | F5: high | G5: B3 | H5: GC2
A6: At_AtSC_ES_high_B4 | B6: R2 | C6: At | D6: AtSC | E6: ES | F6: high | G6: B4 | H6: GC2
A7: At_AtSC_ES_HL_orig_B1 | B7: R2 | C7: At | D7: AtSC | E7: ES | F7: HL_orig | G7: B1 | H7: GC2
A8: At_AtSC_ES_HL_orig_B2 | B8: R2 | C8: At | D8: AtSC | E8: ES | F8: HL_orig | G8: B2 | H8: GC2
A9: At_AtSC_ES_HL_orig_B3 | B9: R2 | C9: At | D9: AtSC | E9: ES | F9: HL_orig | G9: B3 | H9: GC2
A10: At_AtSC_ES_HL_orig_B4 | B10: R2 | C10: At | D10: AtSC | E10: ES | F10: HL_orig | G10: B4 | H10: GC2
A11: At_AtSC_ES_low_B1 | B11: R2 | C11: At | D11: AtSC | E11: ES | F11: low | G11: B1 | H11: GC2
A12: At_AtSC_ES_low_B2 | B12: R2 | C12: At | D12: AtSC | E12: ES | F12: low | G12: B2 | H12: GC2
A13: At_AtSC_ES_low_B3 | B13: R2 | C13: At | D13: AtSC | E13: ES | F13: low | G13: B3 | H13: GC2
A14: At_AtSC_ES_low_B4 | B14: R2 | C14: At | D14: AtSC | E14: ES | F14: low | G14: B4 | H14: GC2
A15: At_AtSC_RZ_high_B1 | B15: R2 | C15: At | D15: AtSC | E15: RZ | F15: high | G15: B1 | H15: GC2
A16: At_AtSC_RZ_high_B2 | B16: R2 | C16: At | D16: AtSC | E16: RZ | F16: high | G16: B2 | H16: GC2
A17: At_AtSC_RZ_high_B3 | B17: R2 | C17: At | D17: AtSC | E17: RZ | F17: high | G17: B3 | H17: GC2
A18: At_AtSC_RZ_high_B4 | B18: R2 | C18: At | D18: AtSC | E18: RZ | F18: high | G18: B4 | H18: GC2
A19: At_AtSC_RZ_HL_orig_B1 | B19: R2 | C19: At | D19: AtSC | E19: RZ | F19: HL_orig | G19: B1 | H19: GC2
A20: At_AtSC_RZ_HL_orig_B2 | B20: R2 | C20: At | D20: AtSC | E20: RZ | F20: HL_orig | G20: B2 | H20: GC2
A21: At_AtSC_RZ_HL_orig_B3 | B21: R2 | C21: At | D21: AtSC | E21: RZ | F21: HL_orig | G21: B3 | H21: GC2
A22: At_AtSC_RZ_HL_orig_B4 | B22: R2 | C22: At | D22: AtSC | E22: RZ | F22: HL_orig | G22: B4 | H22: GC2
A23: At_AtSC_RZ_low_B1 | B23: R2 | C23: At | D23: AtSC | E23: RZ | F23: low | G23: B1 | H23: GC2
A24: At_AtSC_RZ_low_B2 | B24: R2 | C24: At | D24: AtSC | E24: RZ | F24: low | G24: B2 | H24: GC2
A25: At_AtSC_RZ_low_B3 | B25: R2 | C25: At | D25: AtSC | E25: RZ | F25: low | G25: B3 | H25: GC2
A26: At_AtSC_RZ_low_B4 | B26: R2 | C26: At | D26: AtSC | E26: RZ | F26: low | G26: B4 | H26: GC2
A27: At_HvSC_ES_high_B1 | B27: R2 | C27: At | D27: HvSC | E27: ES | F27: high | G27: B1 | H27: GC2
A28: At_HvSC_ES_high_B2 | B28: R2 | C28: At | D28: HvSC | E28: ES | F28: high | G28: B2 | H28: GC2
A29: At_HvSC_ES_high_B3 | B29: R2 | C29: At | D29: HvSC | E29: ES | F29: high | G29: B3 | H29: GC2
A30: At_HvSC_ES_high_B4 | B30: R2 | C30: At | D30: HvSC | E30: ES | F30: high | G30: B4 | H30: GC2
A31: At_HvSC_ES_HL_orig_B1 | B31: R2 | C31: At | D31: HvSC | E31: ES | F31: HL_orig | G31: B1 | H31: GC2
A32: At_HvSC_ES_HL_orig_B2 | B32: R2 | C32: At | D32: HvSC | E32: ES | F32: HL_orig | G32: B2 | H32: GC2
A33: At_HvSC_ES_HL_orig_B3 | B33: R2 | C33: At | D33: HvSC | E33: ES | F33: HL_orig | G33: B3 | H33: GC2
A34: At_HvSC_ES_HL_orig_B4 | B34: R2 | C34: At | D34: HvSC | E34: ES | F34: HL_orig | G34: B4 | H34: GC2
A35: At_HvSC_ES_low_B1 | B35: R2 | C35: At | D35: HvSC | E35: ES | F35: low | G35: B1 | H35: GC2
A36: At_HvSC_ES_low_B2 | B36: R2 | C36: At | D36: HvSC | E36: ES | F36: low | G36: B2 | H36: GC2
A37: At_HvSC_ES_low_B3 | B37: R2 | C37: At | D37: HvSC | E37: ES | F37: low | G37: B3 | H37: GC2
A38: At_HvSC_ES_low_B4 | B38: R2 | C38: At | D38: HvSC | E38: ES | F38: low | G38: B4 | H38: GC2
A39: At_HvSC_RZ_high_B1 | B39: R2 | C39: At | D39: HvSC | E39: RZ | F39: high | G39: B1 | H39: GC2
A40: At_HvSC_RZ_high_B2 | B40: R2 | C40: At | D40: HvSC | E40: RZ | F40: high | G40: B2 | H40: GC2
A41: At_HvSC_RZ_high_B3 | B41: R2 | C41: At | D41: HvSC | E41: RZ | F41: high | G41: B3 | H41: GC2
A42: At_HvSC_RZ_high_B4 | B42: R2 | C42: At | D42: HvSC | E42: RZ | F42: high | G42: B4 | H42: GC2
A43: At_HvSC_RZ_HL_orig_B1 | B43: R2 | C43: At | D43: HvSC | E43: RZ | F43: HL_orig | G43: B1 | H43: GC2
A44: At_HvSC_RZ_HL_orig_B2 | B44: R2 | C44: At | D44: HvSC | E44: RZ | F44: HL_orig | G44: B2 | H44: GC2
A45: At_HvSC_RZ_HL_orig_B3 | B45: R2 | C45: At | D45: HvSC | E45: RZ | F45: HL_orig | G45: B3 | H45: GC2
A46: At_HvSC_RZ_HL_orig_B4 | B46: R2 | C46: At | D46: HvSC | E46: RZ | F46: HL_orig | G46: B4 | H46: GC2
A47: At_HvSC_RZ_low_B1 | B47: R2 | C47: At | D47: HvSC | E47: RZ | F47: low | G47: B1 | H47: GC2
A48: At_HvSC_RZ_low_B2 | B48: R2 | C48: At | D48: HvSC | E48: RZ | F48: low | G48: B2 | H48: GC2
A49: At_HvSC_RZ_low_B3 | B49: R2 | C49: At | D49: HvSC | E49: RZ | F49: low | G49: B3 | H49: GC2
A50: At_HvSC_RZ_low_B4 | B50: R2 | C50: At | D50: HvSC | E50: RZ | F50: low | G50: B4 | H50: GC2
A51: At_LjSC_ES_high_B1 | B51: R2 | C51: At | D51: LjSC | E51: ES | F51: high | G51: B1 | H51: GC2
A52: At_LjSC_ES_high_B2 | B52: R2 | C52: At | D52: LjSC | E52: ES | F52: high | G52: B2 | H52: GC2
A53: At_LjSC_ES_high_B3 | B53: R2 | C53: At | D53: LjSC | E53: ES | F53: high | G53: B3 | H53: GC2
A54: At_LjSC_ES_high_B4 | B54: R2 | C54: At | D54: LjSC | E54: ES | F54: high | G54: B4 | H54: GC2
A55: At_LjSC_ES_HL_orig_B1 | B55: R2 | C55: At | D55: LjSC | E55: ES | F55: HL_orig | G55: B1 | H55: GC2
A56: At_LjSC_ES_HL_orig_B2 | B56: R2 | C56: At | D56: LjSC | E56: ES | F56: HL_orig | G56: B2 | H56: GC2
A57: At_LjSC_ES_HL_orig_B3 | B57: R2 | C57: At | D57: LjSC | E57: ES | F57: HL_orig | G57: B3 | H57: GC2
A58: At_LjSC_ES_HL_orig_B4 | B58: R2 | C58: At | D58: LjSC | E58: ES | F58: HL_orig | G58: B4 | H58: GC2
A59: At_LjSC_ES_low_B1 | B59: R2 | C59: At | D59: LjSC | E59: ES | F59: low | G59: B1 | H59: GC2
A60: At_LjSC_ES_low_B2 | B60: R2 | C60: At | D60: LjSC | E60: ES | F60: low | G60: B2 | H60: GC2
A61: At_LjSC_ES_low_B3 | B61: R2 | C61: At | D61: LjSC | E61: ES | F61: low | G61: B3 | H61: GC2
A62: At_LjSC_ES_low_B4 | B62: R2 | C62: At | D62: LjSC | E62: ES | F62: low | G62: B4 | H62: GC2
A63: At_LjSC_RZ_high_B1 | B63: R2 | C63: At | D63: LjSC | E63: RZ | F63: high | G63: B1 | H63: GC2
A64: At_LjSC_RZ_high_B2 | B64: R2 | C64: At | D64: LjSC | E64: RZ | F64: high | G64: B2 | H64: GC2
A65: At_LjSC_RZ_high_B3 | B65: R2 | C65: At | D65: LjSC | E65: RZ | F65: high | G65: B3 | H65: GC2
A66: At_LjSC_RZ_high_B4 | B66: R2 | C66: At | D66: LjSC | E66: RZ | F66: high | G66: B4 | H66: GC2
A67: At_LjSC_RZ_HL_orig_B1 | B67: R2 | C67: At | D67: LjSC | E67: RZ | F67: HL_orig | G67: B1 | H67: GC2
A68: At_LjSC_RZ_HL_orig_B2 | B68: R2 | C68: At | D68: LjSC | E68: RZ | F68: HL_orig | G68: B2 | H68: GC2
A69: At_LjSC_RZ_HL_orig_B3 | B69: R2 | C69: At | D69: LjSC | E69: RZ | F69: HL_orig | G69: B3 | H69: GC2
A70: At_LjSC_RZ_HL_orig_B4 | B70: R2 | C70: At | D70: LjSC | E70: RZ | F70: HL_orig | G70: B4 | H70: GC2
A71: At_LjSC_RZ_low_B1 | B71: R2 | C71: At | D71: LjSC | E71: RZ | F71: low | G71: B1 | H71: GC2
A72: At_LjSC_RZ_low_B2 | B72: R2 | C72: At | D72: LjSC | E72: RZ | F72: low | G72: B2 | H72: GC2
A73: At_LjSC_RZ_low_B3 | B73: R2 | C73: At | D73: LjSC | E73: RZ | F73: low | G73: B3 | H73: GC2
A74: At_LjSC_RZ_low_B4 | B74: R2 | C74: At | D74: LjSC | E74: RZ | F74: low | G74: B4 | H74: GC2
A75: At_NS_ES_high_B1 | B75: R2 | C75: At | D75: NS | E75: ES | F75: high | G75: B1 | H75: GC2
A76: At_NS_ES_high_B2 | B76: R2 | C76: At | D76: NS | E76: ES | F76: high | G76: B2 | H76: GC2
A77: At_NS_ES_high_B3 | B77: R2 | C77: At | D77: NS | E77: ES | F77: high | G77: B3 | H77: GC2
A78: At_NS_ES_high_B4 | B78: R2 | C78: At | D78: NS | E78: ES | F78: high | G78: B4 | H78: GC2
A79: At_NS_ES_HL_orig_B1 | B79: R2 | C79: At | D79: NS | E79: ES | F79: HL_orig | G79: B1 | H79: GC2
A80: At_NS_ES_HL_orig_B2 | B80: R2 | C80: At | D80: NS | E80: ES | F80: HL_orig | G80: B2 | H80: GC2
A81: At_NS_ES_HL_orig_B3 | B81: R2 | C81: At | D81: NS | E81: ES | F81: HL_orig | G81: B3 | H81: GC2
A82: At_NS_ES_HL_orig_B4 | B82: R2 | C82: At | D82: NS | E82: ES | F82: HL_orig | G82: B4 | H82: GC2
A83: At_NS_ES_low_B1 | B83: R2 | C83: At | D83: NS | E83: ES | F83: low | G83: B1 | H83: GC2
A84: At_NS_ES_low_B2 | B84: R2 | C84: At | D84: NS | E84: ES | F84: low | G84: B2 | H84: GC2
A85: At_NS_ES_low_B3 | B85: R2 | C85: At | D85: NS | E85: ES | F85: low | G85: B3 | H85: GC2
A86: At_NS_ES_low_B4 | B86: R2 | C86: At | D86: NS | E86: ES | F86: low | G86: B4 | H86: GC2
A87: At_NS_RZ_high_B1 | B87: R2 | C87: At | D87: NS | E87: RZ | F87: high | G87: B1 | H87: GC2
A88: At_NS_RZ_high_B2 | B88: R2 | C88: At | D88: NS | E88: RZ | F88: high | G88: B2 | H88: GC2
A89: At_NS_RZ_high_B3 | B89: R2 | C89: At | D89: NS | E89: RZ | F89: high | G89: B3 | H89: GC2
A90: At_NS_RZ_high_B4 | B90: R2 | C90: At | D90: NS | E90: RZ | F90: high | G90: B4 | H90: GC2
A91: At_NS_RZ_HL_orig_B1 | B91: R2 | C91: At | D91: NS | E91: RZ | F91: HL_orig | G91: B1 | H91: GC2
A92: At_NS_RZ_HL_orig_B2 | B92: R2 | C92: At | D92: NS | E92: RZ | F92: HL_orig | G92: B2 | H92: GC2
A93: At_NS_RZ_HL_orig_B3 | B93: R2 | C93: At | D93: NS | E93: RZ | F93: HL_orig | G93: B3 | H93: GC2
A94: At_NS_RZ_HL_orig_B4 | B94: R2 | C94: At | D94: NS | E94: RZ | F94: HL_orig | G94: B4 | H94: GC2
A95: At_NS_RZ_low_B1 | B95: R2 | C95: At | D95: NS | E95: RZ | F95: low | G95: B1 | H95: GC2
A96: At_NS_RZ_low_B2 | B96: R2 | C96: At | D96: NS | E96: RZ | F96: low | G96: B2 | H96: GC2
A97: At_NS_RZ_low_B3 | B97: R2 | C97: At | D97: NS | E97: RZ | F97: low | G97: B3 | H97: GC2
A98: At_NS_RZ_low_B4 | B98: R2 | C98: At | D98: NS | E98: RZ | F98: low | G98: B4 | H98: GC2
A99: At_SSC_ES_high_B1 | B99: R2 | C99: At | D99: SSC | E99: ES | F99: high | G99: B1 | H99: GC2
A100: At_SSC_ES_high_B2 | B100: R2 | C100: At | D100: SSC | E100: ES | F100: high | G100: B2 | H100: GC2
A101: At_SSC_ES_high_B3 | B101: R2 | C101: At | D101: SSC | E101: ES | F101: high | G101: B3 | H101: GC2
A102: At_SSC_ES_high_B4 | B102: R2 | C102: At | D102: SSC | E102: ES | F102: high | G102: B4 | H102: GC2
A103: At_SSC_ES_HL_orig_B1 | B103: R2 | C103: At | D103: SSC | E103: ES | F103: HL_orig | G103: B1 | H103: GC2
A104: At_SSC_ES_HL_orig_B2 | B104: R2 | C104: At | D104: SSC | E104: ES | F104: HL_orig | G104: B2 | H104: GC2
A105: At_SSC_ES_HL_orig_B3 | B105: R2 | C105: At | D105: SSC | E105: ES | F105: HL_orig | G105: B3 | H105: GC2
A106: At_SSC_ES_HL_orig_B4 | B106: R2 | C106: At | D106: SSC | E106: ES | F106: HL_orig | G106: B4 | H106: GC2
A107: At_SSC_ES_low_B1 | B107: R2 | C107: At | D107: SSC | E107: ES | F107: low | G107: B1 | H107: GC2
A108: At_SSC_ES_low_B2 | B108: R2 | C108: At | D108: SSC | E108: ES | F108: low | G108: B2 | H108: GC2
A109: At_SSC_ES_low_B3 | B109: R2 | C109: At | D109: SSC | E109: ES | F109: low | G109: B3 | H109: GC2
A110: At_SSC_ES_low_B4 | B110: R2 | C110: At | D110: SSC | E110: ES | F110: low | G110: B4 | H110: GC2
A111: At_SSC_RZ_high_B1 | B111: R2 | C111: At | D111: SSC | E111: RZ | F111: high | G111: B1 | H111: GC2
A112: At_SSC_RZ_high_B2 | B112: R2 | C112: At | D112: SSC | E112: RZ | F112: high | G112: B2 | H112: GC2
A113: At_SSC_RZ_high_B3 | B113: R2 | C113: At | D113: SSC | E113: RZ | F113: high | G113: B3 | H113: GC2
A114: At_SSC_RZ_high_B4 | B114: R2 | C114: At | D114: SSC | E114: RZ | F114: high | G114: B4 | H114: GC2
A115: At_SSC_RZ_HL_orig_B1 | B115: R2 | C115: At | D115: SSC | E115: RZ | F115: HL_orig | G115: B1 | H115: GC2
A116: At_SSC_RZ_HL_orig_B2 | B116: R2 | C116: At | D116: SSC | E116: RZ | F116: HL_orig | G116: B2 | H116: GC2
A117: At_SSC_RZ_HL_orig_B3 | B117: R2 | C117: At | D117: SSC | E117: RZ | F117: HL_orig | G117: B3 | H117: GC2
A118: At_SSC_RZ_HL_orig_B4 | B118: R2 | C118: At | D118: SSC | E118: RZ | F118: HL_orig | G118: B4 | H118: GC2
A119: At_SSC_RZ_low_B1 | B119: R2 | C119: At | D119: SSC | E119: RZ | F119: low | G119: B1 | H119: GC2
A120: At_SSC_RZ_low_B2 | B120: R2 | C120: At | D120: SSC | E120: RZ | F120: low | G120: B2 | H120: GC2
A121: At_SSC_RZ_low_B3 | B121: R2 | C121: At | D121: SSC | E121: RZ | F121: low | G121: B3 | H121: GC2
A122: At_SSC_RZ_low_B4 | B122: R2 | C122: At | D122: SSC | E122: RZ | F122: low | G122: B4 | H122: GC2
A123: Hv_AtSC_ES_high_B1 | B123: R2 | C123: Hv | D123: AtSC | E123: ES | F123: high | G123: B1 | H123: GC1
A124: Hv_AtSC_ES_high_B2 | B124: R2 | C124: Hv | D124: AtSC | E124: ES | F124: high | G124: B2 | H124: GC1
A125: Hv_AtSC_ES_high_B3 | B125: R2 | C125: Hv | D125: AtSC | E125: ES | F125: high | G125: B3 | H125: GC1
A126: Hv_AtSC_ES_high_B4 | B126: R2 | C126: Hv | D126: AtSC | E126: ES | F126: high | G126: B4 | H126: GC1
A127: Hv_AtSC_ES_low_B1 | B127: R2 | C127: Hv | D127: AtSC | E127: ES | F127: low | G127: B1 | H127: GC1
A128: Hv_AtSC_ES_low_B2 | B128: R2 | C128: Hv | D128: AtSC | E128: ES | F128: low | G128: B2 | H128: GC1
A129: Hv_AtSC_ES_low_B3 | B129: R2 | C129: Hv | D129: AtSC | E129: ES | F129: low | G129: B3 | H129: GC1
A130: Hv_AtSC_ES_low_B4 | B130: R2 | C130: Hv | D130: AtSC | E130: ES | F130: low | G130: B4 | H130: GC1
A131: Hv_AtSC_RZ_high_B1 | B131: R2 | C131: Hv | D131: AtSC | E131: RZ | F131: high | G131: B1 | H131: GC1
A132: Hv_AtSC_RZ_high_B2 | B132: R2 | C132: Hv | D132: AtSC | E132: RZ | F132: high | G132: B2 | H132: GC1
A133: Hv_AtSC_RZ_high_B3 | B133: R2 | C133: Hv | D133: AtSC | E133: RZ | F133: high | G133: B3 | H133: GC1
A134: Hv_AtSC_RZ_high_B4 | B134: R2 | C134: Hv | D134: AtSC | E134: RZ | F134: high | G134: B4 | H134: GC1
A135: Hv_AtSC_RZ_low_B1 | B135: R2 | C135: Hv | D135: AtSC | E135: RZ | F135: low | G135: B1 | H135: GC1
A136: Hv_AtSC_RZ_low_B2 | B136: R2 | C136: Hv | D136: AtSC | E136: RZ | F136: low | G136: B2 | H136: GC1
A137: Hv_AtSC_RZ_low_B3 | B137: R2 | C137: Hv | D137: AtSC | E137: RZ | F137: low | G137: B3 | H137: GC1
A138: Hv_AtSC_RZ_low_B4 | B138: R2 | C138: Hv | D138: AtSC | E138: RZ | F138: low | G138: B4 | H138: GC1
A139: Hv_HvSC_ES_high_B1 | B139: R2 | C139: Hv | D139: HvSC | E139: ES | F139: high | G139: B1 | H139: GC1
A140: Hv_HvSC_ES_high_B2 | B140: R2 | C140: Hv | D140: HvSC | E140: ES | F140: high | G140: B2 | H140: GC1
A141: Hv_HvSC_ES_high_B3 | B141: R2 | C141: Hv | D141: HvSC | E141: ES | F141: high | G141: B3 | H141: GC1
A142: Hv_HvSC_ES_high_B4 | B142: R2 | C142: Hv | D142: HvSC | E142: ES | F142: high | G142: B4 | H142: GC1
A143: Hv_HvSC_ES_low_B1 | B143: R2 | C143: Hv | D143: HvSC | E143: ES | F143: low | G143: B1 | H143: GC1
A144: Hv_HvSC_ES_low_B2 | B144: R2 | C144: Hv | D144: HvSC | E144: ES | F144: low | G144: B2 | H144: GC1
A145: Hv_HvSC_ES_low_B3 | B145: R2 | C145: Hv | D145: HvSC | E145: ES | F145: low | G145: B3 | H145: GC1
A146: Hv_HvSC_ES_low_B4 | B146: R2 | C146: Hv | D146: HvSC | E146: ES | F146: low | G146: B4 | H146: GC1
A147: Hv_HvSC_RZ_high_B1 | B147: R2 | C147: Hv | D147: HvSC | E147: RZ | F147: high | G147: B1 | H147: GC1
A148: Hv_HvSC_RZ_high_B2 | B148: R2 | C148: Hv | D148: HvSC | E148: RZ | F148: high | G148: B2 | H148: GC1
A149: Hv_HvSC_RZ_high_B3 | B149: R2 | C149: Hv | D149: HvSC | E149: RZ | F149: high | G149: B3 | H149: GC1
A150: Hv_HvSC_RZ_high_B4 | B150: R2 | C150: Hv | D150: HvSC | E150: RZ | F150: high | G150: B4 | H150: GC1
A151: Hv_HvSC_RZ_low_B1 | B151: R2 | C151: Hv | D151: HvSC | E151: RZ | F151: low | G151: B1 | H151: GC1
A152: Hv_HvSC_RZ_low_B2 | B152: R2 | C152: Hv | D152: HvSC | E152: RZ | F152: low | G152: B2 | H152: GC1
A153: Hv_HvSC_RZ_low_B3 | B153: R2 | C153: Hv | D153: HvSC | E153: RZ | F153: low | G153: B3 | H153: GC1
A154: Hv_HvSC_RZ_low_B4 | B154: R2 | C154: Hv | D154: HvSC | E154: RZ | F154: low | G154: B4 | H154: GC1
A155: Hv_LjSC_ES_high_B1 | B155: R2 | C155: Hv | D155: LjSC | E155: ES | F155: high | G155: B1 | H155: GC1
A156: Hv_LjSC_ES_high_B2 | B156: R2 | C156: Hv | D156: LjSC | E156: ES | F156: high | G156: B2 | H156: GC1
A157: Hv_LjSC_ES_high_B3 | B157: R2 | C157: Hv | D157: LjSC | E157: ES | F157: high | G157: B3 | H157: GC1
A158: Hv_LjSC_ES_high_B4 | B158: R2 | C158: Hv | D158: LjSC | E158: ES | F158: high | G158: B4 | H158: GC1
A159: Hv_LjSC_ES_low_B1 | B159: R2 | C159: Hv | D159: LjSC | E159: ES | F159: low | G159: B1 | H159: GC1
A160: Hv_LjSC_ES_low_B2 | B160: R2 | C160: Hv | D160: LjSC | E160: ES | F160: low | G160: B2 | H160: GC1
A161: Hv_LjSC_ES_low_B3 | B161: R2 | C161: Hv | D161: LjSC | E161: ES | F161: low | G161: B3 | H161: GC1
A162: Hv_LjSC_ES_low_B4 | B162: R2 | C162: Hv | D162: LjSC | E162: ES | F162: low | G162: B4 | H162: GC1
A163: Hv_LjSC_RZ_high_B1 | B163: R2 | C163: Hv | D163: LjSC | E163: RZ | F163: high | G163: B1 | H163: GC1
A164: Hv_LjSC_RZ_high_B2 | B164: R2 | C164: Hv | D164: LjSC | E164: RZ | F164: high | G164: B2 | H164: GC1
A165: Hv_LjSC_RZ_high_B3 | B165: R2 | C165: Hv | D165: LjSC | E165: RZ | F165: high | G165: B3 | H165: GC1
A166: Hv_LjSC_RZ_high_B4 | B166: R2 | C166: Hv | D166: LjSC | E166: RZ | F166: high | G166: B4 | H166: GC1
A167: Hv_LjSC_RZ_low_B1 | B167: R2 | C167: Hv | D167: LjSC | E167: RZ | F167: low | G167: B1 | H167: GC1
A168: Hv_LjSC_RZ_low_B2 | B168: R2 | C168: Hv | D168: LjSC | E168: RZ | F168: low | G168: B2 | H168: GC1
A169: Hv_LjSC_RZ_low_B3 | B169: R2 | C169: Hv | D169: LjSC | E169: RZ | F169: low | G169: B3 | H169: GC1
A170: Hv_LjSC_RZ_low_B4 | B170: R2 | C170: Hv | D170: LjSC | E170: RZ | F170: low | G170: B4 | H170: GC1
A171: Hv_NS_ES_high_B1 | B171: R2 | C171: Hv | D171: NS | E171: ES | F171: high | G171: B1 | H171: GC1
A172: Hv_NS_ES_high_B2 | B172: R2 | C172: Hv | D172: NS | E172: ES | F172: high | G172: B2 | H172: GC1
A173: Hv_NS_ES_high_B3 | B173: R2 | C173: Hv | D173: NS | E173: ES | F173: high | G173: B3 | H173: GC1
A174: Hv_NS_ES_high_B4 | B174: R2 | C174: Hv | D174: NS | E174: ES | F174: high | G174: B4 | H174: GC1
A175: Hv_NS_ES_low_B1 | B175: R2 | C175: Hv | D175: NS | E175: ES | F175: low | G175: B1 | H175: GC1
A176: Hv_NS_ES_low_B2 | B176: R2 | C176: Hv | D176: NS | E176: ES | F176: low | G176: B2 | H176: GC1
A177: Hv_NS_ES_low_B3 | B177: R2 | C177: Hv | D177: NS | E177: ES | F177: low | G177: B3 | H177: GC1
A178: Hv_NS_ES_low_B4 | B178: R2 | C178: Hv | D178: NS | E178: ES | F178: low | G178: B4 | H178: GC1
A179: Hv_NS_RZ_high_B1 | B179: R2 | C179: Hv | D179: NS | E179: RZ | F179: high | G179: B1 | H179: GC1
A180: Hv_NS_RZ_high_B2 | B180: R2 | C180: Hv | D180: NS | E180: RZ | F180: high | G180: B2 | H180: GC1
A181: Hv_NS_RZ_high_B3 | B181: R2 | C181: Hv | D181: NS | E181: RZ | F181: high | G181: B3 | H181: GC1
A182: Hv_NS_RZ_high_B4 | B182: R2 | C182: Hv | D182: NS | E182: RZ | F182: high | G182: B4 | H182: GC1
A183: Hv_NS_RZ_low_B1 | B183: R2 | C183: Hv | D183: NS | E183: RZ | F183: low | G183: B1 | H183: GC1
A184: Hv_NS_RZ_low_B2 | B184: R2 | C184: Hv | D184: NS | E184: RZ | F184: low | G184: B2 | H184: GC1
A185: Hv_NS_RZ_low_B3 | B185: R2 | C185: Hv | D185: NS | E185: RZ | F185: low | G185: B3 | H185: GC1
A186: Hv_NS_RZ_low_B4 | B186: R2 | C186: Hv | D186: NS | E186: RZ | F186: low | G186: B4 | H186: GC1
A187: Hv_SSC_ES_high_B1 | B187: R2 | C187: Hv | D187: SSC | E187: ES | F187: high | G187: B1 | H187: GC1
A188: Hv_SSC_ES_high_B2 | B188: R2 | C188: Hv | D188: SSC | E188: ES | F188: high | G188: B2 | H188: GC1
A189: Hv_SSC_ES_high_B3 | B189: R2 | C189: Hv | D189: SSC | E189: ES | F189: high | G189: B3 | H189: GC1
A190: Hv_SSC_ES_high_B4 | B190: R2 | C190: Hv | D190: SSC | E190: ES | F190: high | G190: B4 | H190: GC1
A191: Hv_SSC_ES_low_B1 | B191: R2 | C191: Hv | D191: SSC | E191: ES | F191: low | G191: B1 | H191: GC1
A192: Hv_SSC_ES_low_B2 | B192: R2 | C192: Hv | D192: SSC | E192: ES | F192: low | G192: B2 | H192: GC1
A193: Hv_SSC_ES_low_B3 | B193: R2 | C193: Hv | D193: SSC | E193: ES | F193: low | G193: B3 | H193: GC1
A194: Hv_SSC_ES_low_B4 | B194: R2 | C194: Hv | D194: SSC | E194: ES | F194: low | G194: B4 | H194: GC1
A195: Hv_SSC_RZ_high_B1 | B195: R2 | C195: Hv | D195: SSC | E195: RZ | F195: high | G195: B1 | H195: GC1
A196: Hv_SSC_RZ_high_B2 | B196: R2 | C196: Hv | D196: SSC | E196: RZ | F196: high | G196: B2 | H196: GC1
A197: Hv_SSC_RZ_high_B3 | B197: R2 | C197: Hv | D197: SSC | E197: RZ | F197: high | G197: B3 | H197: GC1
A198: Hv_SSC_RZ_high_B4 | B198: R2 | C198: Hv | D198: SSC | E198: RZ | F198: high | G198: B4 | H198: GC1
A199: Hv_SSC_RZ_low_B1 | B199: R2 | C199: Hv | D199: SSC | E199: RZ | F199: low | G199: B1 | H199: GC1
A200: Hv_SSC_RZ_low_B2 | B200: R2 | C200: Hv | D200: SSC | E200: RZ | F200: low | G200: B2 | H200: GC1
... 246 more rows

Sheet Data_S15
I1: Isolate total abundance tables (normalized by isolate genome length)
I2: AtSC | CO2: HvSC | GB2: LjSC | JO2: SSC
I3: isolate | J3: At_AtSC_ES_high_B1 | K3: At_AtSC_ES_high_B2 | L3: At_AtSC_ES_high_B3 | M3: At_AtSC_ES_high_B4 | N3: At_AtSC_ES_HL_B1 | O3: At_AtSC_ES_HL_B2 | P3: At_AtSC_ES_HL_B3 | Q3: At_AtSC_ES_HL_B4 | R3: At_AtSC_ES_low_B1 | S3: At_AtSC_ES_low_B2 | T3: At_AtSC_ES_low_B3 | U3: At_AtSC_ES_low_B4 | V3: At_AtSC_RZ_high_B1 | W3: At_AtSC_RZ_high_B2 | X3: At_AtSC_RZ_high_B3 | Y3: At_AtSC_RZ_high_B4 | Z3: At_AtSC_RZ_HL_B1 | AA3: At_AtSC_RZ_HL_B2 | AB3: At_AtSC_RZ_HL_B3 | AC3: At_AtSC_RZ_HL_B4 | AD3: At_AtSC_RZ_low_B1 | AE3: At_AtSC_RZ_low_B2 | AF3: At_AtSC_RZ_low_B3 | AG3: At_AtSC_RZ_low_B4 | AH3: Hv_AtSC_ES_high_B1 | AI3: Hv_AtSC_ES_high_B2 | AJ3: Hv_AtSC_ES_high_B3 | AK3: Hv_AtSC_ES_high_B4 | AL3: Hv_AtSC_ES_low_B1 | AM3: Hv_AtSC_ES_low_B2 | AN3: Hv_AtSC_ES_low_B3 | AO3: Hv_AtSC_ES_low_B4 | AP3: Hv_AtSC_RZ_high_B1 | AQ3: Hv_AtSC_RZ_high_B2 | AR3: Hv_AtSC_RZ_high_B3 | AS3: Hv_AtSC_RZ_high_B4 | AT3: Hv_AtSC_RZ_low_B1 | AU3: Hv_AtSC_RZ_low_B2 | AV3: Hv_AtSC_RZ_low_B3 | AW3: Hv_AtSC_RZ_low_B4 | AX3: Input_AtSC_B1 | AY3: Input_AtSC_B2 | AZ3: Input_AtSC_B3 | BA3: Input_AtSC_B4 | BB3: Lj_AtSC_ES_high_B1 | BC3: Lj_AtSC_ES_high_B2 | BD3: Lj_AtSC_ES_high_B3 | BE3: Lj_AtSC_ES_high_B4 | BF3: Lj_AtSC_ES_low_B1 | BG3: Lj_AtSC_ES_low_B2 | BH3: Lj_AtSC_ES_low_B3 | BI3: Lj_AtSC_ES_low_B4 | BJ3: Lj_AtSC_RZ_high_B1 | BK3: Lj_AtSC_RZ_high_B2 | BL3: Lj_AtSC_RZ_high_B3 | BM3: Lj_AtSC_RZ_high_B4 | BN3: Lj_AtSC_RZ_low_B1 | BO3: Lj_AtSC_RZ_low_B2 | BP3: Lj_AtSC_RZ_low_B3 | BQ3: Lj_AtSC_RZ_low_B4 | BR3: NP_AtSC_high_B1 | BS3: NP_AtSC_high_B2 | BT3: NP_AtSC_high_B3 | BU3: NP_AtSC_high_B4 | BV3: NP_AtSC_low_B1 | BW3: NP_AtSC_low_B2 | BX3: NP_AtSC_low_B3 | BY3: NP_AtSC_low_B4 | BZ3: R1_At_GC2_AtSC_ES_B1 | CA3: R1_At_GC2_AtSC_ES_B2 | CB3: R1_At_GC2_AtSC_ES_B3 | CC3: R1_At_GC2_AtSC_ES_B4 | CD3: R1_At_GC2_AtSC_ES_B5 | CE3: R1_Hv_GC3_AtSC_ES_B1 | CF3: R1_Hv_GC3_AtSC_ES_B2 | CG3: R1_Hv_GC3_AtSC_ES_B3 | CH3: R1_Hv_GC3_AtSC_ES_B4 | CI3: R1_Input_AtSC | CJ3: R1_Lj_GC1_AtSC_ES_B1 | CK3: R1_Lj_GC1_AtSC_ES_B2 | CL3: R1_Lj_GC1_AtSC_ES_B3 | CM3: R1_Lj_GC1_AtSC_ES_B4 | CO3: isolate | CP3: At_HvSC_ES_high_B1 | CQ3: At_HvSC_ES_high_B2 | CR3: At_HvSC_ES_high_B3 | CS3: At_HvSC_ES_high_B4 | CT3: At_HvSC_ES_HL_B1 | CU3: At_HvSC_ES_HL_B2 | CV3: At_HvSC_ES_HL_B3 | CW3: At_HvSC_ES_HL_B4 | CX3: At_HvSC_ES_low_B1 | CY3: At_HvSC_ES_low_B2 | CZ3: At_HvSC_ES_low_B3 | DA3: At_HvSC_ES_low_B4 | DB3: At_HvSC_RZ_high_B1 | DC3: At_HvSC_RZ_high_B2 | DD3: At_HvSC_RZ_high_B3 | DE3: At_HvSC_RZ_high_B4 | DF3: At_HvSC_RZ_HL_B1 | DG3: At_HvSC_RZ_HL_B2 | DH3: At_HvSC_RZ_HL_B3 | DI3: At_HvSC_RZ_HL_B4 | DJ3: At_HvSC_RZ_low_B1 | DK3: At_HvSC_RZ_low_B2 | DL3: At_HvSC_RZ_low_B3 | DM3: At_HvSC_RZ_low_B4 | DN3: Hv_HvSC_ES_high_B1 | DO3: Hv_HvSC_ES_high_B2 | DP3: Hv_HvSC_ES_high_B3 | DQ3: Hv_HvSC_ES_high_B4 | DR3: Hv_HvSC_ES_low_B1 | DS3: Hv_HvSC_ES_low_B2 | DT3: Hv_HvSC_ES_low_B3 | DU3: Hv_HvSC_ES_low_B4 | DV3: Hv_HvSC_RZ_high_B1 | DW3: Hv_HvSC_RZ_high_B2 | DX3: Hv_HvSC_RZ_high_B3 | DY3: Hv_HvSC_RZ_high_B4 | DZ3: Hv_HvSC_RZ_low_B1 | EA3: Hv_HvSC_RZ_low_B2 | EB3: Hv_HvSC_RZ_low_B3 | EC3: Hv_HvSC_RZ_low_B4 | ED3: Input_HvSC_B1 | EE3: Input_HvSC_B2 | EF3: Input_HvSC_B3 | EG3: Input_HvSC_B4 | EH3: Lj_HvSC_ES_high_B1 | EI3: Lj_HvSC_ES_high_B2 | EJ3: Lj_HvSC_ES_high_B3 | EK3: Lj_HvSC_ES_high_B4 | EL3: Lj_HvSC_ES_low_B1 | EM3: Lj_HvSC_ES_low_B2 | EN3: Lj_HvSC_ES_low_B3 | EO3: Lj_HvSC_ES_low_B4 | EP3: Lj_HvSC_NOD_high_B1 | EQ3: Lj_HvSC_NOD_high_B2 | ER3: Lj_HvSC_NOD_high_B3 | ES3: Lj_HvSC_NOD_high_B4 | ET3: Lj_HvSC_NOD_low_B1 | EU3: Lj_HvSC_NOD_low_B2 | EV3: Lj_HvSC_NOD_low_B3 | EW3: Lj_HvSC_NOD_low_B4 | EX3: Lj_HvSC_RZ_high_B1 | EY3: Lj_HvSC_RZ_high_B2 | EZ3: Lj_HvSC_RZ_high_B3 | FA3: Lj_HvSC_RZ_high_B4 | FB3: Lj_HvSC_RZ_low_B1 | FC3: Lj_HvSC_RZ_low_B2 | FD3: Lj_HvSC_RZ_low_B3 | FE3: Lj_HvSC_RZ_low_B4 | FF3: NP_HvSC_high_B1 | FG3: NP_HvSC_high_B2 | FH3: NP_HvSC_high_B3 | FI3: NP_HvSC_high_B4 | FJ3: NP_HvSC_low_B1 | FK3: NP_HvSC_low_B2 | FL3: NP_HvSC_low_B3 | FM3: NP_HvSC_low_B4 | FN3: R1_At_GC2_HvSC_ES_B1 | FO3: R1_At_GC2_HvSC_ES_B2 | FP3: R1_At_GC2_HvSC_ES_B4 | FQ3: R1_At_GC2_HvSC_ES_B5 | FR3: R1_Hv_GC3_HvSC_ES_B1 | FS3: R1_Hv_GC3_HvSC_ES_B2 | FT3: R1_Hv_GC3_HvSC_ES_B3 | FU3: R1_Hv_GC3_HvSC_ES_B4 | FV3: R1_Input_HvSC | FW3: R1_Lj_GC1_HvSC_ES_B1 | FX3: R1_Lj_GC1_HvSC_ES_B2 | FY3: R1_Lj_GC1_HvSC_ES_B3 | FZ3: R1_Lj_GC1_HvSC_ES_B4 | GB3: isolate | GC3: At_LjSC_ES_high_B1 | GD3: At_LjSC_ES_high_B2 | GE3: At_LjSC_ES_high_B3 | GF3: At_LjSC_ES_high_B4 | GG3: At_LjSC_ES_HL_B1 | GH3: At_LjSC_ES_HL_B2 | GI3: At_LjSC_ES_HL_B3 | GJ3: At_LjSC_ES_HL_B4 | GK3: At_LjSC_ES_low_B1 | GL3: At_LjSC_ES_low_B2 | GM3: At_LjSC_ES_low_B3 | GN3: At_LjSC_ES_low_B4 | GO3: At_LjSC_RZ_high_B1 | GP3: At_LjSC_RZ_high_B2 | GQ3: At_LjSC_RZ_high_B3 | GR3: At_LjSC_RZ_high_B4 | GS3: At_LjSC_RZ_HL_B1 | GT3: At_LjSC_RZ_HL_B2 | GU3: At_LjSC_RZ_HL_B3 | GV3: At_LjSC_RZ_HL_B4 | GW3: At_LjSC_RZ_low_B1 | GX3: At_LjSC_RZ_low_B2 | GY3: At_LjSC_RZ_low_B3 | GZ3: At_LjSC_RZ_low_B4 | HA3: Hv_LjSC_ES_high_B1 | HB3: Hv_LjSC_ES_high_B2 | HC3: Hv_LjSC_ES_high_B3 | HD3: Hv_LjSC_ES_high_B4 | HE3: Hv_LjSC_ES_low_B1 | HF3: Hv_LjSC_ES_low_B2 | HG3: Hv_LjSC_ES_low_B3 | HH3: Hv_LjSC_ES_low_B4 | HI3: Hv_LjSC_RZ_high_B1 | HJ3: Hv_LjSC_RZ_high_B2 | HK3: Hv_LjSC_RZ_high_B3 | HL3: Hv_LjSC_RZ_high_B4 | HM3: Hv_LjSC_RZ_low_B1 | HN3: Hv_LjSC_RZ_low_B2 | HO3: Hv_LjSC_RZ_low_B3 | HP3: Hv_LjSC_RZ_low_B4 | HQ3: Input_LjSC_B1 | HR3: Input_LjSC_B2 | HS3: Input_LjSC_B3 | HT3: Input_LjSC_B4 | HU3: Lj_LjSC_ES_high_B1 | HV3: Lj_LjSC_ES_high_B2 | HW3: Lj_LjSC_ES_high_B3 | HX3: Lj_LjSC_ES_high_B4 | HY3: Lj_LjSC_ES_low_B1 | HZ3: Lj_LjSC_ES_low_B2 | IA3: Lj_LjSC_ES_low_B3 | IB3: Lj_LjSC_ES_low_B4 | IC3: Lj_LjSC_NOD_high_B1 | ID3: Lj_LjSC_NOD_high_B2 | IE3: Lj_LjSC_NOD_high_B3 | IF3: Lj_LjSC_NOD_high_B4 | IG3: Lj_LjSC_NOD_low_B1 | IH3: Lj_LjSC_NOD_low_B2 | II3: Lj_LjSC_NOD_low_B3 | IJ3: Lj_LjSC_NOD_low_B4 | IK3: Lj_LjSC_RZ_high_B1 | IL3: Lj_LjSC_RZ_high_B2 | IM3: Lj_LjSC_RZ_high_B3 | IN3: Lj_LjSC_RZ_high_B4 | IO3: Lj_LjSC_RZ_low_B1 | IP3: Lj_LjSC_RZ_low_B2 | IQ3: Lj_LjSC_RZ_low_B3 | IR3: Lj_LjSC_RZ_low_B4 | IS3: NP_LjSC_high_B1 | IT3: NP_LjSC_high_B2 | IU3: NP_LjSC_high_B3 | IV3: NP_LjSC_high_B4 | IW3: NP_LjSC_low_B1 | IX3: NP_LjSC_low_B2 | IY3: NP_LjSC_low_B3 | IZ3: NP_LjSC_low_B4 | JA3: R1_At_GC2_LjSC_ES_B1 | JB3: R1_At_GC2_LjSC_ES_B2 | JC3: R1_At_GC2_LjSC_ES_B4 | JD3: R1_Hv_GC3_LjSC_ES_B1 | JE3: R1_Hv_GC3_LjSC_ES_B2 | JF3: R1_Hv_GC3_LjSC_ES_B3 | JG3: R1_Hv_GC3_LjSC_ES_B4 | JH3: R1_Input_LjSC_2 | JI3: R1_Input_LjSC | JJ3: R1_Lj_GC1_LjSC_ES_B1 | JK3: R1_Lj_GC1_LjSC_ES_B2 | JL3: R1_Lj_GC1_LjSC_ES_B3 | JM3: R1_Lj_GC1_LjSC_ES_B4 | JO3: isolate | JP3: At_AtSC_ES_high_B1 | JQ3: At_AtSC_ES_high_B2 | JR3: At_AtSC_ES_high_B3 | JS3: At_AtSC_ES_high_B4 | JT3: At_AtSC_ES_HL_B1 | JU3: At_AtSC_ES_HL_B2 | JV3: At_AtSC_ES_HL_B3 | JW3: At_AtSC_ES_HL_B4 | JX3: At_AtSC_ES_low_B1 | JY3: At_AtSC_ES_low_B2 | JZ3: At_AtSC_ES_low_B3 | KA3: At_AtSC_ES_low_B4 | KB3: At_AtSC_RZ_high_B1 | KC3: At_AtSC_RZ_high_B2 | KD3: At_AtSC_RZ_high_B3 | KE3: At_AtSC_RZ_high_B4 | KF3: At_AtSC_RZ_HL_B1 | KG3: At_AtSC_RZ_HL_B2 | KH3: At_AtSC_RZ_HL_B3 | KI3: At_AtSC_RZ_HL_B4 | KJ3: At_AtSC_RZ_low_B1 | KK3: At_AtSC_RZ_low_B2 | KL3: At_AtSC_RZ_low_B3 | KM3: At_AtSC_RZ_low_B4 | KN3: At_HvSC_ES_high_B1 | KO3: At_HvSC_ES_high_B2 | KP3: At_HvSC_ES_high_B3 | KQ3: At_HvSC_ES_high_B4 | KR3: At_HvSC_ES_HL_B1 | KS3: At_HvSC_ES_HL_B2 | KT3: At_HvSC_ES_HL_B3 | KU3: At_HvSC_ES_HL_B4 | KV3: At_HvSC_ES_low_B1 | KW3: At_HvSC_ES_low_B2 | KX3: At_HvSC_ES_low_B3 | KY3: At_HvSC_ES_low_B4 | KZ3: At_HvSC_RZ_high_B1 | LA3: At_HvSC_RZ_high_B2 | LB3: At_HvSC_RZ_high_B3 | LC3: At_HvSC_RZ_high_B4 | LD3: At_HvSC_RZ_HL_B1 | LE3: At_HvSC_RZ_HL_B2 | LF3: At_HvSC_RZ_HL_B3 | LG3: At_HvSC_RZ_HL_B4 | LH3: At_HvSC_RZ_low_B1 | LI3: At_HvSC_RZ_low_B2 | LJ3: At_HvSC_RZ_low_B3 | LK3: At_HvSC_RZ_low_B4 | LL3: At_LjSC_ES_high_B1 | LM3: At_LjSC_ES_high_B2 | LN3: At_LjSC_ES_high_B3 | LO3: At_LjSC_ES_high_B4 | LP3: At_LjSC_ES_HL_B1 | LQ3: At_LjSC_ES_HL_B2 | LR3: At_LjSC_ES_HL_B3 | LS3: At_LjSC_ES_HL_B4 | LT3: At_LjSC_ES_low_B1 | LU3: At_LjSC_ES_low_B2 | LV3: At_LjSC_ES_low_B3 | LW3: At_LjSC_ES_low_B4 | LX3: At_LjSC_RZ_high_B1 | LY3: At_LjSC_RZ_high_B2 | LZ3: At_LjSC_RZ_high_B3 | MA3: At_LjSC_RZ_high_B4 | MB3: At_LjSC_RZ_HL_B1 | MC3: At_LjSC_RZ_HL_B2 | MD3: At_LjSC_RZ_HL_B3 | ME3: At_LjSC_RZ_HL_B4 | MF3: At_LjSC_RZ_low_B1 | MG3: At_LjSC_RZ_low_B2 | MH3: At_LjSC_RZ_low_B3 | MI3: At_LjSC_RZ_low_B4 | MJ3: At_NS_ES_high_B1 | MK3: At_NS_ES_high_B2 | ML3: At_NS_ES_high_B3 | MM3: At_NS_ES_high_B4 | MN3: At_NS_ES_HL_B1 | MO3: At_NS_ES_HL_B2 | MP3: At_NS_ES_HL_B3 | MQ3: At_NS_ES_HL_B4 | MR3: At_NS_ES_low_B1 | MS3: At_NS_ES_low_B2 | MT3: At_NS_ES_low_B3 | MU3: At_NS_ES_low_B4 | MV3: At_NS_RZ_high_B1 | MW3: At_NS_RZ_high_B2 | MX3: At_NS_RZ_high_B3 | MY3: At_NS_RZ_high_B4 | MZ3: At_NS_RZ_HL_B1 | NA3: At_NS_RZ_HL_B2 | NB3: At_NS_RZ_HL_B3 | NC3: At_NS_RZ_HL_B4 | ND3: At_NS_RZ_low_B1 | NE3: At_NS_RZ_low_B2 | NF3: At_NS_RZ_low_B3 | NG3: At_NS_RZ_low_B4 | NH3: At_SSC_ES_high_B1 | NI3: At_SSC_ES_high_B2 | NJ3: At_SSC_ES_high_B3 | NK3: At_SSC_ES_high_B4 | NL3: At_SSC_ES_HL_B1 | NM3: At_SSC_ES_HL_B2 | NN3: At_SSC_ES_HL_B3 | NO3: At_SSC_ES_HL_B4 | NP3: At_SSC_ES_low_B1 | NQ3: At_SSC_ES_low_B2 | NR3: At_SSC_ES_low_B3 | NS3: At_SSC_ES_low_B4 | NT3: At_SSC_RZ_high_B1 | NU3: At_SSC_RZ_high_B2 | NV3: At_SSC_RZ_high_B3 | NW3: At_SSC_RZ_high_B4 | NX3: At_SSC_RZ_HL_B1 | NY3: At_SSC_RZ_HL_B2 | NZ3: At_SSC_RZ_HL_B3 | OA3: At_SSC_RZ_HL_B4 | OB3: At_SSC_RZ_low_B1 | OC3: At_SSC_RZ_low_B2 | OD3: At_SSC_RZ_low_B3 | OE3: At_SSC_RZ_low_B4 | OF3: Hv_AtSC_ES_high_B1 | OG3: Hv_AtSC_ES_high_B2 | OH3: Hv_AtSC_ES_high_B3 | OI3: Hv_AtSC_ES_high_B4 | OJ3: Hv_AtSC_ES_low_B1 | OK3: Hv_AtSC_ES_low_B2 | OL3: Hv_AtSC_ES_low_B3 | OM3: Hv_AtSC_ES_low_B4 | ON3: Hv_AtSC_RZ_high_B1 | OO3: Hv_AtSC_RZ_high_B2 | OP3: Hv_AtSC_RZ_high_B3 | OQ3: Hv_AtSC_RZ_high_B4 | OR3: Hv_AtSC_RZ_low_B1 | OS3: Hv_AtSC_RZ_low_B2 | OT3: Hv_AtSC_RZ_low_B3 | OU3: Hv_AtSC_RZ_low_B4 | OV3: Hv_HvSC_ES_high_B1 | OW3: Hv_HvSC_ES_high_B2 | OX3: Hv_HvSC_ES_high_B3 | OY3: Hv_HvSC_ES_high_B4 | OZ3: Hv_HvSC_ES_low_B1 | PA3: Hv_HvSC_ES_low_B2 | PB3: Hv_HvSC_ES_low_B3 | PC3: Hv_HvSC_ES_low_B4 | PD3: Hv_HvSC_RZ_high_B1 | PE3: Hv_HvSC_RZ_high_B2 | PF3: Hv_HvSC_RZ_high_B3 | PG3: Hv_HvSC_RZ_high_B4 | PH3: Hv_HvSC_RZ_low_B1 | PI3: Hv_HvSC_RZ_low_B2 | PJ3: Hv_HvSC_RZ_low_B3 | PK3: Hv_HvSC_RZ_low_B4 | PL3: Hv_LjSC_ES_high_B1 | PM3: Hv_LjSC_ES_high_B2 | PN3: Hv_LjSC_ES_high_B3 | PO3: Hv_LjSC_ES_high_B4 | PP3: Hv_LjSC_ES_low_B1 | PQ3: Hv_LjSC_ES_low_B2 | PR3: Hv_LjSC_ES_low_B3 | PS3: Hv_LjSC_ES_low_B4 | PT3: Hv_LjSC_RZ_high_B1 | PU3: Hv_LjSC_RZ_high_B2 | PV3: Hv_LjSC_RZ_high_B3 | PW3: Hv_LjSC_RZ_high_B4 | PX3: Hv_LjSC_RZ_low_B1 | PY3: Hv_LjSC_RZ_low_B2 | PZ3: Hv_LjSC_RZ_low_B3 | QA3: Hv_LjSC_RZ_low_B4 | QB3: Hv_NS_ES_high_B1 | QC3: Hv_NS_ES_high_B2 | QD3: Hv_NS_ES_high_B3 | QE3: Hv_NS_ES_high_B4 | QF3: Hv_NS_ES_low_B1 | QG3: Hv_NS_ES_low_B2 | QH3: Hv_NS_ES_low_B3 | QI3: Hv_NS_ES_low_B4 | QJ3: Hv_NS_RZ_high_B1 | QK3: Hv_NS_RZ_high_B2 | QL3: Hv_NS_RZ_high_B3 | QM3: Hv_NS_RZ_high_B4 | QN3: Hv_NS_RZ_low_B1 | QO3: Hv_NS_RZ_low_B2 | QP3: Hv_NS_RZ_low_B3 | QQ3: Hv_NS_RZ_low_B4 | QR3: Hv_SSC_ES_high_B1 | QS3: Hv_SSC_ES_high_B2 | QT3: Hv_SSC_ES_high_B3 | QU3: Hv_SSC_ES_high_B4 | QV3: Hv_SSC_ES_low_B1 | QW3: Hv_SSC_ES_low_B2 | QX3: Hv_SSC_ES_low_B3 | QY3: Hv_SSC_ES_low_B4 | QZ3: Hv_SSC_RZ_high_B1 | RA3: Hv_SSC_RZ_high_B2 | RB3: Hv_SSC_RZ_high_B3 | RC3: Hv_SSC_RZ_high_B4 | RD3: Hv_SSC_RZ_low_B1 | RE3: Hv_SSC_RZ_low_B2 | RF3: Hv_SSC_RZ_low_B3 | RG3: Hv_SSC_RZ_low_B4 | RH3: Input_AtSC_B1 | RI3: Input_AtSC_B2 | RJ3: Input_AtSC_B3 | RK3: Input_AtSC_B4 | RL3: Input_HvSC_B1 | RM3: Input_HvSC_B2 | RN3: Input_HvSC_B3 | RO3: Input_HvSC_B4 | RP3: Input_LjSC_B1 | RQ3: Input_LjSC_B2 | RR3: Input_LjSC_B3 | RS3: Input_LjSC_B4 | RT3: Input_SSC_B1 | RU3: Input_SSC_B2 | RV3: Input_SSC_B3 | RW3: Input_SSC_B4 | RX3: Lj_AtSC_ES_high_B1 | RY3: Lj_AtSC_ES_high_B2 | RZ3: Lj_AtSC_ES_high_B3 | SA3: Lj_AtSC_ES_high_B4 | SB3: Lj_AtSC_ES_low_B1 | SC3: Lj_AtSC_ES_low_B2 | SD3: Lj_AtSC_ES_low_B3 | SE3: Lj_AtSC_ES_low_B4 | SF3: Lj_AtSC_RZ_high_B1 | SG3: Lj_AtSC_RZ_high_B2 | SH3: Lj_AtSC_RZ_high_B3 | SI3: Lj_AtSC_RZ_high_B4 | SJ3: Lj_AtSC_RZ_low_B1 | SK3: Lj_AtSC_RZ_low_B2 | SL3: Lj_AtSC_RZ_low_B3 | SM3: Lj_AtSC_RZ_low_B4 | SN3: Lj_HvSC_ES_high_B1 | SO3: Lj_HvSC_ES_high_B2 | SP3: Lj_HvSC_ES_high_B3 | SQ3: Lj_HvSC_ES_high_B4 | SR3: Lj_HvSC_ES_low_B1 | SS3: Lj_HvSC_ES_low_B2 | ST3: Lj_HvSC_ES_low_B3 | SU3: Lj_HvSC_ES_low_B4 | SV3: Lj_HvSC_NOD_high_B1 | SW3: Lj_HvSC_NOD_high_B2 | SX3: Lj_HvSC_NOD_high_B3 | SY3: Lj_HvSC_NOD_high_B4 | SZ3: Lj_HvSC_NOD_low_B1 | TA3: Lj_HvSC_NOD_low_B2 | TB3: Lj_HvSC_NOD_low_B3 | TC3: Lj_HvSC_NOD_low_B4 | TD3: Lj_HvSC_RZ_high_B1 | TE3: Lj_HvSC_RZ_high_B2 | TF3: Lj_HvSC_RZ_high_B3 | TG3: Lj_HvSC_RZ_high_B4 | TH3: Lj_HvSC_RZ_low_B1 | TI3: Lj_HvSC_RZ_low_B2 | TJ3: Lj_HvSC_RZ_low_B3 | TK3: Lj_HvSC_RZ_low_B4 | TL3: Lj_LjSC_ES_high_B1 | TM3: Lj_LjSC_ES_high_B2 | TN3: Lj_LjSC_ES_high_B3 | TO3: Lj_LjSC_ES_high_B4 | TP3: Lj_LjSC_ES_low_B1 | TQ3: Lj_LjSC_ES_low_B2 | TR3: Lj_LjSC_ES_low_B3 | TS3: Lj_LjSC_ES_low_B4 | TT3: Lj_LjSC_NOD_high_B1 | TU3: Lj_LjSC_NOD_high_B2 | TV3: Lj_LjSC_NOD_high_B3 | TW3: Lj_LjSC_NOD_high_B4 | TX3: Lj_LjSC_NOD_low_B1 | TY3: Lj_LjSC_NOD_low_B2 | TZ3: Lj_LjSC_NOD_low_B3 | UA3: Lj_LjSC_NOD_low_B4 | UB3: Lj_LjSC_RZ_high_B1 | UC3: Lj_LjSC_RZ_high_B2 | UD3: Lj_LjSC_RZ_high_B3 | UE3: Lj_LjSC_RZ_high_B4 | UF3: Lj_LjSC_RZ_low_B1 | UG3: Lj_LjSC_RZ_low_B2 | UH3: Lj_LjSC_RZ_low_B3 | UI3: Lj_LjSC_RZ_low_B4 | UJ3: Lj_NS_ES_high_B1 | UK3: Lj_NS_ES_high_B2 | UL3: Lj_NS_ES_high_B3 | UM3: Lj_NS_ES_high_B4 | UN3: Lj_NS_ES_low_B1 | UO3: Lj_NS_ES_low_B2 | UP3: Lj_NS_ES_low_B3 | UQ3: Lj_NS_ES_low_B4 | UR3: Lj_NS_RZ_high_B1 | US3: Lj_NS_RZ_high_B2 | UT3: Lj_NS_RZ_high_B3 | UU3: Lj_NS_RZ_high_B4 | UV3: Lj_NS_RZ_low_B1 | UW3: Lj_NS_RZ_low_B2 | UX3: Lj_NS_RZ_low_B3 | UY3: Lj_NS_RZ_low_B4 | UZ3: Lj_SSC_ES_high_B1 | VA3: Lj_SSC_ES_high_B2 | VB3: Lj_SSC_ES_high_B3 | VC3: Lj_SSC_ES_high_B4 | VD3: Lj_SSC_ES_low_B1 | VE3: Lj_SSC_ES_low_B2 | VF3: Lj_SSC_ES_low_B3 | VG3: Lj_SSC_ES_low_B4 | VH3: Lj_SSC_NOD_high_B1 | VI3: Lj_SSC_NOD_high_B2 | VJ3: Lj_SSC_NOD_high_B3 | VK3: Lj_SSC_NOD_high_B4 | VL3: Lj_SSC_NOD_low_B1 | VM3: Lj_SSC_NOD_low_B2 | VN3: Lj_SSC_NOD_low_B3 | VO3: Lj_SSC_NOD_low_B4 | VP3: Lj_SSC_RZ_high_B1 | VQ3: Lj_SSC_RZ_high_B2 | VR3: Lj_SSC_RZ_high_B3 | VS3: Lj_SSC_RZ_high_B4 | VT3: Lj_SSC_RZ_low_B1 | VU3: Lj_SSC_RZ_low_B2 | VV3: Lj_SSC_RZ_low_B3 | VW3: Lj_SSC_RZ_low_B4 | VX3: Neg_Ct_1 | VY3: Neg_Ct_2 | VZ3: NP_AtSC_high_B1 | WA3: NP_AtSC_high_B2 | WB3: NP_AtSC_high_B3 | WC3: NP_AtSC_high_B4 | WD3: NP_AtSC_low_B1 | WE3: NP_AtSC_low_B2 | WF3: NP_AtSC_low_B3 | WG3: NP_AtSC_low_B4 | WH3: NP_HvSC_high_B1 | WI3: NP_HvSC_high_B2 | WJ3: NP_HvSC_high_B3 | WK3: NP_HvSC_high_B4 | WL3: NP_HvSC_low_B1 | WM3: NP_HvSC_low_B2 | WN3: NP_HvSC_low_B3 | WO3: NP_HvSC_low_B4 | WP3: NP_LjSC_high_B1 | WQ3: NP_LjSC_high_B2 | WR3: NP_LjSC_high_B3 | WS3: NP_LjSC_high_B4 | WT3: NP_LjSC_low_B1 | WU3: NP_LjSC_low_B2 | WV3: NP_LjSC_low_B3 | WW3: NP_LjSC_low_B4 | WX3: NP_NS_AM_low_B1 | WY3: NP_NS_AM_low_B2 | WZ3: NP_NS_AM_low_B3 | XA3: NP_NS_AM_low_B4 | XB3: NP_NS_low_GC1_B1 | XC3: NP_NS_low_GC1_B2 | XD3: NP_NS_low_GC1_B3 | XE3: NP_NS_low_GC1_B4 | XF3: NP_NS_low_GC2_B1 | XG3: NP_NS_low_GC2_B2 | XH3: NP_NS_low_GC2_B3 | XI3: NP_NS_low_GC2_B4 | XJ3: NP_SSC_high_B1 | XK3: NP_SSC_high_B2 | XL3: NP_SSC_high_B3 | XM3: NP_SSC_high_B4 | XN3: NP_SSC_low_B1 | XO3: NP_SSC_low_B2 | XP3: NP_SSC_low_B3 | XQ3: NP_SSC_low_B4 | XR3: R1_At_GC1_SSC_ES_B1 | XS3: R1_At_GC1_SSC_ES_B2 | XT3: R1_At_GC1_SSC_ES_B3 | XU3: R1_At_GC1_SSC_ES_B4 | XV3: R1_At_GC1_SSC_RZ_B3 | XW3: R1_At_GC1_SSC_RZ_B4 | XX3: R1_At_GC2_AtSC_ES_B1 | XY3: R1_At_GC2_AtSC_ES_B2 | XZ3: R1_At_GC2_AtSC_ES_B3 | YA3: R1_At_GC2_AtSC_ES_B4 | YB3: R1_At_GC2_AtSC_ES_B5 | YC3: R1_At_GC2_HvSC_ES_B1 | YD3: R1_At_GC2_HvSC_ES_B2 | YE3: R1_At_GC2_HvSC_ES_B4 | YF3: R1_At_GC2_HvSC_ES_B5 | YG3: R1_At_GC2_LjSC_ES_B1 | YH3: R1_At_GC2_LjSC_ES_B2 | YI3: R1_At_GC2_LjSC_ES_B4 | YJ3: R1_At_GC2_SSC_ES_B1 | YK3: R1_At_GC2_SSC_ES_B2 | YL3: R1_At_GC2_SSC_ES_B3 | YM3: R1_At_GC2_SSC_ES_B4 | YN3: R1_Hv_GC1_SSC_ES_B1 | YO3: R1_Hv_GC1_SSC_ES_B2 | YP3: R1_Hv_GC1_SSC_ES_B3 | YQ3: R1_Hv_GC1_SSC_ES_B4 | YR3: R1_Hv_GC1_SSC_RZ_B1 | YS3: R1_Hv_GC2_SSC_ES_B1 | YT3: R1_Hv_GC2_SSC_ES_B2 | YU3: R1_Hv_GC2_SSC_ES_B3 | YV3: R1_Hv_GC2_SSC_ES_B4 | YW3: R1_Hv_GC3_AtSC_ES_B1 | YX3: R1_Hv_GC3_AtSC_ES_B2 | YY3: R1_Hv_GC3_AtSC_ES_B3 | YZ3: R1_Hv_GC3_AtSC_ES_B4 | ZA3: R1_Hv_GC3_HvSC_ES_B1 | ZB3: R1_Hv_GC3_HvSC_ES_B2 | ZC3: R1_Hv_GC3_HvSC_ES_B3 | ZD3: R1_Hv_GC3_HvSC_ES_B4 | ZE3: R1_Hv_GC3_LjSC_ES_B1 | ZF3: R1_Hv_GC3_LjSC_ES_B2 | ZG3: R1_Hv_GC3_LjSC_ES_B3 | ZH3: R1_Hv_GC3_LjSC_ES_B4 | ZI3: R1_Hv_GC3_SSC_ES_B1 | ZJ3: R1_Hv_GC3_SSC_ES_B2 | ZK3: R1_Hv_GC3_SSC_ES_B3 | ZL3: R1_Hv_GC3_SSC_ES_B4 | ZM3: R1_Hv_GC3_SSC_RZ_B1 | ZN3: R1_Input_AtSC | ZO3: R1_Input_HvSC | ZP3: R1_Input_LjSC_2 | ZQ3: R1_Input_LjSC | ZR3: R1_Lj_GC1_AtSC_ES_B1 | ZS3: R1_Lj_GC1_AtSC_ES_B2 | ZT3: R1_Lj_GC1_AtSC_ES_B3 | ZU3: R1_Lj_GC1_AtSC_ES_B4 | ZV3: R1_Lj_GC1_HvSC_ES_B1 | ZW3: R1_Lj_GC1_HvSC_ES_B2 | ZX3: R1_Lj_GC1_HvSC_ES_B3 | ZY3: R1_Lj_GC1_HvSC_ES_B4 | ZZ3: R1_Lj_GC1_LjSC_ES_B1 | AAA3: R1_Lj_GC1_LjSC_ES_B2 | AAB3: R1_Lj_GC1_LjSC_ES_B3 | AAC3: R1_Lj_GC1_LjSC_ES_B4 | AAD3: R1_Lj_GC1_SSC_ES_B1 | AAE3: R1_Lj_GC1_SSC_ES_B2 | AAF3: R1_Lj_GC1_SSC_ES_B3 | AAG3: R1_Lj_GC1_SSC_ES_B4 | AAH3: R1_Lj_GC1_SSC_RZ_B1 | AAI3: R1_Lj_GC1_SSC_RZ_B3 | AAJ3: R1_Lj_GC2_SSC_ES_B1 | AAK3: R1_Lj_GC2_SSC_ES_B2 | AAL3: R1_Lj_GC2_SSC_ES_B3 | AAM3: R1_Lj_GC2_SSC_ES_B4 | AAN3: R1_Lj_GC3_SSC_ES_B1 | AAO3: R1_Lj_GC3_SSC_ES_B2 | AAP3: R1_Lj_GC3_SSC_ES_B3 | AAQ3: R1_Lj_GC3_SSC_ES_B4
I4: 01L310 | J4: 28.50781673 | K4: 89.37837867 | L4: 18.85197122 | M4: 35.37665605 | N4: 17.66310038 | O4: 21.20304368 | P4: 49.23124682 | Q4: 0 | R4: 0 | S4: 23.11991231 | T4: 1.354940833 | U4: 0 | V4: 0 | W4: 0 | X4: 0 | Y4: 19.64829989 | Z4: 7.531101073 | AA4: 7.077580075 | AB4: 6.628672132 | AC4: 0 | AD4: 3.17147551 | AE4: 0.863217971 | AF4: 0 | AG4: 1.379447689 | AH4: 0 | AI4: 0 | AJ4: 0 | AK4: 0.978111879 | AL4: 11.09454212 | AM4: 18.20989159 | AN4: 0 | AO4: 0 | AP4: 113.1595436 | AQ4: 22.34390992 | AR4: 141.8188704 | AS4: 186.1486018 | AT4: 21.56862831 | AU4: 30.355922 | AV4: 0 | AW4: 1.926383056 | AX4: 476.7591198 | AY4: 890.1521589 | AZ4: 97.35752274 | BA4: 523.6127691 | BB4: 12.1899986 | BC4: 23.20049662 | BD4: 0 | BE4: 0 | BF4: 0 | BG4: 0 | BH4: 21.97746034 | BI4: 0 | BJ4: 336.9515415 | BK4: 430.9575354 | BL4: 202.4873228 | BM4: 10.64534587 | BN4: 575.5794136 | BO4: 389.0294759 | BP4: 318.7102235 | BQ4: 643.7768047 | BR4: 46.99679816 | BS4: 22.30469895 | BT4: 6.526608284 | BU4: 0 | BV4: 12.52458926 | BW4: 5.185794933 | BX4: 15.6603136 | BY4: 67.59163934 | BZ4: 0 | CA4: 3.246005185 | CB4: 0 | CC4: 0 | CD4: 8.611565116 | CE4: 2.413204547 | CF4: 0 | CG4: 8.081063758 | CH4: 2.487301748 | CI4: 262.0327847 | CJ4: 6.971479803 | CK4: 7.57333936 | CL4: 0 | CM4: 0 | CO4: P1_A10 | CP4: 7.548571207 | CQ4: 29.40201201 | CR4: 18.27096773 | CS4: 4.117248775 | CT4: 52.63389931 | CU4: 25.63744806 | CV4: 27.43502481 | CW4: 38.04481917 | CX4: 0.731406792 | CY4: 5.249864147 | CZ4: 14.65738535 | DA4: 6.149497882 | DB4: 0.191220777 | DC4: 0 | DD4: 0.429274583 | DE4: 0 | DF4: 0 | DG4: 0.589047911 | DH4: 0 | DI4: 0.42538592 | DJ4: 0.169072305 | DK4: 0 | DL4: 0 | DM4: 0 | DN4: 131.6506865 | DO4: 159.5061941 | DP4: 88.54418063 | DQ4: 307.5947664 | DR4: 28.73823414 | DS4: 22.5939775 | DT4: 19.96845367 | DU4: 15.05233825 | DV4: 315.2287191 | DW4: 618.4938819 | DX4: 301.7805389 | DY4: 350.5239154 | DZ4: 1.008685372 | EA4: 50.14126632 | EB4: 0 | EC4: 0.474585961 | ED4: 17.6954456 | EE4: 23.51051846 | EF4: 17.27935866 | EG4: 36.11840933 | EH4: 2.208084305 | EI4: 0.418284883 | EJ4: 12.8836478 | EK4: 3.15607272 | EL4: 0.95644203 | EM4: 3.551194697 | EN4: 3.619499908 | EO4: 8.269495516 | EP4: 1.063802944 | EQ4: 0.225373383 | ER4: 0 | ES4: 0 | ET4: 3.195297495 | EU4: 2.813194085 | EV4: 2.833820906 | EW4: 3.561508108 | EX4: 11.5253209 | EY4: 25.50202114 | EZ4: 12.53011761 | FA4: 17.01459143 | FB4: 0.169241377 | FC4: 5.331018853 | FD4: 3.939215637 | FE4: 0 | FF4: 0.169072305 | FG4: 0 | FH4: 0.240758963 | FI4: 0 | FJ4: 0 | FK4: 0.169072305 | FL4: 0.169072305 | FM4: 0.297229112 | FN4: 34.00128592 | FO4: 4.501550124 | FP4: 6.876846939 | FQ4: 49.87599187 | FR4: 44.53449053 | FS4: 76.08186102 | FT4: 42.89837784 | FU4: 31.84358517 | FV4: 8.166023266 | FW4: 1.952277907 | FX4: 7.671824918 | FY4: 5.89555128 | FZ4: 9.965121665 | GB4: LjNodule214 | GC4: 353.1756986 | GD4: 435.8237807 | GE4: 177.2554594 | GF4: 462.6360022 | GG4: 554.1110102 | GH4: 1105.393051 | GI4: 277.4068559 | GJ4: 230.1356432 | GK4: 56.42188117 | GL4: 43.14000736 | GM4: 24.83402061 | GN4: 85.29847022 | GO4: 4470.534927 | GP4: 2113.318368 | GQ4: 26.80510148 | GR4: 264.0380889 | GS4: 124.3813785 | GT4: 184.2224638 | GU4: 112.1310346 | GV4: 124.4220643 | GW4: 69.98957259 | GX4: 3.320105185 | GY4: 7.509868977 | GZ4: 15.14891531 | HA4: 26.50809527 | HB4: 34.59192439 | HC4: 60.11527841 | HD4: 41.4772666 | HE4: 14.43211901 | HF4: 21.77721056 | HG4: 12.75935211 | HH4: 7.871245912 | HI4: 914.7221809 | HJ4: 993.0934607 | HK4: 676.3395295 | HL4: 83.87839109 | HM4: 32.30741769 | HN4: 7.991850197 | HO4: 24.41088847 | HP4: 19.7904366 | HQ4: 1101.61959 | HR4: 334.3184195 | HS4: 102.6787101 | HT4: 2863.054759 | HU4: 2717.388323 | HV4: 648.0389349 | HW4: 2159.557034 | HX4: 2557.820136 | HY4: 77825.63591 | HZ4: 20828.8751 | IA4: 1467.092421 | IB4: 66611.50019 | IC4: 177386.9672 | ID4: 42341.82627 | IE4: 452141.7202 | IF4: 483337.12 | IG4: 358610.1515 | IH4: 511793.3039 | II4: 518648.4311 | IJ4: 445187.4929 | IK4: 1251.297935 | IL4: 1534.790803 | IM4: 3592.695134 | IN4: 1531.64957 | IO4: 2229.897085 | IP4: 950.9822224 | IQ4: 790.1112183 | IR4: 3049.859608 | IS4: 4.499266355 | IT4: 4.213884649 | IU4: 20.63234169 | IV4: 1.176109736 | IW4: 67.68428708 | IX4: 56.8082508 | IY4: 591.1353631 | IZ4: 1008.025579 | JA4: 91.63164823 | JB4: 32.00997555 | JC4: 59.27933088 | JD4: 57.23065641 | JE4: 66.69852868 | JF4: 32.88719009 | JG4: 3.590229721 | JH4: 13114.6022 | JI4: 4738.553829 | JJ4: 39.57404381 | JK4: 6439.618853 | JL4: 6559.111689 | JM4: 6198.991073 | JO4: 01L310 | JP4: 28.50781673 | JQ4: 89.37837867 | JR4: 18.85197122 | JS4: 35.37665605 | JT4: 17.66310038 | JU4: 21.20304368 | JV4: 49.23124682 | JW4: 0 | JX4: 0 | JY4: 23.11991231 | JZ4: 1.354940833 | KA4: 0 | KB4: 0 | KC4: 0 | KD4: 0 | KE4: 19.64829989 | KF4: 7.531101073 | KG4: 7.077580075 | KH4: 6.628672132 | KI4: 0 | KJ4: 3.17147551 | KK4: 0.863217971 | KL4: 0 | KM4: 1.379447689 | KN4: 0 | KO4: 2.956968439 | KP4: 1.922490791 | KQ4: 0 | KR4: 3.437446979 | KS4: 0 | KT4: 0 | KU4: 1.734508788 | KV4: 0.72352889 | KW4: 4.037000009 | KX4: 1.138703866 | KY4: 0 | KZ4: 6.222867425 | LA4: 0 | LB4: 0 | LC4: 5.533503975 | LD4: 0 | LE4: 2.643424838 | LF4: 0 | LG4: 5.781455697 | LH4: 0 | LI4: 2.87350097 | LJ4: 0 | LK4: 3.93998169 | LL4: 0 | LM4: 0 | LN4: 0 | LO4: 0 | LP4: 0 | LQ4: 0 | LR4: 0 | LS4: 2.40585249 | LT4: 0 | LU4: 1.013863057 | LV4: 0 | LW4: 0 | LX4: 0 | LY4: 0 | LZ4: 0 | MA4: 0 | MB4: 7.462337718 | MC4: 19.97755671 | MD4: 4.902380349 | ME4: 12.90574296 | MF4: 0 | MG4: 1.119098381 | MH4: 4.387303894 | MI4: 0 | MJ4: 0 | MK4: 2.338386557 | ML4: 0 | MM4: 0 | MN4: 3.435861241 | MO4: 0 | MP4: 2.023545533 | MQ4: 0 | MR4: 0 | MS4: 2.113211796 | MT4: 0 | MU4: 1.919607632 | MV4: 0 | MW4: 0 | MX4: 3.491938695 | MY4: 12.40032509 | MZ4: 0 | NA4: 14.1018217 | NB4: 0 | NC4: 0 | ND4: 0 | NE4: 0 | NF4: 0 | NG4: 5.002425985 | NH4: 0 | NI4: 0 | NJ4: 0 | NK4: 2.540207726 | NL4: 5.444126029 | NM4: 0 | NN4: 0 | NO4: 0 | NP4: 1.587611809 | NQ4: 3.531582139 | NR4: 0 | NS4: 0 | NT4: 0 | NU4: 0 | NV4: 0 | NW4: 0 | NX4: 10.18461697 | NY4: 6.319597428 | NZ4: 5.421781543 | OA4: 4.641021935 | OB4: 0 | OC4: 0 | OD4: 0 | OE4: 2.349775037 | OF4: 0 | OG4: 0 | OH4: 0 | OI4: 0.978111879 | OJ4: 11.09454212 | OK4: 18.20989159 | OL4: 0 | OM4: 0 | ON4: 113.1595436 | OO4: 22.34390992 | OP4: 141.8188704 | OQ4: 186.1486018 | OR4: 21.56862831 | OS4: 30.355922 | OT4: 0 | OU4: 1.926383056 | OV4: 3.892553715 | OW4: 4.675331534 | OX4: 1.2974218 | OY4: 2.004804996 | OZ4: 1.862376914 | PA4: 4.302539004 | PB4: 0 | PC4: 0 | PD4: 0 | PE4: 1.435813458 | PF4: 0 | PG4: 0 | PH4: 1.009105844 | PI4: 0 | PJ4: 0 | PK4: 0 | PL4: 0 | PM4: 0 | PN4: 0 | PO4: 0 | PP4: 0 | PQ4: 0 | PR4: 0 | PS4: 0 | PT4: 0 | PU4: 0 | PV4: 0 | PW4: 0 | PX4: 0 | PY4: 0 | PZ4: 4.295907737 | QA4: 2.914297678 | QB4: 0 | QC4: 0 | QD4: 0 | QE4: 0 | QF4: 2.740587315 | QG4: 2.568606847 | QH4: 0 | QI4: 2.781384022 | QJ4: 0 | QK4: 0 | QL4: 0 | QM4: 1.533264251 | QN4: 7.209484625 | QO4: 6.757549364 | QP4: 9.604525267 | QQ4: 5.532639028 | QR4: 0 | QS4: 0.349727254 | QT4: 0 | QU4: 0 | QV4: 1.082914729 | QW4: 1.371519 | QX4: 0 | QY4: 0 | QZ4: 8.630017337 | RA4: 0 | RB4: 14.63073732 | RC4: 0 | RD4: 0 | RE4: 177.0231135 | RF4: 28.33367389 | RG4: 113.5941799 | RH4: 476.7591198 | RI4: 890.1521589 | RJ4: 97.35752274 | RK4: 523.6127691 | RL4: 0 | RM4: 0 | RN4: 0 | RO4: 0 | RP4: 0 | RQ4: 0 | RR4: 0 | RS4: 0 | RT4: 234.906578 | RU4: 134.4800761 | RV4: 172.7982756 | RW4: 238.1436454 | RX4: 12.1899986 | RY4: 23.20049662 | RZ4: 0 | SA4: 0 | SB4: 0 | SC4: 0 | SD4: 21.97746034 | SE4: 0 | SF4: 336.9515415 | SG4: 430.9575354 | SH4: 202.4873228 | SI4: 10.64534587 | SJ4: 575.5794136 | SK4: 389.0294759 | SL4: 318.7102235 | SM4: 643.7768047 | SN4: 0 | SO4: 0 | SP4: 0 | SQ4: 3.68900265 | SR4: 0 | SS4: 0 | ST4: 0 | SU4: 0.634583418 | SV4: 0 | SW4: 0 | SX4: 0 | SY4: 0 | SZ4: 0 | TA4: 1.186996789 | TB4: 2.050214759 | TC4: 0 | TD4: 2.161648876 | TE4: 0 | TF4: 0 | TG4: 0 | TH4: 0 | TI4: 1.441868093 | TJ4: 0 | TK4: 0 | TL4: 0 | TM4: 0 | TN4: 0 | TO4: 0 | TP4: 0 | TQ4: 1.2974218 | TR4: 0 | TS4: 0 | TT4: 0 | TU4: 0 | TV4: 0 | TW4: 0 | TX4: 0 | TY4: 0 | TZ4: 0 | UA4: 0 | UB4: 0 | UC4: 0 | UD4: 0 | UE4: 0 | UF4: 5.545180772 | UG4: 0 | UH4: 1.275653945 | UI4: 6.264817396 | UJ4: 0 | UK4: 0 | UL4: 0 | UM4: 0 | UN4: 0 | UO4: 0 | UP4: 0 | UQ4: 0 | UR4: 2.012301211 | US4: 0.91814216 | UT4: 0 | UU4: 0 | UV4: 0 | UW4: 0 | UX4: 6.69729133 | UY4: 4.568222156 | UZ4: 0 | VA4: 0 | VB4: 0.721222363 | VC4: 0.866245288 | VD4: 0 | VE4: 0 | VF4: 0 | VG4: 0 | VH4: 0 | VI4: 1.150813136 | VJ4: 0 | VK4: 0 | VL4: 0 | VM4: 3.424184445 | VN4: 0 | VO4: 0 | VP4: 1.144326027 | VQ4: 19.57809496 | VR4: 68.36475857 | VS4: 39.04360253 | VT4: 13.63979538 | VU4: 99.2605522 | VV4: 261.6904095 | VW4: 229.8633553 | VX4: 0 | VY4: 0 | VZ4: 46.99679816 | WA4: 22.30469895 | WB4: 6.526608284 | WC4: 0 | WD4: 12.52458926 | WE4: 5.185794933 | WF4: 15.6603136 | WG4: 67.59163934 | WH4: 4.256408451 | WI4: 1.565555638 | WJ4: 3.403425696 | WK4: 0 | WL4: 3.126498221 | WM4: 2.296724901 | WN4: 0 | WO4: 0.96023629 | WP4: 0 | WQ4: 0 | WR4: 0 | WS4: 0 | WT4: 2.305230222 | WU4: 0 | WV4: 0 | WW4: 0 | WX4: 3.670550429 | WY4: 5.959202484 | WZ4: 4.961196804 | XA4: 9.893850328 | XB4: 4.453472406 | XC4: 4.075201873 | XD4: 2.215852276 | XE4: 0 | XF4: 0 | XG4: 0 | XH4: 0 | XI4: 0 | XJ4: 0 | XK4: 15.42057888 | XL4: 0 | XM4: 11.03687893 | XN4: 0 | XO4: 0 | XP4: 0.513490717 | XQ4: 0 | XR4: 0 | XS4: 0 | XT4: 0 | XU4: 0 | XV4: 0 | XW4: 0 | XX4: 0 | XY4: 3.246005185 | XZ4: 0 | YA4: 0 | YB4: 8.611565116 | YC4: 0 | YD4: 0 | YE4: 0 | YF4: 0 | YG4: 0 | YH4: 0 | YI4: 0 | YJ4: 0 | YK4: 0 | YL4: 0.475865485 | YM4: 0.436798673 | YN4: 0 | YO4: 0 | YP4: 0 | YQ4: 0 | YR4: 0 | YS4: 2.563561318 | YT4: 0 | YU4: 0 | YV4: 0 | YW4: 2.413204547 | YX4: 0 | YY4: 8.081063758 | YZ4: 2.487301748 | ZA4: 0 | ZB4: 0 | ZC4: 0 | ZD4: 0 | ZE4: 0 | ZF4: 0 | ZG4: 0 | ZH4: 0 | ZI4: 0 | ZJ4: 0 | ZK4: 0 | ZL4: 0 | ZM4: 0 | ZN4: 262.0327847 | ZO4: 0 | ZP4: 0 | ZQ4: 0 | ZR4: 6.971479803 | ZS4: 7.57333936 | ZT4: 0 | ZU4: 0 | ZV4: 0 | ZW4: 0 | ZX4: 0 | ZY4: 0 | ZZ4: 0 | AAA4: 0 | AAB4: 0 | AAC4: 0 | AAD4: 0 | AAE4: 0 | AAF4: 0 | AAG4: 0 | AAH4: 0 | AAI4: 0 | AAJ4: 0 | AAK4: 0 | AAL4: 0.28298211 | AAM4: 0 | AAN4: 0 | AAO4: 0 | AAP4: 0 | AAQ4: 0.727276998
I5: 01L31 | J5: 0 | K5: 30.39438558 | L5: 25.49764532 | M5: 29.92449117 | N5: 10.26264072 | O5: 8.389230447 | P5: 68.22103228 | Q5: 36.2558778 | R5: 0 | S5: 34.63532946 | T5: 0 | U5: 0 | V5: 0 | W5: 0 | X5: 0 | Y5: 0 | Z5: 10.70140462 | AA5: 0 | AB5: 0 | AC5: 0 | AD5: 0 | AE5: 0 | AF5: 0 | AG5: 0 | AH5: 3.055194705 | AI5: 0 | AJ5: 0 | AK5: 0 | AL5: 0 | AM5: 0 | AN5: 0 | AO5: 0 | AP5: 0 | AQ5: 0 | AR5: 0 | AS5: 0 | AT5: 0 | AU5: 0 | AV5: 0 | AW5: 0 | AX5: 92.45392743 | AY5: 152.8172973 | AZ5: 0 | BA5: 29.86913174 | BB5: 0 | BC5: 0 | BD5: 0 | BE5: 0 | BF5: 0 | BG5: 0 | BH5: 10.5530942 | BI5: 19.68930991 | BJ5: 43.23380976 | BK5: 36.4366403 | BL5: 41.11620124 | BM5: 0 | BN5: 118.4208798 | BO5: 0 | BP5: 25.84595455 | BQ5: 121.4906119 | BR5: 0 | BS5: 0 | BT5: 0 | BU5: 0 | BV5: 0 | BW5: 0 | BX5: 0 | BY5: 0 | BZ5: 0 | CA5: 0 | CB5: 0 | CC5: 0 | CD5: 3.158571475 | CE5: 0 | CF5: 0 | CG5: 0 | CH5: 0 | CI5: 55.6487137 | CJ5: 7.624917824 | CK5: 0 | CL5: 3.534046475 | CM5: 1.754321404 | CO5: P1_A11 | CP5: 0.895560461 | CQ5: 1.453743589 | CR5: 0.850640085 | CS5: 0 | CT5: 2.19572065 | CU5: 2.682094444 | CV5: 1.572213173 | CW5: 2.59177918 | CX5: 0 | CY5: 0.295778535 | CZ5: 1.453743589 | DA5: 0.212264595 | DB5: 0 | DC5: 0 | DD5: 0.15832851 | DE5: 0.158170339 | DF5: 0.158170339 | DG5: 0 | DH5: 0 | DI5: 0.31697336 | DJ5: 0 | DK5: 0 | DL5: 0 | DM5: 0 | DN5: 2.325103988 | DO5: 1.682457899 | DP5: 1.498822135 | DQ5: 1.811524896 | DR5: 1.248122148 | DS5: 0.221122134 | DT5: 0.827389045 | DU5: 0 | DV5: 96.66437934 | DW5: 99.20301328 | DX5: 74.90219686 | DY5: 67.62541223 | DZ5: 0.268256895 | EA5: 26.43247808 | EB5: 0 | EC5: 0 | ED5: 168.1913793 | EE5: 213.348853 | EF5: 117.1831848 | EG5: 174.3423075 | EH5: 1.620138786 | EI5: 0 | EJ5: 2.148585889 | EK5: 0.383088562 | EL5: 0 | EM5: 1.326574636 | EN5: 0.399696447 | EO5: 0.479730639 | EP5: 1.050092883 | EQ5: 0 | ER5: 0.158170339 | ES5: 0 | ET5: 0.161017405 | EU5: 0 | EV5: 0.476409062 | EW5: 0.203565227 | EX5: 27.69388654 | EY5: 49.8102124 | EZ5: 24.85172371 | FA5: 43.68427516 | FB5: 0 | FC5: 13.01789344 | FD5: 6.384071235 | FE5: 0.158170339 | FF5: 0 | FG5: 0.15864485 | FH5: 0 | FI5: 0.421365784 | FJ5: 0.319029574 | FK5: 0 | FL5: 0 | FM5: 0 | FN5: 2.065862802 | FO5: 0.295620364 | FP5: 0.75494703 | FQ5: 1.999114919 | FR5: 0 | FS5: 0.266358851 | FT5: 0.249276455 | FU5: 0 | FV5: 7.805073564 | FW5: 0 | FX5: 0.176518099 | FY5: 0 | FZ5: 0 | GB5: LjRoot100 | GC5: 59.4339699 | GD5: 367.9220337 | GE5: 78.26798828 | GF5: 245.8952026 | GG5: 52.21360485 | GH5: 143.0973438 | GI5: 17.8487779 | GJ5: 22.18676376 | GK5: 33.01243172 | GL5: 30.9865005 | GM5: 20.60428687 | GN5: 7.254374556 | GO5: 952.8249832 | GP5: 425.9864557 | GQ5: 0 | GR5: 0 | GS5: 0 | GT5: 0 | GU5: 0 | GV5: 0 | GW5: 15.57753467 | GX5: 0 | GY5: 0 | GZ5: 0 | HA5: 49.58467038 | HB5: 27.12893581 | HC5: 51.22348475 | HD5: 12.17451436 | HE5: 0 | HF5: 16.15140804 | HG5: 0 | HH5: 0 | HI5: 401.7663674 | HJ5: 241.7830103 | HK5: 484.4935928 | HL5: 13.41867065 | HM5: 10.90714289 | HN5: 0 | HO5: 0 | HP5: 0 | HQ5: 180.4072457 | HR5: 75.39936076 | HS5: 7.603193749 | HT5: 650.990213 | HU5: 0 | HV5: 0 | HW5: 16.78694212 | HX5: 0 | HY5: 0 | HZ5: 9.321412916 | IA5: 0 | IB5: 0 | IC5: 0 | ID5: 1.994435467 | IE5: 0 | IF5: 0 | IG5: 0 | IH5: 0 | II5: 0 | IJ5: 0 | IK5: 278.8246808 | IL5: 265.6550188 | IM5: 715.7068936 | IN5: 485.5866286 | IO5: 106.329228 | IP5: 43.40011645 | IQ5: 21.4327879 | IR5: 112.9581235 | IS5: 5.649421816 | IT5: 7.709362541 | IU5: 5.824496816 | IV5: 0 | IW5: 11.95626208 | IX5: 0 | IY5: 128.8009323 | IZ5: 323.144976 | JA5: 55.87051347 | JB5: 4.279282504 | JC5: 66.93690956 | JD5: 21.26347973 | JE5: 0 | JF5: 0 | JG5: 0 | JH5: 213.2654518 | JI5: 66.51519174 | JJ5: 0 | JK5: 3.936673743 | JL5: 0 | JM5: 0 | JO5: 01L31 | JP5: 0 | JQ5: 30.39438558 | JR5: 25.49764532 | JS5: 29.92449117 | JT5: 10.26264072 | JU5: 8.389230447 | JV5: 68.22103228 | JW5: 36.2558778 | JX5: 0 | JY5: 34.63532946 | JZ5: 0 | KA5: 0 | KB5: 0 | KC5: 0 | KD5: 0 | KE5: 0 | KF5: 10.70140462 | KG5: 0 | KH5: 0 | KI5: 0 | KJ5: 0 | KK5: 0 | KL5: 0 | KM5: 0 | KN5: 0 | KO5: 0 | KP5: 0 | KQ5: 0 | KR5: 0 | KS5: 1.909973927 | KT5: 0 | KU5: 0 | KV5: 0 | KW5: 0 | KX5: 8.172932177 | KY5: 0 | KZ5: 25.41321117 | LA5: 0 | LB5: 41.31620005 | LC5: 0 | LD5: 8.007441241 | LE5: 0 | LF5: 0 | LG5: 16.26745073 | LH5: 0 | LI5: 0 | LJ5: 0 | LK5: 0 | LL5: 0 | LM5: 7.041367706 | LN5: 0 | LO5: 0 | LP5: 0 | LQ5: 0 | LR5: 0 | LS5: 0 | LT5: 0 | LU5: 0 | LV5: 0 | LW5: 0 | LX5: 2.357842035 | LY5: 0 | LZ5: 8.090406972 | MA5: 0 | MB5: 0 | MC5: 0 | MD5: 0 | ME5: 0 | MF5: 0 | MG5: 0 | MH5: 0 | MI5: 0 | MJ5: 0 | MK5: 0 | ML5: 6.96104513 | MM5: 8.860740117 | MN5: 0 | MO5: 9.414481309 | MP5: 0 | MQ5: 0 | MR5: 0 | MS5: 0 | MT5: 0 | MU5: 0 | MV5: 6.607449588 | MW5: 9.377770808 | MX5: 0 | MY5: 7.027564558 | MZ5: 10.60287364 | NA5: 0 | NB5: 0 | NC5: 0 | ND5: 0 | NE5: 0 | NF5: 0 | NG5: 0 | NH5: 0 | NI5: 0 | NJ5: 0 | NK5: 2.185302682 | NL5: 0 | NM5: 0 | NN5: 0 | NO5: 0 | NP5: 0 | NQ5: 0 | NR5: 0 | NS5: 2.051089091 | NT5: 0 | NU5: 0 | NV5: 0 | NW5: 0 | NX5: 0 | NY5: 0 | NZ5: 0 | OA5: 0 | OB5: 0 | OC5: 0 | OD5: 0 | OE5: 0 | OF5: 3.055194705 | OG5: 0 | OH5: 0 | OI5: 0 | OJ5: 0 | OK5: 0 | OL5: 0 | OM5: 0 | ON5: 0 | OO5: 0 | OP5: 0 | OQ5: 0 | OR5: 0 | OS5: 0 | OT5: 0 | OU5: 0 | OV5: 0 | OW5: 0 | OX5: 0 | OY5: 0 | OZ5: 0 | PA5: 0 | PB5: 0 | PC5: 0 | PD5: 3.330817144 | PE5: 0 | PF5: 0 | PG5: 0 | PH5: 0 | PI5: 0 | PJ5: 0 | PK5: 0 | PL5: 0 | PM5: 0 | PN5: 0 | PO5: 0 | PP5: 0 | PQ5: 0 | PR5: 0 | PS5: 0 | PT5: 1.393824288 | PU5: 1.306746981 | PV5: 0 | PW5: 0 | PX5: 0 | PY5: 0 | PZ5: 0 | QA5: 0 | QB5: 0 | QC5: 0 | QD5: 0 | QE5: 0 | QF5: 0 | QG5: 0 | QH5: 0 | QI5: 0 | QJ5: 0 | QK5: 0 | QL5: 0 | QM5: 0 | QN5: 0 | QO5: 0 | QP5: 0 | QQ5: 0 | QR5: 0 | QS5: 0 | QT5: 0 | QU5: 0 | QV5: 0 | QW5: 0 | QX5: 0 | QY5: 13.02987825 | QZ5: 0 | RA5: 0 | RB5: 0 | RC5: 9.503614404 | RD5: 0 | RE5: 0 | RF5: 0 | RG5: 0 | RH5: 92.45392743 | RI5: 152.8172973 | RJ5: 0 | RK5: 29.86913174 | RL5: 0 | RM5: 0 | RN5: 0 | RO5: 0 | RP5: 2.152410073 | RQ5: 0 | RR5: 0 | RS5: 0 | RT5: 19.13013557 | RU5: 15.79638158 | RV5: 13.398158 | RW5: 21.30134141 | RX5: 0 | RY5: 0 | RZ5: 0 | SA5: 0 | SB5: 0 | SC5: 0 | SD5: 10.5530942 | SE5: 19.68930991 | SF5: 43.23380976 | SG5: 36.4366403 | SH5: 41.11620124 | SI5: 0 | SJ5: 118.4208798 | SK5: 0 | SL5: 25.84595455 | SM5: 121.4906119 | SN5: 4.236244931 | SO5: 0 | SP5: 0 | SQ5: 0 | SR5: 0 | SS5: 12.21446461 | ST5: 4.169872346 | SU5: 0 | SV5: 0 | SW5: 0 | SX5: 0 | SY5: 0 | SZ5: 0 | TA5: 5.716706001 | TB5: 0 | TC5: 0 | TD5: 0 | TE5: 2.789851206 | TF5: 4.125672903 | TG5: 2.743742817 | TH5: 4.322734871 | TI5: 0 | TJ5: 0 | TK5: 0 | TL5: 0 | TM5: 0 | TN5: 0 | TO5: 0 | TP5: 2.338752574 | TQ5: 0 | TR5: 0 | TS5: 0 | TT5: 0 | TU5: 0 | TV5: 0 | TW5: 0.986337731 | TX5: 0 | TY5: 0 | TZ5: 0 | UA5: 0 | UB5: 0 | UC5: 0 | UD5: 0 | UE5: 0 | UF5: 0 | UG5: 0 | UH5: 0 | UI5: 2.005861755 | UJ5: 0 | UK5: 0 | UL5: 0 | UM5: 0 | UN5: 0 | UO5: 0 | UP5: 0 | UQ5: 2.962684243 | UR5: 0 | US5: 0 | UT5: 0 | UU5: 0 | UV5: 0 | UW5: 0 | UX5: 0 | UY5: 0 | UZ5: 0 | VA5: 0 | VB5: 0 | VC5: 0 | VD5: 0 | VE5: 0 | VF5: 0 | VG5: 0 | VH5: 0 | VI5: 0 | VJ5: 0 | VK5: 0 | VL5: 1.601018354 | VM5: 0 | VN5: 0 | VO5: 0 | VP5: 0 | VQ5: 0 | VR5: 0 | VS5: 5.901139556 | VT5: 0 | VU5: 0 | VV5: 0 | VW5: 19.80560878 | VX5: 0 | VY5: 0 | VZ5: 0 | WA5: 0 | WB5: 0 | WC5: 0 | WD5: 0 | WE5: 0 | WF5: 0 | WG5: 0 | WH5: 0 | WI5: 0 | WJ5: 0 | WK5: 0 | WL5: 0 | WM5: 0 | WN5: 0 | WO5: 0 | WP5: 0 | WQ5: 0 | WR5: 0 | WS5: 0 | WT5: 0 | WU5: 0 | WV5: 0.850802563 | WW5: 3.257542984 | WX5: 32.7406271 | WY5: 0 | WZ5: 21.46125236 | XA5: 21.2345283 | XB5: 0 | XC5: 0 | XD5: 4.523027362 | XE5: 0 | XF5: 0 | XG5: 0 | XH5: 0 | XI5: 0 | XJ5: 0 | XK5: 2.929057425 | XL5: 0 | XM5: 0 | XN5: 0 | XO5: 0 | XP5: 0 | XQ5: 0 | XR5: 1.395880076 | XS5: 0 | XT5: 0 | XU5: 0 | XV5: 0 | XW5: 0 | XX5: 0 | XY5: 0 | XZ5: 0 | YA5: 0 | YB5: 3.158571475 | YC5: 0 | YD5: 0 | YE5: 0 | YF5: 0 | YG5: 0 | YH5: 0 | YI5: 2.582216615 | YJ5: 0 | YK5: 0 | YL5: 0 | YM5: 0 | YN5: 0 | YO5: 0 | YP5: 0.000587368 | YQ5: 0 | YR5: 0 | YS5: 0 | YT5: 0 | YU5: 0 | YV5: 0 | YW5: 0 | YX5: 0 | YY5: 0 | YZ5: 0 | ZA5: 0 | ZB5: 0.57708907 | ZC5: 1.639784642 | ZD5: 0 | ZE5: 0 | ZF5: 0 | ZG5: 0 | ZH5: 0 | ZI5: 0 | ZJ5: 0 | ZK5: 0 | ZL5: 0 | ZM5: 0 | ZN5: 55.6487137 | ZO5: 0 | ZP5: 0 | ZQ5: 0.309102415 | ZR5: 7.624917824 | ZS5: 0 | ZT5: 3.534046475 | ZU5: 1.754321404 | ZV5: 0 | ZW5: 0 | ZX5: 0 | ZY5: 0 | ZZ5: 0 | AAA5: 0 | AAB5: 0 | AAC5: 0 | AAD5: 0 | AAE5: 0 | AAF5: 0 | AAG5: 0 | AAH5: 0 | AAI5: 0 | AAJ5: 0 | AAK5: 0 | AAL5: 0 | AAM5: 0 | AAN5: 0 | AAO5: 0 | AAP5: 0 | AAQ5: 0
I6: 01L33 | J6: 40.27991942 | K6: 42.67921272 | L6: 0 | M6: 47.81626499 | N6: 0 | O6: 40.09662678 | P6: 80.0264499 | Q6: 98.2291021 | R6: 10.43413596 | S6: 0 | T6: 0 | U6: 0 | V6: 0 | W6: 0 | X6: 0 | Y6: 11.699076 | Z6: 0 | AA6: 0 | AB6: 0 | AC6: 0 | AD6: 0 | AE6: 0 | AF6: 0 | AG6: 0 | AH6: 0 | AI6: 0 | AJ6: 0 | AK6: 0 | AL6: 0 | AM6: 0 | AN6: 0 | AO6: 0 | AP6: 45.72717057 | AQ6: 20.12096794 | AR6: 74.28961111 | AS6: 68.95115776 | AT6: 0 | AU6: 0 | AV6: 0 | AW6: 2.492632679 | AX6: 642.4075775 | AY6: 860.3005678 | AZ6: 0 | BA6: 334.257022 | BB6: 0 | BC6: 24.36879327 | BD6: 0 | BE6: 0 | BF6: 0 | BG6: 0 | BH6: 0 | BI6: 0 | BJ6: 99.79113817 | BK6: 170.4481689 | BL6: 127.3561429 | BM6: 5.187255319 | BN6: 118.4579845 | BO6: 25.89858751 | BP6: 0 | BQ6: 60.93309852 | BR6: 25.51124378 | BS6: 0 | BT6: 0 | BU6: 0 | BV6: 8.342980408 | BW6: 0 | BX6: 0 | BY6: 0 | BZ6: 26.15946667 | CA6: 56.84029901 | CB6: 0 | CC6: 0 | CD6: 0 | CE6: 23.37091575 | CF6: 0 | CG6: 0 | CH6: 10.08698411 | CI6: 318.7098311 | CJ6: 0 | CK6: 0 | CL6: 0 | CM6: 0 | CO6: P1_A12 | CP6: 0 | CQ6: 0 | CR6: 0 | CS6: 1.614364554 | CT6: 0 | CU6: 13.72334674 | CV6: 0 | CW6: 0 | CX6: 0 | CY6: 0 | CZ6: 0 | DA6: 0 | DB6: 0.148735907 | DC6: 0.752048681 | DD6: 0 | DE6: 0 | DF6: 0.146827154 | DG6: 0 | DH6: 0 | DI6: 0 | DJ6: 0.179275955 | DK6: 0 | DL6: 0 | DM6: 0.184268078 | DN6: 6.40254486 | DO6: 2.752862303 | DP6: 1.884526517 | DQ6: 7.361766655 | DR6: 0 | DS6: 0 | DT6: 0 | DU6: 0 | DV6: 2.697655293 | DW6: 14.7380692 | DX6: 25.58286959 | DY6: 0 | DZ6: 0 | EA6: 6.605019505 | EB6: 1.512466509 | EC6: 0.586574479 | ED6: 38.75414623 | EE6: 35.35700638 | EF6: 55.56056954 | EG6: 37.47763096 | EH6: 0 | EI6: 0 | EJ6: 3.88269725 | EK6: 0 | EL6: 0 | EM6: 0 | EN6: 0 | EO6: 0 | EP6: 0 | EQ6: 0.368976637 | ER6: 0 | ES6: 0.355615366 | ET6: 0 | EU6: 0.37499655 | EV6: 0 | EW6: 0 | EX6: 4.856308106 | EY6: 2.010357387 | EZ6: 6.327809839 | FA6: 29.0278751 | FB6: 0.446354547 | FC6: 0 | FD6: 0 | FE6: 0 | FF6: 0 | FG6: 0 | FH6: 0.445033103 | FI6: 0.410969203 | FJ6: 0.440481461 | FK6: 0.394671389 | FL6: 0.313769627 | FM6: 0 | FN6: 0 | FO6: 0 | FP6: 0 | FQ6: 0 | FR6: 8.064921894 | FS6: 3.872713004 | FT6: 0 | FU6: 5.741969496 | FV6: 3.753048874 | FW6: 0 | FX6: 0 | FY6: 0 | FZ6: 6.89779285 | GB6: LjRoot102 | GC6: 141.7550237 | GD6: 281.0421296 | GE6: 111.3607669 | GF6: 213.655465 | GG6: 325.2776391 | GH6: 518.4215022 | GI6: 89.32699928 | GJ6: 71.99197039 | GK6: 114.0817445 | GL6: 201.072042 | GM6: 11.63283816 | GN6: 32.54013864 | GO6: 1003.98083 | GP6: 591.1783632 | GQ6: 0.397748929 | GR6: 59.64520512 | GS6: 6.499738852 | GT6: 0.231971393 | GU6: 0.155086935 | GV6: 6.515115743 | GW6: 18.90581499 | GX6: 7.143664493 | GY6: 4.402916625 | GZ6: 9.728886086 | HA6: 7.046277513 | HB6: 8.966485156 | HC6: 6.398837154 | HD6: 6.665516388 | HE6: 1.159856966 | HF6: 6.291198912 | HG6: 1.930605351 | HH6: 0 | HI6: 324.5949051 | HJ6: 390.4554498 | HK6: 101.6980747 | HL6: 35.44314933 | HM6: 8.707567591 | HN6: 3.248331737 | HO6: 4.965857304 | HP6: 5.680223753 | HQ6: 1203.599097 | HR6: 346.6455141 | HS6: 116.5771943 | HT6: 3276.243285 | HU6: 9.458252794 | HV6: 10.0973457 | HW6: 30.49384049 | HX6: 18.57118454 | HY6: 5.491014763 | HZ6: 1.160442752 | IA6: 0 | IB6: 4.518170089 | IC6: 1.635954819 | ID6: 1.24289218 | IE6: 4.743258492 | IF6: 7.157284025 | IG6: 1.831168118 | IH6: 0 | II6: 3.76602042 | IJ6: 1.101717671 | IK6: 219.3244124 | IL6: 441.973748 | IM6: 889.8328915 | IN6: 359.0053131 | IO6: 318.6865175 | IP6: 113.7132849 | IQ6: 173.8760322 | IR6: 427.1904044 | IS6: 0.681269521 | IT6: 0.903721886 | IU6: 3.366807025 | IV6: 0 | IW6: 11.71850941 | IX6: 11.76127181 | IY6: 111.0460532 | IZ6: 239.0913333 | JA6: 17.16807979 | JB6: 2.188790683 | JC6: 33.52718864 | JD6: 29.97673759 | JE6: 13.28768459 | JF6: 4.420490216 | JG6: 0.589886851 | JH6: 1013.697854 | JI6: 349.251824 | JJ6: 0.421912616 | JK6: 4.111487918 | JL6: 4.236553303 | JM6: 5.099270144 | JO6: 01L33 | JP6: 40.27991942 | JQ6: 42.67921272 | JR6: 0 | JS6: 47.81626499 | JT6: 0 | JU6: 40.09662678 | JV6: 80.0264499 | JW6: 98.2291021 | JX6: 10.43413596 | JY6: 0 | JZ6: 0 | KA6: 0 | KB6: 0 | KC6: 0 | KD6: 0 | KE6: 11.699076 | KF6: 0 | KG6: 0 | KH6: 0 | KI6: 0 | KJ6: 0 | KK6: 0 | KL6: 0 | KM6: 0 | KN6: 0 | KO6: 0 | KP6: 0 | KQ6: 0 | KR6: 0 | KS6: 0 | KT6: 0 | KU6: 0 | KV6: 0 | KW6: 0 | KX6: 0 | KY6: 0 | KZ6: 0 | LA6: 0 | LB6: 0 | LC6: 0 | LD6: 0 | LE6: 0 | LF6: 0 | LG6: 0 | LH6: 0 | LI6: 0 | LJ6: 0 | LK6: 0 | LL6: 0 | LM6: 0 | LN6: 0 | LO6: 0 | LP6: 0 | LQ6: 0 | LR6: 0 | LS6: 0 | LT6: 0 | LU6: 0 | LV6: 0 | LW6: 0 | LX6: 0 | LY6: 0 | LZ6: 0 | MA6: 0 | MB6: 0 | MC6: 0 | MD6: 0 | ME6: 0 | MF6: 0 | MG6: 0 | MH6: 0.6822314 | MI6: 0 | MJ6: 0 | MK6: 0 | ML6: 0 | MM6: 0 | MN6: 0 | MO6: 0 | MP6: 0 | MQ6: 0 | MR6: 0 | MS6: 0 | MT6: 0 | MU6: 0 | MV6: 0 | MW6: 0 | MX6: 0 | MY6: 0 | MZ6: 0 | NA6: 0 | NB6: 0 | NC6: 0 | ND6: 0 | NE6: 0 | NF6: 0 | NG6: 0 | NH6: 0 | NI6: 0 | NJ6: 0 | NK6: 3.115827655 | NL6: 0 | NM6: 0 | NN6: 0 | NO6: 0 | NP6: 0 | NQ6: 0 | NR6: 0 | NS6: 0 | NT6: 0 | NU6: 0 | NV6: 0 | NW6: 0 | NX6: 0 | NY6: 0 | NZ6: 0 | OA6: 0 | OB6: 0 | OC6: 0 | OD6: 0 | OE6: 0 | OF6: 0 | OG6: 0 | OH6: 0 | OI6: 0 | OJ6: 0 | OK6: 0 | OL6: 0 | OM6: 0 | ON6: 45.72717057 | OO6: 20.12096794 | OP6: 74.28961111 | OQ6: 68.95115776 | OR6: 0 | OS6: 0 | OT6: 0 | OU6: 2.492632679 | OV6: 0 | OW6: 0 | OX6: 0 | OY6: 0 | OZ6: 0 | PA6: 0 | PB6: 0 | PC6: 0 | PD6: 0 | PE6: 0 | PF6: 0 | PG6: 0 | PH6: 0 | PI6: 0 | PJ6: 0 | PK6: 0 | PL6: 0 | PM6: 0 | PN6: 0 | PO6: 0 | PP6: 0 | PQ6: 0 | PR6: 0 | PS6: 0 | PT6: 0 | PU6: 0 | PV6: 0 | PW6: 0 | PX6: 0 | PY6: 0 | PZ6: 0 | QA6: 0 | QB6: 0 | QC6: 0 | QD6: 0 | QE6: 0 | QF6: 0 | QG6: 0 | QH6: 0 | QI6: 0 | QJ6: 0 | QK6: 0 | QL6: 0 | QM6: 0 | QN6: 0 | QO6: 0 | QP6: 0 | QQ6: 0 | QR6: 0 | QS6: 0 | QT6: 0 | QU6: 0 | QV6: 0.001177784 | QW6: 3.386423536 | QX6: 0 | QY6: 0 | QZ6: 17.29148903 | RA6: 0 | RB6: 25.73119495 | RC6: 0 | RD6: 0 | RE6: 83.87780368 | RF6: 0 | RG6: 0 | RH6: 642.4075775 | RI6: 860.3005678 | RJ6: 0 | RK6: 334.257022 | RL6: 0 | RM6: 0 | RN6: 0 | RO6: 0 | RP6: 0 | RQ6: 0 | RR6: 0 | RS6: 0 | RT6: 247.4033997 | RU6: 91.95534101 | RV6: 85.78816938 | RW6: 103.1066002 | RX6: 0 | RY6: 24.36879327 | RZ6: 0 | SA6: 0 | SB6: 0 | SC6: 0 | SD6: 0 | SE6: 0 | SF6: 99.79113817 | SG6: 170.4481689 | SH6: 127.3561429 | SI6: 5.187255319 | SJ6: 118.4579845 | SK6: 25.89858751 | SL6: 0 | SM6: 60.93309852 | SN6: 0 | SO6: 0 | SP6: 0 | SQ6: 0 | SR6: 0 | SS6: 0 | ST6: 0 | SU6: 0 | SV6: 0 | SW6: 0 | SX6: 0 | SY6: 0 | SZ6: 0 | TA6: 0 | TB6: 0 | TC6: 0 | TD6: 0 | TE6: 1.400974105 | TF6: 0 | TG6: 0 | TH6: 0 | TI6: 0 | TJ6: 0 | TK6: 0 | TL6: 0 | TM6: 0 | TN6: 0 | TO6: 0 | TP6: 0 | TQ6: 0 | TR6: 0 | TS6: 0 | TT6: 0 | TU6: 0 | TV6: 0 | TW6: 0 | TX6: 0 | TY6: 0 | TZ6: 0 | UA6: 0 | UB6: 0 | UC6: 0 | UD6: 0 | UE6: 0 | UF6: 0 | UG6: 0 | UH6: 0 | UI6: 0 | UJ6: 0 | UK6: 0 | UL6: 0 | UM6: 0 | UN6: 0 | UO6: 0 | UP6: 0 | UQ6: 0 | UR6: 0 | US6: 0 | UT6: 0 | UU6: 0 | UV6: 0 | UW6: 0 | UX6: 0 | UY6: 0 | UZ6: 0 | VA6: 0 | VB6: 0 | VC6: 0 | VD6: 0 | VE6: 0 | VF6: 0 | VG6: 0 | VH6: 0 | VI6: 0 | VJ6: 0 | VK6: 0 | VL6: 0 | VM6: 0 | VN6: 0 | VO6: 0 | VP6: 0 | VQ6: 47.3734182 | VR6: 15.68602217 | VS6: 58.16398104 | VT6: 7.598326454 | VU6: 0 | VV6: 17.83120856 | VW6: 90.78167923 | VX6: 0 | VY6: 0 | VZ6: 25.51124378 | WA6: 0 | WB6: 0 | WC6: 0 | WD6: 8.342980408 | WE6: 0 | WF6: 0 | WG6: 0 | WH6: 0 | WI6: 0 | WJ6: 0 | WK6: 0 | WL6: 0 | WM6: 0 | WN6: 0 | WO6: 0 | WP6: 0 | WQ6: 0 | WR6: 0 | WS6: 0 | WT6: 0 | WU6: 0 | WV6: 0 | WW6: 0 | WX6: 0.570194694 | WY6: 0 | WZ6: 0 | XA6: 0 | XB6: 0 | XC6: 0 | XD6: 0 | XE6: 0 | XF6: 0 | XG6: 0 | XH6: 0 | XI6: 0 | XJ6: 0 | XK6: 0 | XL6: 0 | XM6: 0 | XN6: 0 | XO6: 0 | XP6: 0 | XQ6: 0 | XR6: 0 | XS6: 0 | XT6: 0 | XU6: 0 | XV6: 0 | XW6: 0 | XX6: 26.15946667 | XY6: 56.84029901 | XZ6: 0 | YA6: 0 | YB6: 0 | YC6: 0 | YD6: 0 | YE6: 0 | YF6: 0 | YG6: 0 | YH6: 0 | YI6: 0 | YJ6: 0 | YK6: 0 | YL6: 0 | YM6: 0 | YN6: 0 | YO6: 0 | YP6: 0 | YQ6: 0 | YR6: 0 | YS6: 0 | YT6: 0 | YU6: 0 | YV6: 0 | YW6: 23.37091575 | YX6: 0 | YY6: 0 | YZ6: 10.08698411 | ZA6: 0 | ZB6: 0 | ZC6: 0 | ZD6: 0 | ZE6: 0 | ZF6: 0 | ZG6: 0 | ZH6: 0 | ZI6: 0 | ZJ6: 0 | ZK6: 0 | ZL6: 0 | ZM6: 0 | ZN6: 318.7098311 | ZO6: 0 | ZP6: 0 | ZQ6: 0 | ZR6: 0 | ZS6: 0 | ZT6: 0 | ZU6: 0 | ZV6: 0 | ZW6: 0 | ZX6: 0 | ZY6: 0 | ZZ6: 0 | AAA6: 7.926339307 | AAB6: 0 | AAC6: 0 | AAD6: 0 | AAE6: 0 | AAF6: 0 | AAG6: 0 | AAH6: 0 | AAI6: 0 | AAJ6: 0 | AAK6: 0 | AAL6: 0 | AAM6: 0 | AAN6: 0 | AAO6: 0 | AAP6: 0 | AAQ6: 0
I7: 01L34 | J7: 33.77095623 | K7: 81.83859226 | L7: 36.41819044 | M7: 110.4469279 | N7: 31.06308376 | O7: 29.16156794 | P7: 73.21856339 | Q7: 36.72461184 | R7: 34.62209415 | S7: 56.07643717 | T7: 6.948732862 | U7: 37.58088859 | V7: 1.094718706 | W7: 0.679060356 | X7: 0.828820694 | Y7: 29.00343864 | Z7: 6.132245371 | AA7: 0.980489743 | AB7: 2.315265461 | AC7: 0.211573183 | AD7: 0.328885448 | AE7: 0.214069189 | AF7: 0 | AG7: 0 | AH7: 0.657770897 | AI7: 2.569270741 | AJ7: 1.390275138 | AK7: 0 | AL7: 8.604612364 | AM7: 12.18711457 | AN7: 4.943559394 | AO7: 3.486185752 | AP7: 68.96625073 | AQ7: 8.022749404 | AR7: 43.59567488 | AS7: 57.85726378 | AT7: 18.52359193 | AU7: 10.33581251 | AV7: 2.921941654 | AW7: 0.831610348 | AX7: 529.5506466 | AY7: 830.0054161 | AZ7: 84.28643967 | BA7: 527.0320301 | BB7: 13.38872105 | BC7: 22.72407576 | BD7: 6.320179913 | BE7: 4.187269687 | BF7: 0 | BG7: 29.94839701 | BH7: 39.22149842 | BI7: 10.34594335 | BJ7: 232.9165276 | BK7: 311.1660106 | BL7: 174.0284135 | BM7: 12.28710162 | BN7: 563.8052407 | BO7: 259.4674205 | BP7: 366.3259732 | BQ7: 561.9925533 | BR7: 8.34737696 | BS7: 2.658392824 | BT7: 0.868463137 | BU7: 0.374988141 | BV7: 5.282135217 | BW7: 0 | BX7: 1.517865073 | BY7: 36.11000716 | BZ7: 8.462633691 | CA7: 46.97511968 | CB7: 27.10339106 | CC7: 5.694122971 | CD7: 11.90418499 | CE7: 7.211988044 | CF7: 4.859429322 | CG7: 21.75004627 | CH7: 10.8452913 | CI7: 344.7760479 | CJ7: 10.86658076 | CK7: 7.459239426 | CL7: 2.504374594 | CM7: 0.926605386 | CO7: P1_A1 | CP7: 40.61783436 | CQ7: 30.05421368 | CR7: 25.1189877 | CS7: 1.856092972 | CT7: 98.07675809 | CU7: 17.51809002 | CV7: 74.75462948 | CW7: 45.5742258 | CX7: 2.477240335 | CY7: 23.70972104 | CZ7: 54.19209427 | DA7: 41.51148698 | DB7: 0.541482935 | DC7: 3.065463654 | DD7: 3.340761574 | DE7: 0.489892135 | DF7: 2.281606842 | DG7: 0.337912396 | DH7: 0.153008614 | DI7: 0.803552445 | DJ7: 3.240519619 | DK7: 1.692354646 | DL7: 0.458878861 | DM7: 3.950444314 | DN7: 9.999208494 | DO7: 2.154173154 | DP7: 5.061336829 | DQ7: 3.113526878 | DR7: 23.54230815 | DS7: 23.24202324 | DT7: 80.05304882 | DU7: 23.65327982 | DV7: 260.9390685 | DW7: 57.86973937 | DX7: 192.0031759 | DY7: 34.32743121 | DZ7: 16.82492132 | EA7: 1079.900701 | EB7: 10.52173071 | EC7: 6.10594031 | ED7: 480.1150163 | EE7: 625.098983 | EF7: 483.4590115 | EG7: 859.1132389 | EH7: 10.12752408 | EI7: 0.231644166 | EJ7: 2.148734808 | EK7: 2.557345709 | EL7: 8.101372538 | EM7: 5.765529213 | EN7: 4.859383096 | EO7: 8.423851789 | EP7: 0.346731337 | EQ7: 0 | ER7: 0 | ES7: 0.319098657 | ET7: 0.838828206 | EU7: 3.723209619 | EV7: 0.334825767 | EW7: 5.537265642 | EX7: 138.0728572 | EY7: 301.8959911 | EZ7: 96.33295962 | FA7: 283.6400498 | FB7: 1.849331784 | FC7: 118.1517529 | FD7: 119.4087458 | FE7: 1.973090913 | FF7: 0.677000652 | FG7: 1.363702137 | FH7: 3.563733781 | FI7: 2.554847009 | FJ7: 4.435779996 | FK7: 8.555400982 | FL7: 2.701241419 | FM7: 1.046367268 | FN7: 900.2916639 | FO7: 121.8245475 | FP7: 116.4100122 | FQ7: 142.268468 | FR7: 29.62958171 | FS7: 64.16543387 | FT7: 81.55388548 | FU7: 179.7707177 | FV7: 139.3430785 | FW7: 2.284987436 | FX7: 6.228082633 | FY7: 0.997275167 | FZ7: 1.657960779 | GB7: LjRoot104 | GC7: 32.7947861 | GD7: 145.9567594 | GE7: 48.67738188 | GF7: 57.08427063 | GG7: 46.04194252 | GH7: 88.1610125 | GI7: 23.92003316 | GJ7: 13.3005428 | GK7: 149.1841422 | GL7: 155.5646951 | GM7: 29.5562566 | GN7: 60.45215944 | GO7: 88.5759303 | GP7: 60.65103838 | GQ7: 0 | GR7: 7.78341206 | GS7: 1.777297242 | GT7: 1.188433698 | GU7: 0.595756841 | GV7: 1.644417947 | GW7: 4.18335115 | GX7: 1.759990667 | GY7: 1.319993 | GZ7: 2.080162303 | HA7: 5.625663502 | HB7: 10.95095526 | HC7: 7.561799902 | HD7: 9.457163184 | HE7: 5.123332832 | HF7: 6.281993355 | HG7: 2.398280616 | HH7: 4.902600669 | HI7: 89.6697645 | HJ7: 98.73312978 | HK7: 48.58703569 | HL7: 11.53527216 | HM7: 4.688321806 | HN7: 1.924403129 | HO7: 3.389302027 | HP7: 3.419075203 | HQ7: 46.28980787 | HR7: 13.34556923 | HS7: 7.100095683 | HT7: 115.3377617 | HU7: 0.2953851 | HV7: 0 | HW7: 0.587836883 | HX7: 0.600010152 | HY7: 0.742716062 | HZ7: 0.294358439 | IA7: 0.146665889 | IB7: 1.038981157 | IC7: 0 | ID7: 0 | IE7: 0 | IF7: 0.73992941 | IG7: 0 | IH7: 0.148132548 | II7: 0.146665889 | IJ7: 0 | IK7: 10.41503811 | IL7: 8.893232841 | IM7: 35.4717319 | IN7: 30.47306508 | IO7: 70.49437285 | IP7: 36.48607319 | IQ7: 44.70346962 | IR7: 50.13612081 | IS7: 0.586663556 | IT7: 0.879995334 | IU7: 2.145575289 | IV7: 0.152532524 | IW7: 4.739214869 | IX7: 4.744788173 | IY7: 40.0362677 | IZ7: 102.8322947 | JA7: 104.0219017 | JB7: 7.186628558 | JC7: 156.6645426 | JD7: 68.56542308 | JE7: 22.17206909 | JF7: 8.439741913 | JG7: 6.453299113 | JH7: 418.9857249 | JI7: 141.9316607 | JJ7: 0 | JK7: 3.513968033 | JL7: 8.45088852 | JM7: 5.132719449 | JO7: 01L34 | JP7: 33.77095623 | JQ7: 81.83859226 | JR7: 36.41819044 | JS7: 110.4469279 | JT7: 31.06308376 | JU7: 29.16156794 | JV7: 73.21856339 | JW7: 36.72461184 | JX7: 34.62209415 | JY7: 56.07643717 | JZ7: 6.948732862 | KA7: 37.58088859 | KB7: 1.094718706 | KC7: 0.679060356 | KD7: 0.828820694 | KE7: 29.00343864 | KF7: 6.132245371 | KG7: 0.980489743 | KH7: 2.315265461 | KI7: 0.211573183 | KJ7: 0.328885448 | KK7: 0.214069189 | KL7: 0 | KM7: 0 | KN7: 0 | KO7: 0.313615767 | KP7: 0 | KQ7: 0 | KR7: 0.290858068 | KS7: 0 | KT7: 0.416832941 | KU7: 0 | KV7: 0 | KW7: 0 | KX7: 0 | KY7: 0.625322823 | KZ7: 0 | LA7: 0 | LB7: 0 | LC7: 0 | LD7: 0.25062833 | LE7: 0.309211051 | LF7: 0 | LG7: 0.263842478 | LH7: 0 | LI7: 0 | LJ7: 0 | LK7: 0.298639733 | LL7: 0 | LM7: 0.281901813 | LN7: 0 | LO7: 0.239322893 | LP7: 0 | LQ7: 0 | LR7: 0 | LS7: 0.238588774 | LT7: 0 | LU7: 0 | LV7: 0.274413796 | LW7: 0 | LX7: 1.803143835 | LY7: 1.291756328 | LZ7: 0.368234243 | MA7: 0.739404963 | MB7: 0 | MC7: 0.259437762 | MD7: 0 | ME7: 0.600509591 | MF7: 0 | MG7: 0 | MH7: 0.236386416 | MI7: 0.305246807 | MJ7: 0 | MK7: 0 | ML7: 0.244168081 | MM7: 1.181051137 | MN7: 2.807565867 | MO7: 1.995629916 | MP7: 3.10356277 | MQ7: 2.771887669 | MR7: 1.393505263 | MS7: 0 | MT7: 1.285589725 | MU7: 0 | MV7: 0.993997538 | MW7: 0 | MX7: 0 | MY7: 0.237414183 | MZ7: 0.235065001 | NA7: 0 | NB7: 0 | NC7: 0 | ND7: 0.229485694 | NE7: 0 | NF7: 0.245342671 | NG7: 0.260025058 | NH7: 0 | NI7: 0.777285519 | NJ7: 0 | NK7: 0 | NL7: 1.625486963 | NM7: 0 | NN7: 0 | NO7: 0.325802147 | NP7: 0.593608869 | NQ7: 0 | NR7: 0 | NS7: 1.199844591 | NT7: 0.89709379 | NU7: 0.252537041 | NV7: 0 | NW7: 0 | NX7: 4.371239985 | NY7: 0 | NZ7: 0.945986135 | OA7: 0 | OB7: 0 | OC7: 0 | OD7: 0 | OE7: 1.046854128 | OF7: 0.657770897 | OG7: 2.569270741 | OH7: 1.390275138 | OI7: 0 | OJ7: 8.604612364 | OK7: 12.18711457 | OL7: 4.943559394 | OM7: 3.486185752 | ON7: 68.96625073 | OO7: 8.022749404 | OP7: 43.59567488 | OQ7: 57.85726378 | OR7: 18.52359193 | OS7: 10.33581251 | OT7: 2.921941654 | OU7: 0.831610348 | OV7: 0 | OW7: 0 | OX7: 0 | OY7: 0.282342284 | OZ7: 0 | PA7: 0.310091994 | PB7: 0 | PC7: 0.329032272 | PD7: 0.836015064 | PE7: 0 | PF7: 0 | PG7: 0 | PH7: 0 | PI7: 0.828380223 | PJ7: 0 | PK7: 0 | PL7: 0 | PM7: 0 | PN7: 0.255913989 | PO7: 0 | PP7: 0 | PQ7: 0 | PR7: 0 | PS7: 0.226549217 | PT7: 1.562793175 | PU7: 1.078274434 | PV7: 0.251656097 | PW7: 0.223319092 | PX7: 0 | PY7: 0 | PZ7: 0 | QA7: 0 | QB7: 0.610787261 | QC7: 0 | QD7: 0 | QE7: 0 | QF7: 0 | QG7: 0 | QH7: 0 | QI7: 0.276909802 | QJ7: 0.234771353 | QK7: 0 | QL7: 1.240955272 | QM7: 0.996640367 | QN7: 0.504780434 | QO7: 0 | QP7: 0 | QQ7: 0.268247194 | QR7: 0.524748479 | QS7: 0 | QT7: 0.317433187 | QU7: 0.329619568 | QV7: 0 | QW7: 1.743386524 | QX7: 0.310385642 | QY7: 15.38758109 | QZ7: 10.0859183 | RA7: 2.322606654 | RB7: 13.11034301 | RC7: 21.69616192 | RD7: 1.333601128 | RE7: 101.3024442 | RF7: 24.20141745 | RG7: 61.38353244 | RH7: 529.5506466 | RI7: 830.0054161 | RJ7: 84.28643967 | RK7: 527.0320301 | RL7: 0.304806335 | RM7: 0.221997678 | RN7: 0.255326694 | RO7: 0.552351364 | RP7: 0.31185388 | RQ7: 0 | RR7: 0 | RS7: 2.438010209 | RT7: 223.8930268 | RU7: 116.7016244 | RV7: 157.8639874 | RW7: 229.2518041 | RX7: 13.38872105 | RY7: 22.72407576 | RZ7: 6.320179913 | SA7: 4.187269687 | SB7: 0 | SC7: 29.94839701 | SD7: 39.22149842 | SE7: 10.34594335 | SF7: 232.9165276 | SG7: 311.1660106 | SH7: 174.0284135 | SI7: 12.28710162 | SJ7: 563.8052407 | SK7: 259.4674205 | SL7: 366.3259732 | SM7: 561.9925533 | SN7: 0 | SO7: 0 | SP7: 1.109401092 | SQ7: 0 | SR7: 0.354726448 | SS7: 0.287921591 | ST7: 1.15153954 | SU7: 0 | SV7: 0.343714658 | SW7: 0 | SX7: 0 | SY7: 0 | SZ7: 0 | TA7: 0 | TB7: 0 | TC7: 0 | TD7: 0 | TE7: 0.810908183 | TF7: 0.278084392 | TG7: 0.248132325 | TH7: 0.261346472 | TI7: 0.588763682 | TJ7: 0 | TK7: 0 | TL7: 0 | TM7: 1.307613305 | TN7: 0 | TO7: 0.766420554 | TP7: 0 | TQ7: 0 | TR7: 0 | TS7: 0 | TT7: 0 | TU7: 0.632223545 | TV7: 0 | TW7: 0 | TX7: 0 | TY7: 0 | TZ7: 0 | UA7: 0 | UB7: 1.378822877 | UC7: 1.037163753 | UD7: 4.085814399 | UE7: 0.818689848 | UF7: 0 | UG7: 0.248425973 | UH7: 0.7894719 | UI7: 2.678801341 | UJ7: 0 | UK7: 0.73588119 | UL7: 0.664524794 | UM7: 0.231100757 | UN7: 0.795785326 | UO7: 0.266338484 | UP7: 0 | UQ7: 0 | UR7: 0 | US7: 0 | UT7: 0 | UU7: 0 | UV7: 0.626497414 | UW7: 0.218914376 | UX7: 0 | UY7: 0 | UZ7: 0.32741721 | VA7: 4.633173752 | VB7: 0 | VC7: 0.498320184 | VD7: 0.283223228 | VE7: 1.634002747 | VF7: 0 | VG7: 1.383814888 | VH7: 0.288802534 | VI7: 0.261493296 | VJ7: 0 | VK7: 0.286747 | VL7: 0 | VM7: 0.286600176 | VN7: 0 | VO7: 0 | VP7: 1.212911914 | VQ7: 13.01270514 | VR7: 25.0268612 | VS7: 23.75668798 | VT7: 8.904426688 | VU7: 27.04495517 | VV7: 127.5731971 | VW7: 151.6976789 | VX7: 0 | VY7: 0 | VZ7: 8.34737696 | WA7: 2.658392824 | WB7: 0.868463137 | WC7: 0.374988141 | WD7: 5.282135217 | WE7: 0 | WF7: 1.517865073 | WG7: 36.11000716 | WH7: 0 | WI7: 0 | WJ7: 0 | WK7: 0 | WL7: 0 | WM7: 0 | WN7: 0 | WO7: 0 | WP7: 0 | WQ7: 0.208930354 | WR7: 0 | WS7: 0 | WT7: 0.79974957 | WU7: 0.707103714 | WV7: 1.871563754 | WW7: 1.735311211 | WX7: 12.63052263 | WY7: 0.903407216 | WZ7: 0 | XA7: 0 | XB7: 0 | XC7: 0 | XD7: 0 | XE7: 0.235065001 | XF7: 1.837647442 | XG7: 0.490098047 | XH7: 0 | XI7: 0 | XJ7: 0 | XK7: 3.275199864 | XL7: 0 | XM7: 1.722831183 | XN7: 0 | XO7: 0 | XP7: 0 | XQ7: 0 | XR7: 0.259144114 | XS7: 0 | XT7: 0 | XU7: 0 | XV7: 0 | XW7: 3.662374385 | XX7: 8.462633691 | XY7: 46.97511968 | XZ7: 27.10339106 | YA7: 5.694122971 | YB7: 11.90418499 | YC7: 0.349587613 | YD7: 0 | YE7: 0 | YF7: 0 | YG7: 0 | YH7: 0 | YI7: 0 | YJ7: 0 | YK7: 0.175601338 | YL7: 0 | YM7: 0 | YN7: 0 | YO7: 0 | YP7: 0 | YQ7: 0 | YR7: 0 | YS7: 0.518141405 | YT7: 0.463522929 | YU7: 0 | YV7: 0 | YW7: 7.211988044 | YX7: 4.859429322 | YY7: 21.75004627 | YZ7: 10.8452913 | ZA7: 0 | ZB7: 0 | ZC7: 0 | ZD7: 0.642648039 | ZE7: 0.617394335 | ZF7: 0 | ZG7: 0 | ZH7: 0 | ZI7: 0 | ZJ7: 0 | ZK7: 0 | ZL7: 0 | ZM7: 0 | ZN7: 344.7760479 | ZO7: 0.198946331 | ZP7: 0.208489882 | ZQ7: 0.19850586 | ZR7: 10.86658076 | ZS7: 7.459239426 | ZT7: 2.504374594 | ZU7: 0.926605386 | ZV7: 0 | ZW7: 0.301135739 | ZX7: 0 | ZY7: 0 | ZZ7: 0 | AAA7: 2.108831113 | AAB7: 0.322718846 | AAC7: 0 | AAD7: 0 | AAE7: 0 | AAF7: 1.051699315 | AAG7: 0 | AAH7: 0 | AAI7: 0.587295443 | AAJ7: 0 | AAK7: 0 | AAL7: 0 | AAM7: 2.616988495 | AAN7: 0 | AAO7: 0 | AAP7: 0 | AAQ7: 0
I8: 01L37 | J8: 470.2089659 | K8: 771.3327147 | L8: 281.5131962 | M8: 381.8973226 | N8: 473.513167 | O8: 525.2080324 | P8: 426.9092865 | Q8: 334.6159034 | R8: 102.1686619 | S8: 88.4252659 | T8: 32.69124965 | U8: 85.48771526 | V8: 3.954758308 | W8: 0 | X8: 0 | Y8: 71.64029011 | Z8: 0 | AA8: 10.01183573 | AB8: 0 | AC8: 0 | AD8: 10.940004 | AE8: 31.54887717 | AF8: 0 | AG8: 0 | AH8: 54.88754238 | AI8: 57.65990545 | AJ8: 12.09271944 | AK8: 0 | AL8: 51.46207383 | AM8: 158.1829873 | AN8: 32.12868254 | AO8: 10.53857722 | AP8: 551.8170217 | AQ8: 52.86691766 | AR8: 317.564409 | AS8: 243.3070501 | AT8: 130.4933835 | AU8: 0 | AV8: 0 | AW8: 30.01467138 | AX8: 8225.284198 | AY8: 14365.86619 | AZ8: 1421.86385 | BA8: 11116.54125 | BB8: 42.06661857 | BC8: 0 | BD8: 0 | BE8: 0 | BF8: 0 | BG8: 53.69900133 | BH8: 41.16438265 | BI8: 0 | BJ8: 199.7796757 | BK8: 506.0596152 | BL8: 385.4755372 | BM8: 0 | BN8: 805.3244792 | BO8: 433.8108892 | BP8: 447.5031699 | BQ8: 703.8958636 | BR8: 26.83368643 | BS8: 0 | BT8: 0 | BU8: 0 | BV8: 0 | BW8: 42.34003248 | BX8: 0 | BY8: 132.8470815 | BZ8: 26.05346746 | CA8: 0 | CB8: 36.88584472 | CC8: 0 | CD8: 19.2212676 | CE8: 74.02022028 | CF8: 0 | CG8: 33.49260423 | CH8: 19.93703044 | CI8: 1994.262763 | CJ8: 344.7151296 | CK8: 28.92836075 | CL8: 0 | CM8: 20.67782624 | CO8: P1_A2 | CP8: 41.83510932 | CQ8: 104.1301572 | CR8: 188.3889846 | CS8: 8.390548301 | CT8: 183.5575563 | CU8: 161.3770231 | CV8: 188.2562752 | CW8: 222.3499032 | CX8: 1.532054677 | CY8: 10.71139543 | CZ8: 16.33340762 | DA8: 13.0659797 | DB8: 0 | DC8: 0 | DD8: 2.484905208 | DE8: 0 | DF8: 0 | DG8: 0 | DH8: 0 | DI8: 0 | DJ8: 0 | DK8: 0 | DL8: 0 | DM8: 1.534443147 | DN8: 17.52271676 | DO8: 14.51339295 | DP8: 14.93510731 | DQ8: 20.81164091 | DR8: 20.3381266 | DS8: 9.944994891 | DT8: 13.35364114 | DU8: 0 | DV8: 225.4605877 | DW8: 108.1610001 | DX8: 174.9168156 | DY8: 147.8702212 | DZ8: 7.828660568 | EA8: 221.6818778 | EB8: 0 | EC8: 1.27424912 | ED8: 966.6221547 | EE8: 1348.414121 | EF8: 1095.227121 | EG8: 1940.988776 | EH8: 12.56738644 | EI8: 0 | EJ8: 688.734635 | EK8: 0 | EL8: 0 | EM8: 0 | EN8: 0 | EO8: 16.74959864 | EP8: 0 | EQ8: 0 | ER8: 0 | ES8: 0 | ET8: 17.63452704 | EU8: 7.27334113 | EV8: 0 | EW8: 5.393316127 | EX8: 106.7688203 | EY8: 222.3828939 | EZ8: 155.5676652 | FA8: 194.4288299 | FB8: 0 | FC8: 96.03622715 | FD8: 63.44823144 | FE8: 0 | FF8: 0 | FG8: 0 | FH8: 0 | FI8: 0 | FJ8: 0 | FK8: 0 | FL8: 0 | FM8: 0 | FN8: 0 | FO8: 1.221254926 | FP8: 7.583693042 | FQ8: 13.64802016 | FR8: 0 | FS8: 1.173336233 | FT8: 3.763632711 | FU8: 3.602112379 | FV8: 72.33632804 | FW8: 0.734006903 | FX8: 0 | FY8: 0 | FZ8: 0 | GB8: LjRoot107 | GC8: 61.40005459 | GD8: 171.1163308 | GE8: 21.73747797 | GF8: 110.9052413 | GG8: 79.12542738 | GH8: 48.63906205 | GI8: 59.61027233 | GJ8: 15.26442217 | GK8: 40.02148699 | GL8: 0 | GM8: 19.57253898 | GN8: 31.27811445 | GO8: 301.1366792 | GP8: 233.3941358 | GQ8: 0 | GR8: 24.80878488 | GS8: 0 | GT8: 1.253354353 | GU8: 0 | GV8: 0 | GW8: 0 | GX8: 7.69853796 | GY8: 0 | GZ8: 0 | HA8: 0 | HB8: 0 | HC8: 26.26887041 | HD8: 0 | HE8: 0 | HF8: 0 | HG8: 0 | HH8: 0 | HI8: 168.2067422 | HJ8: 112.6878692 | HK8: 195.1578106 | HL8: 0.001192393 | HM8: 0 | HN8: 0 | HO8: 0 | HP8: 0 | HQ8: 232.1065002 | HR8: 45.57446235 | HS8: 28.81567334 | HT8: 631.0307535 | HU8: 4.787458893 | HV8: 0 | HW8: 0 | HX8: 0 | HY8: 0 | HZ8: 0 | IA8: 0 | IB8: 0 | IC8: 7.480777143 | ID8: 0 | IE8: 0 | IF8: 0 | IG8: 3.771837943 | IH8: 0 | II8: 0 | IJ8: 0 | IK8: 32.32160759 | IL8: 89.55797401 | IM8: 403.7212513 | IN8: 116.5464537 | IO8: 181.6080499 | IP8: 129.7055566 | IQ8: 176.2540552 | IR8: 136.2789225 | IS8: 5.599180597 | IT8: 0 | IU8: 0 | IV8: 0 | IW8: 61.95228172 | IX8: 72.99279985 | IY8: 485.3027107 | IZ8: 477.1771469 | JA8: 0 | JB8: 0 | JC8: 36.57502336 | JD8: 7.586900142 | JE8: 6.523434413 | JF8: 3.704914872 | JG8: 2.629972359 | JH8: 690.3189306 | JI8: 194.761936 | JJ8: 0 | JK8: 41.99146969 | JL8: 15.27247083 | JM8: 27.54100496 | JO8: 01L37 | JP8: 470.2089659 | JQ8: 771.3327147 | JR8: 281.5131962 | JS8: 381.8973226 | JT8: 473.513167 | JU8: 525.2080324 | JV8: 426.9092865 | JW8: 334.6159034 | JX8: 102.1686619 | JY8: 88.4252659 | JZ8: 32.69124965 | KA8: 85.48771526 | KB8: 3.954758308 | KC8: 0 | KD8: 0 | KE8: 71.64029011 | KF8: 0 | KG8: 10.01183573 | KH8: 0 | KI8: 0 | KJ8: 10.940004 | KK8: 31.54887717 | KL8: 0 | KM8: 0 | KN8: 0 | KO8: 0 | KP8: 0 | KQ8: 0 | KR8: 0 | KS8: 21.65950808 | KT8: 0 | KU8: 0 | KV8: 0 | KW8: 0 | KX8: 0 | KY8: 0 | KZ8: 0 | LA8: 24.37326105 | LB8: 0 | LC8: 0 | LD8: 18.09763237 | LE8: 0 | LF8: 0 | LG8: 0 | LH8: 0 | LI8: 0 | LJ8: 0 | LK8: 0 | LL8: 0 | LM8: 1047.133899 | LN8: 26.87805623 | LO8: 12.74912268 | LP8: 0 | LQ8: 0 | LR8: 0 | LS8: 0 | LT8: 0 | LU8: 0 | LV8: 0 | LW8: 9.938835419 | LX8: 0 | LY8: 0 | LZ8: 0 | MA8: 0 | MB8: 0.000599592 | MC8: 76.27273717 | MD8: 0 | ME8: 0 | MF8: 0 | MG8: 0 | MH8: 101.1022877 | MI8: 0 | MJ8: 0 | MK8: 0 | ML8: 2.854956856 | MM8: 0 | MN8: 0 | MO8: 0 | MP8: 0 | MQ8: 0 | MR8: 0 | MS8: 0 | MT8: 0 | MU8: 0 | MV8: 0 | MW8: 0 | MX8: 29.746354 | MY8: 34.18977972 | MZ8: 0 | NA8: 0 | NB8: 0 | NC8: 0 | ND8: 0 | NE8: 0 | NF8: 0 | NG8: 0 | NH8: 1869.563835 | NI8: 0 | NJ8: 67.76033089 | NK8: 0 | NL8: 0 | NM8: 0 | NN8: 0 | NO8: 120.8916686 | NP8: 38.10406557 | NQ8: 69.31612199 | NR8: 0 | NS8: 0 | NT8: 51.65064548 | NU8: 17.39835831 | NV8: 0 | NW8: 0 | NX8: 0 | NY8: 0 | NZ8: 7.02856621 | OA8: 0 | OB8: 0 | OC8: 0 | OD8: 0 | OE8: 24.72582109 | OF8: 54.88754238 | OG8: 57.65990545 | OH8: 12.09271944 | OI8: 0 | OJ8: 51.46207383 | OK8: 158.1829873 | OL8: 32.12868254 | OM8: 10.53857722 | ON8: 551.8170217 | OO8: 52.86691766 | OP8: 317.564409 | OQ8: 243.3070501 | OR8: 130.4933835 | OS8: 0 | OT8: 0 | OU8: 30.01467138 | OV8: 7.570297496 | OW8: 45.01331299 | OX8: 0 | OY8: 0 | OZ8: 47.78897382 | PA8: 0 | PB8: 0 | PC8: 0 | PD8: 0 | PE8: 0 | PF8: 0 | PG8: 0 | PH8: 0 | PI8: 0 | PJ8: 0 | PK8: 0 | PL8: 0 | PM8: 0 | PN8: 0 | PO8: 0 | PP8: 0 | PQ8: 0 | PR8: 0 | PS8: 0 | PT8: 0 | PU8: 0 | PV8: 0 | PW8: 0 | PX8: 0 | PY8: 0 | PZ8: 16.48532974 | QA8: 0 | QB8: 0 | QC8: 4.320359472 | QD8: 0 | QE8: 0 | QF8: 0 | QG8: 0 | QH8: 0 | QI8: 0 | QJ8: 0 | QK8: 0 | QL8: 1.086010838 | QM8: 0 | QN8: 0 | QO8: 7.661735262 | QP8: 0 | QQ8: 0 | QR8: 0 | QS8: 0 | QT8: 0 | QU8: 58.71698598 | QV8: 0 | QW8: 17.42713872 | QX8: 0 | QY8: 462.2567283 | QZ8: 72.44179459 | RA8: 0 | RB8: 15.93580376 | RC8: 498.8744056 | RD8: 0 | RE8: 952.1919681 | RF8: 138.8302592 | RG8: 1774.528519 | RH8: 8225.284198 | RI8: 14365.86619 | RJ8: 1421.86385 | RK8: 11116.54125 | RL8: 0 | RM8: 0 | RN8: 0 | RO8: 0 | RP8: 0 | RQ8: 0 | RR8: 0 | RS8: 0 | RT8: 4402.839185 | RU8: 2147.257631 | RV8: 3531.207336 | RW8: 4524.5436 | RX8: 42.06661857 | RY8: 0 | RZ8: 0 | SA8: 0 | SB8: 0 | SC8: 53.69900133 | SD8: 41.16438265 | SE8: 0 | SF8: 199.7796757 | SG8: 506.0596152 | SH8: 385.4755372 | SI8: 0 | SJ8: 805.3244792 | SK8: 433.8108892 | SL8: 447.5031699 | SM8: 703.8958636 | SN8: 0 | SO8: 0 | SP8: 0 | SQ8: 0 | SR8: 0 | SS8: 24.5102678 | ST8: 0 | SU8: 0 | SV8: 0 | SW8: 0 | SX8: 0 | SY8: 0 | SZ8: 0 | TA8: 0 | TB8: 0 | TC8: 0 | TD8: 0 | TE8: 0 | TF8: 0 | TG8: 0 | TH8: 0 | TI8: 0 | TJ8: 0 | TK8: 0 | TL8: 0 | TM8: 0 | TN8: 0 | TO8: 0 | TP8: 0 | TQ8: 0 | TR8: 0 | TS8: 0 | TT8: 0 | TU8: 0 | TV8: 0 | TW8: 0 | TX8: 0 | TY8: 0 | TZ8: 0 | UA8: 0 | UB8: 0 | UC8: 0 | UD8: 0 | UE8: 0 | UF8: 0 | UG8: 0 | UH8: 0 | UI8: 0 | UJ8: 0 | UK8: 24.2804742 | UL8: 0 | UM8: 0 | UN8: 0 | UO8: 0 | UP8: 0 | UQ8: 8.913383364 | UR8: 0 | US8: 0 | UT8: 0 | UU8: 0 | UV8: 0 | UW8: 0 | UX8: 0 | UY8: 0 | UZ8: 0 | VA8: 0 | VB8: 0 | VC8: 0 | VD8: 0 | VE8: 0 | VF8: 0 | VG8: 0 | VH8: 0 | VI8: 12.28323977 | VJ8: 0 | VK8: 0 | VL8: 16.5253525 | VM8: 0 | VN8: 0 | VO8: 0 | VP8: 0 | VQ8: 477.8991818 | VR8: 456.5923836 | VS8: 278.0202735 | VT8: 0 | VU8: 65.68034657 | VV8: 527.7369611 | VW8: 531.8787921 | VX8: 0 | VY8: 0 | VZ8: 26.83368643 | WA8: 0 | WB8: 0 | WC8: 0 | WD8: 0 | WE8: 42.34003248 | WF8: 0 | WG8: 132.8470815 | WH8: 0 | WI8: 0 | WJ8: 0 | WK8: 0 | WL8: 0 | WM8: 44.11332554 | WN8: 0 | WO8: 17.36822882 | WP8: 0 | WQ8: 0 | WR8: 0 | WS8: 0 | WT8: 26.50346119 | WU8: 15.20954806 | WV8: 0 | WW8: 0 | WX8: 0 | WY8: 0 | WZ8: 0 | XA8: 0 | XB8: 0 | XC8: 29.51026469 | XD8: 25.59462976 | XE8: 0 | XF8: 8.257579717 | XG8: 0 | XH8: 0 | XI8: 0 | XJ8: 0 | XK8: 0 | XL8: 0 | XM8: 0 | XN8: 0 | XO8: 0 | XP8: 0 | XQ8: 0 | XR8: 0 | XS8: 0 | XT8: 0 | XU8: 116.620026 | XV8: 0 | XW8: 795.176686 | XX8: 26.05346746 | XY8: 0 | XZ8: 36.88584472 | YA8: 0 | YB8: 19.2212676 | YC8: 0 | YD8: 0 | YE8: 0 | YF8: 0 | YG8: 0 | YH8: 0 | YI8: 0 | YJ8: 0 | YK8: 0 | YL8: 0 | YM8: 0 | YN8: 0 | YO8: 0 | YP8: 0 | YQ8: 0 | YR8: 0 | YS8: 60.31669719 | YT8: 10.2663625 | YU8: 58.53650882 | YV8: 0 | YW8: 74.02022028 | YX8: 0 | YY8: 33.49260423 | YZ8: 19.93703044 | ZA8: 0 | ZB8: 0 | ZC8: 0 | ZD8: 5.450740111 | ZE8: 5.997867725 | ZF8: 0 | ZG8: 0 | ZH8: 0 | ZI8: 0 | ZJ8: 0 | ZK8: 0 | ZL8: 0 | ZM8: 0 | ZN8: 1994.262763 | ZO8: 0 | ZP8: 0 | ZQ8: 0 | ZR8: 344.7151296 | ZS8: 28.92836075 | ZT8: 0 | ZU8: 20.67782624 | ZV8: 0 | ZW8: 0 | ZX8: 0 | ZY8: 0 | ZZ8: 0 | AAA8: 0 | AAB8: 0 | AAC8: 0 | AAD8: 0 | AAE8: 0 | AAF8: 0 | AAG8: 0 | AAH8: 0 | AAI8: 0 | AAJ8: 11.65531715 | AAK8: 0 | AAL8: 0 | AAM8: 0 | AAN8: 0 | AAO8: 0 | AAP8: 0 | AAQ8: 0
I9: 01L38 | J9: 49.35752669 | K9: 201.5164047 | L9: 40.67637314 | M9: 97.06137898 | N9: 89.3469797 | O9: 303.6853937 | P9: 282.7203157 | Q9: 373.242389 | R9: 10.495504 | S9: 76.34750721 | T9: 0 | U9: 0 | V9: 0 | W9: 0 | X9: 12.94326585 | Y9: 38.5739449 | Z9: 0 | AA9: 0 | AB9: 46.68898514 | AC9: 0 | AD9: 0 | AE9: 0 | AF9: 0 | AG9: 0 | AH9: 10.08512056 | AI9: 0 | AJ9: 0 | AK9: 0 | AL9: 0 | AM9: 0 | AN9: 31.04000642 | AO9: 0 | AP9: 333.9299637 | AQ9: 0 | AR9: 0 | AS9: 135.0447794 | AT9: 0 | AU9: 11.8170346 | AV9: 0 | AW9: 0 | AX9: 5857.912135 | AY9: 8914.729173 | AZ9: 550.3327354 | BA9: 6271.235257 | BB9: 0 | BC9: 0 | BD9: 0 | BE9: 0 | BF9: 0 | BG9: 0 | BH9: 0 | BI9: 17.00738088 | BJ9: 171.5506196 | BK9: 156.6411704 | BL9: 144.7115727 | BM9: 0 | BN9: 429.940953 | BO9: 216.6909993 | BP9: 191.2770531 | BQ9: 415.9784733 | BR9: 23.12701033 | BS9: 0 | BT9: 0 | BU9: 0 | BV9: 0 | BW9: 0 | BX9: 0 | BY9: 225.9400648 | BZ9: 0 | CA9: 7.77420315 | CB9: 0 | CC9: 33.33053955 | CD9: 0 | CE9: 0 | CF9: 0 | CG9: 63.86918271 | CH9: 0 | CI9: 1034.43411 | CJ9: 202.7000416 | CK9: 0 | CL9: 0 | CM9: 0 | CO9: P1_A3 | CP9: 1.315601707 | CQ9: 0 | CR9: 0 | CS9: 0 | CT9: 1.393855818 | CU9: 0 | CV9: 0 | CW9: 0 | CX9: 0 | CY9: 1.020072214 | CZ9: 1.406242409 | DA9: 1.699731758 | DB9: 0 | DC9: 0 | DD9: 0 | DE9: 0 | DF9: 0 | DG9: 0 | DH9: 0 | DI9: 0 | DJ9: 0 | DK9: 0 | DL9: 0 | DM9: 0 | DN9: 0 | DO9: 1.061895175 | DP9: 0 | DQ9: 0 | DR9: 0 | DS9: 3.485003857 | DT9: 2.46609744 | DU9: 1.187801231 | DV9: 43.80758413 | DW9: 28.62147763 | DX9: 51.14671227 | DY9: 10.55046119 | DZ9: 1.596995914 | EA9: 95.74543527 | EB9: 0 | EC9: 0 | ED9: 1539.794053 | EE9: 1813.580561 | EF9: 1256.82602 | EG9: 2497.256274 | EH9: 0 | EI9: 0 | EJ9: 0 | EK9: 0 | EL9: 0 | EM9: 0 | EN9: 0 | EO9: 0 | EP9: 0 | EQ9: 0 | ER9: 0 | ES9: 0 | ET9: 0 | EU9: 0 | EV9: 0 | EW9: 0 | EX9: 19.44767676 | EY9: 22.84466296 | EZ9: 12.58113352 | FA9: 18.20843475 | FB9: 0 | FC9: 12.55927483 | FD9: 4.470393616 | FE9: 0 | FF9: 0 | FG9: 0 | FH9: 0 | FI9: 0 | FJ9: 0 | FK9: 0 | FL9: 0 | FM9: 0 | FN9: 11.27354666 | FO9: 4.577355474 | FP9: 2.795872214 | FQ9: 3.54620819 | FR9: 0 | FS9: 0 | FT9: 0 | FU9: 0 | FV9: 193.9872787 | FW9: 0 | FX9: 0 | FY9: 0 | FZ9: 0 | GB9: LjRoot10 | GC9: 174.7643868 | GD9: 490.5112553 | GE9: 157.7742636 | GF9: 207.3149714 | GG9: 138.2881021 | GH9: 258.1431478 | GI9: 69.15287434 | GJ9: 47.58617057 | GK9: 114.6220428 | GL9: 99.35617667 | GM9: 38.22095926 | GN9: 85.56737016 | GO9: 459.2625775 | GP9: 271.2475309 | GQ9: 1.166713755 | GR9: 28.00010925 | GS9: 1.945495187 | GT9: 0 | GU9: 0.437517658 | GV9: 1.766696304 | GW9: 7.29196097 | GX9: 2.33342751 | GY9: 2.152003521 | GZ9: 5.918155523 | HA9: 13.27136896 | HB9: 22.15968603 | HC9: 26.25558051 | HD9: 21.29369275 | HE9: 10.93064949 | HF9: 16.0894202 | HG9: 5.979407995 | HH9: 6.125247215 | HI9: 370.7362754 | HJ9: 464.280905 | HK9: 178.0880626 | HL9: 50.33334395 | HM9: 18.88078286 | HN9: 10.79210224 | HO9: 10.5328001 | HP9: 16.73315452 | HQ9: 133.0851421 | HR9: 47.70882136 | HS9: 12.44314804 | HT9: 316.7235538 | HU9: 35.85107195 | HV9: 17.89345135 | HW9: 38.00715897 | HX9: 36.51157777 | HY9: 59.17601334 | HZ9: 12.51212999 | IA9: 2.041749072 | IB9: 19.26098571 | IC9: 6.863193665 | ID9: 2.33342751 | IE9: 26.26812268 | IF9: 29.86874717 | IG9: 1.750362311 | IH9: 1.208423772 | II9: 4.096915351 | IJ9: 7.577076644 | IK9: 496.1356907 | IL9: 421.9109658 | IM9: 1344.696084 | IN9: 524.5982561 | IO9: 1221.174787 | IP9: 755.1290811 | IQ9: 1380.277937 | IR9: 1011.61535 | IS9: 2.625105949 | IT9: 1.750070633 | IU9: 5.396051118 | IV9: 0.583356878 | IW9: 44.44450211 | IX9: 26.84389592 | IY9: 257.2746753 | IZ9: 709.7873761 | JA9: 55.47184301 | JB9: 7.403090455 | JC9: 82.78227859 | JD9: 153.2134337 | JE9: 11.3627711 | JF9: 2.808280009 | JG9: 1.604231413 | JH9: 669.1686743 | JI9: 238.4797917 | JJ9: 0 | JK9: 16.57083546 | JL9: 34.9324307 | JM9: 12.38656242 | JO9: 01L38 | JP9: 49.35752669 | JQ9: 201.5164047 | JR9: 40.67637314 | JS9: 97.06137898 | JT9: 89.3469797 | JU9: 303.6853937 | JV9: 282.7203157 | JW9: 373.242389 | JX9: 10.495504 | JY9: 76.34750721 | JZ9: 0 | KA9: 0 | KB9: 0 | KC9: 0 | KD9: 12.94326585 | KE9: 38.5739449 | KF9: 0 | KG9: 0 | KH9: 46.68898514 | KI9: 0 | KJ9: 0 | KK9: 0 | KL9: 0 | KM9: 0 | KN9: 0 | KO9: 0 | KP9: 0 | KQ9: 0 | KR9: 0 | KS9: 0 | KT9: 0 | KU9: 27.87834526 | KV9: 0 | KW9: 0 | KX9: 0 | KY9: 0 | KZ9: 0 | LA9: 0 | LB9: 7.566163627 | LC9: 0 | LD9: 51.76541929 | LE9: 0 | LF9: 0 | LG9: 0 | LH9: 0 | LI9: 0 | LJ9: 0 | LK9: 0 | LL9: 0 | LM9: 249.5000911 | LN9: 0 | LO9: 0 | LP9: 0 | LQ9: 0 | LR9: 0 | LS9: 0 | LT9: 0 | LU9: 0 | LV9: 0 | LW9: 0 | LX9: 0 | LY9: 0 | LZ9: 0 | MA9: 0 | MB9: 0 | MC9: 0 | MD9: 0 | ME9: 47.96135366 | MF9: 0 | MG9: 0 | MH9: 0.001348959 | MI9: 0 | MJ9: 0 | MK9: 0 | ML9: 0 | MM9: 0 | MN9: 0 | MO9: 1.066427381 | MP9: 0 | MQ9: 0 | MR9: 0 | MS9: 0 | MT9: 0 | MU9: 0 | MV9: 12.12234909 | MW9: 0 | MX9: 0 | MY9: 0 | MZ9: 0 | NA9: 0 | NB9: 0 | NC9: 0 | ND9: 0 | NE9: 0 | NF9: 0 | NG9: 19.98318541 | NH9: 950.0187763 | NI9: 0 | NJ9: 0 | NK9: 0 | NL9: 0 | NM9: 0 | NN9: 0 | NO9: 0 | NP9: 0 | NQ9: 0 | NR9: 0 | NS9: 0 | NT9: 0 | NU9: 0 | NV9: 0 | NW9: 0 | NX9: 42.93273263 | NY9: 0 | NZ9: 0 | OA9: 0 | OB9: 0 | OC9: 0 | OD9: 0 | OE9: 0 | OF9: 10.08512056 | OG9: 0 | OH9: 0 | OI9: 0 | OJ9: 0 | OK9: 0 | OL9: 31.04000642 | OM9: 0 | ON9: 333.9299637 | OO9: 0 | OP9: 0 | OQ9: 135.0447794 | OR9: 0 | OS9: 11.8170346 | OT9: 0 | OU9: 0 | OV9: 0 | OW9: 0 | OX9: 0 | OY9: 0 | OZ9: 0 | PA9: 0 | PB9: 0 | PC9: 0 | PD9: 0 | PE9: 0 | PF9: 0 | PG9: 0 | PH9: 0 | PI9: 0 | PJ9: 0 | PK9: 0 | PL9: 0 | PM9: 0 | PN9: 0 | PO9: 0 | PP9: 0 | PQ9: 0 | PR9: 0 | PS9: 0 | PT9: 0 | PU9: 0 | PV9: 0 | PW9: 0 | PX9: 0 | PY9: 0 | PZ9: 0 | QA9: 15.34096631 | QB9: 0 | QC9: 0 | QD9: 0 | QE9: 0 | QF9: 0 | QG9: 0 | QH9: 0 | QI9: 0 | QJ9: 0 | QK9: 0 | QL9: 0 | QM9: 0 | QN9: 0 | QO9: 0 | QP9: 10.52203353 | QQ9: 0 | QR9: 0 | QS9: 0 | QT9: 0 | QU9: 0 | QV9: 13.08805416 | QW9: 7.695663734 | QX9: 0 | QY9: 103.1209048 | QZ9: 0 | RA9: 0 | RB9: 48.59041842 | RC9: 329.550492 | RD9: 70.68922188 | RE9: 729.4283849 | RF9: 315.3808721 | RG9: 803.9399583 | RH9: 5857.912135 | RI9: 8914.729173 | RJ9: 550.3327354 | RK9: 6271.235257 | RL9: 0 | RM9: 0 | RN9: 0 | RO9: 0 | RP9: 0 | RQ9: 0 | RR9: 0 | RS9: 0 | RT9: 2692.705006 | RU9: 1634.213853 | RV9: 1674.520612 | RW9: 2182.43217 | RX9: 0 | RY9: 0 | RZ9: 0 | SA9: 0 | SB9: 0 | SC9: 0 | SD9: 0 | SE9: 17.00738088 | SF9: 171.5506196 | SG9: 156.6411704 | SH9: 144.7115727 | SI9: 0 | SJ9: 429.940953 | SK9: 216.6909993 | SL9: 191.2770531 | SM9: 415.9784733 | SN9: 0 | SO9: 0 | SP9: 0 | SQ9: 0 | SR9: 0 | SS9: 0 | ST9: 0 | SU9: 0 | SV9: 57.19677966 | SW9: 0 | SX9: 0 | SY9: 0 | SZ9: 0 | TA9: 0 | TB9: 0 | TC9: 0 | TD9: 0 | TE9: 0 | TF9: 0 | TG9: 0 | TH9: 0 | TI9: 0 | TJ9: 0 | TK9: 0 | TL9: 0 | TM9: 0 | TN9: 0 | TO9: 0 | TP9: 0 | TQ9: 0 | TR9: 0 | TS9: 0 | TT9: 0 | TU9: 0 | TV9: 0 | TW9: 0 | TX9: 0 | TY9: 0 | TZ9: 0 | UA9: 0 | UB9: 0 | UC9: 0 | UD9: 0 | UE9: 0 | UF9: 0 | UG9: 0 | UH9: 0 | UI9: 0 | UJ9: 0 | UK9: 0 | UL9: 0 | UM9: 0 | UN9: 0 | UO9: 0 | UP9: 0 | UQ9: 0 | UR9: 0 | US9: 0 | UT9: 0 | UU9: 0 | UV9: 0 | UW9: 20.6013086 | UX9: 0 | UY9: 67.74834042 | UZ9: 0 | VA9: 22.81210324 | VB9: 0 | VC9: 0 | VD9: 0 | VE9: 0 | VF9: 0 | VG9: 0 | VH9: 0 | VI9: 0 | VJ9: 0 | VK9: 0 | VL9: 0 | VM9: 0 | VN9: 0 | VO9: 0 | VP9: 0 | VQ9: 379.9593077 | VR9: 355.9446821 | VS9: 102.1727362 | VT9: 0 | VU9: 20.43733509 | VV9: 407.601735 | VW9: 206.355422 | VX9: 0 | VY9: 0 | VZ9: 23.12701033 | WA9: 0 | WB9: 0 | WC9: 0 | WD9: 0 | WE9: 0 | WF9: 0 | WG9: 225.9400648 | WH9: 0 | WI9: 0 | WJ9: 12.27073462 | WK9: 0 | WL9: 0 | WM9: 0 | WN9: 0 | WO9: 0 | WP9: 0 | WQ9: 0 | WR9: 0 | WS9: 0 | WT9: 11.98760303 | WU9: 0 | WV9: 0 | WW9: 0 | WX9: 0 | WY9: 0 | WZ9: 0 | XA9: 0 | XB9: 10.55425868 | XC9: 0 | XD9: 95.44262765 | XE9: 0 | XF9: 0 | XG9: 0 | XH9: 0 | XI9: 0 | XJ9: 0 | XK9: 0 | XL9: 36.61885302 | XM9: 0 | XN9: 0 | XO9: 0 | XP9: 0 | XQ9: 0 | XR9: 0 | XS9: 0 | XT9: 0 | XU9: 64.43589556 | XV9: 0 | XW9: 367.1311531 | XX9: 0 | XY9: 7.77420315 | XZ9: 0 | YA9: 33.33053955 | YB9: 0 | YC9: 0 | YD9: 0 | YE9: 0 | YF9: 0 | YG9: 0 | YH9: 0 | YI9: 0 | YJ9: 0 | YK9: 0 | YL9: 0 | YM9: 0 | YN9: 0 | YO9: 0 | YP9: 0 | YQ9: 0 | YR9: 0 | YS9: 0 | YT9: 0 | YU9: 18.64996383 | YV9: 0 | YW9: 0 | YX9: 0 | YY9: 63.86918271 | YZ9: 0 | ZA9: 0 | ZB9: 0 | ZC9: 0 | ZD9: 0 | ZE9: 0 | ZF9: 0 | ZG9: 0 | ZH9: 0 | ZI9: 0 | ZJ9: 0 | ZK9: 0 | ZL9: 0 | ZM9: 0 | ZN9: 1034.43411 | ZO9: 0 | ZP9: 0 | ZQ9: 0 | ZR9: 202.7000416 | ZS9: 0 | ZT9: 0 | ZU9: 0 | ZV9: 0 | ZW9: 0 | ZX9: 0 | ZY9: 0 | ZZ9: 0 | AAA9: 0 | AAB9: 0 | AAC9: 0 | AAD9: 0 | AAE9: 0 | AAF9: 0 | AAG9: 0 | AAH9: 0 | AAI9: 0 | AAJ9: 13.8650548 | AAK9: 0 | AAL9: 0 | AAM9: 9.514061062 | AAN9: 0 | AAO9: 0 | AAP9: 6.64692271 | AAQ9: 0
I10: 01L410 | J10: 288.1154556 | K10: 440.5693661 | L10: 297.264478 | M10: 473.3069214 | N10: 483.9288235 | O10: 288.7908025 | P10: 559.3964383 | Q10: 552.5303869 | R10: 67.04254773 | S10: 156.9523325 | T10: 11.45016607 | U10: 18.02057775 | V10: 0.372319881 | W10: 0.562025726 | X10: 0.762812519 | Y10: 24.89933531 | Z10: 9.964432446 | AA10: 0.352669665 | AB10: 1.065100804 | AC10: 0 | AD10: 0.325484404 | AE10: 0.168725915 | AF10: 0 | AG10: 0 | AH10: 40.27466895 | AI10: 22.35367199 | AJ10: 26.33040292 | AK10: 18.47371469 | AL10: 9.028313887 | AM10: 8.127358872 | AN10: 10.69134269 | AO10: 9.709570623 | AP10: 450.9173471 | AQ10: 31.28166636 | AR10: 235.2489874 | AS10: 309.727886 | AT10: 8.794284247 | AU10: 3.817460753 | AV10: 3.959296898 | AW10: 1.599350284 | AX10: 102.9581192 | AY10: 191.4932753 | AZ10: 15.99512805 | BA10: 86.9813116 | BB10: 26.24426701 | BC10: 35.38117419 | BD10: 13.56633181 | BE10: 19.53852 | BF10: 2.018948881 | BG10: 18.14497987 | BH10: 33.48470673 | BI10: 18.19225859 | BJ10: 324.013593 | BK10: 240.4248247 | BL10: 147.4713249 | BM10: 22.82675464 | BN10: 484.5780193 | BO10: 187.4172591 | BP10: 199.3164252 | BQ10: 530.216163 | BR10: 4.347277854 | BS10: 0.729865164 | BT10: 1.125233419 | BU10: 1.565959692 | BV10: 0.513860535 | BW10: 0 | BX10: 0.165475503 | BY10: 2.110699137 | BZ10: 8.665449749 | CA10: 80.44798416 | CB10: 66.14543411 | CC10: 14.71121544 | CD10: 17.48839672 | CE10: 30.75997528 | CF10: 7.871167335 | CG10: 37.99273222 | CH10: 3.136795001 | CI10: 282.7137147 | CJ10: 39.20454479 | CK10: 13.56175168 | CL10: 0.990489081 | CM10: 2.332170368 | CO10: P1_A4 | CP10: 0 | CQ10: 0 | CR10: 0.810664531 | CS10: 0 | CT10: 0 | CU10: 0.914050656 | CV10: 1.545365925 | CW10: 1.030341714 | CX10: 0 | CY10: 0 | CZ10: 0 | DA10: 0 | DB10: 0.146646985 | DC10: 0.562244539 | DD10: 1.173175878 | DE10: 0 | DF10: 0.158818684 | DG10: 0.158818684 | DH10: 0 | DI10: 0.146646985 | DJ10: 0 | DK10: 0 | DL10: 0 | DM10: 0.146646985 | DN10: 0 | DO10: 0 | DP10: 0 | DQ10: 1.579094731 | DR10: 1.026528893 | DS10: 0 | DT10: 0 | DU10: 2.318635475 | DV10: 17.33484677 | DW10: 5.077211904 | DX10: 10.86390192 | DY10: 12.78600395 | DZ10: 0 | EA10: 0 | EB10: 0.146646985 | EC10: 1.173175878 | ED10: 211.3625923 | EE10: 236.8162561 | EF10: 129.6308018 | EG10: 312.7664893 | EH10: 0.439940954 | EI10: 0.146646985 | EJ10: 0.735287981 | EK10: 0.293293969 | EL10: 0.298573261 | EM10: 0.439940954 | EN10: 0.14738022 | EO10: 0.439940954 | EP10: 0.146646985 | EQ10: 0.586587939 | ER10: 0 | ES10: 0 | ET10: 0 | EU10: 0.146646985 | EV10: 0.146646985 | EW10: 0 | EX10: 0 | EY10: 0 | EZ10: 8.249479477 | FA10: 0 | FB10: 0.293293969 | FC10: 0 | FD10: 0 | FE10: 0 | FF10: 0.146646985 | FG10: 0 | FH10: 0.714757403 | FI10: 0.733234923 | FJ10: 0.439940954 | FK10: 0.439940954 | FL10: 0.293293969 | FM10: 0 | FN10: 0 | FO10: 0 | FP10: 0 | FQ10: 10.38114005 | FR10: 2.188119659 | FS10: 1.906410801 | FT10: 0 | FU10: 0 | FV10: 22.36425175 | FW10: 2.173161666 | FX10: 0.44111413 | FY10: 0.446246774 | FZ10: 0 | GB10: LjRoot110 | GC10: 38.02447735 | GD10: 0 | GE10: 20.89767176 | GF10: 0 | GG10: 0 | GH10: 16.2827723 | GI10: 0 | GJ10: 25.30016937 | GK10: 0 | GL10: 0 | GM10: 0 | GN10: 0 | GO10: 1157.59005 | GP10: 428.0668727 | GQ10: 9.957363242 | GR10: 0.000293373 | GS10: 0 | GT10: 0 | GU10: 0 | GV10: 18.00560356 | GW10: 0 | GX10: 0 | GY10: 0 | GZ10: 0 | HA10: 0 | HB10: 0 | HC10: 0 | HD10: 0 | HE10: 35.23714321 | HF10: 0 | HG10: 0 | HH10: 15.28413159 | HI10: 207.8850777 | HJ10: 127.7856726 | HK10: 92.94575609 | HL10: 0 | HM10: 0 | HN10: 0 | HO10: 0 | HP10: 0 | HQ10: 339.6884897 | HR10: 78.80651152 | HS10: 41.49243619 | HT10: 920.7787159 | HU10: 31.18111877 | HV10: 24.18902022 | HW10: 0.000146686 | HX10: 16.01330946 | HY10: 0 | HZ10: 0 | IA10: 5.086056034 | IB10: 0 | IC10: 0 | ID10: 0 | IE10: 0 | IF10: 0 | IG10: 0 | IH10: 0 | II10: 0 | IJ10: 0 | IK10: 398.4548578 | IL10: 229.2921912 | IM10: 1334.879581 | IN10: 782.3249847 | IO10: 394.9681232 | IP10: 179.9345792 | IQ10: 87.39162389 | IR10: 243.4620932 | IS10: 0 | IT10: 0 | IU10: 0 | IV10: 0 | IW10: 85.6283072 | IX10: 72.45601909 | IY10: 1364.705758 | IZ10: 698.337071 | JA10: 89.09289225 | JB10: 29.44259207 | JC10: 120.9132702 | JD10: 28.9714355 | JE10: 12.048964 | JF10: 0 | JG10: 0 | JH10: 499.4641096 | JI10: 218.5176382 | JJ10: 0 | JK10: 0 | JL10: 0 | JM10: 0 | JO10: 01L410 | JP10: 288.1154556 | JQ10: 440.5693661 | JR10: 297.264478 | JS10: 473.3069214 | JT10: 483.9288235 | JU10: 288.7908025 | JV10: 559.3964383 | JW10: 552.5303869 | JX10: 67.04254773 | JY10: 156.9523325 | JZ10: 11.45016607 | KA10: 18.02057775 | KB10: 0.372319881 | KC10: 0.562025726 | KD10: 0.762812519 | KE10: 24.89933531 | KF10: 9.964432446 | KG10: 0.352669665 | KH10: 1.065100804 | KI10: 0 | KJ10: 0.325484404 | KK10: 0.168725915 | KL10: 0 | KM10: 0 | KN10: 0 | KO10: 0.17035112 | KP10: 0.168430423 | KQ10: 0.371137914 | KR10: 0 | KS10: 0.179068133 | KT10: 0 | KU10: 0.353703887 | KV10: 0 | KW10: 0.967440708 | KX10: 0.201821015 | KY10: 0.485197814 | KZ10: 0 | LA10: 0 | LB10: 0 | LC10: 0 | LD10: 0.389458416 | LE10: 0 | LF10: 0.166805217 | LG10: 0 | LH10: 0 | LI10: 0 | LJ10: 0 | LK10: 0.431122783 | LL10: 0.171237596 | LM10: 28.32349625 | LN10: 0 | LO10: 0.573549913 | LP10: 0 | LQ10: 0 | LR10: 0.168134931 | LS10: 0 | LT10: 0 | LU10: 0.656730902 | LV10: 0 | LW10: 0.229892752 | LX10: 0 | LY10: 0 | LZ10: 0 | MA10: 0 | MB10: 0.168134931 | MC10: 0.268749946 | MD10: 0 | ME10: 0.210538028 | MF10: 0.349419254 | MG10: 0 | MH10: 0 | MI10: 0.425212944 | MJ10: 0.649195857 | MK10: 0.538534114 | ML10: 0 | MM10: 0 | MN10: 0.220732501 | MO10: 0.321199771 | MP10: 0.207435363 | MQ10: 0 | MR10: 0.184682481 | MS10: 0 | MT10: 0 | MU10: 1.353944204 | MV10: 0 | MW10: 0 | MX10: 0 | MY10: 0 | MZ10: 0.167691693 | NA10: 0 | NB10: 0 | NC10: 0 | ND10: 0 | NE10: 0 | NF10: 0.566162613 | NG10: 0 | NH10: 69.52468027 | NI10: 56.34825012 | NJ10: 54.86044805 | NK10: 44.27400501 | NL10: 58.40310128 | NM10: 25.56611294 | NN10: 5.078472732 | NO10: 169.9129058 | NP10: 5.144071949 | NQ10: 13.25458778 | NR10: 16.80876519 | NS10: 34.90395466 | NT10: 0.390197146 | NU10: 0 | NV10: 0 | NW10: 0.147745985 | NX10: 2.575212513 | NY10: 0 | NZ10: 1.520453929 | OA10: 0.527896403 | OB10: 0 | OC10: 0 | OD10: 0.443237954 | OE10: 1.471993246 | OF10: 40.27466895 | OG10: 22.35367199 | OH10: 26.33040292 | OI10: 18.47371469 | OJ10: 9.028313887 | OK10: 8.127358872 | OL10: 10.69134269 | OM10: 9.709570623 | ON10: 450.9173471 | OO10: 31.28166636 | OP10: 235.2489874 | OQ10: 309.727886 | OR10: 8.794284247 | OS10: 3.817460753 | OT10: 3.959296898 | OU10: 1.599350284 | OV10: 0 | OW10: 0 | OX10: 0 | OY10: 0.160156647 | OZ10: 0 | PA10: 0.263431091 | PB10: 0 | PC10: 0 | PD10: 0.611372885 | PE10: 0.165770995 | PF10: 0 | PG10: 0.191183304 | PH10: 0 | PI10: 0.349271508 | PJ10: 0 | PK10: 0 | PL10: 0 | PM10: 0 | PN10: 0 | PO10: 0.363455122 | PP10: 0 | PQ10: 0.180250101 | PR10: 0 | PS10: 0 | PT10: 0.193399494 | PU10: 1.56861912 | PV10: 0.319722311 | PW10: 0 | PX10: 0 | PY10: 0 | PZ10: 0 | QA10: 0.504995776 | QB10: 0.560991504 | QC10: 0.147745985 | QD10: 0 | QE10: 0 | QF10: 0.176113214 | QG10: 0.808318282 | QH10: 0 | QI10: 0.189262606 | QJ10: 0.412359043 | QK10: 0 | QL10: 1.730696465 | QM10: 2.20629079 | QN10: 0 | QO10: 0.166805217 | QP10: 0.349862492 | QQ10: 0 | QR10: 3.290303079 | QS10: 12.94358248 | QT10: 8.917799891 | QU10: 4.750624392 | QV10: 14.12141347 | QW10: 2.401463235 | QX10: 0 | QY10: 52.15994695 | QZ10: 22.19366309 | RA10: 62.53570421 | RB10: 42.8393915 | RC10: 70.53895646 | RD10: 4.90560993 | RE10: 114.4539387 | RF10: 37.40293025 | RG10: 73.94139874 | RH10: 102.9581192 | RI10: 191.4932753 | RJ10: 15.99512805 | RK10: 86.9813116 | RL10: 0 | RM10: 0.156610744 | RN10: 0 | RO10: 0.428463356 | RP10: 0 | RQ10: 0 | RR10: 0 | RS10: 0 | RT10: 46.114329 | RU10: 19.77447034 | RV10: 34.54507967 | RW10: 35.24790732 | RX10: 26.24426701 | RY10: 35.38117419 | RZ10: 13.56633181 | SA10: 19.53852 | SB10: 2.018948881 | SC10: 18.14497987 | SD10: 33.48470673 | SE10: 18.19225859 | SF10: 324.013593 | SG10: 240.4248247 | SH10: 147.4713249 | SI10: 22.82675464 | SJ10: 484.5780193 | SK10: 187.4172591 | SL10: 199.3164252 | SM10: 530.216163 | SN10: 0 | SO10: 0 | SP10: 0.515633487 | SQ10: 0.791032002 | SR10: 0.753652268 | SS10: 0.547694365 | ST10: 0 | SU10: 0 | SV10: 0 | SW10: 0.337895067 | SX10: 0 | SY10: 0 | SZ10: 0.17847715 | TA10: 0.360943441 | TB10: 0.177886166 | TC10: 0 | TD10: 0 | TE10: 0.317358375 | TF10: 0.642251795 | TG10: 0 | TH10: 0.210538028 | TI10: 0 | TJ10: 0 | TK10: 0 | TL10: 0.304504474 | TM10: 0 | TN10: 0.466729566 | TO10: 0.530999069 | TP10: 0.969656898 | TQ10: 0 | TR10: 0 | TS10: 0 | TT10: 0 | TU10: 0 | TV10: 0 | TW10: 0 | TX10: 0.167396201 | TY10: 0 | TZ10: 0 | UA10: 0 | UB10: 0.302288285 | UC10: 0 | UD10: 2.371766292 | UE10: 0.56187798 | UF10: 0.816444311 | UG10: 0 | UH10: 0 | UI10: 0 | UJ10: 0 | UK10: 0 | UL10: 0.645206715 | UM10: 1.11784612 | UN10: 0.168725915 | UO10: 0 | UP10: 0 | UQ10: 0.450477507 | UR10: 0 | US10: 0.646240937 | UT10: 0.218073073 | UU10: 0 | UV10: 0 | UW10: 0 | UX10: 0.743162303 | UY10: 0 | UZ10: 7.222119224 | VA10: 3.164718992 | VB10: 0.560696012 | VC10: 1.094502255 | VD10: 1.806785647 | VE10: 12.13275252 | VF10: 14.39503904 | VG10: 30.58430531 | VH10: 0.676528864 | VI10: 2.70227406 | VJ10: 1.040131732 | VK10: 1.464605946 | VL10: 1.321144595 | VM10: 1.824367419 | VN10: 2.097549745 | VO10: 0.595120826 | VP10: 4.372690163 | VQ10: 103.2719316 | VR10: 71.98332121 | VS10: 48.21483366 | VT10: 6.528156334 | VU10: 131.4163597 | VV10: 454.6656628 | VW10: 220.5467844 | VX10: 0.330655514 | VY10: 0 | VZ10: 4.347277854 | WA10: 0.729865164 | WB10: 1.125233419 | WC10: 1.565959692 | WD10: 0.513860535 | WE10: 0 | WF10: 0.165475503 | WG10: 2.110699137 | WH10: 0.373797341 | WI10: 0 | WJ10: 0 | WK10: 0.163850297 | WL10: 0 | WM10: 0 | WN10: 0.351635444 | WO10: 0 | WP10: 0 | WQ10: 0.295491969 | WR10: 0.150700904 | WS10: 0 | WT10: 0 | WU10: 0.333610433 | WV10: 0 | WW10: 0.450182015 | WX10: 0.765915185 | WY10: 0.347498556 | WZ10: 0 | XA10: 0.295491969 | XB10: 0.170498866 | XC10: 0.275398515 | XD10: 0.214083932 | XE10: 0 | XF10: 0.450329761 | XG10: 0.319574565 | XH10: 0 | XI10: 0.295491969 | XJ10: 0 | XK10: 1.146804333 | XL10: 0.524941484 | XM10: 1.125972149 | XN10: 0.188080639 | XO10: 0 | XP10: 0.147745985 | XQ10: 0.443237954 | XR10: 79.04942067 | XS10: 0.517997422 | XT10: 1.008070854 | XU10: 0.170498866 | XV10: 0 | XW10: 6.801634152 | XX10: 8.665449749 | XY10: 80.44798416 | XZ10: 66.14543411 | YA10: 14.71121544 | YB10: 17.48839672 | YC10: 1.012798725 | YD10: 0.148041477 | YE10: 0.343213922 | YF10: 0 | YG10: 0 | YH10: 0 | YI10: 0 | YJ10: 0 | YK10: 0.189705844 | YL10: 0.147745985 | YM10: 0.239348495 | YN10: 0.579312006 | YO10: 8.497905802 | YP10: 1.282582893 | YQ10: 6.920865161 | YR10: 0 | YS10: 1.390437462 | YT10: 0 | YU10: 3.925167576 | YV10: 4.128613796 | YW10: 30.75997528 | YX10: 7.871167335 | YY10: 37.99273222 | YZ10: 3.136795001 | ZA10: 0 | ZB10: 0 | ZC10: 0.332132974 | ZD10: 0.295935207 | ZE10: 0 | ZF10: 0 | ZG10: 0.295935207 | ZH10: 0 | ZI10: 2.025892942 | ZJ10: 0.149371191 | ZK10: 0 | ZL10: 0.203298475 | ZM10: 0 | ZN10: 282.7137147 | ZO10: 0 | ZP10: 0 | ZQ10: 0.149666683 | ZR10: 39.20454479 | ZS10: 13.56175168 | ZT10: 0.990489081 | ZU10: 2.332170368 | ZV10: 0 | ZW10: 0 | ZX10: 0 | ZY10: 0 | ZZ10: 0 | AAA10: 6.195136884 | AAB10: 0.926810562 | AAC10: 0 | AAD10: 0.742423573 | AAE10: 3.864000738 | AAF10: 0 | AAG10: 1.742072906 | AAH10: 0 | AAI10: 0 | AAJ10: 18.89552948 | AAK10: 6.493140536 | AAL10: 0.51991812 | AAM10: 42.72281992 | AAN10: 1.19881092 | AAO10: 0 | AAP10: 0.578868768 | AAQ10: 0.175226738
I11: 01L411 | J11: 905.1399847 | K11: 1641.559029 | L11: 744.50492 | M11: 1504.209006 | N11: 1331.569676 | O11: 677.143676 | P11: 1507.170968 | Q11: 1424.331502 | R11: 644.9505708 | S11: 1244.629404 | T11: 146.389977 | U11: 138.5330745 | V11: 0 | W11: 9.275976982 | X11: 5.629005396 | Y11: 247.2381191 | Z11: 65.83495306 | AA11: 0 | AB11: 10.7745091 | AC11: 0 | AD11: 0 | AE11: 0 | AF11: 0 | AG11: 6.145112607 | AH11: 10.25913625 | AI11: 6.010871859 | AJ11: 19.99129678 | AK11: 9.222221934 | AL11: 101.7202664 | AM11: 122.0642021 | AN11: 86.34955377 | AO11: 58.58933068 | AP11: 883.6627868 | AQ11: 106.1610796 | AR11: 465.6197647 | AS11: 879.992022 | AT11: 119.02807 | AU11: 18.50422066 | AV11: 0 | AW11: 14.04005484 | AX11: 3726.68621 | AY11: 5440.486883 | AZ11: 663.3380284 | BA11: 4461.245858 | BB11: 165.6928861 | BC11: 201.0009935 | BD11: 83.20194602 | BE11: 22.48033176 | BF11: 0 | BG11: 152.3896866 | BH11: 244.121795 | BI11: 57.74834323 | BJ11: 2134.994241 | BK11: 3409.394394 | BL11: 1595.402683 | BM11: 103.4457153 | BN11: 3687.832179 | BO11: 1818.620961 | BP11: 2327.593291 | BQ11: 3231.031767 | BR11: 130.8443402 | BS11: 46.73781128 | BT11: 25.03957141 | BU11: 17.91027144 | BV11: 55.86911963 | BW11: 0 | BX11: 13.31392108 | BY11: 206.5424634 | BZ11: 66.37441287 | CA11: 474.3699409 | CB11: 113.3702778 | CC11: 69.13780421 | CD11: 106.1844322 | CE11: 47.75827597 | CF11: 29.4649631 | CG11: 96.69637243 | CH11: 58.78055766 | CI11: 1177.806151 | CJ11: 16.79904003 | CK11: 36.35001541 | CL11: 0 | CM11: 0 | CO11: P1_A5 | CP11: 0.34777023 | CQ11: 0 | CR11: 0 | CS11: 0.15155333 | CT11: 0 | CU11: 0.221803825 | CV11: 0.226648687 | CW11: 0 | CX11: 0 | CY11: 0 | CZ11: 0 | DA11: 0 | DB11: 0 | DC11: 0 | DD11: 0 | DE11: 0 | DF11: 0 | DG11: 0 | DH11: 0 | DI11: 0 | DJ11: 0 | DK11: 0 | DL11: 0 | DM11: 0 | DN11: 0.164271092 | DO11: 0 | DP11: 0 | DQ11: 0 | DR11: 0.737781597 | DS11: 0.276459921 | DT11: 0.467377753 | DU11: 0.799402182 | DV11: 10.37935921 | DW11: 5.57734424 | DX11: 11.2191857 | DY11: 5.086196384 | DZ11: 0 | EA11: 19.83259281 | EB11: 0 | EC11: 0 | ED11: 125.8487652 | EE11: 166.9969327 | EF11: 131.0529037 | EG11: 254.2459276 | EH11: 0 | EI11: 0 | EJ11: 0.321426294 | EK11: 0.151401928 | EL11: 0 | EM11: 0 | EN11: 0 | EO11: 0 | EP11: 0 | EQ11: 0 | ER11: 0 | ES11: 0.179108481 | ET11: 0 | EU11: 0 | EV11: 0 | EW11: 0 | EX11: 6.123602398 | EY11: 14.34775515 | EZ11: 10.11137779 | FA11: 15.26555364 | FB11: 0.154732771 | FC11: 3.608362161 | FD11: 4.379906388 | FE11: 0 | FF11: 0 | FG11: 0 | FH11: 0.405000159 | FI11: 0 | FJ11: 0.315370217 | FK11: 0 | FL11: 0 | FM11: 0 | FN11: 3.436672374 | FO11: 0.456325412 | FP11: 0.836192851 | FQ11: 2.096311101 | FR11: 0 | FS11: 0.327785175 | FT11: 0.512192724 | FU11: 0.265710384 | FV11: 19.18550097 | FW11: 0 | FX11: 0.225891677 | FY11: 0 | FZ11: 0 | GB11: LjRoot111 | GC11: 73.10146082 | GD11: 27.38718477 | GE11: 68.76453458 | GF11: 39.2192979 | GG11: 5.55019807 | GH11: 68.09000589 | GI11: 59.31834675 | GJ11: 58.09407717 | GK11: 67.26370824 | GL11: 45.44666413 | GM11: 59.29913735 | GN11: 57.60812323 | GO11: 3137.934179 | GP11: 1854.963444 | GQ11: 0 | GR11: 156.1211329 | GS11: 0 | GT11: 0 | GU11: 5.720149974 | GV11: 24.94891017 | GW11: 7.621441075 | GX11: 3.094033799 | GY11: 0 | GZ11: 35.32741397 | HA11: 30.09292465 | HB11: 47.53125107 | HC11: 146.6321272 | HD11: 59.55663134 | HE11: 0 | HF11: 23.24851131 | HG11: 21.79959434 | HH11: 13.41080356 | HI11: 861.8164268 | HJ11: 770.4855347 | HK11: 522.3535554 | HL11: 144.4047161 | HM11: 41.96536288 | HN11: 19.85225933 | HO11: 0 | HP11: 24.81488425 | HQ11: 974.6408824 | HR11: 241.2476808 | HS11: 81.16735765 | HT11: 2150.535466 | HU11: 42.58446291 | HV11: 8.037009406 | HW11: 158.4369659 | HX11: 49.8904885 | HY11: 0 | HZ11: 31.17481003 | IA11: 0 | IB11: 27.88281672 | IC11: 0 | ID11: 0 | IE11: 4.924059477 | IF11: 10.11485106 | IG11: 0 | IH11: 0 | II11: 3.857570955 | IJ11: 0 | IK11: 1749.85413 | IL11: 1600.688561 | IM11: 6252.250176 | IN11: 3019.478289 | IO11: 792.187469 | IP11: 564.2543981 | IQ11: 389.7522116 | IR11: 773.2761772 | IS11: 8.976657206 | IT11: 17.14285352 | IU11: 37.25685931 | IV11: 2.986695754 | IW11: 230.1351138 | IX11: 125.2621783 | IY11: 3763.445754 | IZ11: 3189.562019 | JA11: 319.9890813 | JB11: 36.05077267 | JC11: 313.1061025 | JD11: 12.95183077 | JE11: 25.27854941 | JF11: 20.92666623 | JG11: 0 | JH11: 1073.864787 | JI11: 333.4100028 | JJ11: 0 | JK11: 30.42168407 | JL11: 0 | JM11: 17.24931175 | JO11: 01L411 | JP11: 905.1399847 | JQ11: 1641.559029 | JR11: 744.50492 | JS11: 1504.209006 | JT11: 1331.569676 | JU11: 677.143676 | JV11: 1507.170968 | JW11: 1424.331502 | JX11: 644.9505708 | JY11: 1244.629404 | JZ11: 146.389977 | KA11: 138.5330745 | KB11: 0 | KC11: 9.275976982 | KD11: 5.629005396 | KE11: 247.2381191 | KF11: 65.83495306 | KG11: 0 | KH11: 10.7745091 | KI11: 0 | KJ11: 0 | KK11: 0 | KL11: 0 | KM11: 6.145112607 | KN11: 0 | KO11: 0 | KP11: 0 | KQ11: 0 | KR11: 0 | KS11: 1.932097427 | KT11: 0 | KU11: 0 | KV11: 0 | KW11: 0 | KX11: 0 | KY11: 1.882014172 | KZ11: 0 | LA11: 0 | LB11: 0 | LC11: 0 | LD11: 0 | LE11: 0 | LF11: 0 | LG11: 2.363019043 | LH11: 0 | LI11: 0 | LJ11: 0 | LK11: 6.427987533 | LL11: 0 | LM11: 0 | LN11: 0 | LO11: 0 | LP11: 0 | LQ11: 0 | LR11: 0 | LS11: 0 | LT11: 0 | LU11: 0 | LV11: 0 | LW11: 0 | LX11: 0.768579691 | LY11: 0 | LZ11: 0 | MA11: 1.223294525 | MB11: 0 | MC11: 4.74704074 | MD11: 9.510677985 | ME11: 2.976061586 | MF11: 0 | MG11: 0 | MH11: 0 | MI11: 0 | MJ11: 0 | MK11: 0 | ML11: 0 | MM11: 10.55126409 | MN11: 0 | MO11: 0 | MP11: 1.84764619 | MQ11: 0 | MR11: 0 | MS11: 0 | MT11: 0 | MU11: 1.130765343 | MV11: 0 | MW11: 0 | MX11: 0 | MY11: 1.602076681 | MZ11: 0 | NA11: 0 | NB11: 0 | NC11: 0 | ND11: 0 | NE11: 0 | NF11: 0 | NG11: 0 | NH11: 0 | NI11: 0 | NJ11: 0 | NK11: 0 | NL11: 18.95071067 | NM11: 0 | NN11: 0 | NO11: 12.93543266 | NP11: 10.56756685 | NQ11: 0 | NR11: 12.23882011 | NS11: 0 | NT11: 0 | NU11: 0 | NV11: 0 | NW11: 0 | NX11: 42.06097522 | NY11: 0 | NZ11: 0 | OA11: 0 | OB11: 0 | OC11: 0 | OD11: 0 | OE11: 34.825487 | OF11: 10.25913625 | OG11: 6.010871859 | OH11: 19.99129678 | OI11: 9.222221934 | OJ11: 101.7202664 | OK11: 122.0642021 | OL11: 86.34955377 | OM11: 58.58933068 | ON11: 883.6627868 | OO11: 106.1610796 | OP11: 465.6197647 | OQ11: 879.992022 | OR11: 119.02807 | OS11: 18.50422066 | OT11: 0 | OU11: 14.04005484 | OV11: 0 | OW11: 0 | OX11: 0 | OY11: 0 | OZ11: 0 | PA11: 0 | PB11: 0 | PC11: 7.757029693 | PD11: 0 | PE11: 0 | PF11: 0.496573273 | PG11: 2.161364176 | PH11: 0 | PI11: 1.02178653 | PJ11: 0 | PK11: 3.881525717 | PL11: 0 | PM11: 0 | PN11: 2.138745932 | PO11: 0 | PP11: 0 | PQ11: 0 | PR11: 0 | PS11: 0 | PT11: 0.750955085 | PU11: 0 | PV11: 0.69661255 | PW11: 0 | PX11: 0 | PY11: 0 | PZ11: 0 | QA11: 0 | QB11: 0 | QC11: 0 | QD11: 0 | QE11: 0 | QF11: 0 | QG11: 7.460348826 | QH11: 0 | QI11: 11.00098529 | QJ11: 0 | QK11: 0 | QL11: 0 | QM11: 0 | QN11: 0 | QO11: 0 | QP11: 0 | QQ11: 0 | QR11: 0 | QS11: 0 | QT11: 12.06830205 | QU11: 0 | QV11: 0 | QW11: 0 | QX11: 0 | QY11: 110.5961648 | QZ11: 99.42892071 | RA11: 22.47842243 | RB11: 86.00954574 | RC11: 177.2305406 | RD11: 0 | RE11: 538.0677636 | RF11: 144.6618844 | RG11: 493.7117709 | RH11: 3726.68621 | RI11: 5440.486883 | RJ11: 663.3380284 | RK11: 4461.245858 | RL11: 0 | RM11: 0 | RN11: 0 | RO11: 1.968815356 | RP11: 0 | RQ11: 0 | RR11: 0 | RS11: 0 | RT11: 1776.667349 | RU11: 860.525351 | RV11: 1332.556507 | RW11: 1613.338804 | RX11: 165.6928861 | RY11: 201.0009935 | RZ11: 83.20194602 | SA11: 22.48033176 | SB11: 0 | SC11: 152.3896866 | SD11: 244.121795 | SE11: 57.74834323 | SF11: 2134.994241 | SG11: 3409.394394 | SH11: 1595.402683 | SI11: 103.4457153 | SJ11: 3687.832179 | SK11: 1818.620961 | SL11: 2327.593291 | SM11: 3231.031767 | SN11: 0 | SO11: 0 | SP11: 0 | SQ11: 7.661709949 | SR11: 8.784691091 | SS11: 11.80084866 | ST11: 0 | SU11: 1.400128071 | SV11: 3.397877155 | SW11: 0 | SX11: 0 | SY11: 0 | SZ11: 0 | TA11: 0 | TB11: 0 | TC11: 0 | TD11: 0.400812914 | TE11: 3.292423263 | TF11: 3.343681492 | TG11: 0 | TH11: 3.399199001 | TI11: 0 | TJ11: 1.647900656 | TK11: 0 | TL11: 0 | TM11: 6.047002301 | TN11: 4.877756568 | TO11: 0 | TP11: 0 | TQ11: 0 | TR11: 0 | TS11: 0 | TT11: 0 | TU11: 0 | TV11: 0 | TW11: 0 | TX11: 0 | TY11: 0 | TZ11: 0 | UA11: 0 | UB11: 0 | UC11: 0.977137528 | UD11: 0 | UE11: 0 | UF11: 0 | UG11: 0 | UH11: 3.986538994 | UI11: 0 | UJ11: 0 | UK11: 0 | UL11: 1.471654597 | UM11: 1.787281915 | UN11: 0 | UO11: 0 | UP11: 2.908059981 | UQ11: 3.229415297 | UR11: 0 | US11: 0 | UT11: 0 | UU11: 0 | UV11: 0 | UW11: 0 | UX11: 0 | UY11: 0 | UZ11: 0 | VA11: 0 | VB11: 0 | VC11: 0 | VD11: 0 | VE11: 0 | VF11: 0 | VG11: 0 | VH11: 0 | VI11: 0 | VJ11: 0 | VK11: 3.362187328 | VL11: 2.657937449 | VM11: 0 | VN11: 0 | VO11: 0 | VP11: 10.02854766 | VQ11: 130.3649509 | VR11: 163.9896148 | VS11: 156.6726127 | VT11: 40.28059628 | VU11: 100.4465948 | VV11: 898.4358784 | VW11: 882.4277425 | VX11: 0 | VY11: 0 | VZ11: 130.8443402 | WA11: 46.73781128 | WB11: 25.03957141 | WC11: 17.91027144 | WD11: 55.86911963 | WE11: 0 | WF11: 13.31392108 | WG11: 206.5424634 | WH11: 0 | WI11: 0 | WJ11: 0 | WK11: 0 | WL11: 1.568002443 | WM11: 0 | WN11: 0 | WO11: 0 | WP11: 0 | WQ11: 0 | WR11: 0 | WS11: 0 | WT11: 0 | WU11: 0 | WV11: 0 | WW11: 0.892098804 | WX11: 7.972784244 | WY11: 0 | WZ11: 0 | XA11: 1.889357758 | XB11: 0 | XC11: 0 | XD11: 0 | XE11: 0 | XF11: 0 | XG11: 0.000146872 | XH11: 0 | XI11: 0 | XJ11: 0 | XK11: 0 | XL11: 25.16044684 | XM11: 12.98272536 | XN11: 0 | XO11: 0 | XP11: 0 | XQ11: 0 | XR11: 0 | XS11: 0 | XT11: 0 | XU11: 0 | XV11: 0 | XW11: 22.97161765 | XX11: 66.37441287 | XY11: 474.3699409 | XZ11: 113.3702778 | YA11: 69.13780421 | YB11: 106.1844322 | YC11: 0 | YD11: 0 | YE11: 0 | YF11: 0.667091335 | YG11: 1.653628653 | YH11: 0 | YI11: 0 | YJ11: 0 | YK11: 0 | YL11: 0 | YM11: 0 | YN11: 5.157253444 | YO11: 0 | YP11: 0 | YQ11: 0 | YR11: 0 | YS11: 9.44605443 | YT11: 0 | YU11: 0 | YV11: 0 | YW11: 47.75827597 | YX11: 29.4649631 | YY11: 96.69637243 | YZ11: 58.78055766 | ZA11: 0 | ZB11: 0 | ZC11: 0 | ZD11: 0 | ZE11: 0 | ZF11: 0 | ZG11: 0 | ZH11: 0 | ZI11: 0 | ZJ11: 0 | ZK11: 0 | ZL11: 0 | ZM11: 0 | ZN11: 1177.806151 | ZO11: 0 | ZP11: 0 | ZQ11: 0 | ZR11: 16.79904003 | ZS11: 36.35001541 | ZT11: 0 | ZU11: 0 | ZV11: 0 | ZW11: 0 | ZX11: 0 | ZY11: 0 | ZZ11: 0 | AAA11: 0 | AAB11: 0 | AAC11: 0 | AAD11: 0 | AAE11: 0 | AAF11: 0 | AAG11: 0 | AAH11: 0 | AAI11: 0 | AAJ11: 0 | AAK11: 4.323462711 | AAL11: 0 | AAM11: 2.138892804 | AAN11: 0 | AAO11: 0 | AAP11: 0 | AAQ11: 0
I12: 01L412 | J12: 6.042153544 | K12: 23.04563769 | L12: 24.50751424 | M12: 39.10490899 | N12: 19.45505863 | O12: 6.391738998 | P12: 36.9405404 | Q12: 22.09117265 | R12: 20.51320081 | S12: 4.95426556 | T12: 1.417113442 | U12: 6.61858689 | V12: 0 | W12: 5.578927548 | X12: 0 | Y12: 19.67786341 | Z12: 0 | AA12: 0 | AB12: 0 | AC12: 0 | AD12: 0 | AE12: 0 | AF12: 0 | AG12: 0 | AH12: 1.086155218 | AI12: 1.106515214 | AJ12: 0.434924158 | AK12: 0.897428168 | AL12: 3.385679527 | AM12: 7.902132986 | AN12: 0.985654815 | AO12: 0 | AP12: 139.157681 | AQ12: 17.9420655 | AR12: 131.7026015 | AS12: 181.9743182 | AT12: 9.822181635 | AU12: 1.85102682 | AV12: 5.030796039 | AW12: 0 | AX12: 308.7165895 | AY12: 411.1507589 | AZ12: 29.11493789 | BA12: 303.1284205 | BB12: 50.80382014 | BC12: 129.9200189 | BD12: 15.51243937 | BE12: 11.89182571 | BF12: 0 | BG12: 27.26073434 | BH12: 58.72111482 | BI12: 15.98707274 | BJ12: 867.0052812 | BK12: 1058.425915 | BL12: 469.5095813 | BM12: 72.55421556 | BN12: 1156.479798 | BO12: 524.1666389 | BP12: 469.9873915 | BQ12: 902.4713825 | BR12: 15.41352734 | BS12: 7.959025456 | BT12: 0 | BU12: 5.726212621 | BV12: 0 | BW12: 0 | BX12: 0 | BY12: 24.60729266 | BZ12: 5.801443527 | CA12: 4.571468766 | CB12: 1.245569651 | CC12: 3.499175672 | CD12: 0 | CE12: 14.69154168 | CF12: 4.494793889 | CG12: 16.72176534 | CH12: 5.705708229 | CI12: 202.7403584 | CJ12: 0 | CK12: 0 | CL12: 0 | CM12: 0.429870259 | CO12: P1_A6 | CP12: 568.9137989 | CQ12: 517.9195023 | CR12: 799.7047211 | CS12: 33.00379041 | CT12: 984.8343805 | CU12: 727.3431759 | CV12: 1011.170698 | CW12: 1129.32009 | CX12: 47.40053289 | CY12: 310.2980955 | CZ12: 874.17555 | DA12: 493.3066686 | DB12: 0 | DC12: 7.349076511 | DD12: 2.025189675 | DE12: 0 | DF12: 3.527816384 | DG12: 1.245328626 | DH12: 0 | DI12: 0 | DJ12: 3.595386637 | DK12: 1.091156322 | DL12: 0 | DM12: 0 | DN12: 539.6185532 | DO12: 258.6651271 | DP12: 338.9477354 | DQ12: 620.5855685 | DR12: 498.1047467 | DS12: 404.0876729 | DT12: 421.4161972 | DU12: 339.2470805 | DV12: 1227.380166 | DW12: 883.1966214 | DX12: 947.7458355 | DY12: 637.7035628 | DZ12: 65.30414202 | EA12: 1623.529957 | EB12: 4.960954906 | EC12: 16.32146197 | ED12: 860.7951644 | EE12: 1215.504178 | EF12: 848.0895962 | EG12: 1455.047808 | EH12: 307.4175077 | EI12: 114.0641943 | EJ12: 491.7516675 | EK12: 177.4332895 | EL12: 88.64981217 | EM12: 184.3264881 | EN12: 87.18849479 | EO12: 201.5679678 | EP12: 134.7458556 | EQ12: 50.56733528 | ER12: 0 | ES12: 22.04501653 | ET12: 103.9093294 | EU12: 197.3470399 | EV12: 41.80193904 | EW12: 90.41814636 | EX12: 1796.734205 | EY12: 3069.307806 | EZ12: 1346.673531 | FA12: 1836.881853 | FB12: 4.533255856 | FC12: 746.7368714 | FD12: 364.2489596 | FE12: 8.076858303 | FF12: 0 | FG12: 0.695324465 | FH12: 3.15175399 | FI12: 0 | FJ12: 3.577830174 | FK12: 1.795480319 | FL12: 0 | FM12: 0 | FN12: 363.5773879 | FO12: 46.24136371 | FP12: 74.041802 | FQ12: 369.0663646 | FR12: 55.17657078 | FS12: 46.25242871 | FT12: 54.84181772 | FU12: 64.052617 | FV12: 81.62530893 | FW12: 23.45263179 | FX12: 36.40767882 | FY12: 13.68474675 | FZ12: 16.12863594 | GB12: LjRoot112A | GC12: 0 | GD12: 24.73761138 | GE12: 20.39944988 | GF12: 16.40118219 | GG12: 8.788874573 | GH12: 39.59217973 | GI12: 0 | GJ12: 0 | GK12: 0 | GL12: 0 | GM12: 0 | GN12: 11.27068151 | GO12: 111.2315535 | GP12: 45.99045296 | GQ12: 0 | GR12: 0 | GS12: 0 | GT12: 5.561898614 | GU12: 0 | GV12: 0 | GW12: 7.280773078 | GX12: 0 | GY12: 0 | GZ12: 0 | HA12: 0 | HB12: 0 | HC12: 0 | HD12: 0 | HE12: 0 | HF12: 0 | HG12: 0 | HH12: 2.921564135 | HI12: 32.21885762 | HJ12: 46.7868225 | HK12: 9.938721728 | HL12: 5.397698708 | HM12: 2.500764559 | HN12: 1.737682817 | HO12: 0 | HP12: 0 | HQ12: 56.967963 | HR12: 0 | HS12: 0 | HT12: 101.3607509 | HU12: 0 | HV12: 0 | HW12: 0 | HX12: 7.254799638 | HY12: 0 | HZ12: 0 | IA12: 0 | IB12: 0 | IC12: 0 | ID12: 0 | IE12: 0 | IF12: 0 | IG12: 4.747765628 | IH12: 0 | II12: 0 | IJ12: 0 | IK12: 16.09950218 | IL12: 31.22723946 | IM12: 43.36385156 | IN12: 28.5197323 | IO12: 38.86313215 | IP12: 33.69411913 | IQ12: 54.86366657 | IR12: 32.01092083 | IS12: 0 | IT12: 0 | IU12: 0 | IV12: 4.963464595 | IW12: 21.64975753 | IX12: 0 | IY12: 114.9972545 | IZ12: 56.97945699 | JA12: 0 | JB12: 9.229676682 | JC12: 0 | JD12: 0 | JE12: 0 | JF12: 2.31148685 | JG12: 0 | JH12: 106.4858777 | JI12: 51.26933064 | JJ12: 0 | JK12: 0 | JL12: 0 | JM12: 0 | JO12: 01L412 | JP12: 6.042153544 | JQ12: 23.04563769 | JR12: 24.50751424 | JS12: 39.10490899 | JT12: 19.45505863 | JU12: 6.391738998 | JV12: 36.9405404 | JW12: 22.09117265 | JX12: 20.51320081 | JY12: 4.95426556 | JZ12: 1.417113442 | KA12: 6.61858689 | KB12: 0 | KC12: 5.578927548 | KD12: 0 | KE12: 19.67786341 | KF12: 0 | KG12: 0 | KH12: 0 | KI12: 0 | KJ12: 0 | KK12: 0 | KL12: 0 | KM12: 0 | KN12: 0 | KO12: 0 | KP12: 0 | KQ12: 0 | KR12: 0 | KS12: 0 | KT12: 1.583170143 | KU12: 3.985360812 | KV12: 0 | KW12: 0 | KX12: 0 | KY12: 0 | KZ12: 0 | LA12: 3.631443444 | LB12: 5.030796039 | LC12: 0 | LD12: 0 | LE12: 0 | LF12: 0 | LG12: 0 | LH12: 0 | LI12: 0 | LJ12: 0 | LK12: 0 | LL12: 0 | LM12: 2.342410257 | LN12: 3.178036453 | LO12: 0 | LP12: 0 | LQ12: 0 | LR12: 4.296825423 | LS12: 0 | LT12: 0 | LU12: 0 | LV12: 0 | LW12: 0.942335676 | LX12: 0 | LY12: 0 | LZ12: 0 | MA12: 0 | MB12: 0 | MC12: 0 | MD12: 3.839952901 | ME12: 6.200268402 | MF12: 1.220588947 | MG12: 0 | MH12: 0 | MI12: 0 | MJ12: 0 | MK12: 0 | ML12: 0 | MM12: 0 | MN12: 0 | MO12: 0 | MP12: 0 | MQ12: 0 | MR12: 0 | MS12: 0 | MT12: 0 | MU12: 0 | MV12: 0 | MW12: 0 | MX12: 0.691373463 | MY12: 0 | MZ12: 0 | NA12: 0 | NB12: 0.825085206 | NC12: 0.42423877 | ND12: 0 | NE12: 0 | NF12: 0 | NG12: 0 | NH12: 0 | NI12: 1.957158712 | NJ12: 1.239504971 | NK12: 0 | NL12: 0 | NM12: 0 | NN12: 0.721985654 | NO12: 0 | NP12: 0 | NQ12: 0 | NR12: 0 | NS12: 0 | NT12: 1.461154567 | NU12: 0 | NV12: 0 | NW12: 0 | NX12: 0 | NY12: 2.86613865 | NZ12: 0 | OA12: 0 | OB12: 0 | OC12: 0 | OD12: 0 | OE12: 6.05341652 | OF12: 1.086155218 | OG12: 1.106515214 | OH12: 0.434924158 | OI12: 0.897428168 | OJ12: 3.385679527 | OK12: 7.902132986 | OL12: 0.985654815 | OM12: 0 | ON12: 139.157681 | OO12: 17.9420655 | OP12: 131.7026015 | OQ12: 181.9743182 | OR12: 9.822181635 | OS12: 1.85102682 | OT12: 5.030796039 | OU12: 0 | OV12: 0 | OW12: 0 | OX12: 0 | OY12: 0 | OZ12: 0 | PA12: 0 | PB12: 0 | PC12: 0 | PD12: 0 | PE12: 0 | PF12: 0 | PG12: 0 | PH12: 0 | PI12: 0 | PJ12: 0 | PK12: 0 | PL12: 0 | PM12: 0 | PN12: 0 | PO12: 0 | PP12: 0 | PQ12: 0 | PR12: 0 | PS12: 0 | PT12: 0 | PU12: 0.67491219 | PV12: 0 | PW12: 0 | PX12: 0 | PY12: 0 | PZ12: 0 | QA12: 0 | QB12: 0 | QC12: 0 | QD12: 0 | QE12: 0.144397131 | QF12: 0 | QG12: 0 | QH12: 0 | QI12: 0 | QJ12: 0 | QK12: 0 | QL12: 0 | QM12: 0 | QN12: 0 | QO12: 0 | QP12: 0 | QQ12: 0 | QR12: 0.5787437 | QS12: 0.371678215 | QT12: 0 | QU12: 0 | QV12: 0.904503628 | QW12: 1.33567346 | QX12: 0.780177698 | QY12: 0 | QZ12: 3.306116708 | RA12: 13.94934043 | RB12: 8.075698338 | RC12: 24.40167114 | RD12: 0 | RE12: 37.54729714 | RF12: 15.03896118 | RG12: 76.37987315 | RH12: 308.7165895 | RI12: 411.1507589 | RJ12: 29.11493789 | RK12: 303.1284205 | RL12: 0 | RM12: 0.386551119 | RN12: 0 | RO12: 0 | RP12: 0.144397131 | RQ12: 0 | RR12: 0 | RS12: 0 | RT12: 112.3906404 | RU12: 66.18298096 | RV12: 97.28207983 | RW12: 95.51451455 | RX12: 50.80382014 | RY12: 129.9200189 | RZ12: 15.51243937 | SA12: 11.89182571 | SB12: 0 | SC12: 27.26073434 | SD12: 58.72111482 | SE12: 15.98707274 | SF12: 867.0052812 | SG12: 1058.425915 | SH12: 469.5095813 | SI12: 72.55421556 | SJ12: 1156.479798 | SK12: 524.1666389 | SL12: 469.9873915 | SM12: 902.4713825 | SN12: 0 | SO12: 0 | SP12: 0 | SQ12: 0 | SR12: 0 | SS12: 3.225831903 | ST12: 1.443971309 | SU12: 0.490083862 | SV12: 0 | SW12: 0 | SX12: 0 | SY12: 0 | SZ12: 0 | TA12: 0 | TB12: 0 | TC12: 0 | TD12: 0 | TE12: 0 | TF12: 0 | TG12: 3.223377152 | TH12: 3.137894051 | TI12: 0 | TJ12: 0 | TK12: 0 | TL12: 0 | TM12: 0 | TN12: 0 | TO12: 1.122687692 | TP12: 0 | TQ12: 0 | TR12: 0 | TS12: 0 | TT12: 0 | TU12: 0 | TV12: 0 | TW12: 0 | TX12: 0 | TY12: 0 | TZ12: 0 | UA12: 0 | UB12: 0.864361225 | UC12: 0.982622476 | UD12: 0 | UE12: 0 | UF12: 2.577488786 | UG12: 6.155938483 | UH12: 0 | UI12: 0 | UJ12: 0 | UK12: 0 | UL12: 0 | UM12: 0.887753561 | UN12: 0 | UO12: 0 | UP12: 0 | UQ12: 0 | UR12: 0 | US12: 0 | UT12: 2.15151725 | UU12: 0 | UV12: 0 | UW12: 0 | UX12: 0.531381442 | UY12: 0 | UZ12: 0 | VA12: 0.865372005 | VB12: 0 | VC12: 0 | VD12: 3.465964332 | VE12: 4.277476207 | VF12: 0 | VG12: 1.004570839 | VH12: 0 | VI12: 1.582881348 | VJ12: 0 | VK12: 0 | VL12: 1.902287802 | VM12: 0 | VN12: 0 | VO12: 0 | VP12: 0 | VQ12: 20.96949574 | VR12: 53.13309026 | VS12: 68.68162891 | VT12: 8.691118909 | VU12: 70.02553301 | VV12: 300.9047047 | VW12: 212.6240532 | VX12: 0 | VY12: 0 | VZ12: 15.41352734 | WA12: 7.959025456 | WB12: 0 | WC12: 5.726212621 | WD12: 0 | WE12: 0 | WF12: 0 | WG12: 24.60729266 | WH12: 0 | WI12: 0 | WJ12: 0 | WK12: 0 | WL12: 0 | WM12: 0 | WN12: 0 | WO12: 0 | WP12: 0 | WQ12: 0 | WR12: 0 | WS12: 0 | WT12: 0 | WU12: 0 | WV12: 0 | WW12: 0 | WX12: 0 | WY12: 0 | WZ12: 0 | XA12: 0 | XB12: 0 | XC12: 0 | XD12: 0 | XE12: 0 | XF12: 2.440311512 | XG12: 0.665670773 | XH12: 0 | XI12: 0 | XJ12: 0 | XK12: 1.493788319 | XL12: 0 | XM12: 3.315502522 | XN12: 0 | XO12: 0 | XP12: 0 | XQ12: 0 | XR12: 0 | XS12: 0 | XT12: 0.150028619 | XU12: 0 | XV12: 0 | XW12: 8.364636996 | XX12: 5.801443527 | XY12: 4.571468766 | XZ12: 1.245569651 | YA12: 3.499175672 | YB12: 0 | YC12: 0 | YD12: 0 | YE12: 0 | YF12: 0 | YG12: 0 | YH12: 0 | YI12: 0 | YJ12: 0 | YK12: 0 | YL12: 0 | YM12: 0 | YN12: 0 | YO12: 0 | YP12: 0 | YQ12: 0 | YR12: 0 | YS12: 0 | YT12: 0 | YU12: 0 | YV12: 0 | YW12: 14.69154168 | YX12: 4.494793889 | YY12: 16.72176534 | YZ12: 5.705708229 | ZA12: 0 | ZB12: 0 | ZC12: 0.507989106 | ZD12: 2.594527647 | ZE12: 0 | ZF12: 0 | ZG12: 0 | ZH12: 0 | ZI12: 0 | ZJ12: 0 | ZK12: 0 | ZL12: 0 | ZM12: 0 | ZN12: 202.7403584 | ZO12: 0 | ZP12: 0 | ZQ12: 0 | ZR12: 0 | ZS12: 0 | ZT12: 0 | ZU12: 0.429870259 | ZV12: 0 | ZW12: 0 | ZX12: 0 | ZY12: 0 | ZZ12: 0 | AAA12: 0 | AAB12: 0 | AAC12: 0 | AAD12: 0 | AAE12: 0 | AAF12: 0 | AAG12: 0 | AAH12: 0 | AAI12: 0 | AAJ12: 0 | AAK12: 2.091448043 | AAL12: 0.294136956 | AAM12: 4.42129575 | AAN12: 0 | AAO12: 0 | AAP12: 3.729200302 | AAQ12: 0
I13: 01L414 | J13: 34.75746136 | K13: 34.2228507 | L13: 27.66322401 | M13: 35.88466116 | N13: 48.43204227 | O13: 13.95325176 | P13: 84.64544007 | Q13: 69.43147972 | R13: 11.74258779 | S13: 40.90404521 | T13: 2.72829829 | U13: 13.4428108 | V13: 2.028815782 | W13: 0 | X13: 0 | Y13: 13.0489023 | Z13: 0 | AA13: 0 | AB13: 1.065336893 | AC13: 1.438672374 | AD13: 0 | AE13: 0 | AF13: 0 | AG13: 0 | AH13: 0 | AI13: 0 | AJ13: 4.332561855 | AK13: 0 | AL13: 9.64313319 | AM13: 16.39410331 | AN13: 18.28581361 | AO13: 9.347917618 | AP13: 144.881933 | AQ13: 18.84862224 | AR13: 202.8869013 | AS13: 262.4627559 | AT13: 38.10136756 | AU13: 23.13788006 | AV13: 5.665923411 | AW13: 0 | AX13: 1174.839858 | AY13: 1639.509167 | AZ13: 149.3449825 | BA13: 1165.326349 | BB13: 0 | BC13: 0 | BD13: 0 | BE13: 0 | BF13: 0 | BG13: 4.422478878 | BH13: 13.69098178 | BI13: 2.447757177 | BJ13: 125.774062 | BK13: 144.4944986 | BL13: 94.96532475 | BM13: 9.005081992 | BN13: 618.0972437 | BO13: 188.7284949 | BP13: 303.3447894 | BQ13: 617.4797655 | BR13: 41.42772195 | BS13: 12.74160188 | BT13: 2.275835829 | BU13: 1.133673831 | BV13: 21.94176785 | BW13: 4.320189272 | BX13: 0 | BY13: 62.34400413 | BZ13: 7.395783074 | CA13: 11.19862576 | CB13: 5.377901202 | CC13: 1.083608032 | CD13: 0 | CE13: 0 | CF13: 0 | CG13: 0 | CH13: 0 | CI13: 186.3857608 | CJ13: 0 | CK13: 0 | CL13: 0 | CM13: 0 | CO13: P1_A7 | CP13: 0.985736071 | CQ13: 1.71504904 | CR13: 4.037639347 | CS13: 0 | CT13: 3.585971713 | CU13: 3.433171645 | CV13: 0 | CW13: 1.995182498 | CX13: 0 | CY13: 1.650357824 | CZ13: 0.657596462 | DA13: 0 | DB13: 0 | DC13: 0.814348256 | DD13: 1.811061343 | DE13: 0 | DF13: 0 | DG13: 0 | DH13: 0 | DI13: 0 | DJ13: 0 | DK13: 0 | DL13: 0 | DM13: 0.245446086 | DN13: 0 | DO13: 2.165399432 | DP13: 0.505967275 | DQ13: 0 | DR13: 0 | DS13: 0 | DT13: 0 | DU13: 0.837034089 | DV13: 14.93591394 | DW13: 6.394770666 | DX13: 7.518378063 | DY13: 4.567170617 | DZ13: 1.151123118 | EA13: 12.02202835 | EB13: 0.332237696 | EC13: 0 | ED13: 49.8838069 | EE13: 100.5554709 | EF13: 32.74341536 | EG13: 101.637951 | EH13: 0.994517685 | EI13: 0 | EJ13: 0 | EK13: 0.578854664 | EL13: 0 | EM13: 0 | EN13: 0.915336806 | EO13: 0 | EP13: 0 | EQ13: 0 | ER13: 0 | ES13: 0 | ET13: 0 | EU13: 0.944023409 | EV13: 0.318187115 | EW13: 0.272961807 | EX13: 8.124894808 | EY13: 10.7565979 | EZ13: 6.549327056 | FA13: 9.656261774 | FB13: 0 | FC13: 4.210344405 | FD13: 1.477067325 | FE13: 0 | FF13: 0 | FG13: 0 | FH13: 0.390489063 | FI13: 0.384927375 | FJ13: 0 | FK13: 0 | FL13: 0 | FM13: 0 | FN13: 10.88158952 | FO13: 4.445837996 | FP13: 2.046994016 | FQ13: 7.003190094 | FR13: 1.723684293 | FS13: 0 | FT13: 2.22423624 | FU13: 0.333115857 | FV13: 14.2392393 | FW13: 0 | FX13: 1.684020674 | FY13: 0 | FZ13: 1.142341505 | GB13: LjRoot113 | GC13: 43.21772806 | GD13: 145.7028187 | GE13: 20.18481951 | GF13: 80.70961199 | GG13: 26.50633472 | GH13: 12.37706386 | GI13: 16.58421111 | GJ13: 8.111025072 | GK13: 0 | GL13: 17.63060075 | GM13: 15.2960871 | GN13: 44.06159541 | GO13: 1455.08315 | GP13: 957.0482352 | GQ13: 0 | GR13: 43.21655317 | GS13: 3.987442136 | GT13: 0 | GU13: 0 | GV13: 0 | GW13: 0 | GX13: 0 | GY13: 16.41561387 | GZ13: 16.3971093 | HA13: 17.31616984 | HB13: 76.05791437 | HC13: 0 | HD13: 16.1543469 | HE13: 0 | HF13: 29.90750493 | HG13: 17.16548973 | HH13: 18.08513773 | HI13: 431.3082999 | HJ13: 185.0275367 | HK13: 246.775834 | HL13: 18.39545651 | HM13: 0 | HN13: 0 | HO13: 14.74491512 | HP13: 26.61280945 | HQ13: 652.1229499 | HR13: 145.2159721 | HS13: 59.29467884 | HT13: 1284.883506 | HU13: 71.05095828 | HV13: 18.55729811 | HW13: 93.94023608 | HX13: 24.18283569 | HY13: 12.41994748 | HZ13: 57.90771691 | IA13: 0 | IB13: 0 | IC13: 0 | ID13: 0 | IE13: 22.18933492 | IF13: 6.426961908 | IG13: 0 | IH13: 0 | II13: 0 | IJ13: 0 | IK13: 1207.07265 | IL13: 863.0545414 | IM13: 3540.461636 | IN13: 2173.268901 | IO13: 585.9582274 | IP13: 235.8126078 | IQ13: 297.1018154 | IR13: 491.8822911 | IS13: 0 | IT13: 0 | IU13: 11.93765364 | IV13: 0 | IW13: 62.62315251 | IX13: 92.69543627 | IY13: 2101.07433 | IZ13: 1551.557338 | JA13: 155.1232627 | JB13: 14.37834831 | JC13: 175.2331828 | JD13: 13.71468027 | JE13: 25.96089035 | JF13: 21.92219348 | JG13: 0 | JH13: 921.0872376 | JI13: 350.2234563 | JJ13: 0 | JK13: 0 | JL13: 81.81783041 | JM13: 0 | JO13: 01L414 | JP13: 34.75746136 | JQ13: 34.2228507 | JR13: 27.66322401 | JS13: 35.88466116 | JT13: 48.43204227 | JU13: 13.95325176 | JV13: 84.64544007 | JW13: 69.43147972 | JX13: 11.74258779 | JY13: 40.90404521 | JZ13: 2.72829829 | KA13: 13.4428108 | KB13: 2.028815782 | KC13: 0 | KD13: 0 | KE13: 13.0489023 | KF13: 0 | KG13: 0 | KH13: 1.065336893 | KI13: 1.438672374 | KJ13: 0 | KK13: 0 | KL13: 0 | KM13: 0 | KN13: 0 | KO13: 0 | KP13: 0 | KQ13: 0 | KR13: 0 | KS13: 0 | KT13: 0 | KU13: 0 | KV13: 0 | KW13: 0 | KX13: 0 | KY13: 0 | KZ13: 0 | LA13: 0 | LB13: 0 | LC13: 1.065193026 | LD13: 0 | LE13: 0 | LF13: 0 | LG13: 0 | LH13: 0 | LI13: 0 | LJ13: 0 | LK13: 0 | LL13: 0 | LM13: 1.172374118 | LN13: 0 | LO13: 0 | LP13: 2.270656608 | LQ13: 0 | LR13: 0 | LS13: 0 | LT13: 0 | LU13: 0 | LV13: 0 | LW13: 0 | LX13: 0 | LY13: 0 | LZ13: 0 | MA13: 0 | MB13: 4.296307311 | MC13: 0 | MD13: 0 | ME13: 0 | MF13: 0 | MG13: 0 | MH13: 0 | MI13: 0 | MJ13: 0 | MK13: 0 | ML13: 0 | MM13: 0 | MN13: 0 | MO13: 4.078636181 | MP13: 0 | MQ13: 0 | MR13: 0 | MS13: 0 | MT13: 0 | MU13: 0 | MV13: 0 | MW13: 3.768170682 | MX13: 0 | MY13: 0 | MZ13: 0 | NA13: 0 | NB13: 0 | NC13: 0 | ND13: 0 | NE13: 0 | NF13: 0 | NG13: 2.945250084 | NH13: 0 | NI13: 0 | NJ13: 0 | NK13: 0 | NL13: 0 | NM13: 0.743362016 | NN13: 0 | NO13: 0 | NP13: 2.59133668 | NQ13: 0 | NR13: 2.59032961 | NS13: 5.219359506 | NT13: 0 | NU13: 0 | NV13: 0 | NW13: 0 | NX13: 15.69893681 | NY13: 0 | NZ13: 0 | OA13: 0 | OB13: 0 | OC13: 0 | OD13: 0 | OE13: 0 | OF13: 0 | OG13: 0 | OH13: 4.332561855 | OI13: 0 | OJ13: 9.64313319 | OK13: 16.39410331 | OL13: 18.28581361 | OM13: 9.347917618 | ON13: 144.881933 | OO13: 18.84862224 | OP13: 202.8869013 | OQ13: 262.4627559 | OR13: 38.10136756 | OS13: 23.13788006 | OT13: 5.665923411 | OU13: 0 | OV13: 0 | OW13: 0 | OX13: 0 | OY13: 0 | OZ13: 0 | PA13: 0 | PB13: 0 | PC13: 0 | PD13: 0 | PE13: 0 | PF13: 0 | PG13: 0 | PH13: 0 | PI13: 0 | PJ13: 0 | PK13: 2.074421696 | PL13: 0 | PM13: 0 | PN13: 1.29984049 | PO13: 0 | PP13: 0 | PQ13: 0 | PR13: 0 | PS13: 0 | PT13: 0 | PU13: 0 | PV13: 0 | PW13: 0 | PX13: 0 | PY13: 0 | PZ13: 0 | QA13: 0 | QB13: 0 | QC13: 0 | QD13: 0 | QE13: 0 | QF13: 0 | QG13: 0 | QH13: 0 | QI13: 1.685548554 | QJ13: 0 | QK13: 0 | QL13: 0 | QM13: 0 | QN13: 0 | QO13: 0 | QP13: 0 | QQ13: 0 | QR13: 0 | QS13: 0 | QT13: 0 | QU13: 3.264059883 | QV13: 0 | QW13: 2.144772775 | QX13: 0 | QY13: 20.42900385 | QZ13: 28.7092827 | RA13: 46.30496517 | RB13: 29.0724036 | RC13: 83.89502856 | RD13: 0 | RE13: 248.5309404 | RF13: 92.52130812 | RG13: 186.2318228 | RH13: 1174.839858 | RI13: 1639.509167 | RJ13: 149.3449825 | RK13: 1165.326349 | RL13: 0 | RM13: 0 | RN13: 0 | RO13: 1.708855046 | RP13: 0 | RQ13: 0 | RR13: 0 | RS13: 0 | RT13: 488.5081103 | RU13: 270.722174 | RV13: 434.5999055 | RW13: 438.6519262 | RX13: 0 | RY13: 0 | RZ13: 0 | SA13: 0 | SB13: 0 | SC13: 4.422478878 | SD13: 13.69098178 | SE13: 2.447757177 | SF13: 125.774062 | SG13: 144.4944986 | SH13: 94.96532475 | SI13: 9.005081992 | SJ13: 618.0972437 | SK13: 188.7284949 | SL13: 303.3447894 | SM13: 617.4797655 | SN13: 1.482695749 | SO13: 0 | SP13: 0 | SQ13: 0 | SR13: 0 | SS13: 0 | ST13: 0 | SU13: 0 | SV13: 0 | SW13: 0 | SX13: 0 | SY13: 0 | SZ13: 0 | TA13: 0 | TB13: 0 | TC13: 0 | TD13: 0 | TE13: 0 | TF13: 0 | TG13: 0 | TH13: 0 | TI13: 0 | TJ13: 0 | TK13: 0 | TL13: 1.079004281 | TM13: 0 | TN13: 0.494903297 | TO13: 0.618629121 | TP13: 0 | TQ13: 0 | TR13: 0 | TS13: 0 | TT13: 0 | TU13: 0 | TV13: 0 | TW13: 0 | TX13: 0 | TY13: 0 | TZ13: 0 | UA13: 0 | UB13: 0 | UC13: 0 | UD13: 0 | UE13: 0 | UF13: 2.538105803 | UG13: 0 | UH13: 0 | UI13: 0 | UJ13: 0 | UK13: 0 | UL13: 0 | UM13: 0 | UN13: 0 | UO13: 0 | UP13: 0 | UQ13: 0 | UR13: 0 | US13: 0 | UT13: 0 | UU13: 0 | UV13: 0 | UW13: 0 | UX13: 0 | UY13: 3.982532866 | UZ13: 0 | VA13: 0 | VB13: 0 | VC13: 0 | VD13: 0 | VE13: 0 | VF13: 0.823783801 | VG13: 0 | VH13: 0 | VI13: 0 | VJ13: 0 | VK13: 0 | VL13: 0 | VM13: 0.594603292 | VN13: 0 | VO13: 0 | VP13: 0.877590148 | VQ13: 38.91349811 | VR13: 41.07035573 | VS13: 26.70219087 | VT13: 10.4440421 | VU13: 70.99646752 | VV13: 212.0043436 | VW13: 205.3496207 | VX13: 0 | VY13: 0 | VZ13: 41.42772195 | WA13: 12.74160188 | WB13: 2.275835829 | WC13: 1.133673831 | WD13: 21.94176785 | WE13: 4.320189272 | WF13: 0 | WG13: 62.34400413 | WH13: 0 | WI13: 0 | WJ13: 0 | WK13: 0 | WL13: 0 | WM13: 0 | WN13: 0 | WO13: 0 | WP13: 0 | WQ13: 0 | WR13: 0 | WS13: 0 | WT13: 0 | WU13: 0 | WV13: 0 | WW13: 0 | WX13: 2.133551131 | WY13: 0 | WZ13: 0 | XA13: 0 | XB13: 0 | XC13: 0 | XD13: 0 | XE13: 0 | XF13: 2.09557018 | XG13: 0.486702864 | XH13: 0 | XI13: 0 | XJ13: 1.074832131 | XK13: 11.5541217 | XL13: 0 | XM13: 6.620914133 | XN13: 0 | XO13: 0 | XP13: 0 | XQ13: 0 | XR13: 0 | XS13: 0 | XT13: 0 | XU13: 0 | XV13: 0 | XW13: 0 | XX13: 7.395783074 | XY13: 11.19862576 | XZ13: 5.377901202 | YA13: 1.083608032 | YB13: 0 | YC13: 0 | YD13: 0 | YE13: 0 | YF13: 0 | YG13: 0 | YH13: 0 | YI13: 0.864929831 | YJ13: 0 | YK13: 0 | YL13: 0 | YM13: 0 | YN13: 0 | YO13: 1.43521956 | YP13: 0 | YQ13: 0 | YR13: 0 | YS13: 0 | YT13: 0 | YU13: 0 | YV13: 0 | YW13: 0 | YX13: 0 | YY13: 0 | YZ13: 0 | ZA13: 0 | ZB13: 0 | ZC13: 0 | ZD13: 0 | ZE13: 0 | ZF13: 0 | ZG13: 0 | ZH13: 0 | ZI13: 0 | ZJ13: 0 | ZK13: 0 | ZL13: 0 | ZM13: 0 | ZN13: 186.3857608 | ZO13: 0 | ZP13: 0 | ZQ13: 0 | ZR13: 0 | ZS13: 0 | ZT13: 0 | ZU13: 0 | ZV13: 0.383981657 | ZW13: 0 | ZX13: 0 | ZY13: 0 | ZZ13: 0 | AAA13: 0 | AAB13: 0.477207627 | AAC13: 0 | AAD13: 6.860165349 | AAE13: 0 | AAF13: 0 | AAG13: 0 | AAH13: 0 | AAI13: 0 | AAJ13: 0 | AAK13: 0 | AAL13: 0 | AAM13: 1.201291432 | AAN13: 0 | AAO13: 0 | AAP13: 2.819797853 | AAQ13: 0
I14: 01L415 | J14: 483.277773 | K14: 1079.848274 | L14: 378.9321706 | M14: 904.8447738 | N14: 595.3927695 | O14: 360.9116863 | P14: 464.6482636 | Q14: 498.649717 | R14: 173.0026905 | S14: 731.1100511 | T14: 0 | U14: 151.0456819 | V14: 0 | W14: 0 | X14: 0 | Y14: 18.13821359 | Z14: 0 | AA14: 0 | AB14: 0 | AC14: 0 | AD14: 0 | AE14: 0 | AF14: 0 | AG14: 0 | AH14: 14.38861925 | AI14: 0 | AJ14: 0 | AK14: 15.92818876 | AL14: 0 | AM14: 44.07616983 | AN14: 0 | AO14: 40.22057524 | AP14: 263.3116884 | AQ14: 25.40692865 | AR14: 336.9977046 | AS14: 506.363252 | AT14: 45.36019514 | AU14: 0 | AV14: 21.44548041 | AW14: 0 | AX14: 4016.895766 | AY14: 6306.980407 | AZ14: 506.7428297 | BA14: 4025.55392 | BB14: 0 | BC14: 0 | BD14: 0 | BE14: 0 | BF14: 0 | BG14: 0 | BH14: 0 | BI14: 3.173703559 | BJ14: 124.4384432 | BK14: 185.3891804 | BL14: 160.2285594 | BM14: 0 | BN14: 874.6808818 | BO14: 312.7449033 | BP14: 322.1953471 | BQ14: 842.6091317 | BR14: 73.01453461 | BS14: 0 | BT14: 0 | BU14: 0 | BV14: 21.38683573 | BW14: 0 | BX14: 0 | BY14: 75.83226495 | BZ14: 28.18976541 | CA14: 40.36835984 | CB14: 32.96930696 | CC14: 11.81030583 | CD14: 21.47612225 | CE14: 0 | CF14: 0 | CG14: 20.821501 | CH14: 0 | CI14: 719.0071083 | CJ14: 0 | CK14: 6.825214662 | CL14: 4.555812094 | CM14: 5.150175942 | CO14: P1_A9 | CP14: 2.599884057 | CQ14: 2.148470937 | CR14: 2.452657675 | CS14: 0.306620233 | CT14: 5.05649616 | CU14: 1.998050594 | CV14: 3.360655091 | CW14: 2.034553003 | CX14: 0 | CY14: 0.611719532 | CZ14: 0.152853836 | DA14: 0.314985368 | DB14: 0 | DC14: 0.152853836 | DD14: 0.1674548 | DE14: 0 | DF14: 0 | DG14: 0 | DH14: 0 | DI14: 0 | DJ14: 0.3073807 | DK14: 0 | DL14: 0 | DM14: 0 | DN14: 1.372186379 | DO14: 0.457192669 | DP14: 0.462515936 | DQ14: 1.22237441 | DR14: 0.152853836 | DS14: 0 | DT14: 0.152397556 | DU14: 0.611111158 | DV14: 5.961755895 | DW14: 2.142843482 | DX14: 4.187434647 | DY14: 2.441859046 | DZ14: 0 | EA14: 0.915145804 | EB14: 0.152093369 | EC14: 0 | ED14: 22.84442409 | EE14: 125.0806745 | EF14: 59.21785758 | EG14: 44.45932538 | EH14: 0.152853836 | EI14: 0 | EJ14: 0.152853836 | EK14: 0 | EL14: 1.070433134 | EM14: 0.152853836 | EN14: 0.175059468 | EO14: 0.152701743 | EP14: 0.15254965 | EQ14: 0 | ER14: 0 | ES14: 0 | ET14: 0 | EU14: 0.30692442 | EV14: 0.311943501 | EW14: 0.306163953 | EX14: 3.983629532 | EY14: 5.807989499 | EZ14: 5.8125523 | FA14: 4.143631757 | FB14: 0 | FC14: 0.92807374 | FD14: 0.763508715 | FE14: 0 | FF14: 0 | FG14: 0 | FH14: 0 | FI14: 0 | FJ14: 0 | FK14: 0 | FL14: 0 | FM14: 0 | FN14: 2.931143416 | FO14: 0.30692442 | FP14: 1.37583662 | FQ14: 3.674879992 | FR14: 0.916970924 | FS14: 0 | FT14: 0 | FU14: 0 | FV14: 43.61125275 | FW14: 0.152093369 | FX14: 0.357419418 | FY14: 0 | FZ14: 2.190448707 | GB14: LjRoot115A | GC14: 1.522666932 | GD14: 0.921016133 | GE14: 0 | GF14: 0 | GG14: 0.441220554 | GH14: 0 | GI14: 0.363322923 | GJ14: 0 | GK14: 0 | GL14: 0.383358014 | GM14: 0 | GN14: 0 | GO14: 6.340508307 | GP14: 0.793329806 | GQ14: 0 | GR14: 0.734719688 | GS14: 0 | GT14: 0 | GU14: 0 | GV14: 0 | GW14: 0 | GX14: 0 | GY14: 0 | GZ14: 0 | HA14: 0 | HB14: 0 | HC14: 0 | HD14: 0 | HE14: 0 | HF14: 0 | HG14: 0 | HH14: 0 | HI14: 1.969270048 | HJ14: 2.418863475 | HK14: 0.695397084 | HL14: 0.307404086 | HM14: 0 | HN14: 0 | HO14: 0 | HP14: 0 | HQ14: 1.594434423 | HR14: 1.084436691 | HS14: 0 | HT14: 5.689068812 | HU14: 0 | HV14: 0 | HW14: 0 | HX14: 0 | HY14: 0 | HZ14: 0 | IA14: 0 | IB14: 0 | IC14: 0 | ID14: 0 | IE14: 0 | IF14: 0 | IG14: 0 | IH14: 0 | II14: 0 | IJ14: 0 | IK14: 1.618954983 | IL14: 0.738457578 | IM14: 2.545652709 | IN14: 2.149436353 | IO14: 1.542402992 | IP14: 1.787010524 | IQ14: 1.820202988 | IR14: 0.770304403 | IS14: 0 | IT14: 0 | IU14: 0 | IV14: 0 | IW14: 0.318019694 | IX14: 1.118376734 | IY14: 6.377139631 | IZ14: 5.531030816 | JA14: 0 | JB14: 0 | JC14: 0 | JD14: 0 | JE14: 0 | JF14: 0 | JG14: 0 | JH14: 3.776315663 | JI14: 2.148389744 | JJ14: 0 | JK14: 0.395020231 | JL14: 0 | JM14: 0 | JO14: 01L415 | JP14: 483.277773 | JQ14: 1079.848274 | JR14: 378.9321706 | JS14: 904.8447738 | JT14: 595.3927695 | JU14: 360.9116863 | JV14: 464.6482636 | JW14: 498.649717 | JX14: 173.0026905 | JY14: 731.1100511 | JZ14: 0 | KA14: 151.0456819 | KB14: 0 | KC14: 0 | KD14: 0 | KE14: 18.13821359 | KF14: 0 | KG14: 0 | KH14: 0 | KI14: 0 | KJ14: 0 | KK14: 0 | KL14: 0 | KM14: 0 | KN14: 0 | KO14: 0 | KP14: 0 | KQ14: 0 | KR14: 0 | KS14: 0 | KT14: 0 | KU14: 0 | KV14: 0 | KW14: 14.2138581 | KX14: 6.553103339 | KY14: 0 | KZ14: 0 | LA14: 0 | LB14: 0 | LC14: 0 | LD14: 0 | LE14: 0 | LF14: 0 | LG14: 0 | LH14: 0 | LI14: 0 | LJ14: 13.92811189 | LK14: 0 | LL14: 0 | LM14: 0 | LN14: 0 | LO14: 11.31681083 | LP14: 0 | LQ14: 0 | LR14: 0 | LS14: 0 | LT14: 0 | LU14: 0 | LV14: 0 | LW14: 0 | LX14: 0 | LY14: 0 | LZ14: 0 | MA14: 0 | MB14: 0 | MC14: 0 | MD14: 0 | ME14: 0 | MF14: 0 | MG14: 0 | MH14: 0 | MI14: 8.226382718 | MJ14: 0 | MK14: 0 | ML14: 0 | MM14: 0 | MN14: 0 | MO14: 0 | MP14: 0 | MQ14: 0 | MR14: 0 | MS14: 1.36964654 | MT14: 0 | MU14: 0 | MV14: 0 | MW14: 0 | MX14: 0 | MY14: 0 | MZ14: 0 | NA14: 0 | NB14: 0 | NC14: 0 | ND14: 0 | NE14: 0 | NF14: 0 | NG14: 0 | NH14: 5.243860821 | NI14: 0 | NJ14: 4.528982152 | NK14: 0 | NL14: 0 | NM14: 0 | NN14: 1.905952154 | NO14: 0 | NP14: 0 | NQ14: 0 | NR14: 0 | NS14: 0 | NT14: 0 | NU14: 0 | NV14: 0 | NW14: 0 | NX14: 0 | NY14: 0 | NZ14: 0 | OA14: 0 | OB14: 0 | OC14: 0 | OD14: 0 | OE14: 11.83654932 | OF14: 14.38861925 | OG14: 0 | OH14: 0 | OI14: 15.92818876 | OJ14: 0 | OK14: 44.07616983 | OL14: 0 | OM14: 40.22057524 | ON14: 263.3116884 | OO14: 25.40692865 | OP14: 336.9977046 | OQ14: 506.363252 | OR14: 45.36019514 | OS14: 0 | OT14: 21.44548041 | OU14: 0 | OV14: 0 | OW14: 0 | OX14: 0 | OY14: 0 | OZ14: 0 | PA14: 0 | PB14: 0 | PC14: 0 | PD14: 0 | PE14: 0 | PF14: 0 | PG14: 0 | PH14: 0 | PI14: 0 | PJ14: 0 | PK14: 0 | PL14: 0 | PM14: 0 | PN14: 0 | PO14: 0 | PP14: 0 | PQ14: 0 | PR14: 0 | PS14: 0 | PT14: 0 | PU14: 0 | PV14: 0 | PW14: 0 | PX14: 0 | PY14: 0 | PZ14: 0 | QA14: 0 | QB14: 0 | QC14: 0 | QD14: 0 | QE14: 0 | QF14: 0 | QG14: 0 | QH14: 0 | QI14: 0 | QJ14: 0 | QK14: 0 | QL14: 0 | QM14: 0 | QN14: 15.49099266 | QO14: 0 | QP14: 0 | QQ14: 0 | QR14: 5.802891249 | QS14: 0 | QT14: 0 | QU14: 15.81925626 | QV14: 13.32847002 | QW14: 0 | QX14: 0 | QY14: 109.2528427 | QZ14: 44.90232679 | RA14: 36.71714196 | RB14: 41.66602003 | RC14: 145.2599442 | RD14: 14.63551336 | RE14: 680.0513522 | RF14: 203.560235 | RG14: 471.1455079 | RH14: 4016.895766 | RI14: 6306.980407 | RJ14: 506.7428297 | RK14: 4025.55392 | RL14: 0 | RM14: 1.906391989 | RN14: 0 | RO14: 0 | RP14: 0 | RQ14: 0 | RR14: 0 | RS14: 0 | RT14: 1785.359482 | RU14: 880.9919292 | RV14: 1420.981309 | RW14: 1790.457904 | RX14: 0 | RY14: 0 | RZ14: 0 | SA14: 0 | SB14: 0 | SC14: 0 | SD14: 0 | SE14: 3.173703559 | SF14: 124.4384432 | SG14: 185.3891804 | SH14: 160.2285594 | SI14: 0 | SJ14: 874.6808818 | SK14: 312.7449033 | SL14: 322.1953471 | SM14: 842.6091317 | SN14: 0 | SO14: 0 | SP14: 0 | SQ14: 0 | SR14: 0 | SS14: 0 | ST14: 0 | SU14: 0 | SV14: 0 | SW14: 0 | SX14: 0 | SY14: 0 | SZ14: 0 | TA14: 0 | TB14: 4.766639724 | TC14: 0 | TD14: 0 | TE14: 0 | TF14: 0 | TG14: 0 | TH14: 0 | TI14: 0 | TJ14: 0 | TK14: 0 | TL14: 0 | TM14: 0 | TN14: 0 | TO14: 0 | TP14: 0 | TQ14: 0 | TR14: 0 | TS14: 0 | TT14: 0 | TU14: 0 | TV14: 0 | TW14: 0 | TX14: 0 | TY14: 0 | TZ14: 0 | UA14: 0 | UB14: 0 | UC14: 0 | UD14: 0 | UE14: 0 | UF14: 0.000439835 | UG14: 12.50040712 | UH14: 0 | UI14: 0 | UJ14: 0 | UK14: 0 | UL14: 0 | UM14: 0 | UN14: 0 | UO14: 0 | UP14: 0 | UQ14: 0 | UR14: 0 | US14: 0 | UT14: 2.493132029 | UU14: 0 | UV14: 0 | UW14: 0 | UX14: 0 | UY14: 0 | UZ14: 0 | VA14: 0 | VB14: 0 | VC14: 0 | VD14: 0 | VE14: 0 | VF14: 0 | VG14: 0 | VH14: 0 | VI14: 0 | VJ14: 0 | VK14: 0 | VL14: 0 | VM14: 2.504127906 | VN14: 0 | VO14: 0 | VP14: 0 | VQ14: 18.58787168 | VR14: 161.5861837 | VS14: 167.1888034 | VT14: 32.49325876 | VU14: 83.30345078 | VV14: 302.5687315 | VW14: 502.994115 | VX14: 0 | VY14: 0 | VZ14: 73.01453461 | WA14: 0 | WB14: 0 | WC14: 0 | WD14: 21.38683573 | WE14: 0 | WF14: 0 | WG14: 75.83226495 | WH14: 0 | WI14: 0 | WJ14: 43.68398353 | WK14: 0 | WL14: 0 | WM14: 0 | WN14: 0 | WO14: 0 | WP14: 0 | WQ14: 0 | WR14: 0 | WS14: 0 | WT14: 0 | WU14: 0 | WV14: 0 | WW14: 0 | WX14: 0 | WY14: 0 | WZ14: 0 | XA14: 0 | XB14: 0 | XC14: 0 | XD14: 0 | XE14: 0 | XF14: 0 | XG14: 1.921639606 | XH14: 0 | XI14: 0 | XJ14: 0 | XK14: 53.60006613 | XL14: 0 | XM14: 15.10379115 | XN14: 0 | XO14: 0 | XP14: 0 | XQ14: 0 | XR14: 0 | XS14: 0 | XT14: 0 | XU14: 0 | XV14: 0 | XW14: 0 | XX14: 28.18976541 | XY14: 40.36835984 | XZ14: 32.96930696 | YA14: 11.81030583 | YB14: 21.47612225 | YC14: 0 | YD14: 0 | YE14: 0 | YF14: 0 | YG14: 0 | YH14: 0 | YI14: 3.570728054 | YJ14: 0 | YK14: 0 | YL14: 3.315623689 | YM14: 0 | YN14: 0 | YO14: 0 | YP14: 0 | YQ14: 0 | YR14: 0 | YS14: 0 | YT14: 0 | YU14: 0 | YV14: 0 | YW14: 0 | YX14: 0 | YY14: 20.821501 | YZ14: 0 | ZA14: 0 | ZB14: 0 | ZC14: 1.621672059 | ZD14: 0 | ZE14: 0 | ZF14: 0 | ZG14: 0 | ZH14: 0 | ZI14: 0 | ZJ14: 0 | ZK14: 0 | ZL14: 0 | ZM14: 0 | ZN14: 719.0071083 | ZO14: 0 | ZP14: 0 | ZQ14: 0 | ZR14: 0 | ZS14: 6.825214662 | ZT14: 4.555812094 | ZU14: 5.150175942 | ZV14: 0 | ZW14: 0 | ZX14: 0 | ZY14: 0 | ZZ14: 0 | AAA14: 0 | AAB14: 0 | AAC14: 0 | AAD14: 0 | AAE14: 0 | AAF14: 0 | AAG14: 0 | AAH14: 0 | AAI14: 0 | AAJ14: 0 | AAK14: 0 | AAL14: 0 | AAM14: 6.774926847 | AAN14: 0 | AAO14: 0 | AAP14: 9.695431994 | AAQ14: 0
I15: 01L416 | J15: 16.17984234 | K15: 0 | L15: 67.69314296 | M15: 0 | N15: 0 | O15: 21.88231608 | P15: 0 | Q15: 34.36711402 | R15: 0 | S15: 52.73998958 | T15: 0 | U15: 9.653310842 | V15: 0 | W15: 0 | X15: 0 | Y15: 0 | Z15: 22.65204358 | AA15: 29.71336095 | AB15: 0 | AC15: 0 | AD15: 0 | AE15: 0 | AF15: 0 | AG15: 9.78003248 | AH15: 0 | AI15: 0 | AJ15: 0 | AK15: 6.262662682 | AL15: 0 | AM15: 0 | AN15: 0 | AO15: 23.7878395 | AP15: 1228.1431 | AQ15: 97.17435221 | AR15: 907.853203 | AS15: 934.5872105 | AT15: 37.88859529 | AU15: 79.90819854 | AV15: 0 | AW15: 0 | AX15: 524.9148008 | AY15: 784.7590629 | AZ15: 36.27528052 | BA15: 324.2705418 | BB15: 0 | BC15: 14.18166382 | BD15: 0 | BE15: 23.34130357 | BF15: 0 | BG15: 4.923348583 | BH15: 3.065254009 | BI15: 0 | BJ15: 186.4430656 | BK15: 173.3108566 | BL15: 44.26109318 | BM15: 30.44314837 | BN15: 141.4317744 | BO15: 13.45686891 | BP15: 131.8515892 | BQ15: 163.2688643 | BR15: 0 | BS15: 16.97732231 | BT15: 0.000587354 | BU15: 0 | BV15: 0 | BW15: 0 | BX15: 32.79094939 | BY15: 0 | BZ15: 66.76086522 | CA15: 66.3757078 | CB15: 64.39045107 | CC15: 81.34090193 | CD15: 19.67195591 | CE15: 48.16009628 | CF15: 0 | CG15: 0 | CH15: 0 | CI15: 140.4072821 | CJ15: 0 | CK15: 15.56488263 | CL15: 0 | CM15: 0 | CO15: P1_B10 | CP15: 7.09877153 | CQ15: 16.2601394 | CR15: 7.262460221 | CS15: 0.59608232 | CT15: 3.489599288 | CU15: 6.421587554 | CV15: 5.827733301 | CW15: 5.441683476 | CX15: 0.297521278 | CY15: 1.599752451 | CZ15: 2.979520372 | DA15: 1.313371511 | DB15: 0.149577597 | DC15: 0.148537832 | DD15: 0.148834908 | DE15: 0 | DF15: 0 | DG15: 0 | DH15: 0 | DI15: 0 | DJ15: 0.149429059 | DK15: 0 | DL15: 0.148537832 | DM15: 0 | DN15: 2.674869279 | DO15: 0.297521278 | DP15: 0.150617362 | DQ15: 1.940498237 | DR15: 0.74476869 | DS15: 0.297521278 | DT15: 0.297966891 | DU15: 0.297669815 | DV15: 14.57527477 | DW15: 7.428971131 | DX15: 11.60095322 | DY15: 5.210112996 | DZ15: 0.464329263 | EA15: 10.7033391 | EB15: 0 | EC15: 0.148537832 | ED15: 63.09545467 | EE15: 85.61215609 | EF15: 62.58983189 | EG15: 117.3347867 | EH15: 0.44605911 | EI15: 0 | EJ15: 3.5846635 | EK15: 0.445910572 | EL15: 0.297818353 | EM15: 0.14868637 | EN15: 0.297075664 | EO15: 0 | EP15: 0.148537832 | EQ15: 0 | ER15: 0 | ES15: 0.297521278 | ET15: 0.297075664 | EU15: 0.743431849 | EV15: 0 | EW15: 2.527816825 | EX15: 12.65334376 | EY15: 20.37656833 | EZ15: 12.54550529 | FA15: 19.18767153 | FB15: 0 | FC15: 4.308933969 | FD15: 0.743134774 | FE15: 0 | FF15: 0 | FG15: 0 | FH15: 0 | FI15: 0 | FJ15: 0.163837229 | FK15: 0 | FL15: 0 | FM15: 0 | FN15: 3.789942784 | FO15: 1.660652962 | FP15: 0.632771164 | FQ15: 3.391415781 | FR15: 0.152399816 | FS15: 0 | FT15: 0 | FU15: 0 | FV15: 7.894340158 | FW15: 0 | FX15: 0 | FY15: 0.148537832 | FZ15: 0.149280521 | GB15: LjRoot117 | GC15: 1032.526315 | GD15: 3224.46252 | GE15: 866.9328979 | GF15: 1872.137437 | GG15: 962.8826873 | GH15: 1423.961015 | GI15: 786.6500863 | GJ15: 441.1373039 | GK15: 424.7964933 | GL15: 257.5389894 | GM15: 293.1116034 | GN15: 417.9506779 | GO15: 10199.57582 | GP15: 4733.134326 | GQ15: 10.19787487 | GR15: 643.3053848 | GS15: 25.13233624 | GT15: 0 | GU15: 3.769629265 | GV15: 30.96312671 | GW15: 97.1433727 | GX15: 19.27633233 | GY15: 50.06694608 | GZ15: 65.47987287 | HA15: 166.4974147 | HB15: 221.048813 | HC15: 574.3683228 | HD15: 149.9466397 | HE15: 24.58147435 | HF15: 0 | HG15: 8.954159665 | HH15: 12.30105846 | HI15: 3921.567618 | HJ15: 3088.532632 | HK15: 4742.967122 | HL15: 249.5625506 | HM15: 62.65729551 | HN15: 28.86716802 | HO15: 4.486663886 | HP15: 39.82719628 | HQ15: 2362.829161 | HR15: 657.0074844 | HS15: 260.3509506 | HT15: 5825.88226 | HU15: 122.7521101 | HV15: 56.45597079 | HW15: 24.23630099 | HX15: 202.65731 | HY15: 0 | HZ15: 7.00668007 | IA15: 0 | IB15: 13.05289057 | IC15: 7.561523023 | ID15: 0 | IE15: 33.42814518 | IF15: 24.67038488 | IG15: 0.999985358 | IH15: 0 | II15: 8.215007999 | IJ15: 3.997582282 | IK15: 1984.172954 | IL15: 1837.962178 | IM15: 6449.213151 | IN15: 4585.512335 | IO15: 603.9715461 | IP15: 343.5539494 | IQ15: 464.8708107 | IR15: 719.8623588 | IS15: 0 | IT15: 2.152578332 | IU15: 37.68316987 | IV15: 1.491868454 | IW15: 225.9129411 | IX15: 216.5391474 | IY15: 1647.722409 | IZ15: 3375.498793 | JA15: 255.1975315 | JB15: 4.900105193 | JC15: 661.0370627 | JD15: 50.08316525 | JE15: 32.74428612 | JF15: 25.82917062 | JG15: 0 | JH15: 2001.22726 | JI15: 697.7397102 | JJ15: 0 | JK15: 14.90821581 | JL15: 37.55371143 | JM15: 9.145398387 | JO15: 01L416 | JP15: 16.17984234 | JQ15: 0 | JR15: 67.69314296 | JS15: 0 | JT15: 0 | JU15: 21.88231608 | JV15: 0 | JW15: 34.36711402 | JX15: 0 | JY15: 52.73998958 | JZ15: 0 | KA15: 9.653310842 | KB15: 0 | KC15: 0 | KD15: 0 | KE15: 0 | KF15: 22.65204358 | KG15: 29.71336095 | KH15: 0 | KI15: 0 | KJ15: 0 | KK15: 0 | KL15: 0 | KM15: 9.78003248 | KN15: 0 | KO15: 0 | KP15: 23.99664387 | KQ15: 0 | KR15: 0 | KS15: 0 | KT15: 0 | KU15: 9.016912716 | KV15: 0 | KW15: 0 | KX15: 13.70517284 | KY15: 0 | KZ15: 45.82286763 | LA15: 0 | LB15: 10.59439889 | LC15: 0 | LD15: 0 | LE15: 10.39499218 | LF15: 0 | LG15: 0 | LH15: 0 | LI15: 0 | LJ15: 0 | LK15: 0 | LL15: 0 | LM15: 168.0839929 | LN15: 0 | LO15: 0 | LP15: 0 | LQ15: 6.088659042 | LR15: 11.28571462 | LS15: 0 | LT15: 11.03006876 | LU15: 6.707583384 | LV15: 0 | LW15: 0 | LX15: 5.899090518 | LY15: 0 | LZ15: 0 | MA15: 3.627498685 | MB15: 16.29349535 | MC15: 10.24991573 | MD15: 0 | ME15: 28.38887754 | MF15: 7.356756461 | MG15: 0 | MH15: 59.40337457 | MI15: 7.239726164 | MJ15: 12.85439048 | MK15: 0 | ML15: 10.46151003 | MM15: 13.69841826 | MN15: 2.665265893 | MO15: 16.55912622 | MP15: 0 | MQ15: 0 | MR15: 0 | MS15: 0 | MT15: 0 | MU15: 0 | MV15: 0 | MW15: 0 | MX15: 0 | MY15: 0 | MZ15: 15.21570064 | NA15: 21.33328687 | NB15: 0 | NC15: 0 | ND15: 0 | NE15: 0 | NF15: 24.42144769 | NG15: 25.24095345 | NH15: 0 | NI15: 0 | NJ15: 0 | NK15: 0 | NL15: 0 | NM15: 31.16779644 | NN15: 0 | NO15: 0 | NP15: 0 | NQ15: 0 | NR15: 0 | NS15: 0 | NT15: 0 | NU15: 0 | NV15: 0 | NW15: 0 | NX15: 14.84052824 | NY15: 21.20715259 | NZ15: 0 | OA15: 0 | OB15: 0 | OC15: 0 | OD15: 0 | OE15: 0 | OF15: 0 | OG15: 0 | OH15: 0 | OI15: 6.262662682 | OJ15: 0 | OK15: 0 | OL15: 0 | OM15: 23.7878395 | ON15: 1228.1431 | OO15: 97.17435221 | OP15: 907.853203 | OQ15: 934.5872105 | OR15: 37.88859529 | OS15: 79.90819854 | OT15: 0 | OU15: 0 | OV15: 22.07819866 | OW15: 9.832894346 | OX15: 0 | OY15: 0 | OZ15: 0 | PA15: 0 | PB15: 0 | PC15: 0 | PD15: 0 | PE15: 0 | PF15: 0 | PG15: 0 | PH15: 0 | PI15: 0 | PJ15: 0 | PK15: 7.92252526 | PL15: 0 | PM15: 24.41058164 | PN15: 36.80947904 | PO15: 0 | PP15: 0 | PQ15: 0 | PR15: 0 | PS15: 0 | PT15: 519.6974815 | PU15: 353.810046 | PV15: 605.1197599 | PW15: 16.89670797 | PX15: 0 | PY15: 21.87541467 | PZ15: 26.84002488 | QA15: 34.81482465 | QB15: 0 | QC15: 3.563623931 | QD15: 0 | QE15: 11.82211571 | QF15: 0 | QG15: 17.78405312 | QH15: 0 | QI15: 0 | QJ15: 0 | QK15: 0 | QL15: 0 | QM15: 0 | QN15: 0 | QO15: 0 | QP15: 84.39617093 | QQ15: 13.46274245 | QR15: 0 | QS15: 0 | QT15: 0 | QU15: 0 | QV15: 17.81239295 | QW15: 0 | QX15: 0 | QY15: 0 | QZ15: 0 | RA15: 0 | RB15: 81.10963127 | RC15: 128.190024 | RD15: 0 | RE15: 170.4379611 | RF15: 92.56758747 | RG15: 191.5440888 | RH15: 524.9148008 | RI15: 784.7590629 | RJ15: 36.27528052 | RK15: 324.2705418 | RL15: 0 | RM15: 0 | RN15: 0 | RO15: 0 | RP15: 0 | RQ15: 0 | RR15: 0 | RS15: 0 | RT15: 247.6665036 | RU15: 151.6508541 | RV15: 171.463775 | RW15: 188.1737043 | RX15: 0 | RY15: 14.18166382 | RZ15: 0 | SA15: 23.34130357 | SB15: 0 | SC15: 4.923348583 | SD15: 3.065254009 | SE15: 0 | SF15: 186.4430656 | SG15: 173.3108566 | SH15: 44.26109318 | SI15: 30.44314837 | SJ15: 141.4317744 | SK15: 13.45686891 | SL15: 131.8515892 | SM15: 163.2688643 | SN15: 0 | SO15: 0 | SP15: 0 | SQ15: 11.7423824 | SR15: 8.350265856 | SS15: 0 | ST15: 0 | SU15: 0 | SV15: 0 | SW15: 0 | SX15: 0 | SY15: 8.373319503 | SZ15: 0 | TA15: 0 | TB15: 0 | TC15: 0 | TD15: 14.38107052 | TE15: 0 | TF15: 0 | TG15: 0 | TH15: 0 | TI15: 0 | TJ15: 0 | TK15: 0 | TL15: 0 | TM15: 0 | TN15: 0 | TO15: 5.726702101 | TP15: 0 | TQ15: 0 | TR15: 0 | TS15: 0 | TT15: 0 | TU15: 0 | TV15: 0 | TW15: 0 | TX15: 0 | TY15: 0 | TZ15: 13.80282045 | UA15: 0 | UB15: 0 | UC15: 10.9017319 | UD15: 0 | UE15: 0 | UF15: 0 | UG15: 0 | UH15: 0 | UI15: 0 | UJ15: 0 | UK15: 23.73952962 | UL15: 0 | UM15: 0 | UN15: 0 | UO15: 0 | UP15: 0 | UQ15: 0 | UR15: 0 | US15: 0 | UT15: 0 | UU15: 0 | UV15: 0 | UW15: 4.328946273 | UX15: 0 | UY15: 0 | UZ15: 0 | VA15: 0 | VB15: 0 | VC15: 0 | VD15: 0 | VE15: 0 | VF15: 0 | VG15: 0 | VH15: 3.797831363 | VI15: 0 | VJ15: 0 | VK15: 0 | VL15: 0 | VM15: 0 | VN15: 0 | VO15: 0 | VP15: 9.548468142 | VQ15: 95.76411511 | VR15: 49.64125639 | VS15: 25.94049213 | VT15: 13.75289535 | VU15: 10.95400641 | VV15: 14.42629679 | VW15: 63.34789761 | VX15: 0 | VY15: 0 | VZ15: 0 | WA15: 16.97732231 | WB15: 0.000587354 | WC15: 0 | WD15: 0 | WE15: 0 | WF15: 32.79094939 | WG15: 0 | WH15: 10.96766239 | WI15: 0 | WJ15: 0 | WK15: 0 | WL15: 4.259638494 | WM15: 18.93614811 | WN15: 0 | WO15: 11.50993703 | WP15: 0 | WQ15: 0 | WR15: 0 | WS15: 0 | WT15: 0 | WU15: 0 | WV15: 0 | WW15: 0 | WX15: 0 | WY15: 20.87705961 | WZ15: 0 | XA15: 19.42012786 | XB15: 0 | XC15: 0 | XD15: 9.564179863 | XE15: 0 | XF15: 0 | XG15: 0 | XH15: 0 | XI15: 0 | XJ15: 0 | XK15: 0 | XL15: 0 | XM15: 0 | XN15: 0 | XO15: 0 | XP15: 0 | XQ15: 0 | XR15: 0 | XS15: 0 | XT15: 0 | XU15: 7.070861871 | XV15: 0 | XW15: 20.92492896 | XX15: 66.76086522 | XY15: 66.3757078 | XZ15: 64.39045107 | YA15: 81.34090193 | YB15: 19.67195591 | YC15: 0 | YD15: 0 | YE15: 0 | YF15: 0 | YG15: 0 | YH15: 0 | YI15: 0 | YJ15: 0 | YK15: 2.588616188 | YL15: 0 | YM15: 0 | YN15: 0 | YO15: 0 | YP15: 0 | YQ15: 17.55704077 | YR15: 0 | YS15: 0 | YT15: 0 | YU15: 0 | YV15: 0 | YW15: 48.16009628 | YX15: 0 | YY15: 0 | YZ15: 0 | ZA15: 0 | ZB15: 0 | ZC15: 0 | ZD15: 0 | ZE15: 0 | ZF15: 0 | ZG15: 0 | ZH15: 0 | ZI15: 11.51184593 | ZJ15: 0 | ZK15: 0 | ZL15: 0 | ZM15: 0 | ZN15: 140.4072821 | ZO15: 0 | ZP15: 0 | ZQ15: 0 | ZR15: 0 | ZS15: 15.56488263 | ZT15: 0 | ZU15: 0 | ZV15: 0 | ZW15: 0 | ZX15: 0 | ZY15: 0 | ZZ15: 0 | AAA15: 0 | AAB15: 0 | AAC15: 0 | AAD15: 0 | AAE15: 0 | AAF15: 0 | AAG15: 0 | AAH15: 0 | AAI15: 0 | AAJ15: 0 | AAK15: 5.604091941 | AAL15: 0 | AAM15: 27.51753779 | AAN15: 0 | AAO15: 0 | AAP15: 0 | AAQ15: 0
I16: 01L418 | J16: 1.406482898 | K16: 0 | L16: 0.881735097 | M16: 0 | N16: 0 | O16: 1.465588702 | P16: 0 | Q16: 0 | R16: 0.790576891 | S16: 1.224607574 | T16: 0 | U16: 0 | V16: 2.224113192 | W16: 1.246220891 | X16: 0 | Y16: 0 | Z16: 2.213674107 | AA16: 1.605707686 | AB16: 1.410158632 | AC16: 0.441088092 | AD16: 0 | AE16: 0 | AF16: 0 | AG16: 0 | AH16: 0 | AI16: 0 | AJ16: 0 | AK16: 0 | AL16: 0 | AM16: 0 | AN16: 0 | AO16: 0 | AP16: 0.995682854 | AQ16: 0 | AR16: 0 | AS16: 0 | AT16: 0 | AU16: 0 | AV16: 0.409917867 | AW16: 0 | AX16: 4.597167129 | AY16: 2.974404037 | AZ16: 0 | BA16: 7.861071984 | BB16: 0.294058728 | BC16: 0.610907008 | BD16: 0 | BE16: 0 | BF16: 0 | BG16: 0.673688547 | BH16: 0 | BI16: 0 | BJ16: 0.590175868 | BK16: 0 | BL16: 0.165702093 | BM16: 0 | BN16: 0 | BO16: 0 | BP16: 0 | BQ16: 0.902466237 | BR16: 0 | BS16: 0 | BT16: 0.822482263 | BU16: 0 | BV16: 0 | BW16: 0 | BX16: 0 | BY16: 0 | BZ16: 0 | CA16: 0.277297381 | CB16: 0 | CC16: 0 | CD16: 0 | CE16: 0 | CF16: 0 | CG16: 0 | CH16: 0 | CI16: 0 | CJ16: 0 | CK16: 0 | CL16: 0 | CM16: 0.147029364 | CO16: P1_B11 | CP16: 0.904792388 | CQ16: 0.548830574 | CR16: 0.535962681 | CS16: 0 | CT16: 0.857959245 | CU16: 0.37002672 | CV16: 1.305492572 | CW16: 0.82504138 | CX16: 0 | CY16: 0 | CZ16: 1.459159148 | DA16: 0 | DB16: 0.171771401 | DC16: 1.080753335 | DD16: 0.185537053 | DE16: 0 | DF16: 0 | DG16: 0.162793802 | DH16: 0 | DI16: 0.176858707 | DJ16: 0.175212814 | DK16: 0 | DL16: 0.168629241 | DM16: 0 | DN16: 2.142952965 | DO16: 0.586386864 | DP16: 2.153576457 | DQ16: 0.667783765 | DR16: 1.394670059 | DS16: 0.567533906 | DT16: 0.1852378 | DU16: 0.935615479 | DV16: 36.85828226 | DW16: 8.472759013 | DX16: 21.45601357 | DY16: 6.76462111 | DZ16: 1.252225483 | EA16: 17.59968577 | EB16: 0 | EC16: 0.182245267 | ED16: 71.71994643 | EE16: 108.2153841 | EF16: 88.06890298 | EG16: 138.3995693 | EH16: 0.390675198 | EI16: 0 | EJ16: 0 | EK16: 0 | EL16: 0.179103107 | EM16: 0 | EN16: 0 | EO16: 0 | EP16: 0 | EQ16: 0 | ER16: 0 | ES16: 0 | ET16: 0 | EU16: 0 | EV16: 0 | EW16: 0 | EX16: 7.642181447 | EY16: 14.26525574 | EZ16: 3.878173293 | FA16: 35.6870048 | FB16: 0 | FC16: 1.458111761 | FD16: 1.882452957 | FE16: 0 | FF16: 0.393518105 | FG16: 0 | FH16: 0.185537053 | FI16: 0 | FJ16: 0 | FK16: 0.162344922 | FL16: 0 | FM16: 0.162344922 | FN16: 0 | FO16: 0.303293231 | FP16: 2.261158023 | FQ16: 5.38655961 | FR16: 0.960752757 | FS16: 0.897759935 | FT16: 1.945146526 | FU16: 0 | FV16: 24.0500909 | FW16: 0 | FX16: 0 | FY16: 0 | FZ16: 0.162943428 | GB16: LjRoot118 | GC16: 670.9179457 | GD16: 855.6258878 | GE16: 414.0823372 | GF16: 1282.588546 | GG16: 485.6765225 | GH16: 555.1709379 | GI16: 306.9804965 | GJ16: 280.257983 | GK16: 95.2643987 | GL16: 90.05409095 | GM16: 105.5523372 | GN16: 197.8779922 | GO16: 4968.413843 | GP16: 2631.860186 | GQ16: 5.363419013 | GR16: 265.650964 | GS16: 18.10128374 | GT16: 1.764793427 | GU16: 0.7943103 | GV16: 28.1494112 | GW16: 33.91947272 | GX16: 7.745036278 | GY16: 16.6916092 | GZ16: 45.03397854 | HA16: 5.61300935 | HB16: 15.78914308 | HC16: 20.28220702 | HD16: 7.681544 | HE16: 3.062079341 | HF16: 5.342400879 | HG16: 2.162094537 | HH16: 2.951150303 | HI16: 553.3705304 | HJ16: 752.5874069 | HK16: 398.874258 | HL16: 48.83650921 | HM16: 36.97512985 | HN16: 7.358536155 | HO16: 15.70463267 | HP16: 20.9823736 | HQ16: 2160.263624 | HR16: 635.4892542 | HS16: 215.9976668 | HT16: 5936.762317 | HU16: 62.98390253 | HV16: 54.80171826 | HW16: 55.94720654 | HX16: 173.354063 | HY16: 13.33367043 | HZ16: 13.31338209 | IA16: 0.729796306 | IB16: 18.2228678 | IC16: 2.95961594 | ID16: 1.61416347 | IE16: 15.28514575 | IF16: 18.34532763 | IG16: 0.600038523 | IH16: 1.065502607 | II16: 5.755027711 | IJ16: 0.691992857 | IK16: 1071.500219 | IL16: 1655.744782 | IM16: 4593.34627 | IN16: 2848.223627 | IO16: 1611.752515 | IP16: 578.8502008 | IQ16: 1159.153718 | IR16: 1616.209235 | IS16: 2.549470416 | IT16: 4.591878358 | IU16: 13.58296885 | IV16: 1.121405004 | IW16: 82.61556912 | IX16: 66.40752296 | IY16: 688.8850929 | IZ16: 1707.574624 | JA16: 26.63785709 | JB16: 3.621249271 | JC16: 51.99244036 | JD16: 57.41263753 | JE16: 11.16748904 | JF16: 4.733166923 | JG16: 1.306627307 | JH16: 2091.776035 | JI16: 723.8624783 | JJ16: 0 | JK16: 13.27470289 | JL16: 35.15808301 | JM16: 13.26740493 | JO16: 01L418 | JP16: 1.406482898 | JQ16: 0 | JR16: 0.881735097 | JS16: 0 | JT16: 0 | JU16: 1.465588702 | JV16: 0 | JW16: 0 | JX16: 0.790576891 | JY16: 1.224607574 | JZ16: 0 | KA16: 0 | KB16: 2.224113192 | KC16: 1.246220891 | KD16: 0 | KE16: 0 | KF16: 2.213674107 | KG16: 1.605707686 | KH16: 1.410158632 | KI16: 0.441088092 | KJ16: 0 | KK16: 0 | KL16: 0 | KM16: 0 | KN16: 0 | KO16: 0 | KP16: 0 | KQ16: 0 | KR16: 0 | KS16: 0 | KT16: 0 | KU16: 1.018178347 | KV16: 0 | KW16: 0.662955403 | KX16: 0 | KY16: 0 | KZ16: 0.849535666 | LA16: 2.430983507 | LB16: 3.257729622 | LC16: 0 | LD16: 0 | LE16: 0 | LF16: 0 | LG16: 0 | LH16: 0 | LI16: 1.646728879 | LJ16: 0 | LK16: 0 | LL16: 0.527835417 | LM16: 0 | LN16: 0 | LO16: 0 | LP16: 0 | LQ16: 0 | LR16: 0 | LS16: 0 | LT16: 0 | LU16: 0 | LV16: 0 | LW16: 0 | LX16: 0 | LY16: 0 | LZ16: 0 | MA16: 2.358939119 | MB16: 0 | MC16: 0 | MD16: 0 | ME16: 2.437599828 | MF16: 0 | MG16: 1.594533454 | MH16: 0 | MI16: 0 | MJ16: 0 | MK16: 0 | ML16: 0 | MM16: 0 | MN16: 1.203288316 | MO16: 0.879529656 | MP16: 1.19093785 | MQ16: 0 | MR16: 0.687803366 | MS16: 1.526311829 | MT16: 2.309684282 | MU16: 0 | MV16: 0 | MW16: 0.806603092 | MX16: 0 | MY16: 0 | MZ16: 0 | NA16: 1.193731408 | NB16: 0 | NC16: 0.294205758 | ND16: 0 | NE16: 0 | NF16: 1.158738419 | NG16: 0 | NH16: 0 | NI16: 0 | NJ16: 0 | NK16: 0 | NL16: 0 | NM16: 0.856887134 | NN16: 0 | NO16: 0 | NP16: 0 | NQ16: 0 | NR16: 0.441088092 | NS16: 0 | NT16: 0 | NU16: 0 | NV16: 0 | NW16: 0 | NX16: 0.848359431 | NY16: 0 | NZ16: 4.460870909 | OA16: 0.881146979 | OB16: 0 | OC16: 0 | OD16: 0.205988139 | OE16: 0 | OF16: 0 | OG16: 0 | OH16: 0 | OI16: 0 | OJ16: 0 | OK16: 0 | OL16: 0 | OM16: 0 | ON16: 0.995682854 | OO16: 0 | OP16: 0 | OQ16: 0 | OR16: 0 | OS16: 0 | OT16: 0.409917867 | OU16: 0 | OV16: 0.651487113 | OW16: 0 | OX16: 0 | OY16: 2.066791772 | OZ16: 0 | PA16: 0 | PB16: 1.3434073 | PC16: 0 | PD16: 0 | PE16: 0 | PF16: 0 | PG16: 0 | PH16: 0 | PI16: 0.860562868 | PJ16: 0 | PK16: 0 | PL16: 0 | PM16: 0 | PN16: 0 | PO16: 0 | PP16: 0 | PQ16: 0.234952924 | PR16: 0 | PS16: 0.147029364 | PT16: 0 | PU16: 0 | PV16: 0 | PW16: 0 | PX16: 0.147029364 | PY16: 1.51469651 | PZ16: 3.006750497 | QA16: 3.13554822 | QB16: 0.735146821 | QC16: 0 | QD16: 0.664278667 | QE16: 0 | QF16: 1.000681852 | QG16: 0 | QH16: 0 | QI16: 0.268769678 | QJ16: 0 | QK16: 0 | QL16: 0 | QM16: 0 | QN16: 0 | QO16: 0 | QP16: 0 | QQ16: 0 | QR16: 0 | QS16: 0 | QT16: 0 | QU16: 0 | QV16: 0 | QW16: 0.147029364 | QX16: 0 | QY16: 0 | QZ16: 0 | RA16: 0 | RB16: 0 | RC16: 0.330374981 | RD16: 0.332727451 | RE16: 0 | RF16: 0 | RG16: 0 | RH16: 4.597167129 | RI16: 2.974404037 | RJ16: 0 | RK16: 7.861071984 | RL16: 0 | RM16: 0 | RN16: 0 | RO16: 0 | RP16: 0 | RQ16: 0 | RR16: 0 | RS16: 0 | RT16: 0 | RU16: 0 | RV16: 0 | RW16: 0 | RX16: 0.294058728 | RY16: 0.610907008 | RZ16: 0 | SA16: 0 | SB16: 0 | SC16: 0.673688547 | SD16: 0 | SE16: 0 | SF16: 0.590175868 | SG16: 0 | SH16: 0.165702093 | SI16: 0 | SJ16: 0 | SK16: 0 | SL16: 0 | SM16: 0.902466237 | SN16: 0 | SO16: 0.441088092 | SP16: 0 | SQ16: 1.094192528 | SR16: 0 | SS16: 0 | ST16: 0 | SU16: 0.227601456 | SV16: 3.67896875 | SW16: 0.489754812 | SX16: 0 | SY16: 0 | SZ16: 0 | TA16: 0 | TB16: 0 | TC16: 0 | TD16: 0 | TE16: 0.940252784 | TF16: 0 | TG16: 0 | TH16: 0 | TI16: 0 | TJ16: 0.755877961 | TK16: 0 | TL16: 0 | TM16: 0 | TN16: 0 | TO16: 0 | TP16: 0.536804209 | TQ16: 0 | TR16: 0.147029364 | TS16: 0.236717276 | TT16: 0.147029364 | TU16: 0 | TV16: 0 | TW16: 0 | TX16: 0.831598084 | TY16: 0 | TZ16: 0 | UA16: 0.294058728 | UB16: 0 | UC16: 0 | UD16: 0 | UE16: 0 | UF16: 0 | UG16: 0 | UH16: 0.178787707 | UI16: 0 | UJ16: 0 | UK16: 0.456967264 | UL16: 0.49475381 | UM16: 0 | UN16: 0 | UO16: 0 | UP16: 0.572826403 | UQ16: 0 | UR16: 1.066551008 | US16: 0 | UT16: 0 | UU16: 0 | UV16: 0 | UW16: 0 | UX16: 1.721125737 | UY16: 1.82448738 | UZ16: 0 | VA16: 0 | VB16: 0 | VC16: 0 | VD16: 0 | VE16: 0.147029364 | VF16: 0 | VG16: 0 | VH16: 0 | VI16: 0 | VJ16: 0 | VK16: 0 | VL16: 0 | VM16: 0 | VN16: 0 | VO16: 0 | VP16: 0 | VQ16: 0.165555064 | VR16: 0 | VS16: 0 | VT16: 0 | VU16: 0 | VV16: 0 | VW16: 0 | VX16: 0 | VY16: 0 | VZ16: 0 | WA16: 0 | WB16: 0.822482263 | WC16: 0 | WD16: 0 | WE16: 0 | WF16: 0 | WG16: 0 | WH16: 2.458330969 | WI16: 1.17461759 | WJ16: 0 | WK16: 0.758965578 | WL16: 1.7064228 | WM16: 0 | WN16: 1.019060523 | WO16: 0 | WP16: 0 | WQ16: 0 | WR16: 0 | WS16: 0 | WT16: 0 | WU16: 0.688538512 | WV16: 0 | WW16: 0 | WX16: 1.34575977 | WY16: 0 | WZ16: 0 | XA16: 0.944957723 | XB16: 0 | XC16: 0 | XD16: 4.915779761 | XE16: 0 | XF16: 0 | XG16: 0 | XH16: 0 | XI16: 0.263329591 | XJ16: 0 | XK16: 0.326405188 | XL16: 0.370808056 | XM16: 0 | XN16: 0 | XO16: 0.147029364 | XP16: 0 | XQ16: 0 | XR16: 0.588117457 | XS16: 0 | XT16: 0 | XU16: 0 | XV16: 0 | XW16: 0 | XX16: 0 | XY16: 0.277297381 | XZ16: 0 | YA16: 0 | YB16: 0 | YC16: 0 | YD16: 0 | YE16: 0 | YF16: 0 | YG16: 0 | YH16: 0 | YI16: 0.231424219 | YJ16: 0 | YK16: 0 | YL16: 0 | YM16: 0.441088092 | YN16: 0 | YO16: 0 | YP16: 0 | YQ16: 0 | YR16: 0.353605621 | YS16: 0 | YT16: 0.147029364 | YU16: 0 | YV16: 0 | YW16: 0 | YX16: 0 | YY16: 0 | YZ16: 0 | ZA16: 0 | ZB16: 0 | ZC16: 0 | ZD16: 0 | ZE16: 0 | ZF16: 0 | ZG16: 0 | ZH16: 0 | ZI16: 0 | ZJ16: 0 | ZK16: 0 | ZL16: 0 | ZM16: 0 | ZN16: 0 | ZO16: 0 | ZP16: 0 | ZQ16: 0 | ZR16: 0 | ZS16: 0 | ZT16: 0 | ZU16: 0.147029364 | ZV16: 0.147029364 | ZW16: 0 | ZX16: 0 | ZY16: 0 | ZZ16: 0 | AAA16: 0 | AAB16: 0 | AAC16: 0 | AAD16: 0.147029364 | AAE16: 0 | AAF16: 0.147029364 | AAG16: 0 | AAH16: 0.147029364 | AAI16: 0 | AAJ16: 0 | AAK16: 0 | AAL16: 0 | AAM16: 0 | AAN16: 0 | AAO16: 0 | AAP16: 0.147029364 | AAQ16: 0
I17: 01L419 | J17: 13.66568495 | K17: 18.60561539 | L17: 12.59179969 | M17: 36.5646575 | N17: 26.69149386 | O17: 49.69602048 | P17: 41.12604921 | Q17: 48.98669713 | R17: 45.41329151 | S17: 23.5014315 | T17: 10.12460072 | U17: 27.65225427 | V17: 17.09189724 | W17: 54.05824257 | X17: 38.05508096 | Y17: 46.91492554 | Z17: 56.77221968 | AA17: 63.22761536 | AB17: 46.77632213 | AC17: 6.842815515 | AD17: 33.14164823 | AE17: 23.62401981 | AF17: 33.36047274 | AG17: 56.11137841 | AH17: 8.654851301 | AI17: 5.802270782 | AJ17: 4.362950054 | AK17: 3.844206401 | AL17: 12.91515912 | AM17: 11.18145174 | AN17: 18.86578797 | AO17: 5.721176138 | AP17: 26.66659766 | AQ17: 2.188973006 | AR17: 21.50798831 | AS17: 24.53586138 | AT17: 44.99602536 | AU17: 56.73203634 | AV17: 3.400442536 | AW17: 46.96238847 | AX17: 377.1324593 | AY17: 752.1123435 | AZ17: 56.74135421 | BA17: 330.6493591 | BB17: 27.54961204 | BC17: 21.82232105 | BD17: 11.09118481 | BE17: 9.210429684 | BF17: 0.436775458 | BG17: 16.66604117 | BH17: 6.351297533 | BI17: 8.783263285 | BJ17: 70.17525699 | BK17: 74.19970606 | BL17: 32.6671645 | BM17: 6.207307223 | BN17: 63.97231752 | BO17: 38.24289441 | BP17: 45.62192459 | BQ17: 70.61276041 | BR17: 33.65165638 | BS17: 37.82766654 | BT17: 38.41876932 | BU17: 23.74413306 | BV17: 7.564659756 | BW17: 24.45258286 | BX17: 29.35349468 | BY17: 53.37134037 | BZ17: 1.401758038 | CA17: 1.394478447 | CB17: 11.49258145 | CC17: 2.191593659 | CD17: 2.042798819 | CE17: 13.67281895 | CF17: 1.664114497 | CG17: 8.266849102 | CH17: 1.639800663 | CI17: 77.08344323 | CJ17: 6.538965388 | CK17: 5.218738769 | CL17: 1.796311869 | CM17: 3.419806248 | CO17: P1_B12_1 | CP17: 0 | CQ17: 0 | CR17: 0 | CS17: 0 | CT17: 0 | CU17: 0 | CV17: 0 | CW17: 0.301880775 | CX17: 0 | CY17: 0 | CZ17: 0 | DA17: 0 | DB17: 0 | DC17: 0 | DD17: 0.189842549 | DE17: 0.299657794 | DF17: 0 | DG17: 0 | DH17: 0 | DI17: 0 | DJ17: 0.296397423 | DK17: 0 | DL17: 0 | DM17: 0 | DN17: 0 | DO17: 0 | DP17: 0 | DQ17: 0 | DR17: 0 | DS17: 0 | DT17: 0.148198711 | DU17: 0 | DV17: 0 | DW17: 0 | DX17: 0 | DY17: 0 | DZ17: 0 | EA17: 0 | EB17: 0 | EC17: 0 | ED17: 0.764408954 | EE17: 0 | EF17: 0.161240198 | EG17: 1.385361554 | EH17: 0 | EI17: 0 | EJ17: 0 | EK17: 0 | EL17: 0 | EM17: 0 | EN17: 0 | EO17: 0 | EP17: 0.670302772 | EQ17: 0 | ER17: 0 | ES17: 0 | ET17: 0 | EU17: 0 | EV17: 0 | EW17: 0 | EX17: 0.191620934 | EY17: 0 | EZ17: 0 | FA17: 0 | FB17: 0 | FC17: 0.149087904 | FD17: 0 | FE17: 0 | FF17: 0.159313615 | FG17: 0 | FH17: 0 | FI17: 0 | FJ17: 0 | FK17: 0.181098825 | FL17: 0 | FM17: 0 | FN17: 0 | FO17: 0 | FP17: 0 | FQ17: 0 | FR17: 0 | FS17: 0 | FT17: 0 | FU17: 1.309780212 | FV17: 1.324155487 | FW17: 0 | FX17: 0.654297311 | FY17: 0 | FZ17: 0 | GB17: LjRoot11 | GC17: 570.4579512 | GD17: 1779.501063 | GE17: 299.0077452 | GF17: 459.9002222 | GG17: 192.4740328 | GH17: 430.0306599 | GI17: 188.0713393 | GJ17: 193.7708039 | GK17: 221.0297396 | GL17: 176.6496805 | GM17: 94.18148028 | GN17: 211.9437248 | GO17: 4982.411216 | GP17: 1600.906894 | GQ17: 5.977269888 | GR17: 147.3651435 | GS17: 22.7073861 | GT17: 8.132860446 | GU17: 6.635980331 | GV17: 29.6511806 | GW17: 40.48751706 | GX17: 6.899523932 | GY17: 11.99673052 | GZ17: 29.51019815 | HA17: 25.19381747 | HB17: 46.38887332 | HC17: 27.22937238 | HD17: 50.61195897 | HE17: 15.8432192 | HF17: 56.25303992 | HG17: 13.8162807 | HH17: 8.533375411 | HI17: 522.9260652 | HJ17: 659.9219416 | HK17: 204.8666729 | HL17: 76.19782354 | HM17: 26.91591297 | HN17: 14.0523409 | HO17: 19.68302272 | HP17: 23.78770688 | HQ17: 92.27517167 | HR17: 23.33311645 | HS17: 11.46607791 | HT17: 261.9760067 | HU17: 13.70931825 | HV17: 6.526640934 | HW17: 14.67628854 | HX17: 11.62533311 | HY17: 21.12062781 | HZ17: 25.52436116 | IA17: 1.490046402 | IB17: 18.30632681 | IC17: 3.088986524 | ID17: 0.897147579 | IE17: 12.60433668 | IF17: 6.281370086 | IG17: 1.141229956 | IH17: 6.840991701 | II17: 2.090818849 | IJ17: 1.945379624 | IK17: 257.7493556 | IL17: 356.774898 | IM17: 620.2725942 | IN17: 492.3850164 | IO17: 824.4622839 | IP17: 1100.467902 | IQ17: 1179.226882 | IR17: 653.7770972 | IS17: 4.052837078 | IT17: 2.448548833 | IU17: 3.824204833 | IV17: 1.827423808 | IW17: 29.63409632 | IX17: 21.4229453 | IY17: 124.2934908 | IZ17: 357.1611513 | JA17: 30.28716152 | JB17: 3.050658311 | JC17: 67.33152749 | JD17: 73.68390876 | JE17: 13.03010667 | JF17: 4.32618557 | JG17: 2.088293347 | JH17: 63.22149522 | JI17: 23.08769704 | JJ17: 0 | JK17: 7.630434032 | JL17: 8.040159653 | JM17: 3.875011999 | JO17: 01L419 | JP17: 13.66568495 | JQ17: 18.60561539 | JR17: 12.59179969 | JS17: 36.5646575 | JT17: 26.69149386 | JU17: 49.69602048 | JV17: 41.12604921 | JW17: 48.98669713 | JX17: 45.41329151 | JY17: 23.5014315 | JZ17: 10.12460072 | KA17: 27.65225427 | KB17: 17.09189724 | KC17: 54.05824257 | KD17: 38.05508096 | KE17: 46.91492554 | KF17: 56.77221968 | KG17: 63.22761536 | KH17: 46.77632213 | KI17: 6.842815515 | KJ17: 33.14164823 | KK17: 23.62401981 | KL17: 33.36047274 | KM17: 56.11137841 | KN17: 34.11114416 | KO17: 34.00413417 | KP17: 22.56716879 | KQ17: 1.960685033 | KR17: 42.58764548 | KS17: 30.92006266 | KT17: 20.73780758 | KU17: 48.38613088 | KV17: 8.173379154 | KW17: 36.90898216 | KX17: 19.50566401 | KY17: 12.96655303 | KZ17: 64.00711396 | LA17: 95.52090007 | LB17: 112.4696805 | LC17: 48.14954417 | LD17: 83.9555227 | LE17: 45.00694475 | LF17: 48.27096775 | LG17: 88.43436384 | LH17: 21.34638139 | LI17: 38.7644043 | LJ17: 10.08907631 | LK17: 18.7156828 | LL17: 9.366649706 | LM17: 6.834807965 | LN17: 40.16921977 | LO17: 9.781004024 | LP17: 61.50395381 | LQ17: 42.59958401 | LR17: 36.62231186 | LS17: 40.5815358 | LT17: 8.429620756 | LU17: 11.25395646 | LV17: 4.481752979 | LW17: 20.68554012 | LX17: 8.523381888 | LY17: 4.029544788 | LZ17: 22.80011571 | MA17: 26.79268017 | MB17: 57.54735053 | MC17: 234.1040749 | MD17: 76.1212269 | ME17: 178.3962771 | MF17: 41.93874274 | MG17: 26.10184699 | MH17: 142.5706436 | MI17: 36.8920935 | MJ17: 12.49425317 | MK17: 15.52518367 | ML17: 26.16095727 | MM17: 17.16061658 | MN17: 13.59565529 | MO17: 14.94048692 | MP17: 12.24339847 | MQ17: 14.17365481 | MR17: 16.31254423 | MS17: 13.30039508 | MT17: 20.2659445 | MU17: 20.94367442 | MV17: 42.41919575 | MW17: 72.30468294 | MX17: 33.69635307 | MY17: 115.3177477 | MZ17: 57.37205797 | NA17: 121.1647152 | NB17: 32.2861507 | NC17: 3.903171088 | ND17: 26.03560271 | NE17: 2.76624457 | NF17: 77.51512298 | NG17: 106.3942795 | NH17: 2.356985966 | NI17: 2.21969288 | NJ17: 0.95144254 | NK17: 1.835039293 | NL17: 11.94901181 | NM17: 10.33949424 | NN17: 2.026201352 | NO17: 29.00917003 | NP17: 0.862922714 | NQ17: 0.951151357 | NR17: 0.506368348 | NS17: 1.910310263 | NT17: 0 | NU17: 0.41129689 | NV17: 0 | NW17: 0 | NX17: 127.386436 | NY17: 66.74817115 | NZ17: 47.13840898 | OA17: 66.56720052 | OB17: 0 | OC17: 0.145591819 | OD17: 0 | OE17: 0.506368348 | OF17: 8.654851301 | OG17: 5.802270782 | OH17: 4.362950054 | OI17: 3.844206401 | OJ17: 12.91515912 | OK17: 11.18145174 | OL17: 18.86578797 | OM17: 5.721176138 | ON17: 26.66659766 | OO17: 2.188973006 | OP17: 21.50798831 | OQ17: 24.53586138 | OR17: 44.99602536 | OS17: 56.73203634 | OT17: 3.400442536 | OU17: 46.96238847 | OV17: 51.95458637 | OW17: 42.83515158 | OX17: 15.30242819 | OY17: 18.54825221 | OZ17: 87.26657186 | PA17: 40.96735412 | PB17: 23.69172001 | PC17: 22.61244785 | PD17: 15.72682834 | PE17: 13.26996639 | PF17: 13.02144115 | PG17: 7.147830377 | PH17: 10.70667681 | PI17: 16.49759143 | PJ17: 14.77320192 | PK17: 7.696857128 | PL17: 6.488299435 | PM17: 2.654284461 | PN17: 2.780512568 | PO17: 0.194801854 | PP17: 5.582718318 | PQ17: 4.642631939 | PR17: 1.508622433 | PS17: 1.653777477 | PT17: 0.790126804 | PU17: 1.66921021 | PV17: 1.406271384 | PW17: 0 | PX17: 1.336096127 | PY17: 29.20222478 | PZ17: 48.7150228 | QA17: 37.18342274 | QB17: 3.640960221 | QC17: 0 | QD17: 7.30812697 | QE17: 8.527167275 | QF17: 17.83150368 | QG17: 18.16359862 | QH17: 0.582367278 | QI17: 19.02666693 | QJ17: 2.457007545 | QK17: 0.873550917 | QL17: 10.30542576 | QM17: 4.782108903 | QN17: 79.22116792 | QO17: 77.48309277 | QP17: 128.0832385 | QQ17: 121.0210161 | QR17: 0.37125914 | QS17: 0.646136495 | QT17: 0.838026513 | QU17: 1.331582781 | QV17: 2.149808806 | QW17: 0.380140241 | QX17: 0.436775458 | QY17: 7.502200866 | QZ17: 2.573044226 | RA17: 1.717546694 | RB17: 4.946045291 | RC17: 6.87601045 | RD17: 1.462033051 | RE17: 17.09772091 | RF17: 5.453869558 | RG17: 11.44788477 | RH17: 377.1324593 | RI17: 752.1123435 | RJ17: 56.74135421 | RK17: 330.6493591 | RL17: 31.92508299 | RM17: 55.64490222 | RN17: 34.14492146 | RO17: 86.25791173 | RP17: 0.177476428 | RQ17: 0 | RR17: 0 | RS17: 0.519762796 | RT17: 166.8780714 | RU17: 88.89356044 | RV17: 117.1577371 | RW17: 147.0309946 | RX17: 27.54961204 | RY17: 21.82232105 | RZ17: 11.09118481 | SA17: 9.210429684 | SB17: 0.436775458 | SC17: 16.66604117 | SD17: 6.351297533 | SE17: 8.783263285 | SF17: 70.17525699 | SG17: 74.19970606 | SH17: 32.6671645 | SI17: 6.207307223 | SJ17: 63.97231752 | SK17: 38.24289441 | SL17: 45.62192459 | SM17: 70.61276041 | SN17: 21.67672923 | SO17: 5.014910222 | SP17: 17.53871853 | SQ17: 13.12583048 | SR17: 36.86821645 | SS17: 45.52670754 | ST17: 12.93597875 | SU17: 19.46067614 | SV17: 50.76801304 | SW17: 11.54470333 | SX17: 0.873550917 | SY17: 8.382303415 | SZ17: 17.81723568 | TA17: 26.52566477 | TB17: 13.92134419 | TC17: 40.02828689 | TD17: 56.0385825 | TE17: 97.1842866 | TF17: 54.75446265 | TG17: 69.59536477 | TH17: 17.45966218 | TI17: 28.05554361 | TJ17: 8.511734542 | TK17: 0 | TL17: 0 | TM17: 0.459633374 | TN17: 0.463564353 | TO17: 1.853092678 | TP17: 7.486913725 | TQ17: 0.418430889 | TR17: 0 | TS17: 2.970218709 | TT17: 1.90521455 | TU17: 0 | TV17: 6.777299197 | TW17: 1.096160809 | TX17: 8.080782756 | TY17: 1.671830863 | TZ17: 8.648299669 | UA17: 2.498646806 | UB17: 0 | UC17: 0.824632066 | UD17: 0.812402353 | UE17: 0.73218126 | UF17: 7.568881919 | UG17: 53.31601548 | UH17: 8.023128396 | UI17: 3.470908976 | UJ17: 0 | UK17: 36.89893632 | UL17: 4.093168413 | UM17: 4.170914444 | UN17: 4.206002073 | UO17: 10.63067788 | UP17: 14.04058389 | UQ17: 11.68447147 | UR17: 15.8004978 | US17: 25.4752198 | UT17: 2.277638424 | UU17: 1.019142736 | UV17: 18.94338841 | UW17: 99.23480179 | UX17: 64.63505148 | UY17: 84.34949416 | UZ17: 0.400523095 | VA17: 2.158398724 | VB17: 0.184901611 | VC17: 0.293804292 | VD17: 0.188104631 | VE17: 1.402340405 | VF17: 0.862194755 | VG17: 1.465090479 | VH17: 0.145737411 | VI17: 0.26483152 | VJ17: 0 | VK17: 0.402124605 | VL17: 0.18242655 | VM17: 0.15287141 | VN17: 0.362960406 | VO17: 0.145591819 | VP17: 0.844578145 | VQ17: 15.97244174 | VR17: 19.66712534 | VS17: 8.962341223 | VT17: 0.713254324 | VU17: 11.18101496 | VV17: 40.77444496 | VW17: 33.83379174 | VX17: 0.732326852 | VY17: 0 | VZ17: 33.65165638 | WA17: 37.82766654 | WB17: 38.41876932 | WC17: 23.74413306 | WD17: 7.564659756 | WE17: 24.45258286 | WF17: 29.35349468 | WG17: 53.37134037 | WH17: 48.4319923 | WI17: 15.6137035 | WJ17: 61.63323935 | WK17: 27.76159373 | WL17: 34.93199084 | WM17: 29.25463784 | WN17: 8.305576526 | WO17: 14.07683625 | WP17: 0.331221389 | WQ17: 0 | WR17: 0 | WS17: 0 | WT17: 37.12227417 | WU17: 12.80465493 | WV17: 2.314473154 | WW17: 11.91144912 | WX17: 61.00894163 | WY17: 66.65004226 | WZ17: 50.11052039 | XA17: 93.06709554 | XB17: 41.6494518 | XC17: 45.99638675 | XD17: 191.4382467 | XE17: 129.1626562 | XF17: 0.609447356 | XG17: 0.527770346 | XH17: 0.395572974 | XI17: 0 | XJ17: 0.183445693 | XK17: 1.654505437 | XL17: 1.74681065 | XM17: 0.199315201 | XN17: 0.960760417 | XO17: 0 | XP17: 0.536651447 | XQ17: 0 | XR17: 1.466983173 | XS17: 1.019142736 | XT17: 0 | XU17: 1.848579332 | XV17: 1.409765588 | XW17: 1.452423991 | XX17: 1.401758038 | XY17: 1.394478447 | XZ17: 11.49258145 | YA17: 2.191593659 | YB17: 2.042798819 | YC17: 11.59697079 | YD17: 4.420750007 | YE17: 3.826298608 | YF17: 13.19949995 | YG17: 1.348908207 | YH17: 0 | YI17: 1.015648533 | YJ17: 1.078835382 | YK17: 0 | YL17: 0 | YM17: 2.466034238 | YN17: 1.160512393 | YO17: 2.776581589 | YP17: 1.604421851 | YQ17: 5.070526297 | YR17: 0.837735329 | YS17: 4.307625163 | YT17: 0.832494024 | YU17: 1.968255808 | YV17: 0.609447356 | YW17: 13.67281895 | YX17: 1.664114497 | YY17: 8.266849102 | YZ17: 1.639800663 | ZA17: 5.45008417 | ZB17: 6.655293252 | ZC17: 5.221941789 | ZD17: 4.577697988 | ZE17: 0.943726174 | ZF17: 0.177913203 | ZG17: 0 | ZH17: 0 | ZI17: 5.860361918 | ZJ17: 0.556888709 | ZK17: 0.145591819 | ZL17: 0.26483152 | ZM17: 0.291183639 | ZN17: 77.08344323 | ZO17: 11.17024117 | ZP17: 1.236802506 | ZQ17: 0 | ZR17: 6.538965388 | ZS17: 5.218738769 | ZT17: 1.796311869 | ZU17: 3.419806248 | ZV17: 2.864810232 | ZW17: 3.392143802 | ZX17: 5.751022461 | ZY17: 9.28453592 | ZZ17: 0 | AAA17: 1.587387608 | AAB17: 0.452353783 | AAC17: 0 | AAD17: 1.268104748 | AAE17: 0.2776436 | AAF17: 0.280118661 | AAG17: 0.273712621 | AAH17: 0.802210925 | AAI17: 0.144572677 | AAJ17: 1.809706316 | AAK17: 5.236064196 | AAL17: 0.461380476 | AAM17: 6.372553939 | AAN17: 0 | AAO17: 2.162184111 | AAP17: 3.268099572 | AAQ17: 2.054591756
